{"text_format":"1","workbook":"xlsx","n_sheets":10,"sheets":["Getting started","Logic Flow","Customer Order","Order Database","Customer Verification","Product Risk Assessment","Facility Overview","Customer Database","Product Database","Transportation Verification"],"not_rendered":{"charts":0,"images":3,"macros":1,"external_links":0,"defined_names":1,"comments":0,"pivot_tables":0},"unopened":[],"bounds":{"document_bytes":16777216,"sheet_cells":100000,"rows_first":2000,"rows_last":500,"rows_between":2000,"halvings":0,"cell_chars":16384,"cell_head_chars":4096},"cells_cut":0,"cells_raw":0,"read":"whole","date_system":"1900"}

{"sheet":"Getting started","index":0,"n_rows":18,"n_cols":1,"rows_kept":18,"cut":false,"hidden":false,"merged":[[0,0,0,7],[2,0,2,7],[3,0,3,7],[15,0,15,7],[16,0,16,7],[5,0,5,7],[7,0,7,7],[6,0,6,7],[1,0,1,7],[4,0,4,7],[17,0,17,7],[12,0,12,7],[10,0,10,7],[11,0,11,7],[13,0,13,7],[14,0,14,7]]}
["The TESI (Transaction Evaluation for Suspicious Indicators) tool is free software provided with permission from Sandia National Laboratories and the Department of State, Chemical Security Program (CSP). You are permitted to copy and distribute only verbatim copies .  TESI is for non-profit purposes, and is not for sale, resale, lease or any other form of commercial distribution. \nSandia National Laboratories is a multimission laboratory managed and operated by National Technology and Engineering Solutions of Sandia, LLC, a wholly owned subsidiary of Honeywell International Inc., for the U.S. Department of Energy’s National Nuclear Security Administration under contract DE-NA0003525.SAND2023-02074O"]
[]
["TESI Setup Information"]
["This should be completed before using the tool to evaluate product sales for suspicious indicators. Refer to the User Guide for additional information on how to setup and use this tool."]
[]
["1. Complete the \"Facility Overview\" tab for your company"]
["2. Complete the \"Product Database\" tab for all the products your company sells. You can use the \"Product Risk Assessment\" tab to ensure you have the correct information and risk rankings."]
["3. Complete the \"Customer Database\"  tab with your current customers information. All new customers will need to be added to this sheet via the customer verification form."]
[]
[]
["Using TESI to check customer sale/orders for suspicious indicators"]
["Provided here is a quick reference on how to use TESI.  For detailed instructions, please refer to the User Guide."]
[]
["1. Proceed to the \"Customer Order\" tab. "]
["2. Select the customer from the pull down at the top of the customer order tab"]
["3. If your customer is not listed, fill out the customer information in the \"Customer Verification\" tab and click \"Enter into Customer Database\" and then return to the \"Customer Order\" tab."]
["4. Select the products in the order by using the drop down box under the \"Product Name\" cell and add the requested number of units for this customer order."]
["5. Answer the questions on the right side of the \"Customer Order\" tab regarding the order and review any color indicators before proceeding with the order"]

{"sheet":"Logic Flow","index":1,"n_rows":1,"n_cols":1,"rows_kept":1,"cut":false,"hidden":false,"merged":[[2,11,2,13],[6,11,6,13],[13,8,13,11],[13,14,13,19],[48,8,48,10],[17,8,17,10],[25,13,25,15],[25,5,25,9],[33,11,33,15],[21,13,21,16],[52,17,52,19],[60,14,60,18],[37,11,37,13],[41,11,41,14],[48,14,48,17],[64,12,64,14],[68,11,68,14],[72,12,72,14],[80,9,80,13],[56,5,56,9]]}
["Provided below is an example of the indicator anaylsis for an order in this tool.  This if provide as ONLY an example of how you can use the indicators with decisions on proceeding with a customer order. Refer to the User Guide for additional information on the tool and interpreting the results."]

{"sheet":"Customer Order","index":2,"n_rows":42,"n_cols":18,"rows_kept":42,"cut":false,"hidden":false,"merged":[[7,11,7,12],[25,9,25,12],[27,9,27,10],[28,9,28,10],[22,9,22,10],[17,9,19,10],[21,9,21,10],[12,9,12,10],[13,9,13,10],[2,11,2,14],[3,11,3,12],[4,11,4,12],[5,11,5,12],[6,11,6,12],[0,0,0,13],[2,4,2,7],[2,0,2,1],[39,12,40,12],[41,9,41,10],[33,9,35,10],[37,9,38,10],[39,9,40,10],[36,9,36,10],[39,11,40,11],[37,11,38,11],[33,11,35,11],[33,12,35,12],[37,12,38,12],[30,9,30,10],[31,9,31,10],[32,9,32,10],[8,9,8,14],[17,11,19,11],[11,11,11,12],[12,11,12,12],[13,11,13,12],[9,9,9,12],[10,11,10,12],[17,12,19,12],[9,13,9,14],[20,9,20,10],[10,9,10,10],[11,9,11,10],[26,9,26,10],[16,9,16,12],[29,9,29,10]]}
["Customer Name for Order"]
[]
["Select Customer/Business Name:",null,null,{"$f":"IF(J3=\"\", \"Select...\")","v":"Select..."},"Note: If Customer is not listed, add new customer in Customer Verification tab",null,null,null,null,null,{"$f":"IF($D$3 = \"Select...\",\"Trusted Customer: No\",\"Trusted Customer: \"&R3)","v":"Trusted Customer: No"},"Suspicious Indicator Summary",null,null,null,null,"Trusted Customer?",{"$f":"IFERROR(INDEX('Customer Database'!L:L,MATCH(2,1/('Customer Database'!A:A=$D$3))),\"Not Trusted\")","v":"Not Trusted"}]
[null,null,null,null,null,null,null,null,null,null,null,null,null,"Current Order","Previous Order"]
["Date","Order Number","Company Name","POC Name","Product Name","Unit Size","Number Units","High Risk Product",null,null,null,"Customer History",null,{"$f":"Q14","v":0},{"$f":"IFERROR(INDEX('Order Database'!$H:$H,MATCH(2,1/('Order Database'!$C:$C=$D$3))),\"No History\")","v":"No History"}]
[null,null,{"$f":"IF($E6<>\"\",TEXT($D$3,\"\"),\"\")","v":""},null,null,null,null,{"$f":"IFERROR(VLOOKUP(E6,'Product Database'!B:F, 5, FALSE), \" \")","v":" "},null,null,null,"Suspicious Activity",null,{"$f":"Q23","v":0},{"$f":"IFERROR(INDEX('Order Database'!$I:$I,MATCH(2,1/('Order Database'!$C:$C=$D$3))),\"No History\")","v":"No History"}]
[null,null,"",null,null,null,null,{"$f":"IFERROR(VLOOKUP(E7,'Product Database'!B:F, 5, FALSE), \" \")","v":" "},null,null,null,"Shipping",null,{"$f":"Q42","v":0},{"$f":"IFERROR(INDEX('Order Database'!$J:$J,MATCH(2,1/('Order Database'!$C:$C=$D$3))),\"No History\")","v":"No History"}]
[null,null,"",null,null,null,null,{"$f":"IFERROR(VLOOKUP(E8,'Product Database'!B:F, 5, FALSE), \" \")","v":" "},null,null,null,"Total",null,{"$f":"SUM(N5:N7)","v":0},{"$f":"SUM(O5:O7)","v":0}]
[null,null,"",null,null,null,null,{"$f":"IFERROR(VLOOKUP(E9,'Product Database'!B:F, 5, FALSE), \" \")","v":" "},null,"ONLY ANSWER QUESTIONS IF THERE WAS A HIGH-RISK PRODUCT IDENTIFED IN THE PURCHASE ORDER"]
[null,null,"",null,null,null,null,{"$f":"IFERROR(VLOOKUP(E10,'Product Database'!B:F, 5, FALSE), \" \")","v":" "},null,"Customer History",null,null,null,"Confirm Current Order Matches",null,false]
[null,null,"",null,null,null,null,{"$f":"IFERROR(VLOOKUP(E11,'Product Database'!B:F, 5, FALSE), \" \")","v":" "},null,"Shipping Address On Record",null,{"$f":"_xlfn.IFNA(VLOOKUP($D$3,'Customer Database'!A:L,6,FALSE),\"NONE\")","v":"NONE"},null,null,null,false]
[null,null,"",null,null,null,null,{"$f":"IFERROR(VLOOKUP(E12,'Product Database'!B:F, 5, FALSE), \" \")","v":" "},null,"Bank name",null,{"$f":"_xlfn.IFNA(VLOOKUP($D$3,'Customer Database'!A:L,9,FALSE),\"NONE\")","v":"NONE"},null,null,null,false]
[null,null,"",null,null,null,null,{"$f":"IFERROR(VLOOKUP(E13,'Product Database'!B:F, 5, FALSE), \" \")","v":" "},null,"Bank address",null,{"$f":"_xlfn.IFNA(VLOOKUP($D$3,'Customer Database'!A:L,10,FALSE),\"NONE\")","v":"NONE"},null,null,null,false]
[null,null,"",null,null,null,null,{"$f":"IFERROR(VLOOKUP(E14,'Product Database'!B:F, 5, FALSE), \" \")","v":" "},null,"Payment method",null,{"$f":"_xlfn.IFNA(VLOOKUP($D$3,'Customer Database'!A:L,11,FALSE),\"NONE\")","v":"NONE"},null,null,null,"SUM",{"$f":"COUNTIF(P10:P13,\"TRUE\")","v":0}]
[null,null,"",null,null,null,null,{"$f":"IFERROR(VLOOKUP(E15,'Product Database'!B:F, 5, FALSE), \" \")","v":" "}]
[null,null,"",null,null,null,null,{"$f":"IFERROR(VLOOKUP(E16,'Product Database'!B:F, 5, FALSE), \" \")","v":" "}]
[null,null,"",null,null,null,null,{"$f":"IFERROR(VLOOKUP(E17,'Product Database'!B:F, 5, FALSE), \" \")","v":" "},null,"Suspicious Activity "]
[null,null,"",null,null,null,null,{"$f":"IFERROR(VLOOKUP(E18,'Product Database'!B:F, 5, FALSE), \" \")","v":" "},null,"Is there anything suspicious or atypical about the customer ordering that raises suspicions?",null,null,null,null,null,false]
[null,null,"",null,null,null,null,{"$f":"IFERROR(VLOOKUP(E19,'Product Database'!B:F, 5, FALSE), \" \")","v":" "}]
[null,null,"",null,null,null,null,{"$f":"IFERROR(VLOOKUP(E20,'Product Database'!B:F, 5, FALSE), \" \")","v":" "},null,null,null,null,null,null,null,false]
[null,null,"",null,null,null,null,{"$f":"IFERROR(VLOOKUP(E21,'Product Database'!B:F, 5, FALSE), \" \")","v":" "},null,"Is this a larger order than normal for this customer?",null,null,null,null,null,false]
[null,null,"",null,null,null,null,{"$f":"IFERROR(VLOOKUP(E22,'Product Database'!B:F, 5, FALSE), \" \")","v":" "},null,"Is there no clear and legitimate purpose for this product? (End use verification)"]
[null,null,"",null,null,null,null,{"$f":"IFERROR(VLOOKUP(E23,'Product Database'!B:F, 5, FALSE), \" \")","v":" "},null,"How was the order placed?",null,null,null,null,null,"SUM",{"$f":"COUNTIF(P17:P21,\"TRUE\")","v":0}]
[null,null,"",null,null,null,null,{"$f":"IFERROR(VLOOKUP(E24,'Product Database'!B:F, 5, FALSE), \" \")","v":" "}]
[null,null,"",null,null,null,null,{"$f":"IFERROR(VLOOKUP(E25,'Product Database'!B:F, 5, FALSE), \" \")","v":" "}]
[null,null,"",null,null,null,null,{"$f":"IFERROR(VLOOKUP(E26,'Product Database'!B:F, 5, FALSE), \" \")","v":" "},null,"Shipping requests",null,null,null,null,null,false]
[null,null,"",null,null,null,null,{"$f":"IFERROR(VLOOKUP(E27,'Product Database'!B:F, 5, FALSE), \" \")","v":" "},null,"Is the customer requesting urgent or premium shipping?",null,null,null,null,null,false]
[null,null,"",null,null,null,null,{"$f":"IFERROR(VLOOKUP(E28,'Product Database'!B:F, 5, FALSE), \" \")","v":" "},null,"Is the customer taking immediate custody of the product?"]
[null,null,"",null,null,null,null,{"$f":"IFERROR(VLOOKUP(E29,'Product Database'!B:F, 5, FALSE), \" \")","v":" "},null,"If another person/company is transporting the product, what company is it?"]
[null,null,"",null,null,null,null,{"$f":"IFERROR(VLOOKUP(E30,'Product Database'!B:F, 5, FALSE), \" \")","v":" "},null,"Transportation Company Address"]
[null,null,"",null,null,null,null,{"$f":"IFERROR(VLOOKUP(E31,'Product Database'!B:F, 5, FALSE), \" \")","v":" "},null,"Transportation Company Phone Number",null,null,null,null,null,false]
[null,null,"",null,null,null,null,{"$f":"IFERROR(VLOOKUP(E32,'Product Database'!B:F, 5, FALSE), \" \")","v":" "},null,"Is this the first time you are using this transportation company?",null,null,null,null,null,false]
[null,null,"",null,null,null,null,{"$f":"IFERROR(VLOOKUP(E33,'Product Database'!B:F, 5, FALSE), \" \")","v":" "},null,"Will the shipment be verified upon receipt?"]
[null,null,"",null,null,null,null,{"$f":"IFERROR(VLOOKUP(E34,'Product Database'!B:F, 5, FALSE), \" \")","v":" "},null,"Are there any unusual routing requests about this order? (For example: specifying a specific route that is not the most efficient, stopping at other facilities before the final destination)",null,null,null,null,null,false]
[null,null,"",null,null,null,null,{"$f":"IFERROR(VLOOKUP(E35,'Product Database'!B:F, 5, FALSE), \" \")","v":" "}]
[null,null,"",null,null,null,null,{"$f":"IFERROR(VLOOKUP(E36,'Product Database'!B:F, 5, FALSE), \" \")","v":" "},null,null,null,null,null,null,null,false]
[null,null,"",null,null,null,null,{"$f":"IFERROR(VLOOKUP(E37,'Product Database'!B:F, 5, FALSE), \" \")","v":" "},null,"Are there any unusual labelling requests from the customer?",null,null,null,null,null,false]
[null,null,null,null,null,null,null,null,null,"Are there any unusual packaging and handling requests that deviate from your company standards or regulations? (e.g. Product needs to be refrigerated and no request for refrigerated transportation)"]
[null,null,null,null,null,null,null,null,null,null,null,null,null,null,null,false]
[null,null,null,null,null,null,null,null,null,"Does the customer/shipper have appropriate materials and personal protective equipment to receive, transport, and store the chemical?"]
[null,null,null,null,null,null,null,null,null,null,null,null,null,null,null,false]
[null,null,null,null,null,null,null,null,null,"Is the route safe? (Will it travel through hostile/high crime areas?)",null,null,null,null,null,"SUM",{"$f":"COUNTIF(P26:P41,\"TRUE\")","v":0}]

{"sheet":"Order Database","index":3,"n_rows":1048575,"n_cols":13,"rows_kept":4500,"cut":true,"hidden":false,"merged":[[0,0,0,9]],"bounds":{"rows_first":2000,"rows_last":500,"rows_between":2000,"halvings":0}}
["Orders Database - Customer Sales History"]
["Date","Order Number","Customer Name","POC Name","Product Name","Sold As","Number Units","Customer Suspicious Indicators","Activity Suspicious Indicators","Shipping Suspicious Indicators"]
[]
[]
[]
[]
[null,null,""]
[null,null,""]
[null,null,""]
[null,null,""]
[null,null,""]
[null,null,""]
[null,null,""]
[null,null,""]
[null,null,""]
[null,null,""]
[null,null,""]
[null,null,""]
[null,null,""]
[null,null,""]
[null,null,""]
[null,null,""]
[null,null,""]
[null,null,""]
[null,null,""]
[null,null,""]
[null,null,""]
[null,null,""]
[null,null,""]
[null,null,""]
[null,null,""]
[null,null,""]
[null,null,""]
[null,null,""]
[null,null,""]
[null,null,""]
[null,null,""]
[null,null,""]
[null,null,""]
[null,null,""]
[null,null,""]
[null,null,""]
[null,null,""]
[]
[]
[]
[]
[]
[]
[]
[]
[]
[]
[]
[]
[]
[]
[]
[]
[]
[]
[]
[]
[]
[]
[]
[]
[]
[]
[]
[]
[]
[]
[]
[]
[]
[]
[]
[]
[]
[]
[]
[]
[]
[]
[]
[]
[]
[]
[]
[]
[]
[]
[]
[]
[]
[]
[]
[]
[]
[]
[]
[]
[]
[]
[]
[]
[]
[]
[]
[]
[]
[]
[]
[]
[]
[]
[]
[]
[]
[]
[]
[]
[]
[]
[]
[]
[]
[]
[]
[]
[]
[]
[]
[]
[]
[]
[]
[]
[]
[]
[]
[]
[]
[]
[]
[]
[]
[]
[]
[]
[]
[]
[]
[]
[]
[]
[]
[]
[]
[]
[]
[]
[]
[]
[]
[]
[]
[]
[]
[]
[]
[]
[]
[]
[]
[]
[]
[]
[]
[]
[]
[]
[]
[]
[]
[]
[]
[]
[]
[]
[]
[]
[]
[]
[]
[]
[]
[]
[]
[]
[]
[]
[]
[]
[]
[]
[]
[]
[]
[]
[]
[]
[]
[]
[]
[]
[]
[]
[]
[]
[]
[]
[]
[]
[]
[]
[]
[]
[]
[]
[]
[]
[]
[]
[]
[]
[]
[]
[]
[]
[]
[]
[]
[]
[]
[]
[]
[]
[]
[]
[]
[]
[]
[]
[]
[]
[]
[]
[]
[]
[]
[]
[]
[]
[]
[]
[]
[]
[]
[]
[]
[]
[]
[]
[]
[]
[]
[]
[]
[]
[]
[]
[]
[]
[]
[]
[]
[]
[]
[]
[]
[]
[]
[]
[]
[]
[]
[]
[]
[]
[]
[]
[]
[]
[]
[]
[]
[]
[]
[]
[]
[]
[]
[]
[]
[]
[]
[]
[]
[]
[]
[]
[]
[]
[]
[]
[]
[]
[]
[]
[]
[]
[]
[]
[]
[]
[]
[]
[]
[]
[]
[]
[]
[]
[]
[]
[]
[]
[]
[]
[]
[]
[]
[]
[]
[]
[]
[]
[]
[]
[]
[]
[]
[]
[]
[]
[]
[]
[]
[]
[]
[]
[]
[]
[]
[]
[]
[]
[]
[]
[]
[]
[]
[]
[]
[]
[]
[]
[]
[]
[]
[]
[]
[]
[]
[]
[]
[]
[]
[]
[]
[]
[]
[]
[]
[]
[]
[]
[]
[]
[]
[]
[]
[]
[]
[]
[]
[]
[]
[]
[]
[]
[]
[]
[]
[]
[]
[]
[]
[]
[]
[]
[]
[]
[]
[]
[]
[]
[]
[]
[]
[]
[]
[]
[]
[]
[]
[]
[]
[]
[]
[]
[]
[]
[]
[]
[]
[]
[]
[]
[]
[]
[]
[]
[]
[]
[]
[]
[]
[]
[]
[]
[]
[]
[]
[]
[]
[]
[]
[]
[]
[]
[]
[]
[]
[]
[]
[]
[]
[]
[]
[]
[]
[]
[]
[]
[]
[]
[]
[]
[]
[]
[]
[]
[]
[]
[]
[]
[]
[]
[]
[]
[]
[]
[]
[]
[]
[]
[]
[]
[]
[]
[]
[]
[]
[]
[]
[]
[]
[]
[]
[]
[]
[]
[]
[]
[]
[]
[]
[]
[]
[]
[]
[]
[]
[]
[]
[]
[]
[]
[]
[]
[]
[]
[]
[]
[]
[]
[]
[]
[]
[]
[]
[]
[]
[]
[]
[]
[]
[]
[]
[]
[]
[]
[]
[]
[]
[]
[]
[]
[]
[]
[]
[]
[]
[]
[]
[]
[]
[]
[]
[]
[]
[]
[]
[]
[]
[]
[]
[]
[]
[]
[]
[]
[]
[]
[]
[]
[]
[]
[]
[]
[]
[]
[]
[]
[]
[]
[]
[]
[]
[]
[]
[]
[]
[]
[]
[]
[]
[]
[]
[]
[]
[]
[]
[]
[]
[]
[]
[]
[]
[]
[]
[]
[]
[]
[]
[]
[]
[]
[]
[]
[]
[]
[]
[]
[]
[]
[]
[]
[]
[]
[]
[]
[]
[]
[]
[]
[]
[]
[]
[]
[]
[]
[]
[]
[]
[]
[]
[]
[]
[]
[]
[]
[]
[]
[]
[]
[]
[]
[]
[]
[]
[]
[]
[]
[]
[]
[]
[]
[]
[]
[]
[]
[]
[]
[]
[]
[]
[]
[]
[]
[]
[]
[]
[]
[]
[]
[]
[]
[]
[]
[]
[]
[]
[]
[]
[]
[]
[]
[]
[]
[]
[]
[]
[]
[]
[]
[]
[]
[]
[]
[]
[]
[]
[]
[]
[]
[]
[]
[]
[]
[]
[]
[]
[]
[]
[]
[]
[]
[]
[]
[]
[]
[]
[]
[]
[]
[]
[]
[]
[]
[]
[]
[]
[]
[]
[]
[]
[]
[]
[]
[]
[]
[]
[]
[]
[]
[]
[]
[]
[]
[]
[]
[]
[]
[]
[]
[]
[]
[]
[]
[]
[]
[]
[]
[]
[]
[]
[]
[]
[]
[]
[]
[]
[]
[]
[]
[]
[]
[]
[]
[]
[]
[]
[]
[]
[]
[]
[]
[]
[]
[]
[]
[]
[]
[]
[]
[]
[]
[]
[]
[]
[]
[]
[]
[]
[]
[]
[]
[]
[]
[]
[]
[]
[]
[]
[]
[]
[]
[]
[]
[]
[]
[]
[]
[]
[]
[]
[]
[]
[]
[]
[]
[]
[]
[]
[]
[]
[]
[]
[]
[]
[]
[]
[]
[]
[]
[]
[]
[]
[]
[]
[]
[]
[]
[]
[]
[]
[]
[]
[]
[]
[]
[]
[]
[]
[]
[]
[]
[]
[]
[]
[]
[]
[]
[]
[]
[]
[]
[]
[]
[]
[]
[]
[]
[]
[]
[]
[]
[]
[]
[]
[]
[]
[]
[]
[]
[]
[]
[]
[]
[]
[]
[]
[]
[]
[]
[]
[]
[]
[]
[]
[]
[]
[]
[]
[]
[]
[]
[]
[]
[]
[]
[]
[]
[]
[]
[]
[]
[]
[]
[]
[]
[]
[]
[]
[]
[]
[]
[]
[]
[]
[]
[]
[]
[]
[]
[]
[]
[]
[]
[]
[]
[]
[]
[]
[]
[]
[]
[]
[]
[]
[]
[]
[]
[]
[]
[]
[]
[]
[]
[]
[]
[]
[]
[]
[]
[]
[]
[]
[]
[]
[]
[]
[]
[]
[]
[]
[]
[]
[]
[]
[]
[]
[]
[]
[]
[]
[]
[]
[]
[]
[]
[]
[]
[]
[]
[]
[]
[]
[]
[]
[]
[]
[]
[]
[]
[]
[]
[]
[]
[]
[]
[]
[]
[]
[]
[]
[]
[]
[]
[]
[]
[]
[]
[]
[]
[]
[]
[]
[]
[]
[]
[]
[]
[]
[]
[]
[]
[]
[]
[]
[]
[]
[]
[]
[]
[]
[]
[]
[]
[]
[]
[]
[]
[]
[]
[]
[]
[]
[]
[]
[]
[]
[]
[]
[]
[]
[]
[]
[]
[]
[]
[]
[]
[]
[]
[]
[]
[]
[]
[]
[]
[]
[]
[]
[]
[]
[]
[]
[]
[]
[]
[]
[]
[]
[]
[]
[]
[]
[]
[]
[]
[]
[]
[]
[]
[]
[]
[]
[]
[]
[]
[]
[]
[]
[]
[]
[]
[]
[]
[]
[]
[]
[]
[]
[]
[]
[]
[]
[]
[]
[]
[]
[]
[]
[]
[]
[]
[]
[]
[]
[]
[]
[]
[]
[]
[]
[]
[]
[]
[]
[]
[]
[]
[]
[]
[]
[]
[]
[]
[]
[]
[]
[]
[]
[]
[]
[]
[]
[]
[]
[]
[]
[]
[]
[]
[]
[]
[]
[]
[]
[]
[]
[]
[]
[]
[]
[]
[]
[]
[]
[]
[]
[]
[]
[]
[]
[]
[]
[]
[]
[]
[]
[]
[]
[]
[]
[]
[]
[]
[]
[]
[]
[]
[]
[]
[]
[]
[]
[]
[]
[]
[]
[]
[]
[]
[]
[]
[]
[]
[]
[]
[]
[]
[]
[]
[]
[]
[]
[]
[]
[]
[]
[]
[]
[]
[]
[]
[]
[]
[]
[]
[]
[]
[]
[]
[]
[]
[]
[]
[]
[]
[]
[]
[]
[]
[]
[]
[]
[]
[]
[]
[]
[]
[]
[]
[]
[]
[]
[]
[]
[]
[]
[]
[]
[]
[]
[]
[]
[]
[]
[]
[]
[]
[]
[]
[]
[]
[]
[]
[]
[]
[]
[]
[]
[]
[]
[]
[]
[]
[]
[]
[]
[]
[]
[]
[]
[]
[]
[]
[]
[]
[]
[]
[]
[]
[]
[]
[]
[]
[]
[]
[]
[]
[]
[]
[]
[]
[]
[]
[]
[]
[]
[]
[]
[]
[]
[]
[]
[]
[]
[]
[]
[]
[]
[]
[]
[]
[]
[]
[]
[]
[]
[]
[]
[]
[]
[]
[]
[]
[]
[]
[]
[]
[]
[]
[]
[]
[]
[]
[]
[]
[]
[]
[]
[]
[]
[]
[]
[]
[]
[]
[]
[]
[]
[]
[]
[]
[]
[]
[]
[]
[]
[]
[]
[]
[]
[]
[]
[]
[]
[]
[]
[]
[]
[]
[]
[]
[]
[]
[]
[]
[]
[]
[]
[]
[]
[]
[]
[]
[]
[]
[]
[]
[]
[]
[]
[]
[]
[]
[]
[]
[]
[]
[]
[]
[]
[]
[]
[]
[]
[]
[]
[]
[]
[]
[]
[]
[]
[]
[]
[]
[]
[]
[]
[]
[]
[]
[]
[]
[]
[]
[]
[]
[]
[]
[]
[]
[]
[]
[]
[]
[]
[]
[]
[]
[]
[]
[]
[]
[]
[]
[]
[]
[]
[]
[]
[]
[]
[]
[]
[]
[]
[]
[]
[]
[]
[]
[]
[]
[]
[]
[]
[]
[]
[]
[]
[]
[]
[]
[]
[]
[]
[]
[]
[]
[]
[]
[]
[]
[]
[]
[]
[]
[]
[]
[]
[]
[]
[]
[]
[]
[]
[]
[]
[]
[]
[]
[]
[]
[]
[]
[]
[]
[]
[]
[]
[]
[]
[]
[]
[]
[]
[]
[]
[]
[]
[]
[]
[]
[]
[]
[]
[]
[]
[]
[]
[]
[]
[]
[]
[]
[]
[]
[]
[]
[]
[]
[]
[]
[]
[]
[]
[]
[]
[]
[]
[]
[]
[]
[]
[]
[]
[]
[]
[]
[]
[]
[]
[]
[]
[]
[]
[]
[]
[]
[]
[]
[]
[]
[]
[]
[]
[]
[]
[]
[]
[]
[]
[]
[]
[]
[]
[]
[]
[]
[]
[]
[]
[]
[]
[]
[]
[]
[]
[]
[]
[]
[]
[]
[]
[]
[]
[]
[]
[]
[]
[]
[]
[]
[]
[]
[]
[]
[]
[]
[]
[]
[]
[]
[]
[]
[]
[]
[]
[]
[]
[]
[]
[]
[]
[]
[]
[]
[]
[]
[]
[]
[]
[]
[]
[]
[]
[]
[]
[]
[]
[]
[]
[]
[]
[]
[]
[]
[]
[]
[]
[]
[]
[]
[]
[]
[]
[]
[]
[]
[]
[]
[]
[]
[]
[]
[]
[]
[]
[]
[]
[]
[]
[]
[]
[]
[]
[]
[]
[]
[]
[]
[]
[]
[]
[]
[]
[]
[]
[]
[]
[]
[]
[]
[]
[]
[]
[]
[]
[]
[]
[]
[]
[]
[]
[]
[]
[]
[]
[]
[]
[]
[]
[]
[]
[]
[]
[]
[]
[]
[]
[]
[]
[]
[]
[]
[]
[]
[]
[]
[]
[]
[]
[]
[]
[]
[]
[]
[]
[]
[]
[]
[]
[]
[]
[]
[]
[]
[]
[]
[]
[]
[]
[]
[]
[]
[]
[]
[]
[]
[]
[]
[]
[]
[]
[]
[]
[]
[]
[]
[]
[]
[]
[]
[]
[]
[]
[]
[]
[]
[]
[]
[]
[]
[]
[]
[]
[]
[]
[]
[]
[]
[]
[]
[]
[]
[]
[]
[]
[]
[]
[]
[]
[]
[]
[]
[]
[]
[]
[]
[]
[]
[]
[]
[]
[]
[]
[]
[]
[]
[]
[]
[]
[]
[]
[]
[]
[]
[]
[]
[]
[]
[]
[]
[]
[]
[]
[]
[]
[]
[]
[]
[]
[]
[]
[]
[]
[]
[]
[]
[]
[]
[]
[]
[]
[]
[]
[]
[]
[]
[]
[]
[]
[]
[]
[]
[]
[]
[]
[]
[]
[]
[]
[]
[]
[]
[]
[]
[]
[]
[]
[]
[]
[]
[]
[]
[]
[]
[]
[]
[]
[]
[]
[]
[]
[]
[]
[]
[]
[]
[]
[]
[]
[]
[]
[]
[]
[]
[]
[]
[]
[]
[]
[]
[]
[]
[]
[]
[]
[]
[]
[]
[]
[]
[]
[]
[]
[]
[]
[]
[]
[]
[]
[]
[]
[]
[]
[]
[]
[]
[]
[]
[]
[]
[]
[]
[]
[]
[]
[]
[]
[]
[]
[]
[]
[]
[]
[]
[]
[]
[]
[]
[]
[]
[]
[]
[]
[]
[]
[]
[]
[]
[]
[]
[]
[]
[]
[]
[]
[]
[]
[]
[]
[]
[]
[]
[]
[]
[]
[]
[]
[]
[]
[]
[]
[]
[]
[]
[]
[]
[]
[]
[]
[]
[]
[]
[]
[]
[]
[]
[]
[]
[]
[]
[]
[]
[]
[]
[]
[]
[]
[]
[]
[]
[]
[]
[]
[]
[]
[]
[]
[]
[]
[]
[]
[]
[]
[]
[]
[]
[]
[]
[]
[]
[]
[]
[]
[]
[]
[]
[]
[]
[]
[]
[]
[]
[]
[]
[]
[]
[]
[]
[]
[]
[]
[]
[]
[]
[]
[]
[]
[]
[]
[]
[]
[]
[]
[]
[]
[]
[]
[]
[]
[]
[]
[]
[]
[]
[]
[]
[]
[]
[]
[]
[]
[]
[]
[]
[]
[]
[]
[]
[]
[]
[]
[]
[]
[]
[]
[]
[]
[]
[]
[]
[]
[]
[]
[]
[]
[]
[]
[]
[]
[]
[]
[]
[]
[]
[]
[]
[]
[]
[]
[]
[]
[]
[]
[]
[]
[]
[]
[]
[]
[]
[]
[]
[]
[]
[]
[]
[]
[]
[]
[]
[]
[]
[]
[]
[]
[]
[]
[]
[]
[]
[]
[]
[]
[]
[]
[]
[]
[]
[]
[]
[]
[]
[]
[]
[]
[]
[]
[]
[]
[]
[]
[]
[]
[]
[]
[]
[]
[]
[]
[]
[]
[]
[]
[]
[]
[]
[]
[]
[]
[]
[]
[]
[]
[]
[]
[]
[]
[]
[]
[]
[]
[]
[]
[]
[]
[]
[]
[]
[]
[]
[]
[]
[]
[]
[]
[]
[]
[]
[]
[]
[]
[]
[]
[]
[]
[]
[]
[]
[]
[]
[]
[]
[]
[]
[]
[]
[]
[]
[]
[]
[]
[]
[]
[]
[]
[]
[]
[]
[]
[]
[]
[]
[]
[]
[]
[]
[]
[]
[]
[]
[]
[]
[]
[]
[]
[]
[]
[]
[]
[]
[]
[]
[]
[]
[]
[]
[]
[]
[]
[]
[]
[]
[]
[]
[]
[]
[]
[]
[]
[]
[]
[]
[]
[]
[]
[]
[]
[]
[]
[]
[]
[]
[]
[]
[]
[]
[]
[]
[]
[]
[]
[]
[]
[]
[]
[]
[]
[]
[]
[]
[]
[]
[]
[]
[]
[]
[]
[]
[]
[]
[]
[]
[]
[]
[]
[]
[]
[]
[]
[]
[]
[]
[]
[]
[]
[]
[]
[]
[]
[]
[]
[]
[]
[]
[]
[]
[]
[]
[]
[]
[]
[]
[]
[]
[]
[]
[]
[]
[]
[]
[]
[]
[]
[]
[]
[]
[]
[]
[]
[]
[]
[]
[]
[]
[]
[]
[]
[]
[]
[]
[]
[]
[]
[]
[]
[]
[]
[]
[]
[]
[]
[]
[]
[]
[]
[]
[]
[]
[]
[]
[]
[]
[]
[]
[]
[]
[]
[]
[]
[]
[]
[]
[]
[]
[]
[]
[]
[]
[]
[]
[]
[]
[]
[]
[]
[]
[]
[]
[]
[]
[]
[]
[]
[]
[]
[]
[]
[]
[]
[]
[]
[]
[]
[]
[]
[]
[]
[]
[]
[]
[]
[]
[]
[]
[]
[]
[]
[]
[]
[]
[]
[]
[]
[]
[]
[]
[]
[]
[]
[]
[]
[]
[]
[]
[]
[]
[]
[]
[]
[]
[]
[]
[]
[]
[]
[]
[]
[]
[]
[]
[]
[]
[]
[]
[]
[]
[]
[]
[]
[]
[]
[]
[]
[]
[]
[]
[]
[]
[]
[]
[]
[]
[]
[]
[]
[]
[]
[]
[]
[]
[]
[]
[]
[]
[]
[]
[]
[]
[]
[]
[]
[]
[]
[]
[]
[]
[]
[]
[]
[]
[]
[]
[]
[]
[]
[]
[]
[]
[]
[]
[]
[]
[]
[]
[]
[]
[]
[]
[]
[]
[]
[]
[]
[]
[]
[]
[]
[]
[]
[]
[]
[]
[]
[]
[]
[]
[]
[]
[]
[]
[]
[]
[]
[]
[]
[]
[]
[]
[]
[]
[]
[]
[]
[]
[]
[]
[]
[]
[]
[]
[]
[]
[]
[]
[]
[]
[]
[]
[]
[]
[]
[]
[]
[]
[]
[]
[]
[]
[]
[]
[]
[]
[]
[]
[]
[]
[]
[]
[]
[]
[]
[]
[]
[]
[]
[]
[]
[]
[]
[]
[]
[]
[]
[]
[]
[]
[]
[]
[]
[]
[]
[]
[]
[]
[]
[]
[]
[]
[]
[]
[]
[]
[]
[]
[]
[]
[]
[]
[]
[]
[]
[]
[]
[]
[]
[]
[]
[]
[]
[]
[]
[]
[]
[]
[]
[]
[]
[]
[]
[]
[]
[]
[]
[]
[]
[]
[]
[]
[]
[]
[]
[]
[]
[]
[]
[]
[]
[]
[]
[]
[]
[]
[]
[]
[]
[]
[]
[]
[]
[]
[]
[]
[]
[]
[]
[]
[]
[]
[]
[]
[]
[]
[]
[]
[]
[]
[]
[]
[]
[]
[]
[]
[]
[]
[]
[]
[]
[]
[]
[]
[]
[]
[]
[]
[]
[]
[]
[]
[]
[]
[]
[]
[]
[]
[]
[]
[]
[]
[]
[]
[]
[]
[]
[]
[]
[]
[]
[]
[]
[]
[]
[]
[]
[]
[]
[]
[]
[]
[]
[]
[]
[]
[]
[]
[]
[]
[]
[]
[]
[]
[]
[]
[]
[]
[]
[]
[]
[]
[]
[]
[]
[]
[]
[]
[]
[]
[]
[]
[]
[]
[]
[]
[]
[]
[]
[]
[]
[]
[]
[]
[]
[]
[]
[]
[]
[]
[]
[]
[]
[]
[]
[]
[]
[]
[]
[]
[]
[]
[]
[]
[]
[]
[]
[]
[]
[]
[]
[]
[]
[]
[]
[]
[]
[]
[]
[]
[]
[]
[]
[]
[]
[]
[]
[]
[]
[]
[]
[]
[]
[]
[]
[]
[]
[]
[]
[]
[]
[]
[]
[]
[]
[]
[]
[]
[]
[]
[]
[]
[]
[]
[]
[]
[]
[]
[]
[]
[]
[]
[]
[]
[]
[]
[]
[]
[]
[]
[]
[]
[]
[]
[]
[]
[]
[]
[]
[]
[]
[]
[]
[]
[]
[]
[]
[]
[]
[]
[]
[]
[]
[]
[]
[]
[]
[]
[]
[]
[]
[]
[]
[]
[]
[]
[]
[]
[]
[]
[]
[]
[]
[]
[]
[]
[]
[]
[]
[]
[]
[]
[]
[]
[]
[]
[]
[]
[]
[]
[]
[]
[]
[]
[]
[]
[]
[]
[]
[]
[]
[]
[]
[]
[]
[]
[]
[]
[]
[]
[]
[]
[]
[]
[]
[]
[]
[]
[]
[]
[]
[]
[]
[]
[]
[]
[]
[]
[]
[]
[]
[]
[]
[]
[]
[]
[]
[]
[]
[]
[]
[]
[]
[]
[]
[]
[]
[]
[]
[]
[]
[]
[]
[]
[]
[]
[]
[]
[]
[]
[]
[]
[]
[]
[]
[]
[]
[]
[]
[]
[]
[]
[]
[]
[]
[]
[]
[]
[]
[]
[]
[]
[]
[]
[]
[]
[]
[]
[]
[]
[]
[]
[]
[]
[]
[]
[]
[]
[]
[]
[]
[]
[]
[]
[]
[]
[]
[]
[]
[]
[]
[]
[]
[]
[]
[]
[]
[]
[]
[]
[]
[]
[]
[]
[]
[]
[]
[]
[]
[]
[]
[]
[]
[]
[]
[]
[]
[]
[]
[]
[]
[]
[]
[]
[]
[]
[]
[]
[]
[]
[]
[]
[]
[]
[]
[]
[]
[]
[]
[]
[]
[]
[]
[]
[]
[]
[]
[]
[]
[]
[]
[]
[]
[]
[]
[]
[]
[]
[]
[]
[]
[]
[]
[]
[]
[]
[]
[]
[]
[]
[]
[]
[]
[]
[]
[]
[]
[]
[]
[]
[]
[]
[]
[]
[]
[]
[]
[]
[]
[]
[]
[]
[]
[]
[]
[]
[]
[]
[]
[]
[]
[]
[]
[]
[]
[]
[]
[]
[]
[]
[]
[]
[]
[]
[]
[]
[]
[]
[]
[]
[]
[]
[]
[]
[]
[]
[]
[]
[]
[]
[]
[]
[]
[]
[]
[]
[]
[]
[]
[]
[]
[]
[]
[]
[]
[]
[]
[]
[]
[]
[]
[]
[]
[]
[]
[]
[]
[]
[]
[]
[]
[]
[]
[]
[]
[]
[]
[]
[]
[]
[]
[]
[]
[]
[]
[]
[]
[]
[]
[]
[]
[]
[]
[]
[]
[]
[]
[]
[]
[]
[]
[]
[]
[]
[]
[]
[]
[]
[]
[]
[]
[]
[]
[]
[]
[]
[]
[]
[]
[]
[]
[]
[]
[]
[]
[]
[]
[]
[]
[]
[]
[]
[]
[]
[]
[]
[]
[]
[]
[]
[]
[]
[]
[]
[]
[]
[]
[]
[]
[]
[]
[]
[]
[]
[]
[]
[]
[]
[]
[]
[]
[]
[]
[]
[]
[]
[]
[]
[]
[]
[]
[]
[]
[]
[]
[]
[]
[]
[]
[]
[]
[]
[]
[]
[]
[]
[]
[]
[]
[]
[]
[]
[]
[]
[]
[]
[]
[]
[]
[]
[]
[]
[]
[]
[]
[]
[]
[]
[]
[]
[]
[]
[]
[]
[]
[]
[]
[]
[]
[]
[]
[]
[]
[]
[]
[]
[]
[]
[]
[]
[]
[]
[]
[]
[]
[]
[]
[]
[]
[]
[]
[]
[]
[]
[]
[]
[]
[]
[]
[]
[]
[]
[]
[]
[]
[]
[]
[]
[]
[]
[]
[]
[]
[]
[]
[]
[]
[]
[]
[]
[]
[]
[]
[]
[]
[]
[]
[]
[]
[]
[]
[]
[]
[]
[]
[]
[]
[]
[]
[]
[]
[]
[]
[]
[]
[]
[]
[]
[]
[]
[]
[]
[]
[]
[]
[]
[]
[]
[]
[]
[]
[]
[]
[]
[]
[]
[]
[]
[]
[]
[]
[]
[]
[]
[]
[]
[]
[]
[]
[]
[]
[]
[]
[]
[]
[]
[]
[]
[]
[]
[]
[]
[]
[]
[]
[]
[]
[]
[]
[]
[]
[]
[]
[]
[]
[]
[]
[]
[]
[]
[]
[]
[]
[]
[]
[]
[]
[]
[]
[]
[]
[]
[]
[]
[]
[]
[]
[]
[]
[]
[]
[]
[]
[]
[]
[]
[]
[]
[]
[]
[]
[]
[]
[]
[]
[]
[]
[]
[]
[]
[]
[]
[]
[]
[]
[]
[]
[]
[]
[]
[]
[]
[]
[]
[]
[]
[]
[]
[]
[]
[]
[]
[]
[]
[]
[]
[]
[]
[]
[]
[]
[]
[]
[]
[]
[]
[]
[]
[]
[]
[]
[]
[]
[]
[]
[]
[]
[]
[]
[]
[]
[]
[]
[]
[]
[]
[]
[]
[]
[]
[]
[]
[]
[]
[]
[]
[]
[]
[]
[]
[]
[]
[]
[]
[]
[]
[]
[]
[]
[]
[]
[]
[]
[]
[]
[]
[]
[]
[]
[]
[]
[]
[]
[]
[]
[]
[]
[]
[]
[]
[]
[]
[]
[]
[]
[]
[]
[]
[]
[]
[]
[]
[]
[]
[]
[]
[]
[]
[]
[]
[]
[]
[]
[]
[]
[]
[]
[]
[]
[]
[]
[]
[]
[]
[]
[]
[]
[]
[]
[]
[]
[]
[]
[]
[]
[]
[]
[]
[]
[]
[]
[]
[]
[]
[]
[]
[]
[]
[]
[]
[]
[]
[]
[]
[]
[]
[]
[]
[]
[]
[]
[]
[]
[]
[]
[]
[]
[]
[]
[]
[]
[]
[]
[]
[]
[]
[]
[]
[]
[]
[]
[]
[]
[]
[]
[]
[]
[]
[]
[]
[]
[]
[]
[]
[]
[]
[]
[]
[]
[]
[]
[]
[]
[]
[]
[]
[]
[]
[]
[]
[]
[]
[]
[]
[]
[]
[]
[]
[]
[]
[]
[]
[]
[]
[]
[]
[]
[]
[]
[]
[]
[]
[]
[]
[]
[]
[]
[]
[]
[]
[]
[]
[]
[]
[]
[]
[]
[]
[]
[]
[]
[]
[]
[]
[]
[]
[]
[]
[]
[]
[]
[]
[]
[]
[]
[]
[]
[]
[]
[]
[]
[]
[]
[]
[]
[]
[]
[]
[]
[]
[]
[]
[]
[]
[]
[]
[]
[]
[]
[]
[]
[]
[]
[]
[]
[]
[]
[]
[]
[]
[]
[]
[]
[]
[]
[]
[]
[]
[]
[]
[]
[]
[]
[]
[]
[]
[]
[]
[]
[]
[]
[]
[]
[]
[]
[]
[]
[]
[]
[]
[]
[]
[]
[]
[]
[]
[]
[]
[]
[]
[]
[]
[]
[]
[]
[]
[]
[]
[]
[]
[]
[]
[]
[]
[]
[]
[]
[]
[]
[]
[]
[]
[]
[]
[]
[]
[]
[]
[]
[]
[]
[]
[]
[]
[]
[]
[]
[]
[]
[]
[]
[]
[]
[]
[]
[]
[]
[]
[]
[]
[]
[]
[]
[]
[]
[]
[]
[]
[]
[]
[]
[]
[]
[]
[]
[]
[]
[]
[]
[]
[]
[]
[]
[]
[]
[]
[]
[]
[]
[]
[]
[]
[]
[]
[]
[]
[]
[]
[]
[]
[]
[]
[]
[]
[]
[]
[]
[]
[]
[]
[]
[]
[]
[]
[]
[]
[]
[]
[]
[]
[]
[]
[]
[]
[]
[]
[]
[]
[]
[]
[]
[]
[]
[]
[]
[]
[]
[]
[]
[]
[]
[]
[]
[]
[]
[]
[]
[]
[]
[]
[]
[]
[]
[]
[]
[]
[]
[]
[]
[]
[]
[]
[]
[]
[]
[]
[]
[]
[]
[]
[]
[]
[]
[]
[]
[]
[]
[]
[]
[]
[]
[]
[]
[]
[]
[]
[]
[]
[]
[]
[]
[]
[]
[]
[]
[]
[]
[]
[]
[]
[]
[]
[]
[]
[]
[]
[]
[]
[]
[]
[]
[]
[]
[]
[]
[]
[]
[]
[]
[]
[]
[]
[]
[]
[]
[]
[]
[]
[]
[]
[]
[]
[]
[]
[]
[]
[]
[]
[]
[]
[]
[]
[]
[]
[]
[]
[]
[]
[]
[]
[]
[]
[]
[]
[]
[]
[]
[]
[]
[]
[]
[]
[]
[]
[]
[]
[]
[]
[]
[]
[]
[]
[]
[]
[]
[]
[]
[]
[]
[]
[]
[]
[]
[]
[]
[]
[]
[]
[]
[]
[]
[]
[]
[]
[]
[]
[]
[]
[]
[]
[]
[]
[]
[]
[]
[]
[]
[]
[]
[]
[]
[]
[]
[]
[]
[]
[]
[]
[]
[]
[]
[]
[]
[]
[]
[]
[]
[]
[]
[]
[]
[]
[]
[]
[]
[]
[]
[]
[]
[]
[]
[]
[]
[]
[]
[]
[]
[]
[]
[]
[]
[]
[]
[]
[]
[]
[]
[]
[]
[]
[]
[]
[]
[]
[]
[]
[]
[]
[]
[]
[]
[]
[]
[]
[]
[]
[]
[]
[]
[]
[]
[]
[]
[]
[]
[]
[]
[]
[]
[]
[]
[]
[]
[]
[]
[]
[]
[]
[]
[]
[]
[]
[]
[]
[]
[]
[]
[]
[]
[]
[]
[]
[]
[]
[]
[]
[]
[]
[]
[]
[]
[]
[]
[]
[]
[]
[]
[]
[]
[]
[null,null,null,null,null,null,null,null,null,null,1,1,1]

{"sheet":"Customer Verification","index":4,"n_rows":34,"n_cols":5,"rows_kept":34,"cut":false,"hidden":false,"merged":[[3,3,16,3],[0,0,1,0],[0,1,1,1],[0,2,1,2],[0,3,1,3]]}
["Customer Verification Questions (Questions may be removed as determined by management)","Response","Escalation?","Notes"]
[]
["Name of Customer/Business",null,null,"Yellow indicates a new customer, green indicates an existing customer which does not need to be entered"]
["Telephone Number"]
["POC Name"]
["POC Email"]
["Country (Business Headquarters)"]
["Address"]
["Proof of address type",{"$f":"IF(J3=\"\", \"Select...\")","v":"Select..."}]
["Proof of address accepted?","Select..."]
["POC Date of birth"]
["POC Nationality"]
["POC Father's name/Mother's name"]
["Business Number"]
["Business Type"]
["Third party reference name"]
["Third party reference contact information"]
["Financial Verification"]
["Bank name"]
["Bank address"]
["Payment method",{"$f":"IF(J4=\"\", \"Select...\")","v":"Select..."}]
["Frequency of ordering","Select..."]
["Company or financial institute on any sanctioned list? ","Yes"]
["Customer Ordering"]
["Is there anything suspicious or atypical about the customer ordering that raises suspicions?",null,null,"Red indicates management review before proceeding, yellow indicates more information needed from customer, green indicates proceed"]
["Is this a larger order than normal for this customer?",null,null,"Red indicates management review before proceeding, yellow indicates more information needed from customer, green indicates proceed"]
["If YES to larger order, is there a reason for the larger order?",null,null,"Yellow indicates more information needed from customer or management review, green indicates proceed"]
["Does the customer have a clear and legitimate purpose for the chemical?",null,null,"Red indicates management review before proceeding, yellow indicates more information needed from customer, green indicates proceed"]
["How was the order placed?"]
[]
[]
[]
[]
[null,null,null,null," "]

{"sheet":"Product Risk Assessment","index":5,"n_rows":2183,"n_cols":20,"rows_kept":2183,"cut":false,"hidden":false,"merged":[[8,0,16,0],[17,0,20,0],[0,0,0,2]]}
["Product Risk Assessment - Used to identify products of security concern"]
["Question",null,"Hazard",null,null,null,null,{"$f":"IF(ISTEXT(B18), 1, 0)","v":1},"Code","Yes","Hazard Statements","Hazard Class",null,null,null,null,null,"CAS_NoDashClean","Chemical Name",1]
["Product Number",null,null,"Yes",null,null,null,{"$f":"IF(ISTEXT(B19), 1, 0)","v":0},null,null,null,null,null,null,null,null,null,null,null,1]
["Chemical/Mixture Name",null,null,"Yes",null,"Cas List","Cas list","Lookup","H204","Yes","Fire or projection hazard","Explosives",null,null,null,null,null,184150,"Diethyl N,N-dimethylphosphoramidate",1]
["Ingredient CAS Include all CAS numbers  (do not include dashes) of a mixture, separate CAS numbers with a comma",null,null,"Yes",{"$f":"SUBSTITUTE(B5,\"-\",\"\")","v":""},{"$f":"TRIM(MID(SUBSTITUTE($E$5,\",\",REPT(\" \",99)),(ROW(1:1)-1)*99+1,99))","v":""},{"$f":"VALUE(F5)","v":{"$error":"#VALUE!"}},{"$f":"IFERROR(VLOOKUP(G5,R$4:T$2114, 3, FALSE), \" \")","v":" "},null,null,null,null,null,null,null,null,null,184182,"Diisopropyl N,N-dimethylphosphoramidate",1]
["Physical State of Chemical",{"$f":"IF($E$6=\"\", \"Select...\")","v":"Select..."},null,"Yes",null,{"$f":"TRIM(MID(SUBSTITUTE($E$5,\",\",REPT(\" \",99)),(ROW(2:2)-1)*99+1,99))","v":""},{"$f":"VALUE(F6)","v":{"$error":"#VALUE!"}},{"$f":"IFERROR(VLOOKUP(G6,R$4:T$2114, 3, FALSE), \" \")","v":" "},"H206","Yes","Fire, blast or projection hazard; increased risk of explosion if desensitizing agent is reduced","Desensitized explosives",null,null,null,null,null,223443,"O-Ethyl S-ethyl methylphosphonothiolate",1]
["Material Packaging",{"$f":"IF($E$6=\"\", \"Select...\")","v":"Select..."},null,"Yes",null,{"$f":"TRIM(MID(SUBSTITUTE($E$5,\",\",REPT(\" \",99)),(ROW(3:3)-1)*99+1,99))","v":""},{"$error":"#VALUE!"}," ","H207","Yes","Fire or projection hazard; increased risk of explosion if desensitizing agent is reduced","Desensitized explosives",null,null,null,null,null,227920,"Propylphosphonothioic dichloride",1]
["Material Quantity for Sale",null,null,"Yes",null,{"$f":"TRIM(MID(SUBSTITUTE($E$5,\",\",REPT(\" \",99)),(ROW(4:4)-1)*99+1,99))","v":""},{"$error":"#VALUE!"}," ","H209","Yes","Explosive","Explosives",null,null,null,null,null,899752,"Ethylphosphinic acid",1]
["Identify GHS Hazard Codes. (This information may be present on SDS or received from chemical manufacturer)","H300",null,"Yes",null,{"$f":"TRIM(MID(SUBSTITUTE($E$5,\",\",REPT(\" \",99)),(ROW(5:5)-1)*99+1,99))","v":""},{"$error":"#VALUE!"}," ","H210","Yes","Very sensitive","Explosives",null,null,null,null,null,966743,"Propyl methylphosphonate",1]
[null,"H301",null,"Yes",null,{"$f":"TRIM(MID(SUBSTITUTE($E$5,\",\",REPT(\" \",99)),(ROW(6:6)-1)*99+1,99))","v":""},{"$error":"#VALUE!"}," ","H220 ","Yes","Extremely flammable gas","Flammable gases",null,null,null,null,null,966774,"Ethyl isopropylphosphonate",1]
[null,null,null,"Yes",null,{"$f":"TRIM(MID(SUBSTITUTE($E$5,\",\",REPT(\" \",99)),(ROW(7:7)-1)*99+1,99))","v":""},{"$error":"#VALUE!"}," ","H221","Yes","Flammable gas","Flammable gases",null,null,null,null,null,1025699,"Propylphosphonic dichloride",1]
[null,null,null,"Yes",null,{"$f":"TRIM(MID(SUBSTITUTE($E$5,\",\",REPT(\" \",99)),(ROW(8:8)-1)*99+1,99))","v":""},{"$error":"#VALUE!"}," ","H224","Yes","Extremely flammable liquid and vapor","Flammable liquids",null,null,null,null,null,1236229,"Ethyl methylphosphonochloridate",1]
[null,null,null,"Yes",null,{"$f":"TRIM(MID(SUBSTITUTE($E$5,\",\",REPT(\" \",99)),(ROW(9:9)-1)*99+1,99))","v":""},{"$error":"#VALUE!"}," ","H225","Yes","Highly Flammable liquid and vapor","Flammable liquids",null,null,null,null,null,5842068,"2-(N,N-Dipropylamino)ethanethiol",1]
[null,null,null,"Yes",null,{"$f":"TRIM(MID(SUBSTITUTE($E$5,\",\",REPT(\" \",99)),(ROW(10:10)-1)*99+1,99))","v":""},{"$error":"#VALUE!"}," ","H228","Yes","Flammable solid","Flammable solids",null,null,null,null,null,5842079,"2-(N,N-Diisopropylamino)ethanethiol",1]
[null,null,null,"Yes",null,{"$f":"TRIM(MID(SUBSTITUTE($E$5,\",\",REPT(\" \",99)),(ROW(11:11)-1)*99+1,99))","v":""},{"$error":"#VALUE!"}," ","H230","Yes","May react explosively even in the absence of air","Flammable gases",null,null,null,null,null,1522947,"Bis(2-methoxyethyl) methylphosphonate",1]
[null,null,null,"Yes",null,{"$f":"TRIM(MID(SUBSTITUTE($E$5,\",\",REPT(\" \",99)),(ROW(12:12)-1)*99+1,99))","v":""},{"$error":"#VALUE!"}," ","H232","Yes","May ignite spontaneously if exposed to air","Flammable gases",null,null,null,null,null,1709855,"3-Quinuclidinyl benzilate",1]
[null,null,null,"Yes",null,{"$f":"TRIM(MID(SUBSTITUTE($E$5,\",\",REPT(\" \",99)),(ROW(13:13)-1)*99+1,99))","v":""},{"$error":"#VALUE!"}," ","H240","Yes","Heating may cause an explosion","Self-reactive substances and mixtures; Organic peroxides",null,null,null,null,null,1782267,"Ethylphosphonic acid",1]
["Other issues of security concern. (Any additional concerns which the company may consider outside the scope of chemical control lists. For Example, local regulations or   history of theft)","yes",null,"Yes",null,null,"SUM",{"$f":"SUM(H5:H17)","v":0},"H250","Yes","Catches fire spontaneously if exposed to air","Pyrophoric liquids",null,null,null,null,null,7719097,"Thionyl chloride",1]
[null,null,null,"Yes",null,null,{"$f":"_xlfn.IFNA(IF(VLOOKUP(B15, I:K, 2,FALSE)=\"YES\", \"1\", \"0\"), 0)","v":0},{"$f":"_xlfn.IFNA(IF(VLOOKUP($B9, $I:$K, 2,FALSE)=\"YES\", 1, 0), 0)","v":1},"H260","Yes","In contact with water releases flammable gases which may ignite spontaneously","Substances and mixtures which in contact with water, emit flammable gases",null,null,null,null,null,2125683,"Phosphorus trichloride",1]
[null,null,null,"Yes",null,null,{"$f":"_xlfn.IFNA(IF(VLOOKUP(B16, I:K, 2,FALSE)=\"YES\", \"1\", \"0\"), 0)","v":0},{"$f":"_xlfn.IFNA(IF(VLOOKUP($B10, $I:$K, 2,FALSE)=\"YES\", 1, 0), 0)","v":1},"H261","Yes","In contact with water releases flammable gas","Substances and mixtures which in contact with water, emit flammable gases",null,null,null,null,null,100492,"Cyclohexylmethyl N,N-diethylphosphoramidocyanidate",1]
[null,null,{"$f":"IF(COUNTBLANK(C3:C20)>0, \"\", \"Yes\")","v":""},"Yes",null,null,null,0,"H282","Yes","Extremely flammable chemical under pressure: may explode if heated","Chemicals under pressure",null,null,null,null,null,100492,"Cyclohexylmethyl N,N- diisopropylphosphoramidocyanidate",1]
["Any Hazards Identified (colored boxes above)",{"$f":"G23","v":"Yes"},null,null,null,null,{"$f":"SUM(H2,H2,H18:H27, G19,G20)","v":4},0,"H300","Yes","Fatal if swallowed","Acute toxicity, oral",null,null,null,null,null,100492,"Cyclohexylmethyl S-2-isopropylmethylaminoethyl isopropylphosphonothiolate",1]
[null,null,null,null,null,null,{"$f":"IF(G22=0,\"No\", \"Yes\")","v":"Yes"},0,"H301","Yes","Toxic if swallowed","Acute toxicity, oral",null,null,null,null,null,100492,"Cyclohexylmethyl S-sodium isopropylphosphonothiolate",1]
[null,null,null,null,null,null,null,0,"H310","Yes","Fatal in contact with skin","Acute toxicity, dermal",null,null,null,null,null,100492,"Cyclohexylmethyl S-2-diethylaminoethyl methylphosphonothiolate",1]
[null,null,null,null,null,null,null,0,"H311","Yes","Toxic in contact with skin","Acute toxicity, dermal",null,null,null,null,null,100492,"Cyclohexylmethyl S-2-dipropylaminoethyl methylphosphonothiolate",1]
[null,null,null,null,null,null,null,0,"H314","Yes","Causes severe skin burns and eye damage","Skin corrosion/irritation",null,null,null,null,null,100492,"Cyclohexylmethyl S-sodium propylphosphonothiolate",1]
[null,null,null,null,null,null,null,0,"H318","Yes","Causes serious eye damage","Serious eye damage/eye irritation",null,null,null,null,null,100516,"Benzyl methylphosphonate",1]
[null,null,null,null,null,null,null,null,"H330","Yes","Fatal if inhaled","Acute toxicity, inhalation",null,null,null,null,null,104767,"2-Ethylhexyl N,N-diethylphosphoramidocyanidate",1]
[null,null,null,null,null,null,null,null,"H331","Yes","Toxic if inhaled","Acute toxicity, inhalation",null,null,null,null,null,104767,"2-Ethylhexyl N-ethyl-N- isopropylphosphoramidocyanidate",1]
[null,null,null,null,null,null,null,null,"H370","Yes","Causes damage to organs","Specific target organ toxicity, single exposure",null,null,null,null,null,104767,"2-Ethylhexyl N-ethyl-N-methylphosphoramidocyanidate",1]
[null,null,null,null,null,null,null,null,"H400","Yes","Very toxic to aquatic life","Hazardous to the aquatic environment, acute hazard",null,null,null,null,null,104767,"2-Ethylhexyl N-ethyl-N-propylphosphoramidocyanidate",1]
[null,null,null,null,null,null,null,null,"H401","Yes","Toxic to aquatic life","Hazardous to the aquatic environment, acute hazard",null,null,null,null,null,104767,"2-Ethylhexyl N,N-diisopropylphosphoramidocyanidate",1]
[null,null,null,null,null,null,null,null,"H410","Yes","Very toxic to aquatic life with long lasting effects","Hazardous to the aquatic environment, long-term hazard",null,null,null,null,null,104767,"2-Ethylhexyl N-isopropyl-N- methylphosphoramidocyanidate",1]
[null,null,null,null,null,null,null,null,"H411","Yes","Toxic to aquatic life with long lasting effects","Hazardous to the aquatic environment, long-term hazard",null,null,null,null,null,104767,"2-Ethylhexyl N-methyl-N-propylphosphoramidocyanidate",1]
[null,null,null,null,null,null,null,null,"H271","Yes",null,null,null,null,null,null,null,104767,"2-Ethylhexyl N,N-dipropylphosphoramidocyanidate",1]
[null,null,null,null,null,null,null,null,null,null,null,null,null,null,null,null,null,105306,"2-Methylpentyl N,N-dimethylphosphoramidocyanidate",1]
[null,null,null,null,null,null,null,null,null,null,null,null,null,null,null,null,null,106218,"3,7-Dimethyloctyl N,N-diethylphosphoramidocyanidate",1]
[null,null,null,null,null,null,null,null,null,null,null,null,null,null,null,null,null,106218,"3,7-Dimethyloctyl N,N- diisopropylphosphoramidocyanidate",1]
[null,null,null,null,null,null,null,null,null,null,null,null,null,null,null,null,null,106218,"3,7-Dimethyloctyl N,N-dimethylphosphoramidocyanidate",1]
[null,null,null,null,null,null,null,null,null,null,null,null,null,null,null,null,null,106218,"3,7-Dimethyloctyl N,N-dipropylphosphoramidocyanidate",1]
[null,null,null,null,null,null,null,null,null,null,null,null,null,null,null,null,null,106218,"3,7-Dimethyloctyl S-2-diethylaminoethyl methylphosphonothiolate",1]
[null,null,null,null,null,null,null,null,null,null,null,null,null,null,null,null,null,1070902,"Mixture of Dimethyldiphosphonic acid (CAS RN 1070- 90-2) and Methyl methylphosphonate (CAS RN 1066-53-1)",1]
[null,null,null,null,null,null,null,null,null,null,null,null,null,null,null,null,null,108112,"1,3-Dimethylbutyl N,N-diethylphosphoramidocyanidate",1]
[null,null,null,null,null,null,null,null,null,null,null,null,null,null,null,null,null,108112,"1,3-Dimethylbutyl N,N-dipropylphosphoramidocyanidate",1]
[null,null,null,null,null,null,null,null,null,null,null,null,null,null,null,null,null,108112,"1,3-Dimethylbutyl S-2-diethylaminoethyl ethylphosphonothiolate",1]
[null,null,null,null,null,null,null,null,null,null,null,null,null,null,null,null,null,108112,"1,3-Dimethylbutyl S-2-dipropylaminoethyl ethylphosphonothiolate",1]
[null,null,null,null,null,null,null,null,null,null,null,null,null,null,null,null,null,108112,"1,3-Dimethylbutyl S-2-diethylaminoethyl methylphosphonothiolate",1]
[null,null,null,null,null,null,null,null,null,null,null,null,null,null,null,null,null,108112,"1,3-Dimethylbutyl S-2-dipropylaminoethyl methylphosphonothiolate",1]
[null,null,null,null,null,null,null,null,null,null,null,null,null,null,null,null,null,108112,"1,3-Dimethylbutyl pinacolyl methylphosphonate",1]
[null,null,null,null,null,null,null,null,null,null,null,null,null,null,null,null,null,108112,"1,3-Dimethylbutyl S-2-dipropylaminoethyl propylphosphonothiolate",1]
[null,null,null,null,null,null,null,null,null,null,null,null,null,null,null,null,null,108827,"1-Isobutyl-3-methylbutyl N,N- dimethylphosphoramidocyanidate",1]
[null,null,null,null,null,null,null,null,null,null,null,null,null,null,null,null,null,108827,"1-Isobutyl-3-methylbutyl isopropylphosphonofluoridate",1]
[null,null,null,null,null,null,null,null,null,null,null,null,null,null,null,null,null,108827,"1-Isobutyl-3-methylbutyl propylphosphonofluoridate",1]
[null,null,null,null,null,null,null,null,null,null,null,null,null,null,null,null,null,108930,"Cyclohexyl N-ethyl-N-isopropylphosphoramidocyanidate",1]
[null,null,null,null,null,null,null,null,null,null,null,null,null,null,null,null,null,108930,"Cyclohexyl N-ethyl-N-methylphosphoramidocyanidate",1]
[null,null,null,null,null,null,null,null,null,null,null,null,null,null,null,null,null,108930,"Cyclohexyl N-ethyl-N-propylphosphoramidocyanidate",1]
[null,null,null,null,null,null,null,null,null,null,null,null,null,null,null,null,null,108930,"Cyclohexyl N,N-diisopropylphosphoramidocyanidate",1]
[null,null,null,null,null,null,null,null,null,null,null,null,null,null,null,null,null,108930,"Cyclohexyl N-methyl-N-propylphosphoramidocyanidate",1]
[null,null,null,null,null,null,null,null,null,null,null,null,null,null,null,null,null,108930,"Cyclohexyl S-2-N-ethyl-N-isopropylaminoethyl ethylphosphonate",1]
[null,null,null,null,null,null,null,null,null,null,null,null,null,null,null,null,null,108930,"Cyclohexyl S-2-N-ethyl-N-methylaminoethyl ethylphosphonothiolate",1]
[null,null,null,null,null,null,null,null,null,null,null,null,null,null,null,null,null,108930,"Cyclohexyl S-2-N-ethyl-N-propylaminoethyl ethylphosphonate",1]
[null,null,null,null,null,null,null,null,null,null,null,null,null,null,null,null,null,108930,"Cyclohexyl S-2-N-isopropyl-N-methylaminoethyl ethylphosphonate",1]
[null,null,null,null,null,null,null,null,null,null,null,null,null,null,null,null,null,108930,"Cyclohexyl S-2-N-isopropyl-N-propylaminoethyl ethylphosphonothiolate",1]
[null,null,null,null,null,null,null,null,null,null,null,null,null,null,null,null,null,108930,"Cyclohexyl S-2-N-methyl-N-propylaminoethyl ethylphosphonothiolate",1]
[null,null,null,null,null,null,null,null,null,null,null,null,null,null,null,null,null,108930,"Cyclohexyl ethyl ethylphosphonate",1]
[null,null,null,null,null,null,null,null,null,null,null,null,null,null,null,null,null,108930,"Cyclohexyl S-2-N-ethyl-N-isopropylaminoethyl isopropylphosphonothiolate",1]
[null,null,null,null,null,null,null,null,null,null,null,null,null,null,null,null,null,108930,"Cyclohexyl S-2-N-ethyl-N-methylaminoethyl isopropylphosphonothiolate",1]
[null,null,null,null,null,null,null,null,null,null,null,null,null,null,null,null,null,108930,"Cyclohexyl S-2-N-ethyl-N-propylaminoethyl isopropylphosphonothiolate",1]
[null,null,null,null,null,null,null,null,null,null,null,null,null,null,null,null,null,108930,"Cyclohexyl S-2-diisopropylaminoethyl isopropylphosphonothiolate",1]
[null,null,null,null,null,null,null,null,null,null,null,null,null,null,null,null,null,108930,"Cyclohexyl S-2-N-isopropyl-N-methylaminoethyl isopropylphosphonothiolate",1]
[null,null,null,null,null,null,null,null,null,null,null,null,null,null,null,null,null,108930,"Cyclohexyl S-2-N-isopropyl-N-propylaminoethyl isopropylphosphonothiolate",1]
[null,null,null,null,null,null,null,null,null,null,null,null,null,null,null,null,null,108930,"Cyclohexyl S-2-dimethylaminoethyl isopropylphosphonothiolate",1]
[null,null,null,null,null,null,null,null,null,null,null,null,null,null,null,null,null,108930,"Cyclohexyl S-2-N-methyl-N-propylaminoethyl isopropylphosphonothiolate",1]
[null,null,null,null,null,null,null,null,null,null,null,null,null,null,null,null,null,108930,"Cyclohexyl S-2-dipropylaminoethyl isopropylphosphonothiolate",1]
[null,null,null,null,null,null,null,null,null,null,null,null,null,null,null,null,null,108930,"Cyclohexyl methyl isopropylphosphonate",1]
[null,null,null,null,null,null,null,null,null,null,null,null,null,null,null,null,null,108930,"O-Cyclohexyl isopropylphosphonothiolate",1]
[null,null,null,null,null,null,null,null,null,null,null,null,null,null,null,null,null,108930,"Cyclohexyl methyl-d3-phosphonofluoridate",1]
[null,null,null,null,null,null,null,null,null,null,null,null,null,null,null,null,null,108930,"Cyclohexyl S-2-N-ethyl-N-isopropylaminoethyl methylphosphonothiolate",1]
[null,null,null,null,null,null,null,null,null,null,null,null,null,null,null,null,null,108930,"Cyclohexyl S-2-N-ethyl-N-methylaminoethyl methylphosphonothiolate",1]
[null,null,null,null,null,null,null,null,null,null,null,null,null,null,null,null,null,108930,"Cyclohexyl S-2-N-ethyl-N-propylaminoethyl methylphosponothiolate",1]
[null,null,null,null,null,null,null,null,null,null,null,null,null,null,null,null,null,108930,"Cyclohexyl S-2-N-isopropyl-N-methylaminoethyl methylphosphonothiolate",1]
[null,null,null,null,null,null,null,null,null,null,null,null,null,null,null,null,null,108930,"Cyclohexyl S-2-N-isopropyl-N-propylaminoethyl methylphosphonothiolate",1]
[null,null,null,null,null,null,null,null,null,null,null,null,null,null,null,null,null,108930,"Cyclohexyl S-2-N-methyl-N-propylaminoethyl methylphosphonothiolate",1]
[null,null,null,null,null,null,null,null,null,null,null,null,null,null,null,null,null,108930,"Cyclohexyl pinacolyl methylphosphonate",1]
[null,null,null,null,null,null,null,null,null,null,null,null,null,null,null,null,null,108930,"Cyclohexyl N-methyl-N-(2-hydroxyethyl) methylphosphonoamidate",1]
[null,null,null,null,null,null,null,null,null,null,null,null,null,null,null,null,null,108930,"Cyclohexyl methylphosphinate",1]
[null,null,null,null,null,null,null,null,null,null,null,null,null,null,null,null,null,108930,"Cyclohexyl S-2-N-ethyl-N-isopropylaminoethyl propylphosphonothiolate",1]
[null,null,null,null,null,null,null,null,null,null,null,null,null,null,null,null,null,108930,"Cyclohexyl S-2-N-ethyl-N-methylaminoethyl propylphosphonothiolate",1]
[null,null,null,null,null,null,null,null,null,null,null,null,null,null,null,null,null,108930,"Cyclohexyl S-2-N-ethyl-N-propylaminoethyl propylphosphonothiolate",1]
[null,null,null,null,null,null,null,null,null,null,null,null,null,null,null,null,null,108930,"Cyclohexyl S-2-N-isopropyl-N-methylaminoethyl propylphosphonothiolate",1]
[null,null,null,null,null,null,null,null,null,null,null,null,null,null,null,null,null,108930,"Cyclohexyl S-2-N-isopropyl-N-propylaminoethyl propylphosphonothiolate",1]
[null,null,null,null,null,null,null,null,null,null,null,null,null,null,null,null,null,108930,"Cyclohexyl S-2-dimethylaminoethyl propylphosphonothiolate",1]
[null,null,null,null,null,null,null,null,null,null,null,null,null,null,null,null,null,108930,"Cyclohexyl S-2-N-methyl-N-propylaminoethyl propylphosphonothiolate",1]
[null,null,null,null,null,null,null,null,null,null,null,null,null,null,null,null,null,109864,"O-Hexyl O-2-methoxyethyl isopropylphosphonate",1]
[null,null,null,null,null,null,null,null,null,null,null,null,null,null,null,null,null,109864,"O-2-Methoxyethyl O-4-methylpentyl isopropylphosphonate",1]
[null,null,null,null,null,null,null,null,null,null,null,null,null,null,null,null,null,109864,"O-Hexyl O-2-methoxyethyl propylphosphonate",1]
[null,null,null,null,null,null,null,null,null,null,null,null,null,null,null,null,null,109864,"O-2-Methoxyethyl O-4-methylpentyl propylphosphonate",1]
[null,null,null,null,null,null,null,null,null,null,null,null,null,null,null,null,null,111273,"Hexyl N,N-diethylphosphoramidocyanidate",1]
[null,null,null,null,null,null,null,null,null,null,null,null,null,null,null,null,null,111273,"Hexyl S-2-dipropylaminoethyl ethylphosphonothiolate",1]
[null,null,null,null,null,null,null,null,null,null,null,null,null,null,null,null,null,111273,"Hexyl S-2-dimethylaminoethyl isopropylphosphonothiolate",1]
[null,null,null,null,null,null,null,null,null,null,null,null,null,null,null,null,null,111273,"Hexyl S-2-dipropylaminoethyl isopropylphosphonothiolate",1]
[null,null,null,null,null,null,null,null,null,null,null,null,null,null,null,null,null,111273,"O-Hexyl methylphosphonothionate",1]
[null,null,null,null,null,null,null,null,null,null,null,null,null,null,null,null,null,111273,"O,O-Dihexyl methylphosphonothionate",1]
[null,null,null,null,null,null,null,null,null,null,null,null,null,null,null,null,null,111273,"Hexyl S-2-diethylaminoethyl propylphosphonothiolate",1]
[null,null,null,null,null,null,null,null,null,null,null,null,null,null,null,null,null,111273,"Hexyl S-2-dimethylaminoethyl propylphosphonothiolate",1]
[null,null,null,null,null,null,null,null,null,null,null,null,null,null,null,null,null,111273,"Hexyl S-2-dipropylaminoethyl propylphosphonothiolate",1]
[null,null,null,null,null,null,null,null,null,null,null,null,null,null,null,null,null,111488,"Bis(2-hydroxyethyl-C13)sulfide",1]
[null,null,null,null,null,null,null,null,null,null,null,null,null,null,null,null,null,111488,"Bis(2-hydroxyethyl-d4)sulfide",1]
[null,null,null,null,null,null,null,null,null,null,null,null,null,null,null,null,null,111706,"Heptyl N-ethyl-N-isopropylphosphoramidocyanidate",1]
[null,null,null,null,null,null,null,null,null,null,null,null,null,null,null,null,null,111706,"Heptyl N-ethyl-N-methylphosphoramidocyanidate",1]
[null,null,null,null,null,null,null,null,null,null,null,null,null,null,null,null,null,111706,"Heptyl N-ethyl-N-propylphosphoramidocyanidate",1]
[null,null,null,null,null,null,null,null,null,null,null,null,null,null,null,null,null,111706,"Heptyl N-isopropyl-N-methylphosphoramidocyanidate",1]
[null,null,null,null,null,null,null,null,null,null,null,null,null,null,null,null,null,111706,"Heptyl N-methyl-N-propylphosphoramidocyanidate",1]
[null,null,null,null,null,null,null,null,null,null,null,null,null,null,null,null,null,111706,"Heptyl S-2-diisopropylaminoethyl ethylphosphonothiolate",1]
[null,null,null,null,null,null,null,null,null,null,null,null,null,null,null,null,null,111706,"Heptyl S-2-dimethylaminoethyl ethylphosphonothiolate",1]
[null,null,null,null,null,null,null,null,null,null,null,null,null,null,null,null,null,111706,"Heptyl S-2-dipropylaminoethyl isopropylphosphonothiolate",1]
[null,null,null,null,null,null,null,null,null,null,null,null,null,null,null,null,null,111706,"Heptyl S-sodium isopropylphosphonothiolate",1]
[null,null,null,null,null,null,null,null,null,null,null,null,null,null,null,null,null,111706,"Heptyl S-2-diisopropylaminoethyl methylphosphonothiolate",1]
[null,null,null,null,null,null,null,null,null,null,null,null,null,null,null,null,null,111706,"O-Heptyl methylphosphonothionate",1]
[null,null,null,null,null,null,null,null,null,null,null,null,null,null,null,null,null,111706,"O,O-Diheptyl methylphosphonothionate",1]
[null,null,null,null,null,null,null,null,null,null,null,null,null,null,null,null,null,111706,"Heptyl S-2-diethylaminoethyl propylphosphonothiolate",1]
[null,null,null,null,null,null,null,null,null,null,null,null,null,null,null,null,null,111875,"Octyl N-ethyl-N-isopropylphosphoramidocyanidate",1]
[null,null,null,null,null,null,null,null,null,null,null,null,null,null,null,null,null,111875,"Octyl N-ethyl-N-methylphosphoramidocyanidate",1]
[null,null,null,null,null,null,null,null,null,null,null,null,null,null,null,null,null,111875,"Octyl N-ethyl-N-propylphosphoramidocyanidate",1]
[null,null,null,null,null,null,null,null,null,null,null,null,null,null,null,null,null,111875,"Octyl N-isopropyl-N-methylphosphoramidocyanidate",1]
[null,null,null,null,null,null,null,null,null,null,null,null,null,null,null,null,null,111875,"Octyl N-methyl-N-propylphosphoramidocyanidate",1]
[null,null,null,null,null,null,null,null,null,null,null,null,null,null,null,null,null,111875,"Octyl ethylphosphonate",1]
[null,null,null,null,null,null,null,null,null,null,null,null,null,null,null,null,null,111875,"Octyl S-2-dipropylaminoethyl isopropylphosphonothiolate",1]
[null,null,null,null,null,null,null,null,null,null,null,null,null,null,null,null,null,111875,"Octyl S-2-dimethylaminoethyl methylphosphonothiolate",1]
[null,null,null,null,null,null,null,null,null,null,null,null,null,null,null,null,null,111875,"O-Octyl methylphosphonothiolate",1]
[null,null,null,null,null,null,null,null,null,null,null,null,null,null,null,null,null,111875,"O-Octyl methylphosphonothionate",1]
[null,null,null,null,null,null,null,null,null,null,null,null,null,null,null,null,null,111875,"O,O-Dioctyl methylphosphonothionate",1]
[null,null,null,null,null,null,null,null,null,null,null,null,null,null,null,null,null,111875,"Octyl S-2-diethylaminoethyl propylphosphonothiolate",1]
[null,null,null,null,null,null,null,null,null,null,null,null,null,null,null,null,null,111875,"Octyl S-sodium propylphosphonothiolate",1]
[null,null,null,null,null,null,null,null,null,null,null,null,null,null,null,null,null,1120062,"1-Methylnonyl methylphosphonate",1]
[null,null,null,null,null,null,null,null,null,null,null,null,null,null,null,null,null,1120062,"Bis(1-methylnonyl) methylphosphonate",1]
[null,null,null,null,null,null,null,null,null,null,null,null,null,null,null,null,null,1120065,"1-Methylnonyl N,N-dimethylphosphoramidocyanidate",1]
[null,null,null,null,null,null,null,null,null,null,null,null,null,null,null,null,null,1120065,"1-Methylnonyl propylphosphonofluoridate",1]
[null,null,null,null,null,null,null,null,null,null,null,null,null,null,null,null,null,112301,"Decyl N,N-diethylphosphoramidocyanidate",1]
[null,null,null,null,null,null,null,null,null,null,null,null,null,null,null,null,null,112301,"Decyl N-ethyl-N-isopropylphosphoramidocyanidate",1]
[null,null,null,null,null,null,null,null,null,null,null,null,null,null,null,null,null,112301,"Decyl N-ethyl-N-methylphosphoramidocyanidate",1]
[null,null,null,null,null,null,null,null,null,null,null,null,null,null,null,null,null,112301,"Decyl N-ethyl-N-propylphosphoramidocyanidate",1]
[null,null,null,null,null,null,null,null,null,null,null,null,null,null,null,null,null,112301,"Decyl N-isopropyl-N-methylphosphoramidocyanidate",1]
[null,null,null,null,null,null,null,null,null,null,null,null,null,null,null,null,null,112301,"Decyl N,N-dimethylphosphoramidocyanidate",1]
[null,null,null,null,null,null,null,null,null,null,null,null,null,null,null,null,null,112301,"Decyl N-methyl-N-propylphosphoramidocyanidate",1]
[null,null,null,null,null,null,null,null,null,null,null,null,null,null,null,null,null,112301,"Decyl N,N-dipropylphosphoramidocyanidate",1]
[null,null,null,null,null,null,null,null,null,null,null,null,null,null,null,null,null,112301,"Decyl S-2-diethylaminoethyl isopropylphosphonothiolate",1]
[null,null,null,null,null,null,null,null,null,null,null,null,null,null,null,null,null,112301,"Decyl S-sodium methylphosphonothiolate",1]
[null,null,null,null,null,null,null,null,null,null,null,null,null,null,null,null,null,112301,"O-Decyl-O-sodium methylphosphonothionate",1]
[null,null,null,null,null,null,null,null,null,null,null,null,null,null,null,null,null,112301,"Decyl S-2-diethylaminoethyl propylphosphonothiolate",1]
[null,null,null,null,null,null,null,null,null,null,null,null,null,null,null,null,null,1124636,"3-Cyclohexylpropyl N,N- dimethylphosphoramidocyanidate",1]
[null,null,null,null,null,null,null,null,null,null,null,null,null,null,null,null,null,1124636,"3-Cyclohexylpropyl isopropylphosphonofluoridate",1]
[null,null,null,null,null,null,null,null,null,null,null,null,null,null,null,null,null,1193813,"1-Cyclohexylethyl N,N-dimethylphosphoramidocyanidate",1]
[null,null,null,null,null,null,null,null,null,null,null,null,null,null,null,null,null,1193813,"1-Cyclohexylethyl isopropylphosphonofluoridate",1]
[null,null,null,null,null,null,null,null,null,null,null,null,null,null,null,null,null,123513,"3-Methylbutyl N,N-diethylphosphoramidocyanidate",1]
[null,null,null,null,null,null,null,null,null,null,null,null,null,null,null,null,null,123513,"3-Methylbutyl N,N-diisopropylphosphoramidocyanidate",1]
[null,null,null,null,null,null,null,null,null,null,null,null,null,null,null,null,null,123513,"3-Methylbutyl N,N-dimethylphosphoramidocyanidate",1]
[null,null,null,null,null,null,null,null,null,null,null,null,null,null,null,null,null,123513,"3-Methylbutyl N,N-dipropylphosphoramidocyanidate",1]
[null,null,null,null,null,null,null,null,null,null,null,null,null,null,null,null,null,123513,"3- Methylbutyl S-2-dipropylaminoethyl isopropylphosphonothiolate",1]
[null,null,null,null,null,null,null,null,null,null,null,null,null,null,null,null,null,123966,"1-Methylheptyl N,N-dimethylphosphoramidocyanidate",1]
[null,null,null,null,null,null,null,null,null,null,null,null,null,null,null,null,null,127290599,"(Methoxy-1-methylethyl)ethyl methylphosphonate",1]
[null,null,null,null,null,null,null,null,null,null,null,null,null,null,null,null,null,13491797,"2-tert-Butylcyclohexyl S-2-diisopropylaminoethyl isopropylphosphonothiolate",1]
[null,null,null,null,null,null,null,null,null,null,null,null,null,null,null,null,null,13491797,"2-tert-Butylcyclohexyl S-sodium isopropylphosphonothiolate",1]
[null,null,null,null,null,null,null,null,null,null,null,null,null,null,null,null,null,13491797,"2-tert-Butylcyclohexyl S-2-diisopropylaminoethyl propylphosphonothiolate",1]
[null,null,null,null,null,null,null,null,null,null,null,null,null,null,null,null,null,13491797,"2-tert-Butylcyclohexyl S-sodium propylphosphonothiolate",1]
[null,null,null,null,null,null,null,null,null,null,null,null,null,null,null,null,null,137326,"2-Methylbutyl N,N-diethylphosphoramidocyanidate",1]
[null,null,null,null,null,null,null,null,null,null,null,null,null,null,null,null,null,137326,"2-Methylbutyl N,N-diisopropylphosphoramidocyanidate",1]
[null,null,null,null,null,null,null,null,null,null,null,null,null,null,null,null,null,137326,"2-Methylbutyl N,N-dimethylphosphoramidocyanidate",1]
[null,null,null,null,null,null,null,null,null,null,null,null,null,null,null,null,null,137326,"2-Methylbutyl N,N-dipropylphosphoramidocyanidate",1]
[null,null,null,null,null,null,null,null,null,null,null,null,null,null,null,null,null,137326,"2-Methylbutyl ethylphosphonate",1]
[null,null,null,null,null,null,null,null,null,null,null,null,null,null,null,null,null,137326,"2- Methylbutyl S-2-dipropylaminoethyl isopropylphosphonothiolate",1]
[null,null,null,null,null,null,null,null,null,null,null,null,null,null,null,null,null,137326,"(S)-2-Methylbutyl methylphosphonofluoridate",1]
[null,null,null,null,null,null,null,null,null,null,null,null,null,null,null,null,null,143088,"Nonyl N,N-diethylphosphoramidocyanidate",1]
[null,null,null,null,null,null,null,null,null,null,null,null,null,null,null,null,null,143088,"Nonyl N-ethyl-N-isopropylphosphoramidocyanidate",1]
[null,null,null,null,null,null,null,null,null,null,null,null,null,null,null,null,null,143088,"Nonyl N-ethyl-N-methylphosphoramidocyanidate",1]
[null,null,null,null,null,null,null,null,null,null,null,null,null,null,null,null,null,143088,"Nonyl N-ethyl-N-propylphosphoramidocyanidate",1]
[null,null,null,null,null,null,null,null,null,null,null,null,null,null,null,null,null,143088,"Nonyl N,N-diisopropylphosphoramidocyanidate",1]
[null,null,null,null,null,null,null,null,null,null,null,null,null,null,null,null,null,143088,"Nonyl N,N-dimethylphosphoramidocyanidate",1]
[null,null,null,null,null,null,null,null,null,null,null,null,null,null,null,null,null,143088,"Nonyl N-methyl-N-propylphosphoramidocyanidate",1]
[null,null,null,null,null,null,null,null,null,null,null,null,null,null,null,null,null,143088,"Nonyl N,N-dipropylphosphoramidocyanidate",1]
[null,null,null,null,null,null,null,null,null,null,null,null,null,null,null,null,null,143088,"Nonyl S-2-dipropylaminoethyl isopropylphosphonothiolate",1]
[null,null,null,null,null,null,null,null,null,null,null,null,null,null,null,null,null,1445767,"O-Isopropyl methyl-d3-phosphonochloridate",1]
[null,null,null,null,null,null,null,null,null,null,null,null,null,null,null,null,null,14979396,"1-Ethyl-2-methylpentyl N,N- dimethylphosphoramidocyanidate",1]
[null,null,null,null,null,null,null,null,null,null,null,null,null,null,null,null,null,14979396,"1-Ethyl-2-methylpentyl isopropylphosphonofluoridate",1]
[null,null,null,null,null,null,null,null,null,null,null,null,null,null,null,null,null,1502245,"2,3-Dimethylcyclohexyl N,N- dimethylphosphoramidocyanidate",1]
[null,null,null,null,null,null,null,null,null,null,null,null,null,null,null,null,null,1502245,"2,3-Dimethylcyclohexyl ethylphosphonofluoridate",1]
[null,null,null,null,null,null,null,null,null,null,null,null,null,null,null,null,null,1502245,"2,3-Dimethylcyclohexyl isopropylphosphonofluoridate",1]
[null,null,null,null,null,null,null,null,null,null,null,null,null,null,null,null,null,1502245,"2,3-Dimethylcyclohexyl methylphosphonofluoridate",1]
[null,null,null,null,null,null,null,null,null,null,null,null,null,null,null,null,null,1516081,"Ethyl-d5 N,N-dimethylphosphoramidocyanidate",1]
[null,null,null,null,null,null,null,null,null,null,null,null,null,null,null,null,null,1516081,"Sodium O-ethyl-d5 methylphosphonothiolate",1]
[null,null,null,null,null,null,null,null,null,null,null,null,null,null,null,null,null,16325636,"2,4,4-Trimethylpentyl N,N- dimethylphosphoramidocyanidate",1]
[null,null,null,null,null,null,null,null,null,null,null,null,null,null,null,null,null,16325636,"Bis(2,4,4-Trimethylpentyl) methylphosphonate",1]
[null,null,null,null,null,null,null,null,null,null,null,null,null,null,null,null,null,18729481,"3-Methylcyclopentyl N,N- diethylphosphoramidocyanidate",1]
[null,null,null,null,null,null,null,null,null,null,null,null,null,null,null,null,null,18729481,"3-Methylcyclopentyl N-ethyl-N- isopropylphosphoramidocyanidate",1]
[null,null,null,null,null,null,null,null,null,null,null,null,null,null,null,null,null,18729481,"3-Methylcyclopentyl N-ethyl-N- methylphosphoramidocyanidate",1]
[null,null,null,null,null,null,null,null,null,null,null,null,null,null,null,null,null,18729481,"3-Methylcyclopentyl N-ethyl-N- propylphosphoramidocyanidate",1]
[null,null,null,null,null,null,null,null,null,null,null,null,null,null,null,null,null,18729481,"3-Methylcyclopentyl N,N- diisopropylphosphoramidocyanidate",1]
[null,null,null,null,null,null,null,null,null,null,null,null,null,null,null,null,null,18729481,"3-Methylcyclopentyl N-isopropyl-N- methylphosphoramidocyanidate",1]
[null,null,null,null,null,null,null,null,null,null,null,null,null,null,null,null,null,18729481,"3-Methylcyclopentyl N,N- dimethylphosphoramidocyanidate",1]
[null,null,null,null,null,null,null,null,null,null,null,null,null,null,null,null,null,18729481,"3-Methylcyclopentyl N-methyl-N- propylphosphoramidocyanidate",1]
[null,null,null,null,null,null,null,null,null,null,null,null,null,null,null,null,null,18729481,"3-Methylcyclopentyl N,N- dipropylphosphoramidocyanidate",1]
[null,null,null,null,null,null,null,null,null,null,null,null,null,null,null,null,null,18729481,"3- Methylcyclopentyl S-2-dimethylaminoethyl ethylphosphonothiolate",1]
[null,null,null,null,null,null,null,null,null,null,null,null,null,null,null,null,null,18729481,"3-Methylcyclopentyl isopropylphosphonofluoridate",1]
[null,null,null,null,null,null,null,null,null,null,null,null,null,null,null,null,null,18729481,"3-Methylcyclopentyl S-2-diethylaminoethyl isopropylphosphonothiolate",1]
[null,null,null,null,null,null,null,null,null,null,null,null,null,null,null,null,null,18729481,"3-Methylcyclopentyl S-2-dimethylaminoethyl isopropylphosphonothiolate",1]
[null,null,null,null,null,null,null,null,null,null,null,null,null,null,null,null,null,18729481,"3-Methylcyclopentyl S-2-dipropylaminoethyl isopropylphosphonothiolate",1]
[null,null,null,null,null,null,null,null,null,null,null,null,null,null,null,null,null,18729481,"3-Methylcyclopentyl methylphosphonofluoridate",1]
[null,null,null,null,null,null,null,null,null,null,null,null,null,null,null,null,null,18729481,"3-Methylcyclopentyl S-2-diethylaminoethyl methylphosphonothiolate",1]
[null,null,null,null,null,null,null,null,null,null,null,null,null,null,null,null,null,18729481,"3-Methylcyclopentyl S-2-diisopropylaminoethyl methylphosphonothiolate",1]
[null,null,null,null,null,null,null,null,null,null,null,null,null,null,null,null,null,18729481,"3-Methylcyclopentyl S-2-dipropylaminoethyl methylphosphonothiolate",1]
[null,null,null,null,null,null,null,null,null,null,null,null,null,null,null,null,null,18729481,"3-Methylcyclopentyl propylphosphonofluoridate",1]
[null,null,null,null,null,null,null,null,null,null,null,null,null,null,null,null,null,18729481,"3-Methylcyclopentyl S-2-diethylaminoethyl propylphosphonothiolate",1]
[null,null,null,null,null,null,null,null,null,null,null,null,null,null,null,null,null,18729481,"3-Methylcyclopentyl S-2-dimethylaminoethyl propylphosphonothiolate",1]
[null,null,null,null,null,null,null,null,null,null,null,null,null,null,null,null,null,20296291,"1-Ethylhexyl ethylphosphonofluoridate",1]
[null,null,null,null,null,null,null,null,null,null,null,null,null,null,null,null,null,20296291,"1-Ethylhexyl S-2-diisopropylaminoethyl ethylphosphonothiolate",1]
[null,null,null,null,null,null,null,null,null,null,null,null,null,null,null,null,null,20296291,"1-Ethylhexyl S-2-diethylaminoethyl isopropylphosphonothiolate",1]
[null,null,null,null,null,null,null,null,null,null,null,null,null,null,null,null,null,20296291,"1-Ethylhexyl S-2-dipropylaminoethyl isopropylphosphonothiolate",1]
[null,null,null,null,null,null,null,null,null,null,null,null,null,null,null,null,null,20296291,"1-Ethylhexyl S-2-diethylaminoethyl methylphosphonothiolate",1]
[null,null,null,null,null,null,null,null,null,null,null,null,null,null,null,null,null,20296291,"1-Ethylhexyl S-2-diisopropylaminoethyl methylphosphonothiolate",1]
[null,null,null,null,null,null,null,null,null,null,null,null,null,null,null,null,null,20296291,"1- Ethylhexyl S-2-diethylaminoethyl propylphosphonothiolate",1]
[null,null,null,null,null,null,null,null,null,null,null,null,null,null,null,null,null,2051312,"1-Propylheptyl N,N-dimethylphosphoramidocyanidate",1]
[null,null,null,null,null,null,null,null,null,null,null,null,null,null,null,null,null,2051312,"1-Propylheptyl isopropylphosphonofluoridate",1]
[null,null,null,null,null,null,null,null,null,null,null,null,null,null,null,null,null,2051312,"1-Propylheptyl propylphosphonofluoridate",1]
[null,null,null,null,null,null,null,null,null,null,null,null,null,null,null,null,null,24070777,"2-Methylcyclopentyl N,N- dimethylphosphoramidocyanidate",1]
[null,null,null,null,null,null,null,null,null,null,null,null,null,null,null,null,null,24070777,"2-Methylcyclopentyl methylphosphonofluoridate",1]
[null,null,null,null,null,null,null,null,null,null,null,null,null,null,null,null,null,2516338,"Cyclopropylmethyl ethylphosphonofluoridate",1]
[null,null,null,null,null,null,null,null,null,null,null,null,null,null,null,null,null,2516338,"Cyclopropylmethyl isopropylphosphonofluoridate",1]
[null,null,null,null,null,null,null,null,null,null,null,null,null,null,null,null,null,2516338,"Cyclopropylmethyl methylphosphonofluoridate",1]
[null,null,null,null,null,null,null,null,null,null,null,null,null,null,null,null,null,2516338,"Cyclopropylmethyl propylphosphonofluoridate",1]
[null,null,null,null,null,null,null,null,null,null,null,null,null,null,null,null,null,2650404,"3,3,5,5-Tetramethylcyclohexyl N,N- dimethylphosphoramidocyanidate",1]
[null,null,null,null,null,null,null,null,null,null,null,null,null,null,null,null,null,2893450,"2-Diethylaminoethyl 2-(methylpropylamino) ethyl ethylphosphonate",1]
[null,null,null,null,null,null,null,null,null,null,null,null,null,null,null,null,null,2893450,"Bis[2-(methylpropylamino)ethyl] ethylphosphonate",1]
[null,null,null,null,null,null,null,null,null,null,null,null,null,null,null,null,null,3452979,"3,5,5-Trimethylhexyl N,N- dimethylphosphoramidocyanidate",1]
[null,null,null,null,null,null,null,null,null,null,null,null,null,null,null,null,null,3452979,"3,5,5-Trimethylhexyl isopropylphosphonofluoridate",1]
[null,null,null,null,null,null,null,null,null,null,null,null,null,null,null,null,null,3452979,"3,5,5-Trimethylhexyl propylphosphonofluoridate",1]
[null,null,null,null,null,null,null,null,null,null,null,null,null,null,null,null,null,3452979,"3,5,5-Trimethylhexyl S-sodium propylphosphonothiolate",1]
[null,null,null,null,null,null,null,null,null,null,null,null,null,null,null,null,null,35523898,"Saxitoxin [11-3H]",1]
[null,null,null,null,null,null,null,null,null,null,null,null,null,null,null,null,null,3637614,"Cyclopentylmethyl N,N-diethylphosphoramidocyanidate",1]
[null,null,null,null,null,null,null,null,null,null,null,null,null,null,null,null,null,3637614,"Cyclopentylmethyl N,N- diisopropylphosphoramidocyanidate",1]
[null,null,null,null,null,null,null,null,null,null,null,null,null,null,null,null,null,3637614,"Cyclopentylmethyl N,N- dimethylphosphoramidocyanidate",1]
[null,null,null,null,null,null,null,null,null,null,null,null,null,null,null,null,null,3637614,"Cyclopentylmethyl N,N-dipropylphosphoramidocyanidate",1]
[null,null,null,null,null,null,null,null,null,null,null,null,null,null,null,null,null,3637614,"Cyclopentylmethyl isopropylphosphonofluoridate",1]
[null,null,null,null,null,null,null,null,null,null,null,null,null,null,null,null,null,3637614,"Cyclopentylmethyl methylphosphonofluoridate",1]
[null,null,null,null,null,null,null,null,null,null,null,null,null,null,null,null,null,3637614,"Cyclopentylmethyl S-2-diethylaminoethyl methylphosphonothiolate",1]
[null,null,null,null,null,null,null,null,null,null,null,null,null,null,null,null,null,3637614,"Cyclopentylmethyl propylphosphonofluoridate",1]
[null,null,null,null,null,null,null,null,null,null,null,null,null,null,null,null,null,3760201,"2-Ethylcyclohexyl N,N-diethylphosphoramidocyanidate",1]
[null,null,null,null,null,null,null,null,null,null,null,null,null,null,null,null,null,3760201,"2-Ethylcyclohexyl N,N- diisopropylphosphoramidocyanidate",1]
[null,null,null,null,null,null,null,null,null,null,null,null,null,null,null,null,null,3760201,"2-Ethylcyclohexyl N,N-dimethylphosphoramidocyanidate",1]
[null,null,null,null,null,null,null,null,null,null,null,null,null,null,null,null,null,3760201,"2-Ethylcyclohexyl N,N-dipropylphosphoramidocyanidate",1]
[null,null,null,null,null,null,null,null,null,null,null,null,null,null,null,null,null,3760201,"2-Ethylcyclohexyl ethylphosphonofluoridate",1]
[null,null,null,null,null,null,null,null,null,null,null,null,null,null,null,null,null,3760201,"2-Ethylcyclohexyl isopropylphosphonofluoridate",1]
[null,null,null,null,null,null,null,null,null,null,null,null,null,null,null,null,null,3760201,"2- Ethylcyclohexyl S-2-diethylaminoethyl methylphosphonothiolate",1]
[null,null,null,null,null,null,null,null,null,null,null,null,null,null,null,null,null,3760201,"2-Ethylcyclohexyl propylphosphonofluoridate",1]
[null,null,null,null,null,null,null,null,null,null,null,null,null,null,null,null,null,3809323,"2,5-Dimethylcyclohexyl methylphosphonofluoridate",1]
[null,null,null,null,null,null,null,null,null,null,null,null,null,null,null,null,null,3970625,"1- 1- Ethyl-2,2-dimethylpropyl N,N- dimethylphosphoramidocyanidate",1]
[null,null,null,null,null,null,null,null,null,null,null,null,null,null,null,null,null,40334698,"Bis(2-chlorovinyl-[1,2-14C])chloroarsine",1]
[null,null,null,null,null,null,null,null,null,null,null,null,null,null,null,null,null,40334701,"Tris(2-chlorovinyl-[1,2-14C])arsine",1]
[null,null,null,null,null,null,null,null,null,null,null,null,null,null,null,null,null,4441570,"4-Cyclohexylbutyl N,N-dimethylphosphoramidocyanidate",1]
[null,null,null,null,null,null,null,null,null,null,null,null,null,null,null,null,null,4441570,"4-Cyclohexylbutyl ethylphosphonofluoridate",1]
[null,null,null,null,null,null,null,null,null,null,null,null,null,null,null,null,null,4441570,"4-Cyclohexylbutyl propylphosphonofluoridate",1]
[null,null,null,null,null,null,null,null,null,null,null,null,null,null,null,null,null,4442799,"2-Cyclohexylethyl N,N-diethylphosphoramidocyanidate",1]
[null,null,null,null,null,null,null,null,null,null,null,null,null,null,null,null,null,4442799,"2-Cyclohexylethyl N,N-dimethylphosphoramidocyanidate",1]
[null,null,null,null,null,null,null,null,null,null,null,null,null,null,null,null,null,4442799,"2-Cyclohexylethyl isopropylphosphonofluoridate",1]
[null,null,null,null,null,null,null,null,null,null,null,null,null,null,null,null,null,4442799,"2-Cyclohexylethyl S-2-diethylaminoethyl methylphosphonothiolate",1]
[null,null,null,null,null,null,null,null,null,null,null,null,null,null,null,null,null,4534741,"4-Ethylcyclohexyl N,N-dimethylphosphoramidocyanidate",1]
[null,null,null,null,null,null,null,null,null,null,null,null,null,null,null,null,null,464073,"[14C]-Pinacolyl methylphosphonofluoridate",1]
[null,null,null,null,null,null,null,null,null,null,null,null,null,null,null,null,null,464073,"Pinacolyl N,N-diethylphosphoramidocyanidate",1]
[null,null,null,null,null,null,null,null,null,null,null,null,null,null,null,null,null,464073,"Pinacolyl N-ethyl-N-isopropylphosphoramidocyanidate",1]
[null,null,null,null,null,null,null,null,null,null,null,null,null,null,null,null,null,464073,"Pinacolyl N-ethyl-N-methylphosphoramidocyanidate",1]
[null,null,null,null,null,null,null,null,null,null,null,null,null,null,null,null,null,464073,"Pinacolyl N-ethyl-N-propylphosphoramidocyanidate",1]
[null,null,null,null,null,null,null,null,null,null,null,null,null,null,null,null,null,464073,"Pinacolyl N,N-diisopropylphosphoramidocyanidate",1]
[null,null,null,null,null,null,null,null,null,null,null,null,null,null,null,null,null,464073,"Pinacolyl N-isopropyl-N-propylphosphoramidocyanidate",1]
[null,null,null,null,null,null,null,null,null,null,null,null,null,null,null,null,null,464073,"Pinacolyl N,N-dimethylphosphoramidocyanidate",1]
[null,null,null,null,null,null,null,null,null,null,null,null,null,null,null,null,null,464073,"Pinacolyl N-methyl-N-propylphosphoramidocyanidate",1]
[null,null,null,null,null,null,null,null,null,null,null,null,null,null,null,null,null,464073,"Pinacolyl S-2-diethylaminoethyl ethylphosphonothiolate",1]
[null,null,null,null,null,null,null,null,null,null,null,null,null,null,null,null,null,464073,"Pinacolyl S-2-N-ethyl-N-isopropylaminoethyl ethylphosphonothiolate",1]
[null,null,null,null,null,null,null,null,null,null,null,null,null,null,null,null,null,464073,"Pinacolyl S-2-N-ethyl-N-methylaminoethyl ethylphosphonothiolate",1]
[null,null,null,null,null,null,null,null,null,null,null,null,null,null,null,null,null,464073,"Pinacolyl S-2-N-ethyl-N-propylaminoethyl ethylphosphonothiolate",1]
[null,null,null,null,null,null,null,null,null,null,null,null,null,null,null,null,null,464073,"Pinacolyl S-2-diisopropylaminoethyl ethylphosphonothiolate",1]
[null,null,null,null,null,null,null,null,null,null,null,null,null,null,null,null,null,464073,"Pinacolyl S-2-N-isopropyl-N-methylaminoethyl ethylphosphonothiolate",1]
[null,null,null,null,null,null,null,null,null,null,null,null,null,null,null,null,null,464073,"Pinacolyl S-2-N-isopropyl-N-propylaminoethyl ethylphosphonothiolate",1]
[null,null,null,null,null,null,null,null,null,null,null,null,null,null,null,null,null,464073,"Pinacolyl S-2-dimethylaminoethyl ethylphosphonothiolate",1]
[null,null,null,null,null,null,null,null,null,null,null,null,null,null,null,null,null,464073,"Pinacolyl S-2-N-methyl-N-propylaminoethyl ethylphosphonothiolate",1]
[null,null,null,null,null,null,null,null,null,null,null,null,null,null,null,null,null,464073,"Pinacolyl S-2-dipropylaminoethyl ethylphosphonothiolate",1]
[null,null,null,null,null,null,null,null,null,null,null,null,null,null,null,null,null,464073,"Pinacolyl S-sodium ethylphosphonothiolate",1]
[null,null,null,null,null,null,null,null,null,null,null,null,null,null,null,null,null,464073,"Pinacolyl S-2-diethylaminoethyl isopropylphosphonothiolate",1]
[null,null,null,null,null,null,null,null,null,null,null,null,null,null,null,null,null,464073,"Pinacolyl S-2-N-ethyl-N-isopropylaminoethyl isopropylphosphonothiolate",1]
[null,null,null,null,null,null,null,null,null,null,null,null,null,null,null,null,null,464073,"Pinacolyl S-2-N-ethyl-N-methylaminoethyl isopropylphosphonothiolate",1]
[null,null,null,null,null,null,null,null,null,null,null,null,null,null,null,null,null,464073,"Pinacolyl S-2-N-ethyl-N-propylaminoethyl isopropylphosphonothiolate",1]
[null,null,null,null,null,null,null,null,null,null,null,null,null,null,null,null,null,464073,"Pinacolyl S-2-diisopropylaminoethyl isopropylphosphonothiolate",1]
[null,null,null,null,null,null,null,null,null,null,null,null,null,null,null,null,null,464073,"Pinacolyl S-2-N-isopropyl-N-methylaminoethyl isopropylphosphonothiolate",1]
[null,null,null,null,null,null,null,null,null,null,null,null,null,null,null,null,null,464073,"Pinacolyl S-2-N-isopropyl-N-propylaminoethyl isopropylphosphonothiolate",1]
[null,null,null,null,null,null,null,null,null,null,null,null,null,null,null,null,null,464073,"Pinacolyl S-2-N-methyl-N-propylaminoethyl isopropylphosphonothiolate",1]
[null,null,null,null,null,null,null,null,null,null,null,null,null,null,null,null,null,464073,"Pinacolyl S-2-dipropylaminoethyl isopropylphosphonothiolate",1]
[null,null,null,null,null,null,null,null,null,null,null,null,null,null,null,null,null,464073,"Dipinacolyl isopropylphosphonate",1]
[null,null,null,null,null,null,null,null,null,null,null,null,null,null,null,null,null,464073,"Pinacolyl-dx-methylphosphonofluoridate",1]
[null,null,null,null,null,null,null,null,null,null,null,null,null,null,null,null,null,464073,"Pinacolyl methylphosphonofluoridate(-)",1]
[null,null,null,null,null,null,null,null,null,null,null,null,null,null,null,null,null,464073,"Pinacolyl S-2-N-ethyl-N-isopropylaminoethyl methylphosphonothiolate",1]
[null,null,null,null,null,null,null,null,null,null,null,null,null,null,null,null,null,464073,"Pinacolyl S-2-N-ethyl-N-methylaminoethyl methylphosphonothiolate",1]
[null,null,null,null,null,null,null,null,null,null,null,null,null,null,null,null,null,464073,"Pinacolyl S-2-N-ethyl-N-propylaminoethyl methylphosphonothiolate",1]
[null,null,null,null,null,null,null,null,null,null,null,null,null,null,null,null,null,464073,"Pinacolyl S-2-N-isopropyl-N-methylaminoethyl methylphosphonothiolate",1]
[null,null,null,null,null,null,null,null,null,null,null,null,null,null,null,null,null,464073,"Pinacolyl S-2-N-isopropyl-N-propylaminoethyl methylphosphonothiolate",1]
[null,null,null,null,null,null,null,null,null,null,null,null,null,null,null,null,null,464073,"Pinacolyl S-2-N-methyl-N-propylaminoethyl methylphosphonothiolate",1]
[null,null,null,null,null,null,null,null,null,null,null,null,null,null,null,null,null,464073,"Pinacolyl S-2-dipropylaminoethyl methylphosphonothiolate",1]
[null,null,null,null,null,null,null,null,null,null,null,null,null,null,null,null,null,464073,"Pinacolyl N-methyl-N-(2-hydroxyethyl) methylphosphonoamidate",1]
[null,null,null,null,null,null,null,null,null,null,null,null,null,null,null,null,null,464073,"O-Pinacolylmethylthiophosphonofluoridate",1]
[null,null,null,null,null,null,null,null,null,null,null,null,null,null,null,null,null,464073,"Pinacolyl S-2-N-isopropyl-N-ethylaminoethyl propylphosphonothiolate",1]
[null,null,null,null,null,null,null,null,null,null,null,null,null,null,null,null,null,464073,"Pinacolyl S-2-N-ethyl-N-methylaminoethyl propylphosphonothiolate",1]
[null,null,null,null,null,null,null,null,null,null,null,null,null,null,null,null,null,464073,"Pinacolyl S-2-N-ethyl-N-propylaminoethyl propylphosphonothiolate",1]
[null,null,null,null,null,null,null,null,null,null,null,null,null,null,null,null,null,464073,"Pinacolyl S-2-N-isopropyl-N-methylaminoethyl propylphosphonothiolate",1]
[null,null,null,null,null,null,null,null,null,null,null,null,null,null,null,null,null,464073,"Pinacolyl S-2-N-isopropyl-N-propylaminoethyl propylphosphonothiolate",1]
[null,null,null,null,null,null,null,null,null,null,null,null,null,null,null,null,null,464073,"Pinacolyl S-2-N-methyl-N-propylaminoethyl propylphosphonothiolate",1]
[null,null,null,null,null,null,null,null,null,null,null,null,null,null,null,null,null,464073,"Pinacolyl S-2-dipropylaminoethyl propylphosphonothiolate",1]
[null,null,null,null,null,null,null,null,null,null,null,null,null,null,null,null,null,464073,"O-Pinacolyl propylphosphonothiolate",1]
[null,null,null,null,null,null,null,null,null,null,null,null,null,null,null,null,null,4730227,"1,5-Dimethylhexyl N,N-dimethylphosphoramidocyanidate",1]
[null,null,null,null,null,null,null,null,null,null,null,null,null,null,null,null,null,4730227,"1,5-Dimethylhexyl ethylphosphonofluoridate",1]
[null,null,null,null,null,null,null,null,null,null,null,null,null,null,null,null,null,4730227,"1,5-Dimethylhexyl isopropylphosphonofluoridate",1]
[null,null,null,null,null,null,null,null,null,null,null,null,null,null,null,null,null,4730227,"1,5-Dimethylhexyl propylphosphonofluoridate",1]
[null,null,null,null,null,null,null,null,null,null,null,null,null,null,null,null,null,502410,"Cycloheptyl N-ethyl-N-isopropylphosphoramidocyanidate",1]
[null,null,null,null,null,null,null,null,null,null,null,null,null,null,null,null,null,502410,"Cycloheptyl N-ethyl-N-methylphosphoramidocyanidate",1]
[null,null,null,null,null,null,null,null,null,null,null,null,null,null,null,null,null,502410,"Cycloheptyl N-ethyl-N-propylphosphoramidocyanidate",1]
[null,null,null,null,null,null,null,null,null,null,null,null,null,null,null,null,null,502410,"Cycloheptyl N-isopropyl-N- methylphosphoramidocyanidate",1]
[null,null,null,null,null,null,null,null,null,null,null,null,null,null,null,null,null,502410,"Cycloheptyl N-methyl-N-propylphosphoramidocyanidate",1]
[null,null,null,null,null,null,null,null,null,null,null,null,null,null,null,null,null,502410,"Cycloheptyl S-2-dimethylaminoethyl ethylphosphonothiolate",1]
[null,null,null,null,null,null,null,null,null,null,null,null,null,null,null,null,null,502410,"Cycloheptyl S-2-dimethylaminoethyl isopropylphosphonothiolate",1]
[null,null,null,null,null,null,null,null,null,null,null,null,null,null,null,null,null,502410,"Cycloheptyl S-2-diethylaminoethyl methylphosphonothiolate",1]
[null,null,null,null,null,null,null,null,null,null,null,null,null,null,null,null,null,502410,"Cycloheptyl S-2-dipropylaminoethyl methylphosphonothiolate",1]
[null,null,null,null,null,null,null,null,null,null,null,null,null,null,null,null,null,502410,"Cycloheptyl S-2-dimethylaminoethyl propylphosphonothiolate",1]
[null,null,null,null,null,null,null,null,null,null,null,null,null,null,null,null,null,505602,"(2-Chloroethyl)(2-chloroethyl-[1,2-14C])sulfide",1]
[null,null,null,null,null,null,null,null,null,null,null,null,null,null,null,null,null,505602,"(2-Chloroethyl)(2-chloroethyl-[1-14C])sulfide",1]
[null,null,null,null,null,null,null,null,null,null,null,null,null,null,null,null,null,505602,"Mixture of Bis(2-chloroethyl)sulfide and 13C2-Bis(2- chloroethyl)sulfide",1]
[null,null,null,null,null,null,null,null,null,null,null,null,null,null,null,null,null,505602,"Bis(2-chloroethyl-[2-14C])sulfide",1]
[null,null,null,null,null,null,null,null,null,null,null,null,null,null,null,null,null,51752,"(2-Chloroethyl)(2-chloroethyl-[1,2-14C])methylamine",1]
[null,null,null,null,null,null,null,null,null,null,null,null,null,null,null,null,null,51752,"(2-Chloroethyl)(2-chloroethyl-[1-14C])methylamine",1]
[null,null,null,null,null,null,null,null,null,null,null,null,null,null,null,null,null,51752,"(2-Chloroethyl)(2-chloroethyl-[2-14C])methylamine",1]
[null,null,null,null,null,null,null,null,null,null,null,null,null,null,null,null,null,51752,"Bis(2-chloroethyl)methyl-[14C]-amine",1]
[null,null,null,null,null,null,null,null,null,null,null,null,null,null,null,null,null,5240722,"2- 2- Norbornanemethyl N,N- dimethylphosphoramidocyanidate",1]
[null,null,null,null,null,null,null,null,null,null,null,null,null,null,null,null,null,5240722,"2-Norbornanemethyl ethylphosphonofluoridate",1]
[null,null,null,null,null,null,null,null,null,null,null,null,null,null,null,null,null,5240722,"2-Norbornanemethyl isopropylphosphonofluoridate",1]
[null,null,null,null,null,null,null,null,null,null,null,null,null,null,null,null,null,5240722,"2-Norbornanemethyl methylphosphonofluoridate",1]
[null,null,null,null,null,null,null,null,null,null,null,null,null,null,null,null,null,5240722,"2-Norbornanemethyl propylphosphonofluoridate",1]
[null,null,null,null,null,null,null,null,null,null,null,null,null,null,null,null,null,52829988,"1-Cyclopentylethyl methylphosphonofluoridate",1]
[null,null,null,null,null,null,null,null,null,null,null,null,null,null,null,null,null,5337724,"2,6-Dimethylcyclohexyl ethylphosphonofluoridate",1]
[null,null,null,null,null,null,null,null,null,null,null,null,null,null,null,null,null,5337724,"2,6-Dimethylcyclohexyl isopropylphosphonofluoridate",1]
[null,null,null,null,null,null,null,null,null,null,null,null,null,null,null,null,null,5337724,"2,6-Dimethylcyclohexyl S-2-diisopropylaminoethyl isopropylphosphonothiolate",1]
[null,null,null,null,null,null,null,null,null,null,null,null,null,null,null,null,null,5337724,"2,6-Dimethylcyclohexyl S-sodium isopropylphosphonothiolate",1]
[null,null,null,null,null,null,null,null,null,null,null,null,null,null,null,null,null,5337724,"2,6-Dimethylcyclohexyl propylphosphonofluoridate",1]
[null,null,null,null,null,null,null,null,null,null,null,null,null,null,null,null,null,538078,"2,2'-Dichloro-N-methyl-[14C]-diethylamine",1]
[null,null,null,null,null,null,null,null,null,null,null,null,null,null,null,null,null,538078,"(2-Chloroethyl)(2-chloroethyl-[1,2-14C])ethylamine",1]
[null,null,null,null,null,null,null,null,null,null,null,null,null,null,null,null,null,538078,"Bis(2-chloroethyl)ethyl-[1-14C]-amine",1]
[null,null,null,null,null,null,null,null,null,null,null,null,null,null,null,null,null,538078,"(2-Chloroethyl)(2-chloroethyl-[1-14C])ethylamine",1]
[null,null,null,null,null,null,null,null,null,null,null,null,null,null,null,null,null,538078,"Bis(2-chloroethyl)ethyl-[2-14C]-amine",1]
[null,null,null,null,null,null,null,null,null,null,null,null,null,null,null,null,null,538078,"(2-Chloroethyl)(2-chloroethyl-[2-14C])ethylamine",1]
[null,null,null,null,null,null,null,null,null,null,null,null,null,null,null,null,null,53892323,"1-Propyl-2-methoxyethyl methylphosphonate",1]
[null,null,null,null,null,null,null,null,null,null,null,null,null,null,null,null,null,541253,"2-Chlorovinyl-[1,2-14C]-dichloroarsine",1]
[null,null,null,null,null,null,null,null,null,null,null,null,null,null,null,null,null,543497,"1-Methylhexyl N,N-diethylphosphoramidocyanidate",1]
[null,null,null,null,null,null,null,null,null,null,null,null,null,null,null,null,null,543497,"1-Methylhexyl N,N-diisopropylphosphoramidocyanidate",1]
[null,null,null,null,null,null,null,null,null,null,null,null,null,null,null,null,null,543497,"1-Methylhexyl N,N-dipropylphosphoramidocyanidate",1]
[null,null,null,null,null,null,null,null,null,null,null,null,null,null,null,null,null,543497,"Benzyl methylphosphonochloridate-d3",1]
[null,null,null,null,null,null,null,null,null,null,null,null,null,null,null,null,null,543497,"Benzyl P-methylphosphonoamidate-d3",1]
[null,null,null,null,null,null,null,null,null,null,null,null,null,null,null,null,null,543497,"1-Methylhexyl S-2-diethylaminoethyl methylphosphonothiolate",1]
[null,null,null,null,null,null,null,null,null,null,null,null,null,null,null,null,null,543497,"1- Methylhexyl S-2-dipropylaminoethyl methylphosphonothiolate",1]
[null,null,null,null,null,null,null,null,null,null,null,null,null,null,null,null,null,543497,"1-Methylhexyl methylphosphonate",1]
[null,null,null,null,null,null,null,null,null,null,null,null,null,null,null,null,null,543497,"Bis(1-methylhexyl) methylphosphonate",1]
[null,null,null,null,null,null,null,null,null,null,null,null,null,null,null,null,null,5441521,"3,5-Dimethylcyclohexyl N,N- dimethylphosphoramidocyanidate",1]
[null,null,null,null,null,null,null,null,null,null,null,null,null,null,null,null,null,5441521,"3,5-Dimethylcyclohexyl isopropylphosphonofluoridate",1]
[null,null,null,null,null,null,null,null,null,null,null,null,null,null,null,null,null,5441521,"3,5-Dimethylcyclohexyl S-2-diisopropylaminoethyl isopropylphosphonothiolate",1]
[null,null,null,null,null,null,null,null,null,null,null,null,null,null,null,null,null,5441521,"3,5-Dimethylcyclohexyl S-sodium isopropylphosphonothiolate",1]
[null,null,null,null,null,null,null,null,null,null,null,null,null,null,null,null,null,5441521,"3,5-Dimethylcyclohexyl propylphosphonofluoridate",1]
[null,null,null,null,null,null,null,null,null,null,null,null,null,null,null,null,null,555771,"d12-tris(2-chloroethyl)amine",1]
[null,null,null,null,null,null,null,null,null,null,null,null,null,null,null,null,null,555771,"Bis(2-chloroethyl)(2-chloroethyl-[14C2])amine",1]
[null,null,null,null,null,null,null,null,null,null,null,null,null,null,null,null,null,555771,"Bis(2-chloroethyl)(2-chloroethyl-[1-14C])amine",1]
[null,null,null,null,null,null,null,null,null,null,null,null,null,null,null,null,null,555771,"Bis(2-chloroethyl)(2-chloroethyl-[2-14C])amine",1]
[null,null,null,null,null,null,null,null,null,null,null,null,null,null,null,null,null,5582821,"1-Ethyl-1-methylpentyl N,N- dimethylphosphoramidocyanidate",1]
[null,null,null,null,null,null,null,null,null,null,null,null,null,null,null,null,null,565606,"1,2-Dimethylbutyl N,N-diethylphosphoramidocyanidate",1]
[null,null,null,null,null,null,null,null,null,null,null,null,null,null,null,null,null,565606,"1,2-Dimethylbutyl N-ethyl-N- isopropylphosphoramidocyanidate",1]
[null,null,null,null,null,null,null,null,null,null,null,null,null,null,null,null,null,565606,"1,2-Dimethylbutyl N-ethyl-N- methylphosphoramidocyanidate",1]
[null,null,null,null,null,null,null,null,null,null,null,null,null,null,null,null,null,565606,"1,2-Dimethylbutyl N-ethyl-N- propylphosphoramidocyanidate",1]
[null,null,null,null,null,null,null,null,null,null,null,null,null,null,null,null,null,565606,"1,2-Dimethylbutyl N,N- diisopropylphosphoramidocyanidate",1]
[null,null,null,null,null,null,null,null,null,null,null,null,null,null,null,null,null,565606,"1,2-Dimethylbutyl N-isopropyl-N- methylphosphoramidocyanidate",1]
[null,null,null,null,null,null,null,null,null,null,null,null,null,null,null,null,null,565606,"1,2-Dimethylbutyl N,N-dimethylphosphoramidocyanidate",1]
[null,null,null,null,null,null,null,null,null,null,null,null,null,null,null,null,null,565606,"1,2-Dimethylbutyl N-methyl-N- propylphosphoramidocyanidate",1]
[null,null,null,null,null,null,null,null,null,null,null,null,null,null,null,null,null,565606,"1,2-Dimethylbutyl N,N-dipropylphosphoramidocyanidate",1]
[null,null,null,null,null,null,null,null,null,null,null,null,null,null,null,null,null,565606,"1,2-Dimethylbutyl S-2-diethylaminoethyl isopropylphosphonothiolate",1]
[null,null,null,null,null,null,null,null,null,null,null,null,null,null,null,null,null,565606,"1,2-Dimethylbutyl S-2-dipropylaminoethyl isopropylphosphonothiolate",1]
[null,null,null,null,null,null,null,null,null,null,null,null,null,null,null,null,null,565606,"1,2-Dimethylbutyl pinacolyl methylphosphonate",1]
[null,null,null,null,null,null,null,null,null,null,null,null,null,null,null,null,null,565606,"Bis(1,2-dimethylbutyl) methylphosphonate",1]
[null,null,null,null,null,null,null,null,null,null,null,null,null,null,null,null,null,565606,"1,2-Dimethylbutyl propylphosphonofluoridate",1]
[null,null,null,null,null,null,null,null,null,null,null,null,null,null,null,null,null,565606,"1,2-Dimethylbutyl S-2-diethylaminoethyl propylphosphonothiolate",1]
[null,null,null,null,null,null,null,null,null,null,null,null,null,null,null,null,null,565606,"1,2-Dimethylbutyl S-2-dipropylaminoethyl propylphosphonothiolate",1]
[null,null,null,null,null,null,null,null,null,null,null,null,null,null,null,null,null,565673,"1- Ethyl-2-methylpropyl N,N- dimethylphosphoramidocyanidate",1]
[null,null,null,null,null,null,null,null,null,null,null,null,null,null,null,null,null,565673,"1-Ethyl-2-methylpropyl pinacolyl methylphosphonate",1]
[null,null,null,null,null,null,null,null,null,null,null,null,null,null,null,null,null,565673,"Bis(1-ethyl-2-methylpropyl) methylphosphonate",1]
[null,null,null,null,null,null,null,null,null,null,null,null,null,null,null,null,null,57706884,"1,5-Dimethyl-1-ethylhexyl N,N- dimethylphosphoramidocyanidate",1]
[null,null,null,null,null,null,null,null,null,null,null,null,null,null,null,null,null,57706884,"1,5-Dimethyl-1-ethylhexyl methylphosphonofluoridate",1]
[null,null,null,null,null,null,null,null,null,null,null,null,null,null,null,null,null,58175578,"2-Propylpentyl N,N-dimethylphosphoramidocyanidate",1]
[null,null,null,null,null,null,null,null,null,null,null,null,null,null,null,null,null,58175578,"2-Propylpentyl ethylphosphonofluoridate",1]
[null,null,null,null,null,null,null,null,null,null,null,null,null,null,null,null,null,58175578,"2-Propylpentyl isopropylphosphonofluoridate",1]
[null,null,null,null,null,null,null,null,null,null,null,null,null,null,null,null,null,58175578,"2-Propylpentyl propylphosphonofluoridate",1]
[null,null,null,null,null,null,null,null,null,null,null,null,null,null,null,null,null,583595,"2-Methylcyclohexyl N,N-diethylphosphoramidocyanidate",1]
[null,null,null,null,null,null,null,null,null,null,null,null,null,null,null,null,null,583595,"2- Methylcyclohexyl N-ethyl-N- isopropylphosphoramidocyanidate",1]
[null,null,null,null,null,null,null,null,null,null,null,null,null,null,null,null,null,583595,"2-Methylcyclohexyl N-ethyl-N- methylphosphoramidocyanidate",1]
[null,null,null,null,null,null,null,null,null,null,null,null,null,null,null,null,null,583595,"2-Methylcyclohexyl N-ethyl-N- propylphosphoramidocyanidate",1]
[null,null,null,null,null,null,null,null,null,null,null,null,null,null,null,null,null,583595,"2-Methylcyclohexyl N-isopropyl-N- methylphosphoramidocyanidate",1]
[null,null,null,null,null,null,null,null,null,null,null,null,null,null,null,null,null,583595,"2-Methylcyclohexyl N,N- dimethylphosphoramidocyanidate",1]
[null,null,null,null,null,null,null,null,null,null,null,null,null,null,null,null,null,583595,"2-Methylcyclohexyl N-methyl-N- propylphosphoramidocyanidate",1]
[null,null,null,null,null,null,null,null,null,null,null,null,null,null,null,null,null,583595,"2-Methylcyclohexyl N,N- dipropylphosphoramidocyanidate",1]
[null,null,null,null,null,null,null,null,null,null,null,null,null,null,null,null,null,583595,"2-Methylcyclohexyl isopropylphosphonofluoridate",1]
[null,null,null,null,null,null,null,null,null,null,null,null,null,null,null,null,null,583595,"2- Methylcyclohexyl S-2-diethylaminoethyl isopropylphosphonothiolate",1]
[null,null,null,null,null,null,null,null,null,null,null,null,null,null,null,null,null,583595,"2-Methylcyclohexyl S-2-diethylaminoethyl methylphosphonothiolate",1]
[null,null,null,null,null,null,null,null,null,null,null,null,null,null,null,null,null,583595,"2-Methylcyclohexyl S-2-dipropylaminoethyl methylphosphonothiolate",1]
[null,null,null,null,null,null,null,null,null,null,null,null,null,null,null,null,null,583595,"2-Methylcyclohexyl propylphosphonofluoridate",1]
[null,null,null,null,null,null,null,null,null,null,null,null,null,null,null,null,null,583595,"2-Methylcyclohexyl S-2-diethylaminoethyl propylphosphonothiolate",1]
[null,null,null,null,null,null,null,null,null,null,null,null,null,null,null,null,null,584021,"1-Ethylpropyl N,N-diethylphosphoramidocyanidate",1]
[null,null,null,null,null,null,null,null,null,null,null,null,null,null,null,null,null,584021,"1-Ethylpropyl N,N-diisopropylphosphoramidocyanidate",1]
[null,null,null,null,null,null,null,null,null,null,null,null,null,null,null,null,null,584021,"1-Ethylpropyl N,N-dimethylphosphoramidocyanidate",1]
[null,null,null,null,null,null,null,null,null,null,null,null,null,null,null,null,null,584021,"1-Ethylpropyl N,N-dipropylphosphoramidocyanidate",1]
[null,null,null,null,null,null,null,null,null,null,null,null,null,null,null,null,null,584021,"1-Ethylpropyl S-sodium ethylphosphonothiolate",1]
[null,null,null,null,null,null,null,null,null,null,null,null,null,null,null,null,null,584021,"O-1-Ethylpropyl O-sodium ethylphosphonothionate",1]
[null,null,null,null,null,null,null,null,null,null,null,null,null,null,null,null,null,584021,"1-Ethylpropyl isopropylphosphonofluoridate",1]
[null,null,null,null,null,null,null,null,null,null,null,null,null,null,null,null,null,584021,"1-Ethylpropyl methylphosphonate",1]
[null,null,null,null,null,null,null,null,null,null,null,null,null,null,null,null,null,584021,"O-(1-Ethylpropyl) methylphosphonothionate",1]
[null,null,null,null,null,null,null,null,null,null,null,null,null,null,null,null,null,584021,"O,O-Bis(1-ethylpropyl) methylphosphonothionate",1]
[null,null,null,null,null,null,null,null,null,null,null,null,null,null,null,null,null,584021,"1-Ethylpropyl S-2-dipropylaminoethyl propylphosphonothiolate",1]
[null,null,null,null,null,null,null,null,null,null,null,null,null,null,null,null,null,584021,"1-Ethylpropyl S-sodium propylphosphonothiolate",1]
[null,null,null,null,null,null,null,null,null,null,null,null,null,null,null,null,null,589355,"3-Methylpentyl N,N-dimethylphosphoramidocyanidate",1]
[null,null,null,null,null,null,null,null,null,null,null,null,null,null,null,null,null,589355,"3-Methylpentyl isopropylphosphonofluoridate",1]
[null,null,null,null,null,null,null,null,null,null,null,null,null,null,null,null,null,589355,"3-Methylpentyl S-2-dipropylaminoethyl isopropylphosphonothiolate",1]
[null,null,null,null,null,null,null,null,null,null,null,null,null,null,null,null,null,589355,"3-Methylpentyl S-2-dipropylaminoethyl",1]
[null,null,null,null,null,null,null,null,null,null,null,null,null,null,null,null,null,589355,"3-Methylpentyl propylphosphonofluoridate",1]
[null,null,null,null,null,null,null,null,null,null,null,null,null,null,null,null,null,589355,"3-Methylpentyl S-2-dipropylaminoethyl propylphosphonothiolate",1]
[null,null,null,null,null,null,null,null,null,null,null,null,null,null,null,null,null,589355,"4-Methylpentyl S-sodium propylphosphonothiolate",1]
[null,null,null,null,null,null,null,null,null,null,null,null,null,null,null,null,null,589559,"1-Propylbutyl methylphosphonate",1]
[null,null,null,null,null,null,null,null,null,null,null,null,null,null,null,null,null,589559,"Bis(1-propylbutyl) methylphosphonate",1]
[null,null,null,null,null,null,null,null,null,null,null,null,null,null,null,null,null,589559,"O-(1-Propylbutyl) methylphosphonothionate",1]
[null,null,null,null,null,null,null,null,null,null,null,null,null,null,null,null,null,589559,"O,O-Bis(1-propylbutyl) methylphosphonothionate",1]
[null,null,null,null,null,null,null,null,null,null,null,null,null,null,null,null,null,589628,"1-Propylpentyl N,N-dimethylphosphoramidocyanidate",1]
[null,null,null,null,null,null,null,null,null,null,null,null,null,null,null,null,null,589628,"1-Propylpentyl ethylphosphonofluoridate",1]
[null,null,null,null,null,null,null,null,null,null,null,null,null,null,null,null,null,589628,"1-Propylpentyl isopropylphosphonofluoridate",1]
[null,null,null,null,null,null,null,null,null,null,null,null,null,null,null,null,null,589628,"1-Propylpentyl methylphosphonofluoridate",1]
[null,null,null,null,null,null,null,null,null,null,null,null,null,null,null,null,null,589628,"1-Propylpentyl propylphosphonofluoridate",1]
[null,null,null,null,null,null,null,null,null,null,null,null,null,null,null,null,null,589822,"1-Ethylpentyl N,N-dimethylphosphoramidocyanidate",1]
[null,null,null,null,null,null,null,null,null,null,null,null,null,null,null,null,null,589822,"1-Ethylpentyl ethylphosphonofluoridate",1]
[null,null,null,null,null,null,null,null,null,null,null,null,null,null,null,null,null,589822,"1-Ethylpentyl isopropylphosphonofluoridate",1]
[null,null,null,null,null,null,null,null,null,null,null,null,null,null,null,null,null,589822,"1-Ethylpentyl S-2-dipropylaminoethyl isopropylphosphonothiolate",1]
[null,null,null,null,null,null,null,null,null,null,null,null,null,null,null,null,null,589822,"1-Ethylpentyl S-2-dipropylaminoethyl methylphosphonothiolate",1]
[null,null,null,null,null,null,null,null,null,null,null,null,null,null,null,null,null,589822,"1-Ethylpentyl propylphosphonofluoridate",1]
[null,null,null,null,null,null,null,null,null,null,null,null,null,null,null,null,null,589913,"4-Methylcyclohexyl N,N-diethylphosphoramidocyanidate",1]
[null,null,null,null,null,null,null,null,null,null,null,null,null,null,null,null,null,589913,"4-Methylcyclohexyl N-ethyl-N- isopropylphosphoramidocyanidate",1]
[null,null,null,null,null,null,null,null,null,null,null,null,null,null,null,null,null,589913,"4-Methylcyclohexyl N-ethyl-N- methylphosphoramidocyanidate",1]
[null,null,null,null,null,null,null,null,null,null,null,null,null,null,null,null,null,589913,"4-Methylcyclohexyl N-ethyl-N- propylphosphoramidocyanidate",1]
[null,null,null,null,null,null,null,null,null,null,null,null,null,null,null,null,null,589913,"4-Methylcyclohexyl N,N- diisopropylphosphoramidocyanidate",1]
[null,null,null,null,null,null,null,null,null,null,null,null,null,null,null,null,null,589913,"4-Methylcyclohexyl N-isopropyl-N- methylphosphoramidocyanidate",1]
[null,null,null,null,null,null,null,null,null,null,null,null,null,null,null,null,null,589913,"4-Methylcyclohexyl N,N- dimethylphosphoramidocyanidate",1]
[null,null,null,null,null,null,null,null,null,null,null,null,null,null,null,null,null,589913,"4-Methylcyclohexyl N-methyl-N- propylphosphoramidocyanidate",1]
[null,null,null,null,null,null,null,null,null,null,null,null,null,null,null,null,null,589913,"4-Methylcyclohexyl N,N- dipropylphosphoramidocyanidate",1]
[null,null,null,null,null,null,null,null,null,null,null,null,null,null,null,null,null,589913,"4-Methylcyclohexyl S-2-dipropylaminoethyl isopropylphosphonothiolate",1]
[null,null,null,null,null,null,null,null,null,null,null,null,null,null,null,null,null,589913,"4-Methylcyclohexyl S-2-diethylaminoethyl methylphosphonothiolate",1]
[null,null,null,null,null,null,null,null,null,null,null,null,null,null,null,null,null,589913,"4-Methylcyclohexyl S-2-diisopropylaminoethyl methylphosphonothiolate",1]
[null,null,null,null,null,null,null,null,null,null,null,null,null,null,null,null,null,589913,"4-Methylcyclohexyl S-2-dipropylaminoethyl methylphosphonothiolate",1]
[null,null,null,null,null,null,null,null,null,null,null,null,null,null,null,null,null,590670,"1-Methylcyclohexyl N,N- diisopropylphosphoramidocyanidate",1]
[null,null,null,null,null,null,null,null,null,null,null,null,null,null,null,null,null,591231,"3-Methylcyclohexyl N,N-diethylphosphoramidocyanidate",1]
[null,null,null,null,null,null,null,null,null,null,null,null,null,null,null,null,null,591231,"3-Methylcyclohexyl N,N- diisopropylphosphoramidocyanidate",1]
[null,null,null,null,null,null,null,null,null,null,null,null,null,null,null,null,null,591231,"3-Methylcyclohexyl N,N- dimethylphosphoramidocyanidate",1]
[null,null,null,null,null,null,null,null,null,null,null,null,null,null,null,null,null,591231,"3-Methylcyclohexyl N,N- dipropylphosphoramidocyanidate",1]
[null,null,null,null,null,null,null,null,null,null,null,null,null,null,null,null,null,591231,"3-Methylcyclohexyl S-2-diethylaminoethyl methylphosphonothiolate",1]
[null,null,null,null,null,null,null,null,null,null,null,null,null,null,null,null,null,591231,"3-Methylcyclohexyl S-2-dipropylaminoethyl methylphosphonothiolate",1]
[null,null,null,null,null,null,null,null,null,null,null,null,null,null,null,null,null,597499,"1,1-Diethylpropyl N,N-dimethylphosphoramidocyanidate",1]
[null,null,null,null,null,null,null,null,null,null,null,null,null,null,null,null,null,598754,"1,2-Dimethylpropyl N,N-diethylphosphoramidocyanidate",1]
[null,null,null,null,null,null,null,null,null,null,null,null,null,null,null,null,null,598754,"1,2-Dimethylpropyl N,N- dimethylphosphoramidocyanidate",1]
[null,null,null,null,null,null,null,null,null,null,null,null,null,null,null,null,null,598754,"1,2-Dimethylpropyl N,N- dipropylphosphoramidocyanidate",1]
[null,null,null,null,null,null,null,null,null,null,null,null,null,null,null,null,null,598754,"1,2-Dimethylpropyl ethylphosphonofluoridate",1]
[null,null,null,null,null,null,null,null,null,null,null,null,null,null,null,null,null,598754,"O-1,2-Dimethylpropyl O-sodium ethylphosphonothionate",1]
[null,null,null,null,null,null,null,null,null,null,null,null,null,null,null,null,null,598754,"1,2-Dimethylpropyl isopropylphosphonofluoridate",1]
[null,null,null,null,null,null,null,null,null,null,null,null,null,null,null,null,null,598754,"1,2-Dimethylpropyl S-2-dipropylaminoethyl isopropylphosphonothiolate",1]
[null,null,null,null,null,null,null,null,null,null,null,null,null,null,null,null,null,598754,"1,2-Dimethylpropyl S-(N-ethylbenzenaminium) methylphosphonothiolate (-)",1]
[null,null,null,null,null,null,null,null,null,null,null,null,null,null,null,null,null,598754,"1,2-Dimethylpropyl S-(N-ethylbenzenaminium) methylphosphonothiolate (+)",1]
[null,null,null,null,null,null,null,null,null,null,null,null,null,null,null,null,null,598754,"1,2-Dimethylpropyl S-phenylethylamine methylphosphonothiolate (-)",1]
[null,null,null,null,null,null,null,null,null,null,null,null,null,null,null,null,null,598754,"1,2-Dimethylpropyl propylphosphonofluoridate",1]
[null,null,null,null,null,null,null,null,null,null,null,null,null,null,null,null,null,598754,"1,2-Dimethylpropyl S-2-dipropylaminoethyl propylphosphonothiolate",1]
[null,null,null,null,null,null,null,null,null,null,null,null,null,null,null,null,null,600362,"1-Isopropyl-2-methylpropyl N-ethyl-N- propylphosphoramidocyanidate",1]
[null,null,null,null,null,null,null,null,null,null,null,null,null,null,null,null,null,60320287,"5-Isopropyl-2-methylcyclohexyl S-2-dimethylaminoethyl ethylphosphonothiolate",1]
[null,null,null,null,null,null,null,null,null,null,null,null,null,null,null,null,null,6032297,"1-Methylbutyl N,N-diethylphosphoramidocyanidate",1]
[null,null,null,null,null,null,null,null,null,null,null,null,null,null,null,null,null,6032297,"1-Methylbutyl N-ethyl-N- isopropylphosphoramidocyanidate",1]
[null,null,null,null,null,null,null,null,null,null,null,null,null,null,null,null,null,6032297,"1-Methylbutyl N-ethyl-N-methylphosphoramidocyanidate",1]
[null,null,null,null,null,null,null,null,null,null,null,null,null,null,null,null,null,6032297,"1-Methylbutyl N-ethyl-N-propylphosphoramidocyanidate",1]
[null,null,null,null,null,null,null,null,null,null,null,null,null,null,null,null,null,6032297,"1-Methylbutyl N-isopropyl-N- methylphosphoramidocyanidate",1]
[null,null,null,null,null,null,null,null,null,null,null,null,null,null,null,null,null,6032297,"1-Methylbutyl N,N-dimethylphosphoramidocyanidate",1]
[null,null,null,null,null,null,null,null,null,null,null,null,null,null,null,null,null,6032297,"1-Methylbutyl N-methyl-N- propylphosphoramidocyanidate",1]
[null,null,null,null,null,null,null,null,null,null,null,null,null,null,null,null,null,6032297,"1-Methylbutyl N,N-dipropylphosphoramidocyanidate",1]
[null,null,null,null,null,null,null,null,null,null,null,null,null,null,null,null,null,6032297,"1-Methylbutyl S-2-diethylaminoethyl isopropylphosphonothiolate",1]
[null,null,null,null,null,null,null,null,null,null,null,null,null,null,null,null,null,6032297,"1-Methylbutyl S-2-dipropylaminoethyl isopropylphosphonothiolate",1]
[null,null,null,null,null,null,null,null,null,null,null,null,null,null,null,null,null,6032297,"1-Methylbutyl S-sodium methylphosphonothiolate",1]
[null,null,null,null,null,null,null,null,null,null,null,null,null,null,null,null,null,6032297,"O-(1-Methylbutyl) methylphosphonothionate",1]
[null,null,null,null,null,null,null,null,null,null,null,null,null,null,null,null,null,6032297,"O,O-Bis(1-methylbutyl) methylphosphonothionate",1]
[null,null,null,null,null,null,null,null,null,null,null,null,null,null,null,null,null,6032297,"1-Methylbutyl S-2-diethylaminoethyl propylphosphonothiolate",1]
[null,null,null,null,null,null,null,null,null,null,null,null,null,null,null,null,null,6032297,"1-Methylbutyl S-2-dipropylaminoethyl propylphosphonothiolate",1]
[null,null,null,null,null,null,null,null,null,null,null,null,null,null,null,null,null,6144930,"1,3,3-Trimethylbutyl N,N- dimethylphosphoramidocyanidate",1]
[null,null,null,null,null,null,null,null,null,null,null,null,null,null,null,null,null,6144930,"1,3,3-Trimethylbutyl ethylphosphonofluoridate",1]
[null,null,null,null,null,null,null,null,null,null,null,null,null,null,null,null,null,6144930,"1,3,3-Trimethylbutyl isopropylphosphonofluoridate",1]
[null,null,null,null,null,null,null,null,null,null,null,null,null,null,null,null,null,6144930,"1,3,3-Trimethylbutyl propylphosphonofluoridate",1]
[null,null,null,null,null,null,null,null,null,null,null,null,null,null,null,null,null,617298,"1-Isopropylbutyl N,N-dimethylphosphoramidocyanidate",1]
[null,null,null,null,null,null,null,null,null,null,null,null,null,null,null,null,null,617298,"1-Isopropylbutyl S-2-dipropylaminoethyl isopropylphosphonothiolate",1]
[null,null,null,null,null,null,null,null,null,null,null,null,null,null,null,null,null,617298,"1-Isopropylbutyl S-2-dipropylaminoethyl methylphosphonothiolate",1]
[null,null,null,null,null,null,null,null,null,null,null,null,null,null,null,null,null,623370,"1-Ethylbutyl N-ethyl-N- isopropylphosphoramidocyanidate",1]
[null,null,null,null,null,null,null,null,null,null,null,null,null,null,null,null,null,623370,"1-Ethylbutyl N-ethyl-N-propylphosphoramidocyanidate",1]
[null,null,null,null,null,null,null,null,null,null,null,null,null,null,null,null,null,623370,"1-Ethylbutyl N,N-dimethylphosphoramidocyanidate",1]
[null,null,null,null,null,null,null,null,null,null,null,null,null,null,null,null,null,623370,"1-Ethylbutyl N,N-dipropylphosphoramidocyanidate",1]
[null,null,null,null,null,null,null,null,null,null,null,null,null,null,null,null,null,623370,"1-Ethylbutyl ethylphosphonofluoridate",1]
[null,null,null,null,null,null,null,null,null,null,null,null,null,null,null,null,null,623370,"1-Ethylbutyl S-sodium ethylphosphonothiolate",1]
[null,null,null,null,null,null,null,null,null,null,null,null,null,null,null,null,null,623370,"1-Ethylbutyl isopropylphosphonofluoridate",1]
[null,null,null,null,null,null,null,null,null,null,null,null,null,null,null,null,null,623370,"1-Ethylbutyl S-2-dipropylaminoethyl isopropylphosphonothiolate",1]
[null,null,null,null,null,null,null,null,null,null,null,null,null,null,null,null,null,623370,"1-Ethylbutyl S-2-dipropylaminoethyl methylphosphonothiolate",1]
[null,null,null,null,null,null,null,null,null,null,null,null,null,null,null,null,null,623370,"1-Ethylbutyl methylphosphonate",1]
[null,null,null,null,null,null,null,null,null,null,null,null,null,null,null,null,null,623370,"1-Ethylbutyl pinacolyl methylphosphonate",1]
[null,null,null,null,null,null,null,null,null,null,null,null,null,null,null,null,null,623370,"1-Ethylbutyl propylphosphonofluoridate",1]
[null,null,null,null,null,null,null,null,null,null,null,null,null,null,null,null,null,623380,"1-Ethylbutyl N,N-diethylphosphoramidocyanidate",1]
[null,null,null,null,null,null,null,null,null,null,null,null,null,null,null,null,null,623938,"1-Butylpentyl N,N-dimethylphosphoramidocyanidate",1]
[null,null,null,null,null,null,null,null,null,null,null,null,null,null,null,null,null,623938,"1-Butylpentyl ethylphosphonofluoridate",1]
[null,null,null,null,null,null,null,null,null,null,null,null,null,null,null,null,null,623938,"1-Butylpentyl isopropylphosphonofluoridate",1]
[null,null,null,null,null,null,null,null,null,null,null,null,null,null,null,null,null,623938,"1-Butylpentyl methylphosphonofluoridate",1]
[null,null,null,null,null,null,null,null,null,null,null,null,null,null,null,null,null,623938,"1-Butylpentyl methylphosphonate",1]
[null,null,null,null,null,null,null,null,null,null,null,null,null,null,null,null,null,623938,"Bis(1-butylpentyl) methylphosphonate",1]
[null,null,null,null,null,null,null,null,null,null,null,null,null,null,null,null,null,623938,"O-(1-Butylpentyl) methylphosphonothionate",1]
[null,null,null,null,null,null,null,null,null,null,null,null,null,null,null,null,null,623938,"1-Butylpentyl propylphosphonofluoridate",1]
[null,null,null,null,null,null,null,null,null,null,null,null,null,null,null,null,null,624511,"1-Ethylheptyl N,N-dimethylphosphoramidocyanidate",1]
[null,null,null,null,null,null,null,null,null,null,null,null,null,null,null,null,null,624511,"1-Ethylheptyl ethylphosphonofluoridate",1]
[null,null,null,null,null,null,null,null,null,null,null,null,null,null,null,null,null,624511,"1-Ethylheptyl isopropylphosphonofluoridate",1]
[null,null,null,null,null,null,null,null,null,null,null,null,null,null,null,null,null,624511,"1-Ethylheptyl methylphosphonofluoridate",1]
[null,null,null,null,null,null,null,null,null,null,null,null,null,null,null,null,null,624511,"1-Ethylheptyl propylphosphonofluoridate",1]
[null,null,null,null,null,null,null,null,null,null,null,null,null,null,null,null,null,624953,"3,3-Dimethylbutyl N,N-diethylphosphoramidocyanidate",1]
[null,null,null,null,null,null,null,null,null,null,null,null,null,null,null,null,null,624953,"3,3-Dimethylbutyl N,N- diisopropylphosphoramidocyanidate",1]
[null,null,null,null,null,null,null,null,null,null,null,null,null,null,null,null,null,624953,"3,3-Dimethylbutyl N,N-dimethylphosphoramidocyanidate",1]
[null,null,null,null,null,null,null,null,null,null,null,null,null,null,null,null,null,624953,"3,3-Dimethylbutyl N,N-dipropylphosphoramidocyanidate",1]
[null,null,null,null,null,null,null,null,null,null,null,null,null,null,null,null,null,624953,"3,3-Dimethylbutyl ethylphosphonofluoridate",1]
[null,null,null,null,null,null,null,null,null,null,null,null,null,null,null,null,null,624953,"3,3-Dimethylbutyl S-2-diethylaminoethyl ethylphosphonothiolate",1]
[null,null,null,null,null,null,null,null,null,null,null,null,null,null,null,null,null,624953,"O-3,3-Dimethylbutyl-O-sodium ethylphosphonothionate",1]
[null,null,null,null,null,null,null,null,null,null,null,null,null,null,null,null,null,624953,"3,3-Dimethylbutyl isopropylphosphonofluoridate",1]
[null,null,null,null,null,null,null,null,null,null,null,null,null,null,null,null,null,624953,"3,3-Dimethylbutyl S-2-dipropylaminoethyl isopropylphosphonothiolate",1]
[null,null,null,null,null,null,null,null,null,null,null,null,null,null,null,null,null,624953,"3,3-Dimethylbutyl S-2-diethylaminoethyl methylphosphonothiolate",1]
[null,null,null,null,null,null,null,null,null,null,null,null,null,null,null,null,null,624953,"3,3-Dimethylbutyl S-2-dipropylaminoethyl methylphosphonothiolate",1]
[null,null,null,null,null,null,null,null,null,null,null,null,null,null,null,null,null,624953,"3,3-Dimethylbutyl S-sodium methylphosphonothiolate",1]
[null,null,null,null,null,null,null,null,null,null,null,null,null,null,null,null,null,624953,"3,3-Dimethylbutyl S-2-dipropylaminoethyl propylphosphonothiolate",1]
[null,null,null,null,null,null,null,null,null,null,null,null,null,null,null,null,null,626891,"4-Methylpentyl N,N-diethylphosphoramidocyanidate",1]
[null,null,null,null,null,null,null,null,null,null,null,null,null,null,null,null,null,626891,"4-Methylpentyl N,N-diisopropylphosphoramidocyanidate",1]
[null,null,null,null,null,null,null,null,null,null,null,null,null,null,null,null,null,626891,"4-Methylpentyl N,N-dimethylphosphoramidocyanidate",1]
[null,null,null,null,null,null,null,null,null,null,null,null,null,null,null,null,null,626891,"4-Methylpentyl N,N-dipropylphosphoramidocyanidate",1]
[null,null,null,null,null,null,null,null,null,null,null,null,null,null,null,null,null,626891,"4-Methylpentyl S-2-diethylaminoethyl ethylphosphonothiolate",1]
[null,null,null,null,null,null,null,null,null,null,null,null,null,null,null,null,null,626891,"4-Methylpentyl S-2-dipropylaminoethyl ethylphosphonothiolate",1]
[null,null,null,null,null,null,null,null,null,null,null,null,null,null,null,null,null,626891,"4-Methylpentyl isopropylphosphonofluoridate",1]
[null,null,null,null,null,null,null,null,null,null,null,null,null,null,null,null,null,626891,"4-Methylpentyl S-2-dipropylaminoethyl isopropylphosphonothiolate",1]
[null,null,null,null,null,null,null,null,null,null,null,null,null,null,null,null,null,626891,"4-Methylpentyl S-2-diethylaminoethyl methylphosphonothiolate",1]
[null,null,null,null,null,null,null,null,null,null,null,null,null,null,null,null,null,626891,"4-Methylpentyl S-2-dipropylaminoethyl methylphosphonothiolate",1]
[null,null,null,null,null,null,null,null,null,null,null,null,null,null,null,null,null,626891,"4-Methylpentyl propylphosphonofluoridate",1]
[null,null,null,null,null,null,null,null,null,null,null,null,null,null,null,null,null,626891,"4-Methylpentyl S-2-dipropylaminoethyl propylphosphonothiolate",1]
[null,null,null,null,null,null,null,null,null,null,null,null,null,null,null,null,null,626937,"1-Methylpentyl N-ethyl-N- isopropylphosphoramidocyanidate",1]
[null,null,null,null,null,null,null,null,null,null,null,null,null,null,null,null,null,626937,"1-Methylpentyl N-ethyl-N- methylphosphoramidocyanidate",1]
[null,null,null,null,null,null,null,null,null,null,null,null,null,null,null,null,null,626937,"1-Methylpentyl N-ethyl-N- propylphosphoramidocyanidate",1]
[null,null,null,null,null,null,null,null,null,null,null,null,null,null,null,null,null,626937,"1-Methylpentyl N,N-diisopropylphosphoramidocyanidate",1]
[null,null,null,null,null,null,null,null,null,null,null,null,null,null,null,null,null,626937,"1-Methylpentyl N-isopropyl-N- methylphosphoramidocyanidate",1]
[null,null,null,null,null,null,null,null,null,null,null,null,null,null,null,null,null,626937,"1-Methylpentyl N-methyl-N- propylphosphoramidocyanidate",1]
[null,null,null,null,null,null,null,null,null,null,null,null,null,null,null,null,null,626937,"1-Methylpentyl N,N-dipropylphosphoramidocyanidate",1]
[null,null,null,null,null,null,null,null,null,null,null,null,null,null,null,null,null,626937,"1-Methylpentyl ethylphosphonofluoridate",1]
[null,null,null,null,null,null,null,null,null,null,null,null,null,null,null,null,null,626937,"1-Methylpentyl S-sodium ethylphosphonothiolate",1]
[null,null,null,null,null,null,null,null,null,null,null,null,null,null,null,null,null,626937,"O-1-Methylpentyl O-sodium ethylphosphonothionate",1]
[null,null,null,null,null,null,null,null,null,null,null,null,null,null,null,null,null,626937,"1-Methylpentyl isopropylphosphonofluoridate",1]
[null,null,null,null,null,null,null,null,null,null,null,null,null,null,null,null,null,626937,"1-Methylpentyl S-2-dipropylaminoethyl isopropylphosphonothiolate",1]
[null,null,null,null,null,null,null,null,null,null,null,null,null,null,null,null,null,626937,"1-Methylpentyl S-2-diisopropylaminoethyl methylphosphonothiolate",1]
[null,null,null,null,null,null,null,null,null,null,null,null,null,null,null,null,null,626937,"O-(1-Methylpentyl) methylphosphonothionate",1]
[null,null,null,null,null,null,null,null,null,null,null,null,null,null,null,null,null,626937,"O,O-Bis(1-methylpentyl) methylphosphonothionate",1]
[null,null,null,null,null,null,null,null,null,null,null,null,null,null,null,null,null,626937,"1-Methylpentyl propylphosphonofluoridate",1]
[null,null,null,null,null,null,null,null,null,null,null,null,null,null,null,null,null,626937,"1-Methylpentyl S-2-dipropylaminoethyl propylphosphonothiolate",1]
[null,null,null,null,null,null,null,null,null,null,null,null,null,null,null,null,null,627598,"1,4-Dimethylpentyl N-ethyl-N- isopropylphosphoramidocyanidate",1]
[null,null,null,null,null,null,null,null,null,null,null,null,null,null,null,null,null,627598,"1,4-Dimethylpentyl N-ethyl-N- propylphosphoramidocyanidate",1]
[null,null,null,null,null,null,null,null,null,null,null,null,null,null,null,null,null,627598,"1,4-Dimethylpentyl N,N- dimethylphosphoramidocyanidate",1]
[null,null,null,null,null,null,null,null,null,null,null,null,null,null,null,null,null,627598,"1,4-Dimethylpentyl ethylphosphonofluoridate",1]
[null,null,null,null,null,null,null,null,null,null,null,null,null,null,null,null,null,627598,"1,4-Dimethylpentyl isopropylphosphonofluoridate",1]
[null,null,null,null,null,null,null,null,null,null,null,null,null,null,null,null,null,627598,"1,4-Dimethylpentyl S-2-dipropylaminoethyl methylphosphonothiolate",1]
[null,null,null,null,null,null,null,null,null,null,null,null,null,null,null,null,null,627598,"1,4-Dimethylpentyl propylphosphonofluoridate",1]
[null,null,null,null,null,null,null,null,null,null,null,null,null,null,null,null,null,627985,"5-Methylhexyl N,N-dimethylphosphoramidocyanidate",1]
[null,null,null,null,null,null,null,null,null,null,null,null,null,null,null,null,null,627985,"5-Methylhexyl ethylphosphonofluoridate",1]
[null,null,null,null,null,null,null,null,null,null,null,null,null,null,null,null,null,627985,"5-Methylhexyl isopropylphosphonofluoridate",1]
[null,null,null,null,null,null,null,null,null,null,null,null,null,null,null,null,null,627985,"5-Methylhexyl methylphosphonofluoridate",1]
[null,null,null,null,null,null,null,null,null,null,null,null,null,null,null,null,null,627985,"5-Methylhexyl propylphosphonofluoridate",1]
[null,null,null,null,null,null,null,null,null,null,null,null,null,null,null,null,null,628999,"1-Methyloctyl N,N-dimethylphosphoramidocyanidate",1]
[null,null,null,null,null,null,null,null,null,null,null,null,null,null,null,null,null,628999,"1-Methyloctyl methylphosphonate",1]
[null,null,null,null,null,null,null,null,null,null,null,null,null,null,null,null,null,628999,"Bis(1-methyloctyl) methylphosphonate",1]
[null,null,null,null,null,null,null,null,null,null,null,null,null,null,null,null,null,64175,"Ethyl S-2-N-ethyl-N-isopropylaminoethyl ethylphosphonothiolate",1]
[null,null,null,null,null,null,null,null,null,null,null,null,null,null,null,null,null,64175,"Ethyl S-2-N-ethyl-N-methylaminoethyl ethylphosphonothiolate",1]
[null,null,null,null,null,null,null,null,null,null,null,null,null,null,null,null,null,64175,"Ethyl S-2-N-ethyl-N-propylaminoethyl ethylphosphonothiolate",1]
[null,null,null,null,null,null,null,null,null,null,null,null,null,null,null,null,null,64175,"Ethyl S-2-N-methyl-N-isopropylaminoethyl ethylphosphonothiolate",1]
[null,null,null,null,null,null,null,null,null,null,null,null,null,null,null,null,null,64175,"Ethyl S-2-N-isopropyl-N-propylaminoethyl ethylphosphonothiolate",1]
[null,null,null,null,null,null,null,null,null,null,null,null,null,null,null,null,null,64175,"Ethyl S-2-N-methyl-N-propylaminoethyl ethylphosphonothiolate",1]
[null,null,null,null,null,null,null,null,null,null,null,null,null,null,null,null,null,64175,"Ethyl S-2-dipropylaminoethyl ethylphosphonothiolate",1]
[null,null,null,null,null,null,null,null,null,null,null,null,null,null,null,null,null,64175,"Ethyl 2-diisopropylaminoethyl ethylphosphonite",1]
[null,null,null,null,null,null,null,null,null,null,null,null,null,null,null,null,null,64175,"O-Ethyl ethylphosphonothiolate",1]
[null,null,null,null,null,null,null,null,null,null,null,null,null,null,null,null,null,64175,"Ethyl S-2-N-ethyl-N-isopropylaminoethyl isopropylphosphonothiolate",1]
[null,null,null,null,null,null,null,null,null,null,null,null,null,null,null,null,null,64175,"Ethyl S-2-N-ethyl-N-methylaminoethyl isopropylphosphonothiolate",1]
[null,null,null,null,null,null,null,null,null,null,null,null,null,null,null,null,null,64175,"Ethyl S-2-N-ethyl-N-propylaminoethyl isopropylphosphonothiolate",1]
[null,null,null,null,null,null,null,null,null,null,null,null,null,null,null,null,null,64175,"Ethyl S-2-N-isopropyl-N-methylaminoethyl isopropylphosphonothiolate",1]
[null,null,null,null,null,null,null,null,null,null,null,null,null,null,null,null,null,64175,"Ethyl S-2-N-isopropyl-N-propylaminoethyl isopropylphosphonothiolate",1]
[null,null,null,null,null,null,null,null,null,null,null,null,null,null,null,null,null,64175,"Ethyl S-2-N-methyl-N-propylaminoethyl isopropylphosphonothiolate",1]
[null,null,null,null,null,null,null,null,null,null,null,null,null,null,null,null,null,64175,"Ethyl S-2-dipropylaminoethyl isopropylphosphonothiolate",1]
[null,null,null,null,null,null,null,null,null,null,null,null,null,null,null,null,null,64175,"O-Ethyl O-methyl isopropylphosphonate",1]
[null,null,null,null,null,null,null,null,null,null,null,null,null,null,null,null,null,64175,"Ethyl S-sodium isopropylphosphonothiolate",1]
[null,null,null,null,null,null,null,null,null,null,null,null,null,null,null,null,null,64175,"Diethyl methyl-[14C]-phosphonate",1]
[null,null,null,null,null,null,null,null,null,null,null,null,null,null,null,null,null,64175,"Ethyl methyl-d3-phosphonofluoridate",1]
[null,null,null,null,null,null,null,null,null,null,null,null,null,null,null,null,null,64175,"O-(N,N-dipropylamino)ethyl methylphosphonofluoridate",1]
[null,null,null,null,null,null,null,null,null,null,null,null,null,null,null,null,null,64175,"Ethyl S-2-diisopropylaminoethyl methyl-d3- phosphonothiolate",1]
[null,null,null,null,null,null,null,null,null,null,null,null,null,null,null,null,null,64175,"Ethyl S-2-N-ethyl-N-isopropylaminoethyl methylphosphonothiolate",1]
[null,null,null,null,null,null,null,null,null,null,null,null,null,null,null,null,null,64175,"Ethyl S-2-N-ethyl-N-methylaminoethyl methylphosphonothiolate",1]
[null,null,null,null,null,null,null,null,null,null,null,null,null,null,null,null,null,64175,"Etyhl S-2-N-ethyl-N-propylaminoethyl methylphosphonothiolate",1]
[null,null,null,null,null,null,null,null,null,null,null,null,null,null,null,null,null,64175,"Ethyl S-2-isopropylmethylaminoethyl methylphosphonothiolate",1]
[null,null,null,null,null,null,null,null,null,null,null,null,null,null,null,null,null,64175,"Ethyl S-2-N-isopropyl-N-propylaminoethyl methylphosphonothiolate",1]
[null,null,null,null,null,null,null,null,null,null,null,null,null,null,null,null,null,64175,"Ethyl S-2-diisopropylmethylammoniumethyl methylphosphonothiolate iodide (-)",1]
[null,null,null,null,null,null,null,null,null,null,null,null,null,null,null,null,null,64175,"Ethyl S-2-dimethylisopropylammoniumethyl methylphosphonothiolate iodide",1]
[null,null,null,null,null,null,null,null,null,null,null,null,null,null,null,null,null,64175,"Ethyl S-2N-methyl-N-propylaminoethyl methylphosphonothiolate",1]
[null,null,null,null,null,null,null,null,null,null,null,null,null,null,null,null,null,64175,"Ethyl S-2-dipropylmethylammoniumethyl methylphosphonothiolate iodide",1]
[null,null,null,null,null,null,null,null,null,null,null,null,null,null,null,null,null,64175,"Ethyl 2-dimethylaminoethyl methylphosphonite",1]
[null,null,null,null,null,null,null,null,null,null,null,null,null,null,null,null,null,64175,"Ethyl 2-dipropylaminoethyl methylphosphonite",1]
[null,null,null,null,null,null,null,null,null,null,null,null,null,null,null,null,null,64175,"Ethyl N-methyl-N-(2-hydroxyethyl) methylphosphonoamidate",1]
[null,null,null,null,null,null,null,null,null,null,null,null,null,null,null,null,null,64175,"Ethyl S-ammonium methylphosphonothiolate",1]
[null,null,null,null,null,null,null,null,null,null,null,null,null,null,null,null,null,64175,"O-2-Diisopropylaminoethyl O-ethyl methylphosphonothionate",1]
[null,null,null,null,null,null,null,null,null,null,null,null,null,null,null,null,null,64175,"O-2-Diisopropylammoniumethyl O-ethyl methylphosphonothionate chloride",1]
[null,null,null,null,null,null,null,null,null,null,null,null,null,null,null,null,null,64175,"Ethyl S-2-N-ethyl-N-isopropylaminoethyl propylphosphonothiolate",1]
[null,null,null,null,null,null,null,null,null,null,null,null,null,null,null,null,null,64175,"Ethyl S-2-N-ethyl-N-methylaminoethyl propylphosphonothiolate",1]
[null,null,null,null,null,null,null,null,null,null,null,null,null,null,null,null,null,64175,"Ethyl S-2-N-ethyl-N-propylaminoethyl propylphosphonothiolate",1]
[null,null,null,null,null,null,null,null,null,null,null,null,null,null,null,null,null,64175,"Ethyl S-2-N-isopropyl-N-methylaminoethyl propylphosphonothiolate",1]
[null,null,null,null,null,null,null,null,null,null,null,null,null,null,null,null,null,64175,"Ethyl S-2-isopropylpropylaminoethyl propylphosphonothiolate",1]
[null,null,null,null,null,null,null,null,null,null,null,null,null,null,null,null,null,64175,"Ethyl S-2-N-methyl-N-propylaminoethyl propylphosphonothiolate",1]
[null,null,null,null,null,null,null,null,null,null,null,null,null,null,null,null,null,64175,"O-Ethyl O-sodium propylphosphonothionate",1]
[null,null,null,null,null,null,null,null,null,null,null,null,null,null,null,null,null,66793962,"1,1-Diethyl-2,2-dimethylpropyl N,N- dimethylphosphoramidocyanidate",1]
[null,null,null,null,null,null,null,null,null,null,null,null,null,null,null,null,null,67561,"Methyl S-2-N-ethyl-N-isopropylaminoethyl ethylphosphonothiolate",1]
[null,null,null,null,null,null,null,null,null,null,null,null,null,null,null,null,null,67561,"Methyl S-2-N-ethyl-N-methylaminoethyl ethylphosphonothiolate",1]
[null,null,null,null,null,null,null,null,null,null,null,null,null,null,null,null,null,67561,"Methyl S-2-N-ethyl-N-propylaminoethyl ethylphosphonothiolate",1]
[null,null,null,null,null,null,null,null,null,null,null,null,null,null,null,null,null,67561,"Methyl S-2-N-isopropyl-N-methylaminoethyl ethylphosphonothiolate",1]
[null,null,null,null,null,null,null,null,null,null,null,null,null,null,null,null,null,67561,"Methyl S-2-N-isopropyl-N-propyl ethylphosphonothiolate",1]
[null,null,null,null,null,null,null,null,null,null,null,null,null,null,null,null,null,67561,"Methyl S-2-N-methyl-N-propylaminoethyl ethylphosphonothiolate",1]
[null,null,null,null,null,null,null,null,null,null,null,null,null,null,null,null,null,67561,"Methyl S-2-dipropylaminoethyl ethylphosphonothiolate",1]
[null,null,null,null,null,null,null,null,null,null,null,null,null,null,null,null,null,67561,"Sodium O-ethyl propylphosphonothionate",1]
[null,null,null,null,null,null,null,null,null,null,null,null,null,null,null,null,null,67561,"O-Methyl ethylphosphonothiolate",1]
[null,null,null,null,null,null,null,null,null,null,null,null,null,null,null,null,null,67561,"Methyl S-2-diethylaminoethyl isopropylphosphonothiolate",1]
[null,null,null,null,null,null,null,null,null,null,null,null,null,null,null,null,null,67561,"Methyl S-2-N-ethyl-N-isopropylaminoethyl isopropylphosphonothiolate",1]
[null,null,null,null,null,null,null,null,null,null,null,null,null,null,null,null,null,67561,"Methyl S-2-N-ethyl-N-methylaminoethyl isopropylphosphonothiolate",1]
[null,null,null,null,null,null,null,null,null,null,null,null,null,null,null,null,null,67561,"Methyl S-2-N-ethyl-N-propylaminoethyl isopropylphosphonothiolate",1]
[null,null,null,null,null,null,null,null,null,null,null,null,null,null,null,null,null,67561,"Methyl S-2-N-isopropyl-N-methylaminoethyl isopropylphosphonothiolate",1]
[null,null,null,null,null,null,null,null,null,null,null,null,null,null,null,null,null,67561,"Methyl S-2-N-isopropyl-N-propylaminoethyl isopropylphosphonothiolate",1]
[null,null,null,null,null,null,null,null,null,null,null,null,null,null,null,null,null,67561,"Methyl S-2-dimethylaminoethyl isopropylphosphonothiolate",1]
[null,null,null,null,null,null,null,null,null,null,null,null,null,null,null,null,null,67561,"Methyl S-2-N-methyl-N-propylaminoethyl isopropylphosphonothiolate",1]
[null,null,null,null,null,null,null,null,null,null,null,null,null,null,null,null,null,67561,"Methyl S-2-dipropylaminoethyl isopropylphosphonothiolate",1]
[null,null,null,null,null,null,null,null,null,null,null,null,null,null,null,null,null,67561,"Methyl S-sodium isopropylphosphonothiolate",1]
[null,null,null,null,null,null,null,null,null,null,null,null,null,null,null,null,null,67561,"O-Methyl isopropylphosphonothiolate",1]
[null,null,null,null,null,null,null,null,null,null,null,null,null,null,null,null,null,67561,"Methyl S-2-N-isopropyl-N-propylaminoethyl methylphosphonothiolate",1]
[null,null,null,null,null,null,null,null,null,null,null,null,null,null,null,null,null,67561,"Methyl S-2-N-ethyl-N-methylaminoethyl methylphosphonothiolate",1]
[null,null,null,null,null,null,null,null,null,null,null,null,null,null,null,null,null,67561,"Methyl S-2-N-ethyl-N-propylaminoethyl methylphosphonothiolate",1]
[null,null,null,null,null,null,null,null,null,null,null,null,null,null,null,null,null,67561,"Methyl S-2-N-methyl-N-propylaminoethyl methylphosphonothiolate",1]
[null,null,null,null,null,null,null,null,null,null,null,null,null,null,null,null,null,67561,"Methyl S-2-dipropylaminoethyl methylphosphonothiolate",1]
[null,null,null,null,null,null,null,null,null,null,null,null,null,null,null,null,null,67561,"Methyl 4-methylcyclohexyl methylphosphonate",1]
[null,null,null,null,null,null,null,null,null,null,null,null,null,null,null,null,null,67561,"O,O-dimethyl methylphosphonate-d6",1]
[null,null,null,null,null,null,null,null,null,null,null,null,null,null,null,null,null,67561,"Methyl S-pentyl methylphosphonothiolate",1]
[null,null,null,null,null,null,null,null,null,null,null,null,null,null,null,null,null,67561,"O-Methyl methylphosphonothiolate",1]
[null,null,null,null,null,null,null,null,null,null,null,null,null,null,null,null,null,67561,"Methyl S-2-diethylaminoethyl propylphosphonothiolate",1]
[null,null,null,null,null,null,null,null,null,null,null,null,null,null,null,null,null,67561,"Methyl S-2-diethylmethylammoniumethyl propylphosphonothiolate iodide",1]
[null,null,null,null,null,null,null,null,null,null,null,null,null,null,null,null,null,67561,"Methyl S-2-N-ethyl-N-isopropylaminoethyl propylphosphonothiolate",1]
[null,null,null,null,null,null,null,null,null,null,null,null,null,null,null,null,null,67561,"Methyl S-2-N-ethyl-N-methylaminoethyl propylphosphonothiolate",1]
[null,null,null,null,null,null,null,null,null,null,null,null,null,null,null,null,null,67561,"Methyl S-2-N-ethyl-N-propylaminoethyl propylphosphonothiolate",1]
[null,null,null,null,null,null,null,null,null,null,null,null,null,null,null,null,null,67561,"Methyl S-2-N-isopropyl-N-methylaminoethyl propylphosphonothiolate",1]
[null,null,null,null,null,null,null,null,null,null,null,null,null,null,null,null,null,67561,"Methyl S-2-N-isopropyl-N-propylaminoethyl propylphosphonothiolate",1]
[null,null,null,null,null,null,null,null,null,null,null,null,null,null,null,null,null,67561,"Methyl S-2-dimethylaminoethyl propylphosphonothiolate",1]
[null,null,null,null,null,null,null,null,null,null,null,null,null,null,null,null,null,67561,"Methyl S-2-N-methyl-N-propylaminoethyl propylphosphonothiolate",1]
[null,null,null,null,null,null,null,null,null,null,null,null,null,null,null,null,null,67561,"Methyl S-2-dipropylaminoethyl propylphosphonothiolate",1]
[null,null,null,null,null,null,null,null,null,null,null,null,null,null,null,null,null,67561,"O-Methyl methylphosphonothiolate",1]
[null,null,null,null,null,null,null,null,null,null,null,null,null,null,null,null,null,67630,"Isopropyl S-2-N-ethyl-N-isopropylaminoethyl ethylphosphonothiolate",1]
[null,null,null,null,null,null,null,null,null,null,null,null,null,null,null,null,null,67630,"Isopropyl S-2-N-ethyl-N-methylaminoethyl ethylphosphonothiolate",1]
[null,null,null,null,null,null,null,null,null,null,null,null,null,null,null,null,null,67630,"Isopropyl S-2-N-ethyl-N-propylaminoethyl ethylphosphonothiolate",1]
[null,null,null,null,null,null,null,null,null,null,null,null,null,null,null,null,null,67630,"Isopropyl S-2-diisopropylmethylammoniumethyl ethylphosphonothiolate iodide",1]
[null,null,null,null,null,null,null,null,null,null,null,null,null,null,null,null,null,67630,"Isopropyl S-2-diisopropylmethylammoniumethyl ethylphosphonothiolate iodide (-)",1]
[null,null,null,null,null,null,null,null,null,null,null,null,null,null,null,null,null,67630,"Isopropyl S-2-N-isopropyl-N-methylaminoethyl ethylphosphonothiolate",1]
[null,null,null,null,null,null,null,null,null,null,null,null,null,null,null,null,null,67630,"Isopropyl S-2-N-isopropyl-N-propylaminoethyl ethylphosphonothiolate",1]
[null,null,null,null,null,null,null,null,null,null,null,null,null,null,null,null,null,67630,"Isopropyl propyl ethylphosphonate",1]
[null,null,null,null,null,null,null,null,null,null,null,null,null,null,null,null,null,67630,"Isopropyl S-2-diethylaminoethyl isopropylphosphonothiolate",1]
[null,null,null,null,null,null,null,null,null,null,null,null,null,null,null,null,null,67630,"Isopropyl S-2-N-ethyl-N-isopropylaminoethyl isopropylphosphonothiolate",1]
[null,null,null,null,null,null,null,null,null,null,null,null,null,null,null,null,null,67630,"Isopropyl S-2-N-ethyl-N-methylaminoethyl isopropylphosphonothiolate",1]
[null,null,null,null,null,null,null,null,null,null,null,null,null,null,null,null,null,67630,"Isopropyl S-2-N-ethyl-N-propylaminoethyl isopropylphosphonothiolate",1]
[null,null,null,null,null,null,null,null,null,null,null,null,null,null,null,null,null,67630,"Isopropyl S-2-diisopropylmethylammoniumethyl isopropylphosphonothiolate iodide",1]
[null,null,null,null,null,null,null,null,null,null,null,null,null,null,null,null,null,67630,"Isopropyl S-2-N-methyl-N-isopropylaminoethyl isopropylphosphonothiolate",1]
[null,null,null,null,null,null,null,null,null,null,null,null,null,null,null,null,null,67630,"Isopropyl S-2-N-isopropyl-N-propylaminoethyl isopropylphosphonothiolate",1]
[null,null,null,null,null,null,null,null,null,null,null,null,null,null,null,null,null,67630,"Isopropyl S-2-dimethylaminoethyl isopropylphosphonothiolate",1]
[null,null,null,null,null,null,null,null,null,null,null,null,null,null,null,null,null,67630,"Isopropyl S-2-N-methyl-N-propylaminoethyl isopropylphosphonothiolate",1]
[null,null,null,null,null,null,null,null,null,null,null,null,null,null,null,null,null,67630,"Isopropyl S-2-dipropylmethylammoniumethyl isopropylphosphonothiolate iodide",1]
[null,null,null,null,null,null,null,null,null,null,null,null,null,null,null,null,null,67630,"Isopropyl S-2-dipropylaminoethyl isopropylphosphonothiolate",1]
[null,null,null,null,null,null,null,null,null,null,null,null,null,null,null,null,null,67630,"Isopropyl S-sodium isopropylphosphonothiolate",1]
[null,null,null,null,null,null,null,null,null,null,null,null,null,null,null,null,null,67630,"Isopropyl isopropylphosphinate",1]
[null,null,null,null,null,null,null,null,null,null,null,null,null,null,null,null,null,67630,"Isopropyl isopropylphosphinothionate",1]
[null,null,null,null,null,null,null,null,null,null,null,null,null,null,null,null,null,67630,"Isopropyl S-2-N-ethyl-N-isopropylaminoethyl methylphosphonothiolate",1]
[null,null,null,null,null,null,null,null,null,null,null,null,null,null,null,null,null,67630,"Isopropyl S-2-N-ethyl-N-methylaminoethyl methylphosphonothiolate",1]
[null,null,null,null,null,null,null,null,null,null,null,null,null,null,null,null,null,67630,"Isopropyl S-2-N-ethyl-N-propylaminoethyl methylphosphonothiolate",1]
[null,null,null,null,null,null,null,null,null,null,null,null,null,null,null,null,null,67630,"Isopropyl S-2-N-isopropyl-N-methylaminoethyl methylphosphonothiolate",1]
[null,null,null,null,null,null,null,null,null,null,null,null,null,null,null,null,null,67630,"Isopropyl S-2-N-isopropyl-N-propylaminoethyl methylphosphonothiolate",1]
[null,null,null,null,null,null,null,null,null,null,null,null,null,null,null,null,null,67630,"Isopropyl S-2-N-methyl-N-propylaminoethyl methylphosphonothiolate",1]
[null,null,null,null,null,null,null,null,null,null,null,null,null,null,null,null,null,67630,"Isopropyl N-methyl-N-(2-hydroxyethyl) methylphosphonoamidate",1]
[null,null,null,null,null,null,null,null,null,null,null,null,null,null,null,null,null,67630,"Isopropyl S-2-N-ethyl-N-isopropylaminoethyl propylphosphonothiolate",1]
[null,null,null,null,null,null,null,null,null,null,null,null,null,null,null,null,null,67630,"Isopropyl S-2-N-ethyl-N-methylaminoethyl propylphosphonothiolate",1]
[null,null,null,null,null,null,null,null,null,null,null,null,null,null,null,null,null,67630,"Isopropyl S-2-N-ethyl-N-propylaminoethyl propylphosphonothiolate",1]
[null,null,null,null,null,null,null,null,null,null,null,null,null,null,null,null,null,67630,"Isopropyl S-2-diisopropylaminoethyl propylphosphonothiolate",1]
[null,null,null,null,null,null,null,null,null,null,null,null,null,null,null,null,null,67630,"Isopropyl S-2-N-isopropyl-N-methylaminoethyl propylphosphonothiolate",1]
[null,null,null,null,null,null,null,null,null,null,null,null,null,null,null,null,null,67630,"Isopropyl S-2-N-isopropyl-N-propylaminoethyl propylphosphonothiolate",1]
[null,null,null,null,null,null,null,null,null,null,null,null,null,null,null,null,null,67630,"Isopropyl S-2-dimethylaminoethyl propylphosphonothiolate",1]
[null,null,null,null,null,null,null,null,null,null,null,null,null,null,null,null,null,67630,"Isopropyl S-2-N-methyl-N-propylaminoethyl propylphosphonothiolate",1]
[null,null,null,null,null,null,null,null,null,null,null,null,null,null,null,null,null,67630,"Isopropyl S-2-dipropylaminoethyl propylphosphonothiolate",1]
[null,null,null,null,null,null,null,null,null,null,null,null,null,null,null,null,null,67630,"Isopropyl S-sodium propylphosphonothiolate",1]
[null,null,null,null,null,null,null,null,null,null,null,null,null,null,null,null,null,69542912,"2,2-Dimethylcyclohexyl methylphosphonofluoridate",1]
[null,null,null,null,null,null,null,null,null,null,null,null,null,null,null,null,null,696716,"Cyclooctyl S-sodium propylphosphonothiolate",1]
[null,null,null,null,null,null,null,null,null,null,null,null,null,null,null,null,null,696719,"Cyclooctyl S-2-diisopropylaminoethyl isopropylphosphonothiolate",1]
[null,null,null,null,null,null,null,null,null,null,null,null,null,null,null,null,null,696719,"Cyclooctyl S-sodium isopropylphosphonothiolate",1]
[null,null,null,null,null,null,null,null,null,null,null,null,null,null,null,null,null,71238,"Propyl S-2-N-ethyl-N-isopropylaminoethyl ethylphosphonothiolate",1]
[null,null,null,null,null,null,null,null,null,null,null,null,null,null,null,null,null,71238,"Propyl S-2-N-ethyl-N-methylaminoethyl ethylphosphonothiolate",1]
[null,null,null,null,null,null,null,null,null,null,null,null,null,null,null,null,null,71238,"Propyl S-2-N-ethyl-N-propylaminoethyl ethylphosphonothiolate",1]
[null,null,null,null,null,null,null,null,null,null,null,null,null,null,null,null,null,71238,"Propyl S-2-N-isopropyl-N-methylaminoethyl ethylphosphonothiolate",1]
[null,null,null,null,null,null,null,null,null,null,null,null,null,null,null,null,null,71238,"Propyl S-2-N-isopropyl-N-propylaminoethyl ethylphosphonothiolate",1]
[null,null,null,null,null,null,null,null,null,null,null,null,null,null,null,null,null,71238,"Propyl S-2-dimethylaminoethyl ethylphosphonothiolate",1]
[null,null,null,null,null,null,null,null,null,null,null,null,null,null,null,null,null,71238,"Propyl S-2-N-methyl-N-propylaminoethyl ethylphosphonothiolate",1]
[null,null,null,null,null,null,null,null,null,null,null,null,null,null,null,null,null,71238,"Propyl S-sodium ethylphosphonothiolate",1]
[null,null,null,null,null,null,null,null,null,null,null,null,null,null,null,null,null,71238,"Propyl S-2-diethylaminoethyl isopropylphosphonothiolate",1]
[null,null,null,null,null,null,null,null,null,null,null,null,null,null,null,null,null,71238,"Propyl S-2-N-ethyl-N-isopropylaminoethyl isopropylphosphonothiolate",1]
[null,null,null,null,null,null,null,null,null,null,null,null,null,null,null,null,null,71238,"Propyl S-2-N-ethyl-N-methylaminoethyl isopropylphosphonothiolate",1]
[null,null,null,null,null,null,null,null,null,null,null,null,null,null,null,null,null,71238,"Propyl S-2-N-ethyl-N-propylaminoethyl isopropylphosphonothiolate",1]
[null,null,null,null,null,null,null,null,null,null,null,null,null,null,null,null,null,71238,"Propyl S-2-diisopropylaminoethyl isopropylphosphonothiolate",1]
[null,null,null,null,null,null,null,null,null,null,null,null,null,null,null,null,null,71238,"Propyl S-2-N-isopropyl-N-methylaminoethyl isopropylphosphonothiolate",1]
[null,null,null,null,null,null,null,null,null,null,null,null,null,null,null,null,null,71238,"Propyl S-2-N-isopropyl-N-propylaminoethyl isopropylphosphonothiolate",1]
[null,null,null,null,null,null,null,null,null,null,null,null,null,null,null,null,null,71238,"Propyl S-2-N-methyl-N-propylaminoethyl isopropylphosphonothiolate",1]
[null,null,null,null,null,null,null,null,null,null,null,null,null,null,null,null,null,71238,"Propyl S-2-dipropylaminoethyl isopropylphosphonothiolate",1]
[null,null,null,null,null,null,null,null,null,null,null,null,null,null,null,null,null,71238,"Propyl S-sodium isopropylphosphonothiolate",1]
[null,null,null,null,null,null,null,null,null,null,null,null,null,null,null,null,null,71238,"Propyl S-2-diethylaminoethyl methylphosphonothiolate",1]
[null,null,null,null,null,null,null,null,null,null,null,null,null,null,null,null,null,71238,"Propyl S-2-N-ethyl-N-isopropylaminoethyl methylphosphonothiolate",1]
[null,null,null,null,null,null,null,null,null,null,null,null,null,null,null,null,null,71238,"Propyl S-2-N-ethyl-N-methylaminoethyl methylphosphonothiolate",1]
[null,null,null,null,null,null,null,null,null,null,null,null,null,null,null,null,null,71238,"Propyl S-2-N-ethyl-N-propylaminoethyl methylphosphonothiolate",1]
[null,null,null,null,null,null,null,null,null,null,null,null,null,null,null,null,null,71238,"Propyl S-2-N-isopropyl-N-methylaminoethyl methylphosphonothiolate",1]
[null,null,null,null,null,null,null,null,null,null,null,null,null,null,null,null,null,71238,"Propyl S-2-N-isopropyl-N-propylaminoethyl methylphosphonothiolate",1]
[null,null,null,null,null,null,null,null,null,null,null,null,null,null,null,null,null,71238,"Propyl S-2-N-methyl-N-propylaminoethyl methylphosphonothiolate",1]
[null,null,null,null,null,null,null,null,null,null,null,null,null,null,null,null,null,71238,"Propyl S-dicyclohexylammonium methylphosphonothiolate",1]
[null,null,null,null,null,null,null,null,null,null,null,null,null,null,null,null,null,71238,"O-Propyl methylphosphonothiolate",1]
[null,null,null,null,null,null,null,null,null,null,null,null,null,null,null,null,null,71238,"Propyl S-2-N-ethyl-N-isopropylaminoethyl propylphosphonothiolate",1]
[null,null,null,null,null,null,null,null,null,null,null,null,null,null,null,null,null,71238,"Propyl S-2-N-ethyl-N-methylaminoethyl propylphosphonothiolate",1]
[null,null,null,null,null,null,null,null,null,null,null,null,null,null,null,null,null,71238,"Propyl S-2-N-ethyl-N-propylaminoethyl propylphosphonothiolate",1]
[null,null,null,null,null,null,null,null,null,null,null,null,null,null,null,null,null,71238,"Propyl S-2-N-isopropyl-N-methylaminoethyl propylphosphonothiolate",1]
[null,null,null,null,null,null,null,null,null,null,null,null,null,null,null,null,null,71238,"Propyl S-2-N-isopropyl-N-propylaminoethyl propylphosphonothiolate",1]
[null,null,null,null,null,null,null,null,null,null,null,null,null,null,null,null,null,71238,"O-Propyl S-2-N-methyl-N-propylaminoethyl propylphosphonothiolate",1]
[null,null,null,null,null,null,null,null,null,null,null,null,null,null,null,null,null,71238,"Propyl S-sodium propylphosphonothiolate",1]
[null,null,null,null,null,null,null,null,null,null,null,null,null,null,null,null,null,71363,"Butyl S-2-N-ethyl-N-isopropylaminoethyl ethylphosphonothiolate",1]
[null,null,null,null,null,null,null,null,null,null,null,null,null,null,null,null,null,71363,"Butyl S-2-N-ethyl-N-methylaminoethyl ethylphosphonothiolate",1]
[null,null,null,null,null,null,null,null,null,null,null,null,null,null,null,null,null,71363,"Butyl S-2-N-ethyl-N-propylaminoethyl ethylphosphonothiolate",1]
[null,null,null,null,null,null,null,null,null,null,null,null,null,null,null,null,null,71363,"Butyl S-2-N-methyl-N-isopropylaminoethyl ethylphosphonothiolate",1]
[null,null,null,null,null,null,null,null,null,null,null,null,null,null,null,null,null,71363,"Butyl S-2-N-isopropyl-N-propylaminoethyl ethylphosphonothiolate",1]
[null,null,null,null,null,null,null,null,null,null,null,null,null,null,null,null,null,71363,"Butyl S-2-N-methyl-N-propylaminoethyl ethylphosphonothiolate",1]
[null,null,null,null,null,null,null,null,null,null,null,null,null,null,null,null,null,71363,"Butyl S-2-N-ethyl-N-isopropylaminoethyl isopropylphosphonothiolate",1]
[null,null,null,null,null,null,null,null,null,null,null,null,null,null,null,null,null,71363,"Butyl S-2-N-ethyl-N-methylaminoethyl isopropylphosphonothiolate",1]
[null,null,null,null,null,null,null,null,null,null,null,null,null,null,null,null,null,71363,"Butyl S-2-N-ethyl-N-propylaminoethyl isopropylphosphonothiolate",1]
[null,null,null,null,null,null,null,null,null,null,null,null,null,null,null,null,null,71363,"Butyl S-2-N-isopropyl-N-methylaminoethyl isopropylphosphonothiolate",1]
[null,null,null,null,null,null,null,null,null,null,null,null,null,null,null,null,null,71363,"Butyl S-2-N-isopropyl-N-propylaminoethyl isopropylphosphonothiolate",1]
[null,null,null,null,null,null,null,null,null,null,null,null,null,null,null,null,null,71363,"Butyl S-2-dimethylaminoethyl isopropylphosphonothiolate",1]
[null,null,null,null,null,null,null,null,null,null,null,null,null,null,null,null,null,71363,"Butyl S-2-N-methyl-N-propylaminoethyl isopropylphosphonothiolate",1]
[null,null,null,null,null,null,null,null,null,null,null,null,null,null,null,null,null,71363,"Butyl S-2-dipropylaminoethyl isopropylphosphonothiolate",1]
[null,null,null,null,null,null,null,null,null,null,null,null,null,null,null,null,null,71363,"O-Butyl O-methyl isopropylphosphonate",1]
[null,null,null,null,null,null,null,null,null,null,null,null,null,null,null,null,null,71363,"Butyl S-sodium isopropylphosphonothiolate",1]
[null,null,null,null,null,null,null,null,null,null,null,null,null,null,null,null,null,71363,"Butyl S-2-N-ethyl-N-isopropylaminoethyl methylphosphonothiolate",1]
[null,null,null,null,null,null,null,null,null,null,null,null,null,null,null,null,null,71363,"Butyl S-2-N-ethyl-N-methylaminoethyl methylphosphonothiolate",1]
[null,null,null,null,null,null,null,null,null,null,null,null,null,null,null,null,null,71363,"Butyl S-2-N-ethyl-N-propylaminoethyl methylphosphonothiolate",1]
[null,null,null,null,null,null,null,null,null,null,null,null,null,null,null,null,null,71363,"Butyl S-2-N-isopropyl-N-methylaminoethyl methylphosphonothiolate",1]
[null,null,null,null,null,null,null,null,null,null,null,null,null,null,null,null,null,71363,"Butyl S-2-N-isopropyl-N-propylaminoethyl methylphosphonothiolate",1]
[null,null,null,null,null,null,null,null,null,null,null,null,null,null,null,null,null,71363,"Butyl S-2-N-methyl-N-propylaminoethyl methylphosphonothiolate",1]
[null,null,null,null,null,null,null,null,null,null,null,null,null,null,null,null,null,71363,"Butyl S-ammonium methylphosphonothiolate",1]
[null,null,null,null,null,null,null,null,null,null,null,null,null,null,null,null,null,71363,"O-Butyl methylphosphonothionate",1]
[null,null,null,null,null,null,null,null,null,null,null,null,null,null,null,null,null,71363,"Butyl S-2-N-ethyl-N-isopropylaminoethyl propylphosphonothiolate",1]
[null,null,null,null,null,null,null,null,null,null,null,null,null,null,null,null,null,71363,"Butyl S-2-N-ethyl-N-methylaminoethyl propylphosphonothiolate",1]
[null,null,null,null,null,null,null,null,null,null,null,null,null,null,null,null,null,71363,"Butyl S-2-N-ethyl-N-propylaminoethyl propylphosphonothiolate",1]
[null,null,null,null,null,null,null,null,null,null,null,null,null,null,null,null,null,71363,"Butyl S-2-N-isopropyl-N-methylaminoethyl propylphosphonothiolate",1]
[null,null,null,null,null,null,null,null,null,null,null,null,null,null,null,null,null,71363,"Butyl S-2-N-isopropyl-N-propylaminoethyl propylphosphonothiolate",1]
[null,null,null,null,null,null,null,null,null,null,null,null,null,null,null,null,null,71363,"Butyl S-2-dimethylaminoethyl propylphosphonothiolate",1]
[null,null,null,null,null,null,null,null,null,null,null,null,null,null,null,null,null,71363,"Butyl S-2-dipropylaminoethyl propylphosphonothiolate",1]
[null,null,null,null,null,null,null,null,null,null,null,null,null,null,null,null,null,71363,"Butyl S-sodium propylphosphonothiolate",1]
[null,null,null,null,null,null,null,null,null,null,null,null,null,null,null,null,null,71410,"Pentyl N,N-diethylphosphoramidocyanidate",1]
[null,null,null,null,null,null,null,null,null,null,null,null,null,null,null,null,null,71410,"Pentyl N-methyl-N-propylphosphoramidocyanidate",1]
[null,null,null,null,null,null,null,null,null,null,null,null,null,null,null,null,null,71410,"O-Pentyl methylphosphonothionate",1]
[null,null,null,null,null,null,null,null,null,null,null,null,null,null,null,null,null,71410,"Pentyl S-2-dipropylaminoethyl propylphosphonothiolate",1]
[null,null,null,null,null,null,null,null,null,null,null,null,null,null,null,null,null,75650,"tert-Butyl N,N-dimethylphosphoramidocyanidate",1]
[null,null,null,null,null,null,null,null,null,null,null,null,null,null,null,null,null,75650,"tert-Butyl ethylphosphonofluoridate",1]
[null,null,null,null,null,null,null,null,null,null,null,null,null,null,null,null,null,75650,"tert-Butyl isopropylphosphonofluoridate",1]
[null,null,null,null,null,null,null,null,null,null,null,null,null,null,null,null,null,75650,"tert-Butyl S-2-diisopropylaminoethyl isopropylphosphonothiolate",1]
[null,null,null,null,null,null,null,null,null,null,null,null,null,null,null,null,null,75650,"tert-Butyl S-2-diisopropylaminoethyl methylphosphonothiolate",1]
[null,null,null,null,null,null,null,null,null,null,null,null,null,null,null,null,null,75650,"tert-Butyl S-2-dimethylaminoethyl methylphosphonothiolate",1]
[null,null,null,null,null,null,null,null,null,null,null,null,null,null,null,null,null,75650,"tert-Butyl S-2-dipropylaminoethyl methylphosphonothiolate",1]
[null,null,null,null,null,null,null,null,null,null,null,null,null,null,null,null,null,756796,"Dimethyl-d6 methylphosphonate",1]
[null,null,null,null,null,null,null,null,null,null,null,null,null,null,null,null,null,75843,"2,2-Dimethylpropyl N,N- dimethylphosphoramidocyanidate",1]
[null,null,null,null,null,null,null,null,null,null,null,null,null,null,null,null,null,75843,"2,2-Dimethylpropyl S-2-dipropylaminoethyl isopropylphosphonothiolate",1]
[null,null,null,null,null,null,null,null,null,null,null,null,null,null,null,null,null,75843,"2,2-Dimethylpropyl S-2-diisopropylaminoethyl methylphosphonothiolate (-)",1]
[null,null,null,null,null,null,null,null,null,null,null,null,null,null,null,null,null,75843,"2,2-Dimethylpropyl S-2-dipropylaminoethyl methylphosphonothiolate",1]
[null,null,null,null,null,null,null,null,null,null,null,null,null,null,null,null,null,75843,"2,2-Dimethylpropyl S-dicyclohexylammonium methylphosphonothiolate",1]
[null,null,null,null,null,null,null,null,null,null,null,null,null,null,null,null,null,75843,"2,2-Dimethylpropyl S-(N-ethylbenzenaminium) methylphosphonothiolate (-)",1]
[null,null,null,null,null,null,null,null,null,null,null,null,null,null,null,null,null,75843,"2,2-Dimethylpropyl S-sodium methylphosphonothiolate",1]
[null,null,null,null,null,null,null,null,null,null,null,null,null,null,null,null,null,75843,"N-Dicyclohexylammonium O-2,2-dimethylpropyl methylphosphonothionate",1]
[null,null,null,null,null,null,null,null,null,null,null,null,null,null,null,null,null,75843,"N-Ethylbenzenaminium O-2,2-dimethylpropyl methylphosphonothionate",1]
[null,null,null,null,null,null,null,null,null,null,null,null,null,null,null,null,null,75843,"O-2,2-Dimethylpropyl O-sodium methylphosphonothionate",1]
[null,null,null,null,null,null,null,null,null,null,null,null,null,null,null,null,null,75843,"2,2-Dimethylpropyl S-2-dipropylaminoethyl propylphosphonothiolate",1]
[null,null,null,null,null,null,null,null,null,null,null,null,null,null,null,null,null,75854,"1,1-Dimethylpropyl N,N- dimethylphosphoramidocyanidate",1]
[null,null,null,null,null,null,null,null,null,null,null,null,null,null,null,null,null,765424,"1-Cyclopropylethyl methylphosphonofluoridate",1]
[null,null,null,null,null,null,null,null,null,null,null,null,null,null,null,null,null,765424,"1-Cyclopropylethyl propylphosphonofluoridate",1]
[null,null,null,null,null,null,null,null,null,null,null,null,null,null,null,null,null,766007,"2-Cyclopentylethyl methylphosphonofluoridate",1]
[null,null,null,null,null,null,null,null,null,null,null,null,null,null,null,null,null,76650,"O-tert-Butyl methylmethylphosphonate",1]
[null,null,null,null,null,null,null,null,null,null,null,null,null,null,null,null,null,767055,"3-Cyclopentylpropyl N,N-diethylphosphoramidocyanidate",1]
[null,null,null,null,null,null,null,null,null,null,null,null,null,null,null,null,null,767055,"3- Cyclopentylpropyl N,N- diisopropylphosphoramidocyanidate",1]
[null,null,null,null,null,null,null,null,null,null,null,null,null,null,null,null,null,767055,"3-Cyclopentylpropyl N,N- dimethylphosphoramidocyanidate",1]
[null,null,null,null,null,null,null,null,null,null,null,null,null,null,null,null,null,767055,"3-Cyclopentylpropyl N,N- dipropylphosphoramidocyanidate",1]
[null,null,null,null,null,null,null,null,null,null,null,null,null,null,null,null,null,767055,"3-Cyclopentylpropyl isopropylphosphonofluoridate",1]
[null,null,null,null,null,null,null,null,null,null,null,null,null,null,null,null,null,767055,"3-Cyclopentylpropyl methylphosphonofluoridate",1]
[null,null,null,null,null,null,null,null,null,null,null,null,null,null,null,null,null,767055,"3-Cyclopentylpropyl S-2-diethylaminoethyl methylphosphonothiolate",1]
[null,null,null,null,null,null,null,null,null,null,null,null,null,null,null,null,null,767055,"3-Cyclopentylpropyl propylphosphonofluoridate",1]
[null,null,null,null,null,null,null,null,null,null,null,null,null,null,null,null,null,77747,"1-Ethyl-1-methylpropyl N,N- dimethylphosphoramidocyanidate",1]
[null,null,null,null,null,null,null,null,null,null,null,null,null,null,null,null,null,77747,"1-Ethyl-1-methylpropyl pinacolyl methylphosphonate",1]
[null,null,null,null,null,null,null,null,null,null,null,null,null,null,null,null,null,78535,"O,O-Diethyl S-2-diethylaminoethyl phosphorothiolate iodoethane",1]
[null,null,null,null,null,null,null,null,null,null,null,null,null,null,null,null,null,78831,"Isobutyl S-2-diethylmethylammoniumethyl ethylphosphonothiolate iodide",1]
[null,null,null,null,null,null,null,null,null,null,null,null,null,null,null,null,null,78831,"Isobutyl S-2-N-ethyl-N-isopropylaminoethyl ethylphosphonothiolate",1]
[null,null,null,null,null,null,null,null,null,null,null,null,null,null,null,null,null,78831,"Isobutyl S-2 N-ethyl-N-methylaminoethyl ethylphosphonothiolate",1]
[null,null,null,null,null,null,null,null,null,null,null,null,null,null,null,null,null,78831,"Isobutyl S-2-N-ethyl-N-propylaminoethyl ethylphosphonothiolate",1]
[null,null,null,null,null,null,null,null,null,null,null,null,null,null,null,null,null,78831,"Isobutyl S-2-N-methyl-N-isopropylaminoethyl ethylphosphonothiolate",1]
[null,null,null,null,null,null,null,null,null,null,null,null,null,null,null,null,null,78831,"Isobutyl S-2-N-isopropyl-N-propylaminoethyl ethylphosphonothiolate",1]
[null,null,null,null,null,null,null,null,null,null,null,null,null,null,null,null,null,78831,"Isobutyl S-2-N-methyl-N-propylaminoethyl ethylphosphonothiolate",1]
[null,null,null,null,null,null,null,null,null,null,null,null,null,null,null,null,null,78831,"O-Isobutyl ethylphosphinothionate",1]
[null,null,null,null,null,null,null,null,null,null,null,null,null,null,null,null,null,78831,"Isobutyl S-2-N-ethyl-N-isopropylaminoethyl isopropylphosphonothiolate",1]
[null,null,null,null,null,null,null,null,null,null,null,null,null,null,null,null,null,78831,"Isobutyl S-2-N-ethyl-N-methylaminoethyl isopropylphosphonothiolate",1]
[null,null,null,null,null,null,null,null,null,null,null,null,null,null,null,null,null,78831,"Isobutyl S-2-N-ethyl-N-propylaminoethyl isopropylphosphonothiolate",1]
[null,null,null,null,null,null,null,null,null,null,null,null,null,null,null,null,null,78831,"Isobutyl S-2-diisopropylaminoethyl isopropylphosphonothiolate",1]
[null,null,null,null,null,null,null,null,null,null,null,null,null,null,null,null,null,78831,"Isobutyl S-2-N-isopropyl-N-methylaminoethyl isopropyl phosphonothiolate",1]
[null,null,null,null,null,null,null,null,null,null,null,null,null,null,null,null,null,78831,"Isobutyl S-2-N-isopropyl-N-propylaminoethyl isopropylphosphonothiolate",1]
[null,null,null,null,null,null,null,null,null,null,null,null,null,null,null,null,null,78831,"Isobutyl S-2-dimethylaminoethyl isopropylphosphonothiolate",1]
[null,null,null,null,null,null,null,null,null,null,null,null,null,null,null,null,null,78831,"Isobutyl S-2-N-methyl-N-propylaminoethyl isopropylphosphonothiolate",1]
[null,null,null,null,null,null,null,null,null,null,null,null,null,null,null,null,null,78831,"Isobutyl S-2-dipropylaminoethyl isopropylphosphonothiolate",1]
[null,null,null,null,null,null,null,null,null,null,null,null,null,null,null,null,null,78831,"Isobutyl S-sodium isopropylphosphonothiolate",1]
[null,null,null,null,null,null,null,null,null,null,null,null,null,null,null,null,null,78831,"Isobutyl S-2-diethylammoniumethyl methylphosphonothiolate chloride",1]
[null,null,null,null,null,null,null,null,null,null,null,null,null,null,null,null,null,78831,"Isobutyl S-2-diethylmethylammoniumethyl methylphosphonothiolate iodide",1]
[null,null,null,null,null,null,null,null,null,null,null,null,null,null,null,null,null,78831,"Isobutyl S-2-N-ethyl-N-isopropylaminoethyl methylphosphonothiolate",1]
[null,null,null,null,null,null,null,null,null,null,null,null,null,null,null,null,null,78831,"Isobutyl S-2-N-ethyl-N-propylaminoethyl methylphosphonothiolate",1]
[null,null,null,null,null,null,null,null,null,null,null,null,null,null,null,null,null,78831,"Isobutyl S-2-N-isopropyl-N-methylaminoethyl methylphosphonothiolate",1]
[null,null,null,null,null,null,null,null,null,null,null,null,null,null,null,null,null,78831,"Isobutyl S-2-N-isopropyl-N-propylaminoethyl methylphosphonothiolate",1]
[null,null,null,null,null,null,null,null,null,null,null,null,null,null,null,null,null,78831,"Isobutyl S-2-N-methyl-N-propylaminoethyl methylphosphonothiolate",1]
[null,null,null,null,null,null,null,null,null,null,null,null,null,null,null,null,null,78831,"(R)-Isobutyl methyl methylphosphonate",1]
[null,null,null,null,null,null,null,null,null,null,null,null,null,null,null,null,null,78831,"Isobutyl N-methyl-N-(2-hydroxyethyl) methylphosphonoamidate",1]
[null,null,null,null,null,null,null,null,null,null,null,null,null,null,null,null,null,78831,"Isobutyl S-ammonium methylphosphonothiolate",1]
[null,null,null,null,null,null,null,null,null,null,null,null,null,null,null,null,null,78831,"Isobutyl S-2-N-ethyl-N-isopropylaminoethyl propylphosphonothiolate",1]
[null,null,null,null,null,null,null,null,null,null,null,null,null,null,null,null,null,78831,"Isobutyl S-2-N-ethyl-N-methylaminoethyl propylphosphonothiolate",1]
[null,null,null,null,null,null,null,null,null,null,null,null,null,null,null,null,null,78831,"Isobutyl S-2-N-ethyl-N-propylaminoethyl propylphosphonothiolate",1]
[null,null,null,null,null,null,null,null,null,null,null,null,null,null,null,null,null,78831,"Isobutyl S-2-diisopropylaminoethyl propylphosphonothiolate",1]
[null,null,null,null,null,null,null,null,null,null,null,null,null,null,null,null,null,78831,"Isobutyl S-2-N-isopropyl-N-methylaminoethyl propylphosphonothiolate",1]
[null,null,null,null,null,null,null,null,null,null,null,null,null,null,null,null,null,78831,"Isobutyl S-2-N-isopropyl-N-propylaminoethyl propylphosphonothiolate",1]
[null,null,null,null,null,null,null,null,null,null,null,null,null,null,null,null,null,78831,"Isobutyl S-2-dimethylaminoethyl propylphosphonothiolate",1]
[null,null,null,null,null,null,null,null,null,null,null,null,null,null,null,null,null,78831,"Isobutyl S-2-N-methyl-N-propylaminoethyl propylphosphonothiolate",1]
[null,null,null,null,null,null,null,null,null,null,null,null,null,null,null,null,null,78831,"Isobutyl S-2-dipropylaminoethyl propylphosphonothiolate",1]
[null,null,null,null,null,null,null,null,null,null,null,null,null,null,null,null,null,78831,"Isobutyl S-sodium propylphosphonothiolate",1]
[null,null,null,null,null,null,null,null,null,null,null,null,null,null,null,null,null,78922,"sec-Butyl N-ethyl-N-propylphosphoramidocyanidate",1]
[null,null,null,null,null,null,null,null,null,null,null,null,null,null,null,null,null,78922,"sec-Butyl S-2-N-ethyl-N-isopropylaminoethyl ethylphosphonothiolate",1]
[null,null,null,null,null,null,null,null,null,null,null,null,null,null,null,null,null,78922,"sec-Butyl S-2-N-ethyl-N-methylaminoethyl ethylphosphonothiolate",1]
[null,null,null,null,null,null,null,null,null,null,null,null,null,null,null,null,null,78922,"sec-Butyl S-2-N-ethyl-N-propylaminoethyl ethylphosphonothiolate",1]
[null,null,null,null,null,null,null,null,null,null,null,null,null,null,null,null,null,78922,"sec-Butyl S-2-N-isopropyl-N-methylaminoethyl ethylphosphonothiolate",1]
[null,null,null,null,null,null,null,null,null,null,null,null,null,null,null,null,null,78922,"sec-Butyl S-2-N-isopropyl-N-propylaminoethyl ethylphosphonothiolate",1]
[null,null,null,null,null,null,null,null,null,null,null,null,null,null,null,null,null,78922,"sec-Butyl S-2-N-methyl-N-propylaminoethyl ethylphosphonothiolate",1]
[null,null,null,null,null,null,null,null,null,null,null,null,null,null,null,null,null,78922,"sec-butyl S-2-N-ethyl-N-isopropylaminoethyl isopropylphosphonothiolate",1]
[null,null,null,null,null,null,null,null,null,null,null,null,null,null,null,null,null,78922,"sec-Butyl S-2-N-ethyl-N-methylaminoethyl isopropylphosphonothiolate",1]
[null,null,null,null,null,null,null,null,null,null,null,null,null,null,null,null,null,78922,"sec-Butyl S-2-N-ethyl-N-propylaminoethyl isopropylphosphonothiolate",1]
[null,null,null,null,null,null,null,null,null,null,null,null,null,null,null,null,null,78922,"sec-Butyl S-2-N-isopropyl-N-methylaminoethyl isopropylphosphonothiolate",1]
[null,null,null,null,null,null,null,null,null,null,null,null,null,null,null,null,null,78922,"sec-Butyl S-2-N-isopropyl-N-propylaminoethyl isopropylphosphonothiolate",1]
[null,null,null,null,null,null,null,null,null,null,null,null,null,null,null,null,null,78922,"sec-Butyl S-2-dimethylaminoethyl isopropylphosphonothiolate",1]
[null,null,null,null,null,null,null,null,null,null,null,null,null,null,null,null,null,78922,"sec-Butyl S-2-N-methyl-N-propylaminoethyl isopropylphosphonothiolate",1]
[null,null,null,null,null,null,null,null,null,null,null,null,null,null,null,null,null,78922,"sec-Butyl S-2-dipropylaminoethyl isopropylphosphonothiolate",1]
[null,null,null,null,null,null,null,null,null,null,null,null,null,null,null,null,null,78922,"sec-Butyl S-sodium isopropylphosphonothiolate",1]
[null,null,null,null,null,null,null,null,null,null,null,null,null,null,null,null,null,78922,"Sec-Butyl S-2-N-ethyl-N-isopropylaminoethyl methylphosphonothiolate",1]
[null,null,null,null,null,null,null,null,null,null,null,null,null,null,null,null,null,78922,"sec-Butyl S-2-N-ethyl-N-methylaminoethyl methylphosphonothiolate",1]
[null,null,null,null,null,null,null,null,null,null,null,null,null,null,null,null,null,78922,"sec-Butyl S-2-N-ethyl-N-propylaminoethyl methylphosphonothiolate",1]
[null,null,null,null,null,null,null,null,null,null,null,null,null,null,null,null,null,78922,"sec-Butyl S-2-N-isopropyl-N-methylaminoethyl methylphosphonothiolate",1]
[null,null,null,null,null,null,null,null,null,null,null,null,null,null,null,null,null,78922,"sec-Butyl S-2-N-isopropyl-N-propylaminoethyl methylphosphonothiolate",1]
[null,null,null,null,null,null,null,null,null,null,null,null,null,null,null,null,null,78922,"sec-Butyl S-2-N-methyl-N-propylaminoethyl methylphosphonothiolate",1]
[null,null,null,null,null,null,null,null,null,null,null,null,null,null,null,null,null,78922,"sec-Butyl S-2-dipropylaminoethyl methylphosphonothiolate",1]
[null,null,null,null,null,null,null,null,null,null,null,null,null,null,null,null,null,78922,"sec-Butyl methylphosphonate",1]
[null,null,null,null,null,null,null,null,null,null,null,null,null,null,null,null,null,78922,"Bis(1-methylpropyl) ethylphosphonate",1]
[null,null,null,null,null,null,null,null,null,null,null,null,null,null,null,null,null,78922,"sec-Butyl S-sodium methylylphosphonothiolate",1]
[null,null,null,null,null,null,null,null,null,null,null,null,null,null,null,null,null,78922,"O-(1-Methylpropyl) methylphosphonothionate",1]
[null,null,null,null,null,null,null,null,null,null,null,null,null,null,null,null,null,78922,"O,O-Bis(1-methylpropyl) methylphosphonothionate",1]
[null,null,null,null,null,null,null,null,null,null,null,null,null,null,null,null,null,78922,"sec-Butyl S-2-N-ethyl-N-isopropylaminoethyl propylphosphonothiolate",1]
[null,null,null,null,null,null,null,null,null,null,null,null,null,null,null,null,null,78922,"Sec-Butyl S-2-N-ethyl-N-methylaminoethyl propylphosphonothiolate",1]
[null,null,null,null,null,null,null,null,null,null,null,null,null,null,null,null,null,78922,"Sec-butyl S-2-N-ethyl-N-propylaminoethyl propylphosphonothiolate",1]
[null,null,null,null,null,null,null,null,null,null,null,null,null,null,null,null,null,78922,"sec-Butyl S-2-N-isopropyl-N-methylaminoethyl propylphosphonothiolate",1]
[null,null,null,null,null,null,null,null,null,null,null,null,null,null,null,null,null,78922,"sec-Butyl S-2-N-isopropyl-N-propylaminoethyl propylphosphonothiolate",1]
[null,null,null,null,null,null,null,null,null,null,null,null,null,null,null,null,null,78922,"sec-Butyl S-2-dimethylaminoethyl propylphosphonothiolate",1]
[null,null,null,null,null,null,null,null,null,null,null,null,null,null,null,null,null,78922,"sec-Butyl S-2-N-methyl-N-propylaminoethyl propylphosphonothiolate",1]
[null,null,null,null,null,null,null,null,null,null,null,null,null,null,null,null,null,78922,"sec-Butyl S-2-dipropylaminoethyl propylphosphonothiolate",1]
[null,null,null,null,null,null,null,null,null,null,null,null,null,null,null,null,null,78922,"sec-Butyl S-sodium propylphosphonothiolate",1]
[null,null,null,null,null,null,null,null,null,null,null,null,null,null,null,null,null,89781,"2- Isopropyl-5-methylcyclohexyl N,N- dimethylphosphoramidocyanidate",1]
[null,null,null,null,null,null,null,null,null,null,null,null,null,null,null,null,null,89781,"2- Isopropyl-5-methylcyclohexyl propylphosphonofluoridate",1]
[null,null,null,null,null,null,null,null,null,null,null,null,null,null,null,null,null,932014,"4,4-Dimethylcyclohexyl methylphosphonofluoridate",1]
[null,null,null,null,null,null,null,null,null,null,null,null,null,null,null,null,null,96413,"Cyclopentyl N,N-diethylphosphoramidocyanidate",1]
[null,null,null,null,null,null,null,null,null,null,null,null,null,null,null,null,null,96413,"Cyclopentyl N-ethyl-N-isopropylphosphoramidocyanidate",1]
[null,null,null,null,null,null,null,null,null,null,null,null,null,null,null,null,null,96413,"Cyclopentyl N-ethyl-N-methylphosphoramidocyanidate",1]
[null,null,null,null,null,null,null,null,null,null,null,null,null,null,null,null,null,96413,"Cyclopentyl N-ethyl-N-propylphosphoramidocyanidate",1]
[null,null,null,null,null,null,null,null,null,null,null,null,null,null,null,null,null,96413,"Cyclopentyl N,N-diisopropylphosphoramidocyanidate",1]
[null,null,null,null,null,null,null,null,null,null,null,null,null,null,null,null,null,96413,"Cyclopentyl N-isopropyl-N- methylphosphoramidocyanidate",1]
[null,null,null,null,null,null,null,null,null,null,null,null,null,null,null,null,null,96413,"Cyclopentyl N,N-dimethylphosphoramidocyanidate",1]
[null,null,null,null,null,null,null,null,null,null,null,null,null,null,null,null,null,96413,"Cyclopentyl N-methyl-N-propylphosphoramidocyanidate",1]
[null,null,null,null,null,null,null,null,null,null,null,null,null,null,null,null,null,96413,"Cyclopentyl S-2-dimethylaminoethyl isopropylphosphonothiolate",1]
[null,null,null,null,null,null,null,null,null,null,null,null,null,null,null,null,null,96413,"Cyclopentyl S-2-dipropylaminoethyl isopropylphosphonothiolate",1]
[null,null,null,null,null,null,null,null,null,null,null,null,null,null,null,null,null,96413,"Cyclopentyl methylphosphonochloridate",1]
[null,null,null,null,null,null,null,null,null,null,null,null,null,null,null,null,null,96413,"Cyclopentyl S-ethyl methylphosphonothiolate",1]
[null,null,null,null,null,null,null,null,null,null,null,null,null,null,null,null,null,96413,"Cyclopentyl S-sodium methylphosphonothiolate",1]
[null,null,null,null,null,null,null,null,null,null,null,null,null,null,null,null,null,96413,"O-Cyclopentyl methylphosphonothionochloridate",1]
[null,null,null,null,null,null,null,null,null,null,null,null,null,null,null,null,null,96413,"O-Cyclopentyl O-ethyl methylphosphonothionate",1]
[null,null,null,null,null,null,null,null,null,null,null,null,null,null,null,null,null,96413,"O,O-Dicyclopentyl methylphosphonothionate",1]
[null,null,null,null,null,null,null,null,null,null,null,null,null,null,null,null,null,96413,"Cyclopentyl S-2-dimethylaminoethyl propylphosphonothiolate",1]
[null,null,null,null,null,null,null,null,null,null,null,null,null,null,null,null,null,96413,"Cyclopentyl S-2-dipropylaminoethyl propylphosphonothiolate",1]
[null,null,null,null,null,null,null,null,null,null,null,null,null,null,null,null,null,97950,"2-Ethylbutyl N,N-dimethylphosphoramidocyanidate",1]
[null,null,null,null,null,null,null,null,null,null,null,null,null,null,null,null,null,97950,"2-Ethylbutyl ethylphosphonofluoridate",1]
[null,null,null,null,null,null,null,null,null,null,null,null,null,null,null,null,null,97950,"O-2-Ethylbutyl O-sodium ethylphosphonothionate",1]
[null,null,null,null,null,null,null,null,null,null,null,null,null,null,null,null,null,97950,"2-Ethylbutyl isopropylphosphonofluoridate",1]
[null,null,null,null,null,null,null,null,null,null,null,null,null,null,null,null,null,97950,"2-Ethylbutyl methylphosphonate",1]
[null,null,null,null,null,null,null,null,null,null,null,null,null,null,null,null,null,97950,"O-(2-Ethylbutyl) methylphosphonate",1]
[null,null,null,null,null,null,null,null,null,null,null,null,null,null,null,null,null,97950,"2-Ethylbutyl propylphosphonofluoridate",1]
[null,null,null,null,null,null,null,null,null,null,null,null,null,null,null,null,null,98522,"4-tert-Butylcyclohexyl N,N- dimethylphosphoramidocyanidate",1]
[null,null,null,null,null,null,null,null,null,null,null,null,null,null,null,null,null,98522,"4-tert-Butylcyclohexyl isopropylphosphonofluoridate",1]
[null,null,null,null,null,null,null,null,null,null,null,null,null,null,null,null,null,98522,"4-tert-Butylcyclohexyl S-2-dimethylaminoethyl methylphosphonothiolate",1]
[null,null,null,null,null,null,null,null,null,null,null,null,null,null,null,null,null,null,"1,2-Dimethyl-2-methoxypropyl methylphosphonofluoridate",1]
[null,null,null,null,null,null,null,null,null,null,null,null,null,null,null,null,null,null,"Methylphosphonic diamide dihydrochloride",1]
[null,null,null,null,null,null,null,null,null,null,null,null,null,null,null,null,null,null,"Phosphonic acid, ethyl-, polyglycol ester",1]
[null,null,null,null,null,null,null,null,null,null,null,null,null,null,null,null,null,10025679,"Sulfur monochloride",1]
[null,null,null,null,null,null,null,null,null,null,null,null,null,null,null,null,null,10025873,"UN1580 PS",1]
[null,null,null,null,null,null,null,null,null,null,null,null,null,null,null,null,null,10026138,"Phosphorus pentachloride",1]
[null,null,null,null,null,null,null,null,null,null,null,null,null,null,null,null,null,100356,"2-(N,N-Diethylamino)ethylchloride",1]
[null,null,null,null,null,null,null,null,null,null,null,null,null,null,null,null,null,100389,"2-(N,N-Diethylamino)ethanethiol",1]
[null,null,null,null,null,null,null,null,null,null,null,null,null,null,null,null,null,1005145754,"2-tert-Butylcyclohexyl isopropylphosphonofluoridate",1]
[null,null,null,null,null,null,null,null,null,null,null,null,null,null,null,null,null,1005164704,"2-Methylcyclopentyl ethylphosphonofluoridate",1]
[null,null,null,null,null,null,null,null,null,null,null,null,null,null,null,null,null,1005176599,"2-Methylcyclopentyl isopropylphosphonofluoridate",1]
[null,null,null,null,null,null,null,null,null,null,null,null,null,null,null,null,null,1005176602,"2-Methylcyclopentyl propylphosphonofluoridate",1]
[null,null,null,null,null,null,null,null,null,null,null,null,null,null,null,null,null,1005176908,"2-tert-Butylcyclohexyl propylphosphonofluoridate",1]
[null,null,null,null,null,null,null,null,null,null,null,null,null,null,null,null,null,1005239893,"1,2-Dimethylbutyl methylphosphonofluoridate",1]
[null,null,null,null,null,null,null,null,null,null,null,null,null,null,null,null,null,1005240094,"1-Ethyl-2-methylpentyl methylphosphonofluoridate",1]
[null,null,null,null,null,null,null,null,null,null,null,null,null,null,null,null,null,1005247528,"2-tert-Butylcyclohexyl methylphosphonofluoridate",1]
[null,null,null,null,null,null,null,null,null,null,null,null,null,null,null,null,null,1005249160,"1,2-Dimethylbutyl isopropylphosphonofluoridate",1]
[null,null,null,null,null,null,null,null,null,null,null,null,null,null,null,null,null,1005254238,"2-tert-Butylcyclohexyl ethylphosphonofluoridate",1]
[null,null,null,null,null,null,null,null,null,null,null,null,null,null,null,null,null,1005257566,"2-Ethylcyclohexyl methylphosphonofluoridate",1]
[null,null,null,null,null,null,null,null,null,null,null,null,null,null,null,null,null,1005258274,"1,2-Dimethylbutyl ethylphosphonofluoridate",1]
[null,null,null,null,null,null,null,null,null,null,null,null,null,null,null,null,null,1005276389,"2,6-Dimethylcyclohexyl methylphosphonofluoridate",1]
[null,null,null,null,null,null,null,null,null,null,null,null,null,null,null,null,null,1005284616,"3,5-Dimethylcyclohexyl methylphosphonofluoridate",1]
[null,null,null,null,null,null,null,null,null,null,null,null,null,null,null,null,null,1017861210,"2-(N-Ethyl-N-methylamino)ethanethiol hydrochloride",1]
[null,null,null,null,null,null,null,null,null,null,null,null,null,null,null,null,null,1017861265,"2-(N-Methyl-N-propylamino)ethanethiol hydrochloride",1]
[null,null,null,null,null,null,null,null,null,null,null,null,null,null,null,null,null,1017861298,"2-(N-Isopropyl-N-methylamino)ethanethiol hydrochloride",1]
[null,null,null,null,null,null,null,null,null,null,null,null,null,null,null,null,null,1017861345,"2-(N-Ethyl-N-propylamino)ethanethiol hydrochloride",1]
[null,null,null,null,null,null,null,null,null,null,null,null,null,null,null,null,null,1017861378,"2-(N-Ethyl-N-isopropylamino)ethanethiol hydrochloride",1]
[null,null,null,null,null,null,null,null,null,null,null,null,null,null,null,null,null,1017861458,"2-(N-Isopropyl-N-propylamino)ethanethiol hydrochloride",1]
[null,null,null,null,null,null,null,null,null,null,null,null,null,null,null,null,null,1018124383,"2-(N-Methyl-N-propylamino)ethanethiol",1]
[null,null,null,null,null,null,null,null,null,null,null,null,null,null,null,null,null,1018124394,"2-(N-Ethyl-N-propylamino)ethanethiol",1]
[null,null,null,null,null,null,null,null,null,null,null,null,null,null,null,null,null,1020119281,"Bis(1-methylpentyl) methylphosphonate",1]
[null,null,null,null,null,null,null,null,null,null,null,null,null,null,null,null,null,102490573,"(R)-Cyclopentyl S-2-diisopropylaminoethyl methylphosphonothiolate",1]
[null,null,null,null,null,null,null,null,null,null,null,null,null,null,null,null,null,102490595,"(S)-Cyclopentyl S-2-diisopropylaminoethyl methylphosphonothiolate",1]
[null,null,null,null,null,null,null,null,null,null,null,null,null,null,null,null,null,102716,"Triethanolamine",1]
[null,null,null,null,null,null,null,null,null,null,null,null,null,null,null,null,null,103596721,"Methyl-[14C]-phosphonic difluoride",1]
[null,null,null,null,null,null,null,null,null,null,null,null,null,null,null,null,null,104800977,"Isopropyl methyl-[14C]-phosphonofluoridate",1]
[null,null,null,null,null,null,null,null,null,null,null,null,null,null,null,null,null,104800988,"Pinacolyl methyl-[14C]-phosphonofluoridate",1]
[null,null,null,null,null,null,null,null,null,null,null,null,null,null,null,null,null,104801072,"Isopropyl methylphosphonofluoridate, labeled with tritium (Tritium at unspecified locations)",1]
[null,null,null,null,null,null,null,null,null,null,null,null,null,null,null,null,null,104801083,"Isopropyl methyl-d3-phosphonofluoridate",1]
[null,null,null,null,null,null,null,null,null,null,null,null,null,null,null,null,null,104801094,"Pinacolyl methyl-d3-phosphonofluoridate",1]
[null,null,null,null,null,null,null,null,null,null,null,null,null,null,null,null,null,104801107,"Pinacolyl methylphosphonofluoridate, labeled with tritium (Tritium at unspecified locations)(Isotopes at unknown locations)",1]
[null,null,null,null,null,null,null,null,null,null,null,null,null,null,null,null,null,104801163,"Methyl(d3) phosphonic acid",1]
[null,null,null,null,null,null,null,null,null,null,null,null,null,null,null,null,null,104801174,"Methyl-d3-phosphonic dichloride",1]
[null,null,null,null,null,null,null,null,null,null,null,null,null,null,null,null,null,10545990,"Sulfur dichloride",1]
[null,null,null,null,null,null,null,null,null,null,null,null,null,null,null,null,null,105599,"Methyldiethanolamine",1]
[null,null,null,null,null,null,null,null,null,null,null,null,null,null,null,null,null,1066508,"Ethylphosphonic dichloride",1]
[null,null,null,null,null,null,null,null,null,null,null,null,null,null,null,null,null,1066520,"Methyl methylphosphonochloridate",1]
[null,null,null,null,null,null,null,null,null,null,null,null,null,null,null,null,null,1066531,"Methyl methylphosphonate",1]
[null,null,null,null,null,null,null,null,null,null,null,null,null,null,null,null,null,1067692,"Phosphonic acid, methyl-, methyl ester Methyl phosphonic acid monomethyl ester Methyl methanephosphonateDiisopropyl ethylphosphonate",1]
[null,null,null,null,null,null,null,null,null,null,null,null,null,null,null,null,null,107448,"Isopropyl methylphosphonofluoridate",1]
[null,null,null,null,null,null,null,null,null,null,null,null,null,null,null,null,null,107993,"2-(N,N-Dimethylamino)ethylchloride",1]
[null,null,null,null,null,null,null,null,null,null,null,null,null,null,null,null,null,108021,"2-(N,N-Dimethylamino)ethanethiol",1]
[null,null,null,null,null,null,null,null,null,null,null,null,null,null,null,null,null,108202659,"Pinacolyl-d13 methylphosphonofluoridate",1]
[null,null,null,null,null,null,null,null,null,null,null,null,null,null,null,null,null,108302041,"Ethyl S-2-diethylaminoethyl ethylphosphonothiolate oxalate",1]
[null,null,null,null,null,null,null,null,null,null,null,null,null,null,null,null,null,108490922,"Methyl S-2-dimethylaminoethyl methylphosphonothiolate",1]
[null,null,null,null,null,null,null,null,null,null,null,null,null,null,null,null,null,108506634,"Octyl isopropylphosphonate",1]
[null,null,null,null,null,null,null,null,null,null,null,null,null,null,null,null,null,1092978794,"2-(N-Ethyl(d5)-N-methylamino)ethanol hydrochloride",1]
[null,null,null,null,null,null,null,null,null,null,null,null,null,null,null,null,null,1092978818,"2-(N-propyl-N-propyl(d7)amino)ethanol hydrochloride",1]
[null,null,null,null,null,null,null,null,null,null,null,null,null,null,null,null,null,1092978874,"2-(N,N-Diethyl(d10)amino)ethylchloride hydrochloride",1]
[null,null,null,null,null,null,null,null,null,null,null,null,null,null,null,null,null,1092978909,"2-(N-methyl-N-ethyl(d5)amino)ethylchloride hydrochloride",1]
[null,null,null,null,null,null,null,null,null,null,null,null,null,null,null,null,null,1092978921,"2-(N,N-propyl(d7)propylamino)ethylchloride hydrochloride",1]
[null,null,null,null,null,null,null,null,null,null,null,null,null,null,null,null,null,1092978976,"2-(N,N-Dimethyl(d6)amino)ethanethiol hydrochloride",1]
[null,null,null,null,null,null,null,null,null,null,null,null,null,null,null,null,null,1092979004,"2-(N,N-Diethyl(d10)amino)ethanethiol hydrochloride",1]
[null,null,null,null,null,null,null,null,null,null,null,null,null,null,null,null,null,1092979026,"2-(N-ethyl(d5)-N-methylamino)ethanethiol hydrochloride",1]
[null,null,null,null,null,null,null,null,null,null,null,null,null,null,null,null,null,1092979059,"2-(N-propyl(d7)-N-propylamino)ethanethiol hydrochloride",1]
[null,null,null,null,null,null,null,null,null,null,null,null,null,null,null,null,null,1092979082,"2-(N,N-Diisopropyl(d14)amino)ethanethiol hydrochloride",1]
[null,null,null,null,null,null,null,null,null,null,null,null,null,null,null,null,null,1093059972,"2-(N-Ethyl(d5)-N-methylamino)ethanol",1]
[null,null,null,null,null,null,null,null,null,null,null,null,null,null,null,null,null,1093059983,"2-(N-Propyl-N-propyl(d7)amino)ethanol",1]
[null,null,null,null,null,null,null,null,null,null,null,null,null,null,null,null,null,1093059994,"2-(N,N-Diethyl(d10)amino)ethylchloride",1]
[null,null,null,null,null,null,null,null,null,null,null,null,null,null,null,null,null,1093060004,"2-(N-Methyl-N-ethyl(d5)amino)ethylchloride",1]
[null,null,null,null,null,null,null,null,null,null,null,null,null,null,null,null,null,1093060015,"2-(N-Propyl(d7)-N-propylamino)ethylchloride",1]
[null,null,null,null,null,null,null,null,null,null,null,null,null,null,null,null,null,1093060026,"2-(N,N-Dimethyl(d6)amino)ethanethiol",1]
[null,null,null,null,null,null,null,null,null,null,null,null,null,null,null,null,null,1093060037,"2-(N,N-Diethyl(d10)amino)ethanethiol",1]
[null,null,null,null,null,null,null,null,null,null,null,null,null,null,null,null,null,1093060048,"2-(N-Ethyl(d5)-N-methylamino)ethanethiol",1]
[null,null,null,null,null,null,null,null,null,null,null,null,null,null,null,null,null,1093060059,"2-(N-Propyl(d7)-N-propylamino)ethanethiol",1]
[null,null,null,null,null,null,null,null,null,null,null,null,null,null,null,null,null,1093060060,"2-(N,N-Diisopropyl(d14)amino)ethanethiol",1]
[null,null,null,null,null,null,null,null,null,null,null,null,null,null,null,null,null,111488,"Bis(2-hydroxyethyl)sulfide",1]
[null,null,null,null,null,null,null,null,null,null,null,null,null,null,null,null,null,113548859,"1-Isopropyl-2-methylpropyl methylphosphonofluoridate",1]
[null,null,null,null,null,null,null,null,null,null,null,null,null,null,null,null,null,113548860,"3-Methylcyclohexyl methylphosphonofluoridate",1]
[null,null,null,null,null,null,null,null,null,null,null,null,null,null,null,null,null,113548871,"4-Methylcyclohexyl methylphosphonofluoridate",1]
[null,null,null,null,null,null,null,null,null,null,null,null,null,null,null,null,null,113548893,"Hexyl methylphosphonofluoridate",1]
[null,null,null,null,null,null,null,null,null,null,null,null,null,null,null,null,null,113579138,"Diisopropyl d3-methylphosphonate",1]
[null,null,null,null,null,null,null,null,null,null,null,null,null,null,null,null,null,114076210,"Aluminium methyl propylphosphonate",1]
[null,null,null,null,null,null,null,null,null,null,null,null,null,null,null,null,null,1148114151,"2-(N,N-Dimethyl(C13)amino)ethylchloride",1]
[null,null,null,null,null,null,null,null,null,null,null,null,null,null,null,null,null,116498772,"O-Pinacolyl S-sodium methylphosphonothiolate",1]
[null,null,null,null,null,null,null,null,null,null,null,null,null,null,null,null,null,117122904,"Ethyl S-sodium propylphosphonothiolate",1]
[null,null,null,null,null,null,null,null,null,null,null,null,null,null,null,null,null,1174023687,"Dimethyl(d3) N,N-dimethyl(d3)phosphoramidate",1]
[null,null,null,null,null,null,null,null,null,null,null,null,null,null,null,null,null,1186330222,"(S)-Cyclohexyl S-2-dimethylaminoethyl methylphosphonothiolate",1]
[null,null,null,null,null,null,null,null,null,null,null,null,null,null,null,null,null,1187548679,"Methyl P(S)-methylphosphonofluoridate",1]
[null,null,null,null,null,null,null,null,null,null,null,null,null,null,null,null,null,1187548771,"(R)-Ethyl S-2-diethylaminoethyl ethylphosphonothiolate",1]
[null,null,null,null,null,null,null,null,null,null,null,null,null,null,null,null,null,1187548793,"(S)-Ethyl S-2-diethylaminoethyl ethylphosphonothiolate",1]
[null,null,null,null,null,null,null,null,null,null,null,null,null,null,null,null,null,1187548817,"(R)-Ethyl S-2-diethylaminoethyl methylphosphonothiolate",1]
[null,null,null,null,null,null,null,null,null,null,null,null,null,null,null,null,null,1187548828,"(S)-Ethyl S-2-diethylaminoethyl methylphosphonothiolate",1]
[null,null,null,null,null,null,null,null,null,null,null,null,null,null,null,null,null,1189873,"Isopropyl ethylphosphonofluoridate",1]
[null,null,null,null,null,null,null,null,null,null,null,null,null,null,null,null,null,1205608667,"di-d7-isopropyl methylphosphonate",1]
[null,null,null,null,null,null,null,null,null,null,null,null,null,null,null,null,null,121459,"Trimethyl phosphite",1]
[null,null,null,null,null,null,null,null,null,null,null,null,null,null,null,null,null,1219805943,"2-(N,N-Diethylamino)ethyl(d4)chloride hydrochloride",1]
[null,null,null,null,null,null,null,null,null,null,null,null,null,null,null,null,null,1219908936,"2-(N,N-Diethylamino)ethyl(d4)chloride",1]
[null,null,null,null,null,null,null,null,null,null,null,null,null,null,null,null,null,1220982693,"(R)-Cyclohexyl S-2-dimethylaminoethyl methylphosphonothiolate",1]
[null,null,null,null,null,null,null,null,null,null,null,null,null,null,null,null,null,122521,"Triethyl phosphite",1]
[null,null,null,null,null,null,null,null,null,null,null,null,null,null,null,null,null,1228786499,"1-Ethylhexyl methylphosphonofluoridate",1]
[null,null,null,null,null,null,null,null,null,null,null,null,null,null,null,null,null,1228786502,"2-Methyloctyl methylphosphonofluoridate",1]
[null,null,null,null,null,null,null,null,null,null,null,null,null,null,null,null,null,1252610357,"1-Methylpentyl N,N-diethylphosphoramidocyanidate",1]
[null,null,null,null,null,null,null,null,null,null,null,null,null,null,null,null,null,1252610368,"1-Isopropyl-2-methylpropyl N-isopropyl-N- propylphosphoramidocyanidate",1]
[null,null,null,null,null,null,null,null,null,null,null,null,null,null,null,null,null,1252610379,"Isopropyl N,N-diisopropylphosphoramidocyanidate",1]
[null,null,null,null,null,null,null,null,null,null,null,null,null,null,null,null,null,1252610380,"2,6-Dimethylcyclohexyl N,N- dipropylphosphoramidocyanidate",1]
[null,null,null,null,null,null,null,null,null,null,null,null,null,null,null,null,null,1252995122,"2-(N,N-Dimethylamino)ethyl(d4)chloride hydrochloride",1]
[null,null,null,null,null,null,null,null,null,null,null,null,null,null,null,null,null,1252995133,"2-(N,N-Dimethyl(d6)amino)ethyl(d4)chloride hydrochloride",1]
[null,null,null,null,null,null,null,null,null,null,null,null,null,null,null,null,null,1253176816,"2-(N,N-Dimethyl(d6)amino)ethyl(d4)chloride",1]
[null,null,null,null,null,null,null,null,null,null,null,null,null,null,null,null,null,1253735442,"S-2-Dimethylaminoethyl ethylphosphonothiolate",1]
[null,null,null,null,null,null,null,null,null,null,null,null,null,null,null,null,null,1253735613,"S-2-Dimethylaminoethyl propylphosphonothiolate",1]
[null,null,null,null,null,null,null,null,null,null,null,null,null,null,null,null,null,1253735726,"Decyl S-2-dimethylaminoethyl methylphosphonothiolate",1]
[null,null,null,null,null,null,null,null,null,null,null,null,null,null,null,null,null,1253735737,"3-Methylbutyl S-2-dipropylaminoethyl ethylphosphonothiolate",1]
[null,null,null,null,null,null,null,null,null,null,null,null,null,null,null,null,null,1253735782,"3-Methylbutyl S-2-dipropylaminoethyl methylphosphonothiolate",1]
[null,null,null,null,null,null,null,null,null,null,null,null,null,null,null,null,null,1253735817,"2-Methylbutyl S-2-dipropylaminoethyl ethylphosphonothiolate",1]
[null,null,null,null,null,null,null,null,null,null,null,null,null,null,null,null,null,1253735839,"2-Methylbutyl S-2-dipropylaminoethyl methylphosphonothiolate",1]
[null,null,null,null,null,null,null,null,null,null,null,null,null,null,null,null,null,1253735840,"Nonyl S-2-dipropylaminoethyl ethylphosphonothiolate",1]
[null,null,null,null,null,null,null,null,null,null,null,null,null,null,null,null,null,1253736105,"Nonyl S-2-dipropylaminoethyl methylphosphonothiolate",1]
[null,null,null,null,null,null,null,null,null,null,null,null,null,null,null,null,null,1253736581,"2-Methylcyclopentyl S-2-dimethylaminoethyl ethylphosphonothiolate",1]
[null,null,null,null,null,null,null,null,null,null,null,null,null,null,null,null,null,1253736592,"2-Methylcyclopentyl S-2-dimethylaminoethyl methylphosphonothiolate",1]
[null,null,null,null,null,null,null,null,null,null,null,null,null,null,null,null,null,1253739433,"1,2-Dimethylbutyl S-2-dimethylaminoethyl ethylphosphonothiolate",1]
[null,null,null,null,null,null,null,null,null,null,null,null,null,null,null,null,null,1253739922,"1-Ethylpropyl S-2-dimethylaminoethyl ethylphosphonothiolate",1]
[null,null,null,null,null,null,null,null,null,null,null,null,null,null,null,null,null,1253739966,"1-Methylpentyl S-2-dimethylaminoethyl ethylphosphonothiolate",1]
[null,null,null,null,null,null,null,null,null,null,null,null,null,null,null,null,null,1253740087,"1-Methylpentyl S-2-dipropylaminoethyl methylphosphonothiolate",1]
[null,null,null,null,null,null,null,null,null,null,null,null,null,null,null,null,null,1253742776,"Ethyl S-2-diisopropylmethylammoniumethyl ethylphosphonothiolate iodide",1]
[null,null,null,null,null,null,null,null,null,null,null,null,null,null,null,null,null,1253744329,"Ethyl S-2-dimethylaminoethyl isopropylphosphonothiolate",1]
[null,null,null,null,null,null,null,null,null,null,null,null,null,null,null,null,null,1253746358,"Ethyl S-2-diisopropylammoniumethyl methylphosphonothiolate chloride",1]
[null,null,null,null,null,null,null,null,null,null,null,null,null,null,null,null,null,1253752576,"Isopropyl S-2-diethylpropylammoniumethyl ethylphosphonothiolate iodide",1]
[null,null,null,null,null,null,null,null,null,null,null,null,null,null,null,null,null,1253753513,"Isopropyl S-2-dimethylpropylammoniumethyl ethylphosphonothiolate iodide",1]
[null,null,null,null,null,null,null,null,null,null,null,null,null,null,null,null,null,1253755291,"Propyl S-2-diisopropylaminoethyl ethylphosphonothiolate",1]
[null,null,null,null,null,null,null,null,null,null,null,null,null,null,null,null,null,1253756545,"Propyl S-2-dipropylaminoethyl methylphosphonothiolate",1]
[null,null,null,null,null,null,null,null,null,null,null,null,null,null,null,null,null,1253757480,"Butyl S-2-diisopropylaminoethyl ethylphosphonothiolate",1]
[null,null,null,null,null,null,null,null,null,null,null,null,null,null,null,null,null,1253759453,"Butyl S-2-dipropylaminoethyl methylphosphonothiolate",1]
[null,null,null,null,null,null,null,null,null,null,null,null,null,null,null,null,null,1253761226,"Pentyl S-2-diethylaminoethyl ethylphosphonothiolate",1]
[null,null,null,null,null,null,null,null,null,null,null,null,null,null,null,null,null,1253762741,"Pentyl S-2-dimethylaminoethyl ethylphosphonothiolate",1]
[null,null,null,null,null,null,null,null,null,null,null,null,null,null,null,null,null,1253763584,"Pentyl S-2-dipropylaminoethyl ethylphosphonothiolate",1]
[null,null,null,null,null,null,null,null,null,null,null,null,null,null,null,null,null,1253764678,"Pentyl S-2-diethylaminoethyl methylphosphonothiolate",1]
[null,null,null,null,null,null,null,null,null,null,null,null,null,null,null,null,null,1253765648,"Pentyl S-2-dipropylaminoethyl methylphosphonothiolate",1]
[null,null,null,null,null,null,null,null,null,null,null,null,null,null,null,null,null,1253766834,"2,2-Dimethylpropyl S-2-diethylaminoethyl ethylphosphonothiolate",1]
[null,null,null,null,null,null,null,null,null,null,null,null,null,null,null,null,null,1253767735,"2,2-Dimethylpropyl S-2-diisopropylaminoethyl ethylphosphonothiolate",1]
[null,null,null,null,null,null,null,null,null,null,null,null,null,null,null,null,null,1253768738,"2,2-Dimethylpropyl S-2-dimethylaminoethyl ethylphosphonothiolate",1]
[null,null,null,null,null,null,null,null,null,null,null,null,null,null,null,null,null,1253771219,"Isobutyl S-2-dimethylaminoethyl ethylphosphonothiolate",1]
[null,null,null,null,null,null,null,null,null,null,null,null,null,null,null,null,null,1253772234,"Isobutyl S-2-dipropylaminoethyl methylphosphonothiolate",1]
[null,null,null,null,null,null,null,null,null,null,null,null,null,null,null,null,null,1253773828,"sec-Butyl S-2-diisopropylaminoethyl methylphosphonothiolate",1]
[null,null,null,null,null,null,null,null,null,null,null,null,null,null,null,null,null,1253776247,"Cyclopentyl S-2-diisopropylaminoethyl ethylphosphonothiolate",1]
[null,null,null,null,null,null,null,null,null,null,null,null,null,null,null,null,null,1253782352,"Cyclohexyl N-isopropyl-N- propylphosphoramidocyanidate",1]
[null,null,null,null,null,null,null,null,null,null,null,null,null,null,null,null,null,1253782454,"Octyl N,N-dimethylphosphoramidocyanidate",1]
[null,null,null,null,null,null,null,null,null,null,null,null,null,null,null,null,null,1253782498,"1-Ethylhexyl N,N-dimethylphosphoramidocyanidate",1]
[null,null,null,null,null,null,null,null,null,null,null,null,null,null,null,null,null,1253782512,"1,1,2-Trimethylpropyl N,N- dipropylphosphoramidocyanidate",1]
[null,null,null,null,null,null,null,null,null,null,null,null,null,null,null,null,null,1253782692,"Isopropyl N-ethyl-N-isopropylphosphoramidocyanidate",1]
[null,null,null,null,null,null,null,null,null,null,null,null,null,null,null,null,null,1253782716,"Butyl N,N-diisopropylphosphoramidocyanidate",1]
[null,null,null,null,null,null,null,null,null,null,null,null,null,null,null,null,null,1253782749,"Butyl N-methyl-N-propylphosphoramidocyanidate",1]
[null,null,null,null,null,null,null,null,null,null,null,null,null,null,null,null,null,1253782830,"2,2-Dimethylpropyl N,N- diisopropylphosphoramidocyanidate",1]
[null,null,null,null,null,null,null,null,null,null,null,null,null,null,null,null,null,1253782841,"2,2-Dimethylpropyl N-isopropyl-N- propylphosphoramidocyanidate",1]
[null,null,null,null,null,null,null,null,null,null,null,null,null,null,null,null,null,1253782852,"Isobutyl N,N-diethylphosphoramidocyanidate",1]
[null,null,null,null,null,null,null,null,null,null,null,null,null,null,null,null,null,1253782863,"Isobutyl N-methyl-N-propylphosphoramidocyanidate",1]
[null,null,null,null,null,null,null,null,null,null,null,null,null,null,null,null,null,1253782874,"1,2-Dimethylbutyl S-2-dimethylaminoethyl methylphosphonothiolate",1]
[null,null,null,null,null,null,null,null,null,null,null,null,null,null,null,null,null,1253782885,"Methyl S-2-diisopropylaminoethyl isoproylphosphonothiolate",1]
[null,null,null,null,null,null,null,null,null,null,null,null,null,null,null,null,null,1253782896,"Pentyl S-2-diisopropylaminoethyl ethylphosphonothiolate",1]
[null,null,null,null,null,null,null,null,null,null,null,null,null,null,null,null,null,1254103951,"1-Methylheptyl N,N-diisopropylphosphoramidocyanidate",1]
[null,null,null,null,null,null,null,null,null,null,null,null,null,null,null,null,null,1254104374,"1-Methylnonyl ethylphosphonofluoridate",1]
[null,null,null,null,null,null,null,null,null,null,null,null,null,null,null,null,null,1255381668,"2-(N,N-Diethylamino)ethylchloride and Tetrafluoroborate(H+) (1:1)",1]
[null,null,null,null,null,null,null,null,null,null,null,null,null,null,null,null,null,1255381679,"2-(N,N-Diethylamino)ethylchloride, Hexafluorophosphate and Hydrogen(H+) (1:1:1)",1]
[null,null,null,null,null,null,null,null,null,null,null,null,null,null,null,null,null,1256554569,"1,2-Dimethylpropyl S-2-diisopropylaminoethyl methylphosphonothiolate",1]
[null,null,null,null,null,null,null,null,null,null,null,null,null,null,null,null,null,1256554570,"1,2-Dimethylpropyl S-2-dipropylaminoethyl methylphosphonothiolate",1]
[null,null,null,null,null,null,null,null,null,null,null,null,null,null,null,null,null,1256554581,"1-Methylbutyl S-2-diethylaminoethyl ethylphosphonothiolate",1]
[null,null,null,null,null,null,null,null,null,null,null,null,null,null,null,null,null,1256554592,"1-Methylbutyl S-2-dimethylaminoethyl ethylphosphonothiolate",1]
[null,null,null,null,null,null,null,null,null,null,null,null,null,null,null,null,null,1256554605,"1-Methylbutyl S-2-dipropylaminoethyl ethylphosphonothiolate",1]
[null,null,null,null,null,null,null,null,null,null,null,null,null,null,null,null,null,1256554616,"1-Methylbutyl S-2-diethylaminoethyl methylphosphonothiolate",1]
[null,null,null,null,null,null,null,null,null,null,null,null,null,null,null,null,null,1256554627,"1-Methylbutyl S-2-dimethylaminoethyl methylphosphonothiolate",1]
[null,null,null,null,null,null,null,null,null,null,null,null,null,null,null,null,null,1256554638,"1- Methylbutyl S-2-dipropylaminoethyl methylphosphonothiolate",1]
[null,null,null,null,null,null,null,null,null,null,null,null,null,null,null,null,null,1256571922,"Propyl N,N-diethylphosphoramidocyanidate",1]
[null,null,null,null,null,null,null,null,null,null,null,null,null,null,null,null,null,1256571933,"Propyl N-ethyl-N-isopropylphosphoramidocyanidate",1]
[null,null,null,null,null,null,null,null,null,null,null,null,null,null,null,null,null,1256571944,"Propyl N-ethyl-N-propylphosphoramidocyanidate",1]
[null,null,null,null,null,null,null,null,null,null,null,null,null,null,null,null,null,1256571955,"Propyl N-methyl-N-propylphosphoramidocyanidate",1]
[null,null,null,null,null,null,null,null,null,null,null,null,null,null,null,null,null,1256571966,"Butyl N-ethyl-N-isopropylphosphoramidocyanidate",1]
[null,null,null,null,null,null,null,null,null,null,null,null,null,null,null,null,null,1256571977,"Butyl N-ethyl-N-propylphosphoramidocyanidate",1]
[null,null,null,null,null,null,null,null,null,null,null,null,null,null,null,null,null,1256572049,"1,3-Dimethylbutyl S-2-diisopropylaminoethyl methylphosphonothiolate",1]
[null,null,null,null,null,null,null,null,null,null,null,null,null,null,null,null,null,1256572050,"Cyclohexyl S-2-diisopropylaminoethyl ethylphosphonothiolate",1]
[null,null,null,null,null,null,null,null,null,null,null,null,null,null,null,null,null,1256572061,"Cyclohexyl S-2-dimethylaminoethyl ethylphosphonothiolate",1]
[null,null,null,null,null,null,null,null,null,null,null,null,null,null,null,null,null,1256572094,"Hexyl S-2-dimethylaminoethyl ethylphosphonothiolate",1]
[null,null,null,null,null,null,null,null,null,null,null,null,null,null,null,null,null,1256572107,"1,3-Dimethylbutyl N,N- diisopropylphosphoramidocyanidate",1]
[null,null,null,null,null,null,null,null,null,null,null,null,null,null,null,null,null,1256572118,"Cyclohexyl N,N-diethylphosphoramidocyanidate",1]
[null,null,null,null,null,null,null,null,null,null,null,null,null,null,null,null,null,1256572129,"Cyclohexyl N,N-dimethylphosphoramidocyanidate",1]
[null,null,null,null,null,null,null,null,null,null,null,null,null,null,null,null,null,1256572130,"Cyclohexyl N,N-dipropylphosphoramidocyanidate",1]
[null,null,null,null,null,null,null,null,null,null,null,null,null,null,null,null,null,1256572141,"Octyl N,N-diethylphosphoramidocyanidate",1]
[null,null,null,null,null,null,null,null,null,null,null,null,null,null,null,null,null,1256572152,"Octyl N,N-diisopropylphosphoramidocyanidate",1]
[null,null,null,null,null,null,null,null,null,null,null,null,null,null,null,null,null,1256572163,"Octyl N-isopropyl-N-propylphosphoramidocyanidate",1]
[null,null,null,null,null,null,null,null,null,null,null,null,null,null,null,null,null,1256572174,"Octyl N,N-dipropylphosphoramidocyanidate",1]
[null,null,null,null,null,null,null,null,null,null,null,null,null,null,null,null,null,1256572185,"Decyl N,N-diisopropylphosphoramidocyanidate",1]
[null,null,null,null,null,null,null,null,null,null,null,null,null,null,null,null,null,1256572196,"Decyl N-isopropyl-N-propylphosphoramidocyanidate",1]
[null,null,null,null,null,null,null,null,null,null,null,null,null,null,null,null,null,1256572209,"1-Cyclohexylethyl N,N- diisopropylphosphoramidocyanidate",1]
[null,null,null,null,null,null,null,null,null,null,null,null,null,null,null,null,null,1256572210,"1-Ethylhexyl N,N-diethylphosphoramidocyanidate",1]
[null,null,null,null,null,null,null,null,null,null,null,null,null,null,null,null,null,1256572221,"1-Ethylhexyl N,N-diisopropylphosphoramidocyanidate",1]
[null,null,null,null,null,null,null,null,null,null,null,null,null,null,null,null,null,1256572232,"1-Ethylhexyl N-isopropyl-N- propylphosphoramidocyanidate",1]
[null,null,null,null,null,null,null,null,null,null,null,null,null,null,null,null,null,1256572243,"1-Ethylhexyl N,N-dipropylphosphoramidocyanidate",1]
[null,null,null,null,null,null,null,null,null,null,null,null,null,null,null,null,null,1256572254,"1,1,2-Trimethylpropyl N,N- diethylphosphoramidocyanidate",1]
[null,null,null,null,null,null,null,null,null,null,null,null,null,null,null,null,null,1256572265,"2- Methylpentyl S-2-dimethylaminoethyl ethylphosphonothiolate",1]
[null,null,null,null,null,null,null,null,null,null,null,null,null,null,null,null,null,1256572276,"2-Methylpentyl S-2-diisopropylaminoethyl methylphosphonothiolate",1]
[null,null,null,null,null,null,null,null,null,null,null,null,null,null,null,null,null,1256572287,"2-Methylpentyl S-2-dimethylaminoethyl methylphosphonothiolate",1]
[null,null,null,null,null,null,null,null,null,null,null,null,null,null,null,null,null,1256572298,"2-Methylpentyl S-2-dipropylaminoethyl methylphosphonothiolate",1]
[null,null,null,null,null,null,null,null,null,null,null,null,null,null,null,null,null,1256572301,"1-Ethylpropyl S-2-diethylaminoethyl methylphosphonothiolate",1]
[null,null,null,null,null,null,null,null,null,null,null,null,null,null,null,null,null,1256572312,"1-Ethylpropyl S-2-diisopropylaminoethyl methylphosphonothiolate",1]
[null,null,null,null,null,null,null,null,null,null,null,null,null,null,null,null,null,1256572323,"1-Ethylpropyl S-2-dipropylaminoethyl methylphosphonothiolate",1]
[null,null,null,null,null,null,null,null,null,null,null,null,null,null,null,null,null,1256572334,"1,2-Dimethylpropyl S-2-diethylaminoethyl ethylphosphonothiolate",1]
[null,null,null,null,null,null,null,null,null,null,null,null,null,null,null,null,null,1256572345,"1,2-Dimethylpropyl S-2-dimethylaminoethyl ethylphosphonothiolate",1]
[null,null,null,null,null,null,null,null,null,null,null,null,null,null,null,null,null,1256572356,"1,2-Dimethylpropyl S-2-dipropylaminoethyl ethylphosphonothiolate",1]
[null,null,null,null,null,null,null,null,null,null,null,null,null,null,null,null,null,1256572367,"1,2-Dimethylpropyl S-2-diethylaminoethyl methylphosphonothiolate",1]
[null,null,null,null,null,null,null,null,null,null,null,null,null,null,null,null,null,1256634486,"2-Ethylhexyl S-2-dipropylaminoethyl ethylphosphonothiolate",1]
[null,null,null,null,null,null,null,null,null,null,null,null,null,null,null,null,null,1256634497,"2-Ethylhexyl S-2-diisopropylaminoethyl ethylphosphonothiolate",1]
[null,null,null,null,null,null,null,null,null,null,null,null,null,null,null,null,null,1256634500,"2-Ethylhexyl S-2-dimethylaminoethyl ethylphosphonothiolate",1]
[null,null,null,null,null,null,null,null,null,null,null,null,null,null,null,null,null,1256634511,"Heptyl S-2-dipropylaminoethyl ethylphosphonothiolate",1]
[null,null,null,null,null,null,null,null,null,null,null,null,null,null,null,null,null,1256634522,"2- Ethylhexyl S-2-diisopropylaminoethyl methylphosphonothiolate",1]
[null,null,null,null,null,null,null,null,null,null,null,null,null,null,null,null,null,1256634533,"Heptyl S-2-dimethylaminoethyl methylphosphonothiolate",1]
[null,null,null,null,null,null,null,null,null,null,null,null,null,null,null,null,null,1256634544,"Octyl S-2-diisopropylaminoethyl ethylphosphonothiolate",1]
[null,null,null,null,null,null,null,null,null,null,null,null,null,null,null,null,null,1256634555,"Octyl S-2-dipropylaminoethyl ethylphosphonothiolate",1]
[null,null,null,null,null,null,null,null,null,null,null,null,null,null,null,null,null,1256634566,"Octyl S-2-diethylaminoethyl methylphosphonothiolate",1]
[null,null,null,null,null,null,null,null,null,null,null,null,null,null,null,null,null,1256634577,"Octyl S-2-dimethylaminoethyl ethylphosphonothiolate",1]
[null,null,null,null,null,null,null,null,null,null,null,null,null,null,null,null,null,1256634588,"Octyl S-2-dipropylaminoethyl methylphosphonothiolate",1]
[null,null,null,null,null,null,null,null,null,null,null,null,null,null,null,null,null,1256634599,"Decyl S-2-diisopropylaminoethyl ethylphosphonothiolate",1]
[null,null,null,null,null,null,null,null,null,null,null,null,null,null,null,null,null,1256634602,"Decyl S-2-dimethylaminoethyl ethylphosphonothiolate",1]
[null,null,null,null,null,null,null,null,null,null,null,null,null,null,null,null,null,1256634613,"Decyl S-2-dipropylaminoethyl ethylphosphonothiolate",1]
[null,null,null,null,null,null,null,null,null,null,null,null,null,null,null,null,null,1256634624,"Decyl S-2-diisopropylaminoethyl methylphosphonothiolate",1]
[null,null,null,null,null,null,null,null,null,null,null,null,null,null,null,null,null,1256634635,"Decyl S-2-dipropylaminoethyl methylphosphonothiolate",1]
[null,null,null,null,null,null,null,null,null,null,null,null,null,null,null,null,null,1256634646,"3- Methylbutyl S-2-diisopropylaminoethyl ethylphosphonothiolate",1]
[null,null,null,null,null,null,null,null,null,null,null,null,null,null,null,null,null,1256634657,"3-Methylbutyl S-2-dimethylaminoethyl ethylphosphonothiolate",1]
[null,null,null,null,null,null,null,null,null,null,null,null,null,null,null,null,null,1256634668,"3-Methylbutyl S-2-diisopropylaminoethyl methylphosphonothiolate",1]
[null,null,null,null,null,null,null,null,null,null,null,null,null,null,null,null,null,1256634679,"3-Methylbutyl S-2-dimethylaminoethyl methylphosphonothiolate",1]
[null,null,null,null,null,null,null,null,null,null,null,null,null,null,null,null,null,1256634680,"2-Methylbutyl S-2-diethylaminoethyl ethylphosphonothiolate",1]
[null,null,null,null,null,null,null,null,null,null,null,null,null,null,null,null,null,1256634691,"2-Methylbutyl S-2-diisopropylaminoethyl ethylphosphonothiolate",1]
[null,null,null,null,null,null,null,null,null,null,null,null,null,null,null,null,null,1256634704,"2-Methylbutyl S-2-dimethylaminoethyl ethylphosphonothiolate",1]
[null,null,null,null,null,null,null,null,null,null,null,null,null,null,null,null,null,1256634715,"2-Methylbutyl S-2-diethylaminoethyl methylphosphonothiolate",1]
[null,null,null,null,null,null,null,null,null,null,null,null,null,null,null,null,null,1256634726,"2-Methylbutyl S-2-dimethylaminoethyl methylphosphonothiolate",1]
[null,null,null,null,null,null,null,null,null,null,null,null,null,null,null,null,null,1256634737,"Nonyl S-2-diisopropylaminoethyl ethylphosphonothiolate",1]
[null,null,null,null,null,null,null,null,null,null,null,null,null,null,null,null,null,1256634748,"Nonyl S-2-dimethylaminoethyl ethylphosphonothiolate",1]
[null,null,null,null,null,null,null,null,null,null,null,null,null,null,null,null,null,1256634759,"1,1,2-Trimethylpropyl N,N- diisopropylphosphoramidocyanidate",1]
[null,null,null,null,null,null,null,null,null,null,null,null,null,null,null,null,null,1256634760,"1,1,2-Trimethylpropyl N-propyl-N- isopropylphosphoramidocyanidate",1]
[null,null,null,null,null,null,null,null,null,null,null,null,null,null,null,null,null,1256634771,"1,1,2-Trimethylpropyl N,N- dimethylphosphoramidocyanidate",1]
[null,null,null,null,null,null,null,null,null,null,null,null,null,null,null,null,null,1256634782,"Cycloheptyl N,N-diethylphosphoramidocyanidate",1]
[null,null,null,null,null,null,null,null,null,null,null,null,null,null,null,null,null,1256634793,"Cycloheptyl N,N-dimethylphosphoramidocyanidate",1]
[null,null,null,null,null,null,null,null,null,null,null,null,null,null,null,null,null,1256634806,"2,6-Dimethylcyclohexyl N,N- diethylphosphoramidocyanidate",1]
[null,null,null,null,null,null,null,null,null,null,null,null,null,null,null,null,null,1256634817,"2,6-Dimethylcyclohexyl N,N- diisopropylphosphoramidocyanidate",1]
[null,null,null,null,null,null,null,null,null,null,null,null,null,null,null,null,null,1256634828,"2,6-Dimethylcyclohexyl N-isopropyl-N- propylphosphoramidocyanidate",1]
[null,null,null,null,null,null,null,null,null,null,null,null,null,null,null,null,null,1256634839,"2,6-Dimethylcyclohexyl N,N- dimethylphosphoramidocyanidate",1]
[null,null,null,null,null,null,null,null,null,null,null,null,null,null,null,null,null,1256634840,"1-Ethylpentyl N,N-diisopropylphosphoramidocyanidate",1]
[null,null,null,null,null,null,null,null,null,null,null,null,null,null,null,null,null,1256634851,"2- Methylcyclohexyl N,N- diisopropylphosphoramidocyanidate",1]
[null,null,null,null,null,null,null,null,null,null,null,null,null,null,null,null,null,1256634862,"1,2-Dimethylpropyl N,N- diisopropylphosphoramidocyanidate",1]
[null,null,null,null,null,null,null,null,null,null,null,null,null,null,null,null,null,1256634873,"1-Isopropyl-2-methylpropyl N,N- diethylphosphoramidocyanidate",1]
[null,null,null,null,null,null,null,null,null,null,null,null,null,null,null,null,null,1256634884,"1-Isopropyl-2-methylpropyl N,N- diisopropylphosphoramidocyanidate",1]
[null,null,null,null,null,null,null,null,null,null,null,null,null,null,null,null,null,1256634895,"1-Isopropyl-2-methylpropyl N,N- dimethylphosphoramidocyanidate",1]
[null,null,null,null,null,null,null,null,null,null,null,null,null,null,null,null,null,1256634908,"1-Isopropyl-2-methylpropyl N,N- dipropylphosphoramidocyanidate",1]
[null,null,null,null,null,null,null,null,null,null,null,null,null,null,null,null,null,1256634919,"1-Ethylbutyl N,N-diisopropylphosphoramidocyanidate",1]
[null,null,null,null,null,null,null,null,null,null,null,null,null,null,null,null,null,1256634920,"Isopropyl N-isopropyl-N-propylphosphoramidocyanidate",1]
[null,null,null,null,null,null,null,null,null,null,null,null,null,null,null,null,null,1256634931,"Isopropyl N,N-dipropylphosphoramidocyanidate",1]
[null,null,null,null,null,null,null,null,null,null,null,null,null,null,null,null,null,1256634942,"Cyclooctyl N,N-dimethylphosphoramidocyanidate",1]
[null,null,null,null,null,null,null,null,null,null,null,null,null,null,null,null,null,1256635478,"2-Methylbutyl S-2-diisopropylaminoethyl methylphosphonothiolate",1]
[null,null,null,null,null,null,null,null,null,null,null,null,null,null,null,null,null,1256698277,"O-Isopropyl isopropylphosphonothiolate",1]
[null,null,null,null,null,null,null,null,null,null,null,null,null,null,null,null,null,126204486,"2-Ethylbutyl methylphosphonofluoridate",1]
[null,null,null,null,null,null,null,null,null,null,null,null,null,null,null,null,null,1262582999,"2- Isopropyl-5-methylcyclohexyl methylphosphonofluoridate",1]
[null,null,null,null,null,null,null,null,null,null,null,null,null,null,null,null,null,1262583005,"2-Isopropyl-5-methylcyclohexyl isopropylphosphonofluoridate",1]
[null,null,null,null,null,null,null,null,null,null,null,null,null,null,null,null,null,1276665269,"Ethyl-d5 S-2-diisopropylaminoethyl methylphosphonothiolate",1]
[null,null,null,null,null,null,null,null,null,null,null,null,null,null,null,null,null,1280105807,"Hexyl S-2-dipropylaminoethyl methylphosphonothiolate",1]
[null,null,null,null,null,null,null,null,null,null,null,null,null,null,null,null,null,1280105830,"Heptyl S-2-dipropylaminoethyl methylphosphonothiolate",1]
[null,null,null,null,null,null,null,null,null,null,null,null,null,null,null,null,null,1280105841,"Octyl S-2-diisopropylaminoethyl methylphosphonothiolate",1]
[null,null,null,null,null,null,null,null,null,null,null,null,null,null,null,null,null,1280105874,"2-Methylpentyl S-2-dipropylaminoethyl ethylphosphonothiolate",1]
[null,null,null,null,null,null,null,null,null,null,null,null,null,null,null,null,null,1280105885,"1-Ethylpropyl S-2-dipropylaminoethyl ethylphosphonothiolate",1]
[null,null,null,null,null,null,null,null,null,null,null,null,null,null,null,null,null,1280105909,"1-Ethylpropyl S-2-dimethylaminoethyl methylphosphonothiolate",1]
[null,null,null,null,null,null,null,null,null,null,null,null,null,null,null,null,null,1280105921,"1,2-Dimethylpropyl S-2-diisopropylaminoethyl ethylphosphonothiolate",1]
[null,null,null,null,null,null,null,null,null,null,null,null,null,null,null,null,null,1280105932,"1,2-Dimethylpropyl S-2-dimethylaminoethyl methylphosphonothiolate",1]
[null,null,null,null,null,null,null,null,null,null,null,null,null,null,null,null,null,1280105943,"1-Methylbutyl S-2-diisopropylaminoethyl ethylphosphonothiolate",1]
[null,null,null,null,null,null,null,null,null,null,null,null,null,null,null,null,null,1280105954,"1-Methylbutyl S-2-diisopropylaminoethyl methylphosphonothiolate",1]
[null,null,null,null,null,null,null,null,null,null,null,null,null,null,null,null,null,1280105965,"1-Ethylbutyl S-2-diethylaminoethyl ethylphosphonothiolate",1]
[null,null,null,null,null,null,null,null,null,null,null,null,null,null,null,null,null,1280105976,"1-Ethylbutyl S-2-diisopropylaminoethyl ethylphosphonothiolate",1]
[null,null,null,null,null,null,null,null,null,null,null,null,null,null,null,null,null,1280105987,"1-Ethylbutyl S-2-dimethylaminoethyl ethylphosphonothiolate",1]
[null,null,null,null,null,null,null,null,null,null,null,null,null,null,null,null,null,1280105998,"1-Ethylbutyl S-2-dipropylaminoethyl ethylphosphonothiolate",1]
[null,null,null,null,null,null,null,null,null,null,null,null,null,null,null,null,null,1280106015,"1-Ethylbutyl S-2-diethylaminoethyl methylphosphonothiolate",1]
[null,null,null,null,null,null,null,null,null,null,null,null,null,null,null,null,null,1280106048,"1-Ethylbutyl S-2-diisopropylaminoethyl methylphosphonothiolate",1]
[null,null,null,null,null,null,null,null,null,null,null,null,null,null,null,null,null,1280106060,"1-Ethylbutyl S-2-dimethylaminoethyl methylphosphonothiolate",1]
[null,null,null,null,null,null,null,null,null,null,null,null,null,null,null,null,null,1280106242,"Hexyl S-2-diisopropylaminoethyl ethylphosphonothiolate",1]
[null,null,null,null,null,null,null,null,null,null,null,null,null,null,null,null,null,1280106253,"1-Methylnonyl isopropylphosphonofluoridate",1]
[null,null,null,null,null,null,null,null,null,null,null,null,null,null,null,null,null,1280106264,"3-Cyclohexylpropyl propylphosphonofluoridate",1]
[null,null,null,null,null,null,null,null,null,null,null,null,null,null,null,null,null,1280106297,"1-Cyclohexylethyl methylphosphonofluoridate",1]
[null,null,null,null,null,null,null,null,null,null,null,null,null,null,null,null,null,1280106322,"1-Cyclohexylethyl propylphosphonofluoridate",1]
[null,null,null,null,null,null,null,null,null,null,null,null,null,null,null,null,null,1280106333,"1-Ethyl-2-methylpentyl ethylphosphonofluoridate",1]
[null,null,null,null,null,null,null,null,null,null,null,null,null,null,null,null,null,1280106344,"1-Ethyl-2-methylpentyl propylphosphonofluoridate",1]
[null,null,null,null,null,null,null,null,null,null,null,null,null,null,null,null,null,1280106355,"2,3-Dimethylcyclohexyl propylphosphonofluoridate",1]
[null,null,null,null,null,null,null,null,null,null,null,null,null,null,null,null,null,1280106366,"3-Methylcyclopentyl ethylphosphonofluoridate",1]
[null,null,null,null,null,null,null,null,null,null,null,null,null,null,null,null,null,1280199598,"Cyclohexyl P(S)-methylphosphonofluoridate",1]
[null,null,null,null,null,null,null,null,null,null,null,null,null,null,null,null,null,1280199601,"Cyclohexyl P(R)-methylphosphonofluoridate",1]
[null,null,null,null,null,null,null,null,null,null,null,null,null,null,null,null,null,1281955438,"1-Methylpentyl S-2-diisopropylaminoethyl ethylphosphonothiolate",1]
[null,null,null,null,null,null,null,null,null,null,null,null,null,null,null,null,null,1281955450,"1-Methylpentyl S-2-dipropylaminoethyl ethylphosphonothiolate",1]
[null,null,null,null,null,null,null,null,null,null,null,null,null,null,null,null,null,1281955461,"1- Methylpentyl S-2-diethylaminoethyl methylphosphonothiolate",1]
[null,null,null,null,null,null,null,null,null,null,null,null,null,null,null,null,null,1281955483,"Ethyl S-2-diethylpropylammoniumethyl ethylphosphonothiolate iodide",1]
[null,null,null,null,null,null,null,null,null,null,null,null,null,null,null,null,null,1281955494,"Ethyl S-2-dimethylethylammoniumethyl ethylphosphonothiolate iodide",1]
[null,null,null,null,null,null,null,null,null,null,null,null,null,null,null,null,null,1281955518,"Ethyl S-2-diethylmethylammoniumethyl ethylphosphonothiolate iodide",1]
[null,null,null,null,null,null,null,null,null,null,null,null,null,null,null,null,null,1281955530,"Ethyl S-2-dimethylpropylammoniumethyl ethylphosphonothiolate iodide",1]
[null,null,null,null,null,null,null,null,null,null,null,null,null,null,null,null,null,1281955552,"Ethyl S-2-diisopropylaminoethyl isopropylphosphonothiolate",1]
[null,null,null,null,null,null,null,null,null,null,null,null,null,null,null,null,null,1281955563,"Ethyl S-2-trimethylammoniumethyl isopropylphosphonothiolate iodide",1]
[null,null,null,null,null,null,null,null,null,null,null,null,null,null,null,null,null,1281955585,"Ethyl S-2-triethylammoniumethyl methylphosphonothiolate iodide",1]
[null,null,null,null,null,null,null,null,null,null,null,null,null,null,null,null,null,1281955596,"Ethyl S-2-dimethylethylammoniumethyl methylphosphonothiolate iodide",1]
[null,null,null,null,null,null,null,null,null,null,null,null,null,null,null,null,null,1281955643,"Ethyl S-2-dimethylpropylammoniumethyl methylphosphonothiolate iodide",1]
[null,null,null,null,null,null,null,null,null,null,null,null,null,null,null,null,null,1281955654,"Ethyl S-2-dipropylaminoethyl propylphosphonothiolate",1]
[null,null,null,null,null,null,null,null,null,null,null,null,null,null,null,null,null,1281955676,"Methyl S-2-diethylmethylammoniumethyl ethylphosphonothiolate iodide",1]
[null,null,null,null,null,null,null,null,null,null,null,null,null,null,null,null,null,1281955687,"Methyl S-2-trimethylammoniumethyl methylphosphonothiolate iodide",1]
[null,null,null,null,null,null,null,null,null,null,null,null,null,null,null,null,null,1281955698,"Methyl S-2-diisopropylaminoethyl propylphosphonothiolate",1]
[null,null,null,null,null,null,null,null,null,null,null,null,null,null,null,null,null,1281955701,"Isopropyl S-2-triethylammoniumethyl ethylphosphonothiolate iodide",1]
[null,null,null,null,null,null,null,null,null,null,null,null,null,null,null,null,null,1281955712,"Isopropyl S-2-diethylmethylammoniumethyl ethylphosphonothiolate iodide",1]
[null,null,null,null,null,null,null,null,null,null,null,null,null,null,null,null,null,1281955723,"Isopropyl S-2-dimethylethylammoniumethyl ethylphosphonothiolate iodide",1]
[null,null,null,null,null,null,null,null,null,null,null,null,null,null,null,null,null,1281955789,"Isopropyl S-2-dipropylaminoethyl ethylphosphonothiolate",1]
[null,null,null,null,null,null,null,null,null,null,null,null,null,null,null,null,null,1281955790,"Isopropyl S-2-dipropylaminoethyl methylphosphonothiolate",1]
[null,null,null,null,null,null,null,null,null,null,null,null,null,null,null,null,null,1281955803,"Propyl S-2-dipropylaminoethyl ethylphosphonothiolate",1]
[null,null,null,null,null,null,null,null,null,null,null,null,null,null,null,null,null,1281955814,"Propyl S-2-dimethylaminoethyl isopropylphosphonothiolate",1]
[null,null,null,null,null,null,null,null,null,null,null,null,null,null,null,null,null,1281955825,"Propyl S-2-trimethylammoniumethyl methylphosphonothiolate iodide",1]
[null,null,null,null,null,null,null,null,null,null,null,null,null,null,null,null,null,1281955858,"Butyl S-2-dimethylaminoethyl ethylphosphonothiolate",1]
[null,null,null,null,null,null,null,null,null,null,null,null,null,null,null,null,null,1281955869,"Butyl S-2-dipropylaminoethyl ethylphosphonothiolate",1]
[null,null,null,null,null,null,null,null,null,null,null,null,null,null,null,null,null,1281955870,"Isobutyl N-isopropyl-N-methylphosphoramidocyanidate",1]
[null,null,null,null,null,null,null,null,null,null,null,null,null,null,null,null,null,1281955881,"Isobutyl N-isopropyl-N-propylphosphoramidocyanidate",1]
[null,null,null,null,null,null,null,null,null,null,null,null,null,null,null,null,null,1281955892,"Isobutyl N,N-dipropylphosphoramidocyanidate",1]
[null,null,null,null,null,null,null,null,null,null,null,null,null,null,null,null,null,1281955927,"sec-Butyl N,N-diethylphosphoramidocyanidate",1]
[null,null,null,null,null,null,null,null,null,null,null,null,null,null,null,null,null,1281955938,"sec-Butyl N-ethyl-N-isopropylphosphoramidocyanidate",1]
[null,null,null,null,null,null,null,null,null,null,null,null,null,null,null,null,null,1281955949,"sec-Butyl N-ethyl-N-methylphosphoramidocyanidate",1]
[null,null,null,null,null,null,null,null,null,null,null,null,null,null,null,null,null,1281955950,"sec-Butyl N,N-diisopropylphosphoramidocyanidate",1]
[null,null,null,null,null,null,null,null,null,null,null,null,null,null,null,null,null,1281955961,"sec-Butyl N-isopropyl-N-methylphosphoramidocyanidate",1]
[null,null,null,null,null,null,null,null,null,null,null,null,null,null,null,null,null,1281955972,"sec-Butyl N-isopropyl-N-propylphosphoramidocyanidate",1]
[null,null,null,null,null,null,null,null,null,null,null,null,null,null,null,null,null,1281955983,"sec-Butyl N,N-dipropylphosphoramidocyanidate",1]
[null,null,null,null,null,null,null,null,null,null,null,null,null,null,null,null,null,1281956022,"2-Methylpentyl S-2-diisopropylaminoethyl ethylphosphonothiolate",1]
[null,null,null,null,null,null,null,null,null,null,null,null,null,null,null,null,null,1282026463,"S-2-Dimethylaminoethyl isopropylphosphonothiolate",1]
[null,null,null,null,null,null,null,null,null,null,null,null,null,null,null,null,null,1282026496,"S-2-Diethylaminoethyl propylphosphonothiolate",1]
[null,null,null,null,null,null,null,null,null,null,null,null,null,null,null,null,null,1282026509,"S-2-Diisopropylaminoethyl propylphosphonothiolate",1]
[null,null,null,null,null,null,null,null,null,null,null,null,null,null,null,null,null,1282026510,"Cyclopentyl 2-diisopropylaminoethyl methylphosphonite",1]
[null,null,null,null,null,null,null,null,null,null,null,null,null,null,null,null,null,1282026601,"2,2-Dimethylpropyl S-2-dipropylaminoethyl ethylphosphonothiolate",1]
[null,null,null,null,null,null,null,null,null,null,null,null,null,null,null,null,null,1282026612,"2,2-Dimethylpropyl S-2-diethylaminoethyl methylphosphonothiolate",1]
[null,null,null,null,null,null,null,null,null,null,null,null,null,null,null,null,null,1282026634,"2,2-Dimethylpropyl S-2-diisopropylaminoethyl methylphosphonothiolate",1]
[null,null,null,null,null,null,null,null,null,null,null,null,null,null,null,null,null,1282026645,"Isobutyl S-2-diisopropylaminoethyl ethylphosphonothiolate",1]
[null,null,null,null,null,null,null,null,null,null,null,null,null,null,null,null,null,1282026667,"Isobutyl S-2-dipropylaminoethyl ethylphosphonothiolate",1]
[null,null,null,null,null,null,null,null,null,null,null,null,null,null,null,null,null,1282026678,"sec-Butyl S-2-diisopropylaminoethyl ethylphosphonothiolate",1]
[null,null,null,null,null,null,null,null,null,null,null,null,null,null,null,null,null,1282026703,"sec-Butyl S-2-dipropylaminoethyl ethylphosphonothiolate",1]
[null,null,null,null,null,null,null,null,null,null,null,null,null,null,null,null,null,1282026725,"sec-Butyl S-2-dimethylaminoethyl methylphosphonothiolate",1]
[null,null,null,null,null,null,null,null,null,null,null,null,null,null,null,null,null,1282026747,"Cyclopentyl S-2-dimethylaminoethyl ethylphosphonothiolate",1]
[null,null,null,null,null,null,null,null,null,null,null,null,null,null,null,null,null,1282026770,"Cyclopentyl S-2-dipropylaminoethyl ethylphosphonothiolate",1]
[null,null,null,null,null,null,null,null,null,null,null,null,null,null,null,null,null,1282026781,"Cyclopentyl S-2-dipropylaminoethyl methylphosphonothiolate",1]
[null,null,null,null,null,null,null,null,null,null,null,null,null,null,null,null,null,1282026792,"Nonyl S-2-diethylaminoethyl methylphosphonothiolate",1]
[null,null,null,null,null,null,null,null,null,null,null,null,null,null,null,null,null,1282026816,"Nonyl S-2-diisopropylaminoethyl methylphosphonothiolate",1]
[null,null,null,null,null,null,null,null,null,null,null,null,null,null,null,null,null,1282026827,"Nonyl S-2-dimethylaminoethyl methylphosphonothiolate",1]
[null,null,null,null,null,null,null,null,null,null,null,null,null,null,null,null,null,1282026849,"2- Methylcyclopentyl S-2-diethylaminoethyl ethylphosphonothiolate",1]
[null,null,null,null,null,null,null,null,null,null,null,null,null,null,null,null,null,1282026850,"2-Methylcyclopentyl S-2-diisopropylaminoethyl ethylphosphonothiolate",1]
[null,null,null,null,null,null,null,null,null,null,null,null,null,null,null,null,null,1282026883,"2-Methylcyclopentyl S-2-dipropylaminoethyl ethylphosphonothiolate",1]
[null,null,null,null,null,null,null,null,null,null,null,null,null,null,null,null,null,1282026894,"2-Methylcyclopentyl S-2-diethylaminoethyl methylphosphonothiolate",1]
[null,null,null,null,null,null,null,null,null,null,null,null,null,null,null,null,null,1282026907,"2-Methylcyclopentyl S-2-diisopropylaminoethyl methylphosphonothiolate",1]
[null,null,null,null,null,null,null,null,null,null,null,null,null,null,null,null,null,1282026918,"2- Methylcyclopentyl S-2-dipropylaminoethyl methylphosphonothiolate",1]
[null,null,null,null,null,null,null,null,null,null,null,null,null,null,null,null,null,1282026952,"1,2-Dimethylbutyl S-2-diethylaminoethyl ethylphosphonothiolate",1]
[null,null,null,null,null,null,null,null,null,null,null,null,null,null,null,null,null,1282026963,"1,2-Dimethylbutyl S-2-diisopropylaminoethyl ethylphosphonothiolate",1]
[null,null,null,null,null,null,null,null,null,null,null,null,null,null,null,null,null,1282026974,"1,2-Dimethylbutyl S-2-dipropylaminoethyl ethylphosphonothiolate",1]
[null,null,null,null,null,null,null,null,null,null,null,null,null,null,null,null,null,1282026985,"1,2-Dimethylbutyl S-2-diethylaminoethyl methylphosphonothiolate",1]
[null,null,null,null,null,null,null,null,null,null,null,null,null,null,null,null,null,1282026996,"1,2-Dimethylbutyl S-2-diisopropylaminoethyl methylphosphonothiolate",1]
[null,null,null,null,null,null,null,null,null,null,null,null,null,null,null,null,null,1282027002,"1,2-Dimethylbutyl S-2-dipropylaminoethyl methylphosphonothiolate",1]
[null,null,null,null,null,null,null,null,null,null,null,null,null,null,null,null,null,1282027024,"1-Ethylpropyl S-2-diethylaminoethyl ethylphosphonothiolate",1]
[null,null,null,null,null,null,null,null,null,null,null,null,null,null,null,null,null,1282027035,"1-Ethylpropyl S-2-diisopropylaminoethyl ethylphosphonothiolate",1]
[null,null,null,null,null,null,null,null,null,null,null,null,null,null,null,null,null,1282027057,"3,3-Dimethylbutyl S-2-dimethylaminoethyl methylphosphonothiolate",1]
[null,null,null,null,null,null,null,null,null,null,null,null,null,null,null,null,null,1282027079,"1- Methylpentyl S-2-diethylaminoethyl ethylphosphonothiolate",1]
[null,null,null,null,null,null,null,null,null,null,null,null,null,null,null,null,null,1282093779,"S-2-Dipropylaminoethyl ethylphosphonothiolate",1]
[null,null,null,null,null,null,null,null,null,null,null,null,null,null,null,null,null,1282093780,"S-2-Diethylaminoethyl isopropylphosphonothiolate",1]
[null,null,null,null,null,null,null,null,null,null,null,null,null,null,null,null,null,1282093791,"S-2-Diisopropylaminoethyl isopropylphosphonothiolate",1]
[null,null,null,null,null,null,null,null,null,null,null,null,null,null,null,null,null,1282094283,"Ethyl S-2-diethylmethylammoniumethyl ethylphosphonothiolate",1]
[null,null,null,null,null,null,null,null,null,null,null,null,null,null,null,null,null,128478922,"Diethyl methyl(d3)phosphonate",1]
[null,null,null,null,null,null,null,null,null,null,null,null,null,null,null,null,null,1293993380,"Isopropyl S-2-dimethylaminoehtyl methylphosphonothiolate hydrochloride (1:X), [P(S)]-",1]
[null,null,null,null,null,null,null,null,null,null,null,null,null,null,null,null,null,129788869,"Product from the reaction of Methylphosphonic acid and 1,3,5-Triazine-2,4,6-triamine",1]
[null,null,null,null,null,null,null,null,null,null,null,null,null,null,null,null,null,1311200062,"2-Ethylhexyl N,N-dimethylphosphoramidocyanidate",1]
[null,null,null,null,null,null,null,null,null,null,null,null,null,null,null,null,null,1311200073,"1-Methylpentyl N,N-dimethylphosphoramidocyanidate",1]
[null,null,null,null,null,null,null,null,null,null,null,null,null,null,null,null,null,1311200084,"1-Methylhexyl N,N-dimethylphosphoramidocyanidate",1]
[null,null,null,null,null,null,null,null,null,null,null,null,null,null,null,null,null,1311200095,"2- Methylpentyl N-ethyl-N- methylphosphoramidocyanidate",1]
[null,null,null,null,null,null,null,null,null,null,null,null,null,null,null,null,null,1311200108,"1-Methylnonyl N-methyl-N- propylphosphoramidocyanidate",1]
[null,null,null,null,null,null,null,null,null,null,null,null,null,null,null,null,null,1311200119,"1-Methylhexyl N-methyl-N- propylphosphoramidocyanidate",1]
[null,null,null,null,null,null,null,null,null,null,null,null,null,null,null,null,null,1311200120,"Nonyl N-isopropyl-N-methylphosphoramidocyanidate",1]
[null,null,null,null,null,null,null,null,null,null,null,null,null,null,null,null,null,1311200131,"1-Methylbutyl N,N-diisopropylphosphoramidocyanidate",1]
[null,null,null,null,null,null,null,null,null,null,null,null,null,null,null,null,null,1311200142,"Pinacolyl N,N-dipropylphosphoramidocyanidate",1]
[null,null,null,null,null,null,null,null,null,null,null,null,null,null,null,null,null,1311200153,"1-Isopropyl-2-methylpentyl N-isopropyl-N- propylphosphoramidocyanidate",1]
[null,null,null,null,null,null,null,null,null,null,null,null,null,null,null,null,null,13113898,"S-Methyl methylphosphonochloridothiolate",1]
[null,null,null,null,null,null,null,null,null,null,null,null,null,null,null,null,null,1313734905,"2-(N,N-Diisopropyl(C13)amino)ethanol",1]
[null,null,null,null,null,null,null,null,null,null,null,null,null,null,null,null,null,13172128,"1-Methylpentyl methylphosphonofluoridate",1]
[null,null,null,null,null,null,null,null,null,null,null,null,null,null,null,null,null,13213473,"Isobutyl propylphosphonochloridate",1]
[null,null,null,null,null,null,null,null,null,null,null,null,null,null,null,null,null,132412523,"Cyclohexyl S-2-diethylmethylammoniumethyl methylphosphonothiolate iodide",1]
[null,null,null,null,null,null,null,null,null,null,null,null,null,null,null,null,null,13242449,"2-(N,N-Dimethylamino)ethanethiol hydrochloride",1]
[null,null,null,null,null,null,null,null,null,null,null,null,null,null,null,null,null,13273126,"tert-Butyl methylphosphonofluoridate",1]
[null,null,null,null,null,null,null,null,null,null,null,null,null,null,null,null,null,133826401,"Phenyl methylphosphonofluoridate",1]
[null,null,null,null,null,null,null,null,null,null,null,null,null,null,null,null,null,134496369,"(S)-Potassium ethyl methylphosphonothiolate",1]
[null,null,null,null,null,null,null,null,null,null,null,null,null,null,null,null,null,13454596,"Pentyl methylphosphonofluoridate",1]
[null,null,null,null,null,null,null,null,null,null,null,null,null,null,null,null,null,1353011729,"Cyclopentylmethyl ethylphosphonofluoridate",1]
[null,null,null,null,null,null,null,null,null,null,null,null,null,null,null,null,null,1353011763,"2-Methylcyclohexyl ethylphosphonofluoridate",1]
[null,null,null,null,null,null,null,null,null,null,null,null,null,null,null,null,null,1353011809,"3,5-Dimethylcyclohexyl ethylphosphonofluoridate",1]
[null,null,null,null,null,null,null,null,null,null,null,null,null,null,null,null,null,1353011876,"3-Cyclopentylpropyl ethylphosphonofluoridate",1]
[null,null,null,null,null,null,null,null,null,null,null,null,null,null,null,null,null,1353011912,"3-Cyclohexylpropyl ethylphosphonofluoridate",1]
[null,null,null,null,null,null,null,null,null,null,null,null,null,null,null,null,null,1353011934,"2-Isopropyl-5-methylcyclohexyl ethylphosphonofluoridate",1]
[null,null,null,null,null,null,null,null,null,null,null,null,null,null,null,null,null,1353011945,"1-Cyclohexylethyl ethylphosphonofluoridate",1]
[null,null,null,null,null,null,null,null,null,null,null,null,null,null,null,null,null,1353880644,"Isopropyl S-2-dimethylaminoehtyl methylphosphonothiolate hydrochloride (1:1), [P(S)]-",1]
[null,null,null,null,null,null,null,null,null,null,null,null,null,null,null,null,null,135445191,"Hexyl ethylphosphonofluoridate",1]
[null,null,null,null,null,null,null,null,null,null,null,null,null,null,null,null,null,13688829,"2-Ethylhexyl methylphosphonate",1]
[null,null,null,null,null,null,null,null,null,null,null,null,null,null,null,null,null,1369919447,"Isobutyl S-2-diethylaminoethyl methylphosphonothiolate (H+)",1]
[null,null,null,null,null,null,null,null,null,null,null,null,null,null,null,null,null,1373773535,"2-(N,N-Diisopropylamino)ethanol and Hydrogen sulfide (1:1)",1]
[null,null,null,null,null,null,null,null,null,null,null,null,null,null,null,null,null,138780004,"2-Butenyl methylphosphonofluoridate",1]
[null,null,null,null,null,null,null,null,null,null,null,null,null,null,null,null,null,13915985,"(S)-Isopropyl S-2-dimethylaminoethyl methylphosphonothiolate",1]
[null,null,null,null,null,null,null,null,null,null,null,null,null,null,null,null,null,13915996,"(R)-Isopropyl S-2-dimethylaminoethyl methylphosphonothiolate",1]
[null,null,null,null,null,null,null,null,null,null,null,null,null,null,null,null,null,1392221327,"Ether of 2-(N,N-Diisopropylamino)ethanol and Dextran (1:1)",1]
[null,null,null,null,null,null,null,null,null,null,null,null,null,null,null,null,null,139877,"Ethyldiethanolamine",1]
[null,null,null,null,null,null,null,null,null,null,null,null,null,null,null,null,null,13991985,"Ethylphosphonothioic acid",1]
[null,null,null,null,null,null,null,null,null,null,null,null,null,null,null,null,null,1401185941,"Ethyl-d5 methylphosphonofluoridate",1]
[null,null,null,null,null,null,null,null,null,null,null,null,null,null,null,null,null,1401191545,"Isopropyl-d7 methylphosphonofluoridate",1]
[null,null,null,null,null,null,null,null,null,null,null,null,null,null,null,null,null,1401197076,"Cyclohexyl-d11 methylphosphonofluoridate",1]
[null,null,null,null,null,null,null,null,null,null,null,null,null,null,null,null,null,141032953,"2-Propenoic acid, 2-methyl-,(methylphosphinylidene)bis[oxy[2-(chloromethyl)-2,1- ethanediyl]] ester",1]
[null,null,null,null,null,null,null,null,null,null,null,null,null,null,null,null,null,1415799562,"Isopropyl methylphosphonofluoridate hydrate (1:1)",1]
[null,null,null,null,null,null,null,null,null,null,null,null,null,null,null,null,null,1415799573,"Isopropyl methylphosphonofluoridate hydrate (1:2)",1]
[null,null,null,null,null,null,null,null,null,null,null,null,null,null,null,null,null,1415799584,"Isopropyl methylphosphonofluoridate hydrate (1:3)",1]
[null,null,null,null,null,null,null,null,null,null,null,null,null,null,null,null,null,1415799595,"Isopropyl methylphosphonofluoridate hydrate (1:4)",1]
[null,null,null,null,null,null,null,null,null,null,null,null,null,null,null,null,null,1423010096,"Methylphosphonic anhydride with melamin",1]
[null,null,null,null,null,null,null,null,null,null,null,null,null,null,null,null,null,1426080,"Ethyl isopropylphosphonofluoridate",1]
[null,null,null,null,null,null,null,null,null,null,null,null,null,null,null,null,null,1428203671,"Ethyl N,N-dimethylphosphoramidocyanidate P(S)",1]
[null,null,null,null,null,null,null,null,null,null,null,null,null,null,null,null,null,1428203682,"Ethyl N,N-dimethylphosphoramidocyanidate P(R)",1]
[null,null,null,null,null,null,null,null,null,null,null,null,null,null,null,null,null,142868937,"1,4-Bis(2-chloroethylthio)butane",1]
[null,null,null,null,null,null,null,null,null,null,null,null,null,null,null,null,null,142868948,"1,5-Bis(2-chloroethylthio)pentane",1]
[null,null,null,null,null,null,null,null,null,null,null,null,null,null,null,null,null,143663836,"Pinacolyl ethylphosphonate",1]
[null,null,null,null,null,null,null,null,null,null,null,null,null,null,null,null,null,1442476063,"Methyl propyl ethylphosphonothionate",1]
[null,null,null,null,null,null,null,null,null,null,null,null,null,null,null,null,null,144313520,"Octyl methylphosphonofluoridate",1]
[null,null,null,null,null,null,null,null,null,null,null,null,null,null,null,null,null,1445756,"Diisopropyl methylphosphonate",1]
[null,null,null,null,null,null,null,null,null,null,null,null,null,null,null,null,null,1445767,"Isopropyl methylphosphonochloridate",1]
[null,null,null,null,null,null,null,null,null,null,null,null,null,null,null,null,null,14618043,"Cyclobutyl methylphosphonofluoridate",1]
[null,null,null,null,null,null,null,null,null,null,null,null,null,null,null,null,null,14618076,"Benzyl methylphosphonofluoridate",1]
[null,null,null,null,null,null,null,null,null,null,null,null,null,null,null,null,null,1469441302,"2-(N,N-Diethyl(d10)amino)ethyl(d5)chloride",1]
[null,null,null,null,null,null,null,null,null,null,null,null,null,null,null,null,null,14719381,"Cyclooctyl methylphosphonofluoridate",1]
[null,null,null,null,null,null,null,null,null,null,null,null,null,null,null,null,null,148456513,"1-Methylheptyl methylphosphonate",1]
[null,null,null,null,null,null,null,null,null,null,null,null,null,null,null,null,null,148456626,"Dihexyl isopropylphosphonate",1]
[null,null,null,null,null,null,null,null,null,null,null,null,null,null,null,null,null,148456693,"Hexyl methylphosphonate",1]
[null,null,null,null,null,null,null,null,null,null,null,null,null,null,null,null,null,148461874,"Pentyl N,N-dimethylphosphoramidocyanidate",1]
[null,null,null,null,null,null,null,null,null,null,null,null,null,null,null,null,null,14975236,"Methylphosphine borane",1]
[null,null,null,null,null,null,null,null,null,null,null,null,null,null,null,null,null,1497683,"O-Ethyl ethylphosphonothionochloridate",1]
[null,null,null,null,null,null,null,null,null,null,null,null,null,null,null,null,null,1497694,"O-Methyl ethylphosphonothionochloridate",1]
[null,null,null,null,null,null,null,null,null,null,null,null,null,null,null,null,null,1498404,"Ethylphosphonous dichloride",1]
[null,null,null,null,null,null,null,null,null,null,null,null,null,null,null,null,null,1498460,"Isopropylphosphonic dichloride",1]
[null,null,null,null,null,null,null,null,null,null,null,null,null,null,null,null,null,1498540,"N,N-Diethylphosphoramidic dichloride",1]
[null,null,null,null,null,null,null,null,null,null,null,null,null,null,null,null,null,1498608,"Isopropylphosphonothioic dichloride",1]
[null,null,null,null,null,null,null,null,null,null,null,null,null,null,null,null,null,150799852,"Isobutyl methyl methylphosphonate",1]
[null,null,null,null,null,null,null,null,null,null,null,null,null,null,null,null,null,15110095,"Propyl methylphosphonochloridate",1]
[null,null,null,null,null,null,null,null,null,null,null,null,null,null,null,null,null,1511677,"Methylphosphonofluoridic acid",1]
[null,null,null,null,null,null,null,null,null,null,null,null,null,null,null,null,null,151686327,"Reaction products of methylphosphonic acid and (aminoiminomethyl)urea (1:1) with formaldehyde",1]
[null,null,null,null,null,null,null,null,null,null,null,null,null,null,null,null,null,1538698,"Diethyl isopropylphosphonate",1]
[null,null,null,null,null,null,null,null,null,null,null,null,null,null,null,null,null,15573316,"Propylphosphonous dichloride",1]
[null,null,null,null,null,null,null,null,null,null,null,null,null,null,null,null,null,15715410,"Diethyl methylphosphonite",1]
[null,null,null,null,null,null,null,null,null,null,null,null,null,null,null,null,null,15715421,"Dimethyl ethylphosphonite",1]
[null,null,null,null,null,null,null,null,null,null,null,null,null,null,null,null,null,159395763,"1,5-Dimethylhexyl methylphosphonofluoridate",1]
[null,null,null,null,null,null,null,null,null,null,null,null,null,null,null,null,null,159395774,"1,1-Dimethylpropyl methylphosphonofluoridate",1]
[null,null,null,null,null,null,null,null,null,null,null,null,null,null,null,null,null,159395785,"1,1-Diethyl-2,2-dimethylpropyl methylphosphonofluoridate",1]
[null,null,null,null,null,null,null,null,null,null,null,null,null,null,null,null,null,159939874,"Isobutyl S-2-diethylaminoethyl methylphosphonothiolate",1]
[null,null,null,null,null,null,null,null,null,null,null,null,null,null,null,null,null,1604382,"Isobutyl methylphosphonate",1]
[null,null,null,null,null,null,null,null,null,null,null,null,null,null,null,null,null,1619347,"3-Quinuclidinol",1]
[null,null,null,null,null,null,null,null,null,null,null,null,null,null,null,null,null,161935166,"S-2 Diisopropylaminoethyl ethylphosphonothiolate",1]
[null,null,null,null,null,null,null,null,null,null,null,null,null,null,null,null,null,161935188,"S-2 Diethylaminoethyl ethylphosphonothiolate",1]
[null,null,null,null,null,null,null,null,null,null,null,null,null,null,null,null,null,162085827,"Heptyl methylphosphonofluoridate",1]
[null,null,null,null,null,null,null,null,null,null,null,null,null,null,null,null,null,162085838,"sec-Butyl ethylphosphonofluoridate",1]
[null,null,null,null,null,null,null,null,null,null,null,null,null,null,null,null,null,162085849,"Pentyl ethylphosphonofluoridate",1]
[null,null,null,null,null,null,null,null,null,null,null,null,null,null,null,null,null,162085850,"Heptyl ethylphosphonofluoridate",1]
[null,null,null,null,null,null,null,null,null,null,null,null,null,null,null,null,null,162085861,"Propyl N,N-dimethylphosphoramidocyanidate",1]
[null,null,null,null,null,null,null,null,null,null,null,null,null,null,null,null,null,162085872,"Butyl N,N-dimethylphosphoramidocyanidate",1]
[null,null,null,null,null,null,null,null,null,null,null,null,null,null,null,null,null,162085883,"Isobutyl N,N-dimethylphosphoramidocyanidate",1]
[null,null,null,null,null,null,null,null,null,null,null,null,null,null,null,null,null,162085894,"sec-Butyl N,N-dimethylphosphoramidocyanidate",1]
[null,null,null,null,null,null,null,null,null,null,null,null,null,null,null,null,null,162085907,"Hexyl N,N-dimethylphosphoramidocyanidate",1]
[null,null,null,null,null,null,null,null,null,null,null,null,null,null,null,null,null,162085918,"Heptyl N,N-dimethylphosphoramidocyanidate",1]
[null,null,null,null,null,null,null,null,null,null,null,null,null,null,null,null,null,162085929,"Isopropyl S-2-dimethylaminoethyl ethylphosphonothiolate",1]
[null,null,null,null,null,null,null,null,null,null,null,null,null,null,null,null,null,162085930,"Isopropyl S-2-diethylaminoethyl ethylphosphonothiolate",1]
[null,null,null,null,null,null,null,null,null,null,null,null,null,null,null,null,null,162085941,"Methyl S-2-diisopropylaminoethyl ethylphosphonothiolate",1]
[null,null,null,null,null,null,null,null,null,null,null,null,null,null,null,null,null,162085952,"Isopropyl S-2-diisopropylaminoethyl ethylphosphonothiolate",1]
[null,null,null,null,null,null,null,null,null,null,null,null,null,null,null,null,null,1631068240,"O-Cyclohexyl methylphosphononyl tyrosine",1]
[null,null,null,null,null,null,null,null,null,null,null,null,null,null,null,null,null,168885925,"Diisobutyl methylphosphonothiolate",1]
[null,null,null,null,null,null,null,null,null,null,null,null,null,null,null,null,null,169662684,"Butyl 2-diethylaminoethyl methylphosphonite",1]
[null,null,null,null,null,null,null,null,null,null,null,null,null,null,null,null,null,169739484,"Dipinacolyl ethylphosphonate",1]
[null,null,null,null,null,null,null,null,null,null,null,null,null,null,null,null,null,170082561,"Isobutyl ethylphosphonate",1]
[null,null,null,null,null,null,null,null,null,null,null,null,null,null,null,null,null,170082607,"sec-Butyl methyl methylphosphonate",1]
[null,null,null,null,null,null,null,null,null,null,null,null,null,null,null,null,null,170082696,"sec-Butyl isopropylphosphonochloridate",1]
[null,null,null,null,null,null,null,null,null,null,null,null,null,null,null,null,null,170082709,"Isobutyl isopropylphosphonochloridate",1]
[null,null,null,null,null,null,null,null,null,null,null,null,null,null,null,null,null,170082710,"sec-Butyl propylphosphonochloridate",1]
[null,null,null,null,null,null,null,null,null,null,null,null,null,null,null,null,null,170135509,"Isopropyl ethylphosphonate",1]
[null,null,null,null,null,null,null,null,null,null,null,null,null,null,null,null,null,170275328,"Heptyl methylphosphonate",1]
[null,null,null,null,null,null,null,null,null,null,null,null,null,null,null,null,null,170275340,"Bis(2-methoxyethyl) ethylphosphonate",1]
[null,null,null,null,null,null,null,null,null,null,null,null,null,null,null,null,null,170275464,"Dimethyl N,N-diisopropylphosphoramidate",1]
[null,null,null,null,null,null,null,null,null,null,null,null,null,null,null,null,null,170275511,"Pinacolyl ispropylphosphonochloridate",1]
[null,null,null,null,null,null,null,null,null,null,null,null,null,null,null,null,null,170424870,"Cyclohexyl ethylphosphonate",1]
[null,null,null,null,null,null,null,null,null,null,null,null,null,null,null,null,null,170800778,"Methyl S-2-diethylaminoethyl ethylphosphonothiolate",1]
[null,null,null,null,null,null,null,null,null,null,null,null,null,null,null,null,null,170836687,"Mixture of (5-ethyl-2-methyl-2-oxido-1,3,2- dioxaphosphinan-5-yl)methyl methyl methylphosphonate (CAS RN 41203-81-0) and Bis[(5-Ethyl-2-methyl-2- oxido-1,3,2-dioxaphosphinan-5-yl)methyl] methylphosphonate (CAS RN 42595-45-9)",1]
[null,null,null,null,null,null,null,null,null,null,null,null,null,null,null,null,null,17123103,"Dipropyl N,N-dipropylphosphoramidate",1]
[null,null,null,null,null,null,null,null,null,null,null,null,null,null,null,null,null,171741074,"Nonyl ethylphosphonofluoridate",1]
[null,null,null,null,null,null,null,null,null,null,null,null,null,null,null,null,null,172672285,"Mixture of Bis(2-chloroethyl)sulfide (CAS RN 505-60-2) and Bis(2-chloroethylthioethyl)ether (CAS RN 63918-89- 8)",1]
[null,null,null,null,null,null,null,null,null,null,null,null,null,null,null,null,null,17390168,"Ethyl S-sodium ethylphosphonothiolate",1]
[null,null,null,null,null,null,null,null,null,null,null,null,null,null,null,null,null,173967958,"O-Cyclohexyl methylphosphonothiolate sodium salt",1]
[null,null,null,null,null,null,null,null,null,null,null,null,null,null,null,null,null,17579996,"Methyltriphenoxyphosphonium iodide",1]
[null,null,null,null,null,null,null,null,null,null,null,null,null,null,null,null,null,176327972,"Bis(2-chloroethyl-d4)sulfide",1]
[null,null,null,null,null,null,null,null,null,null,null,null,null,null,null,null,null,17698781,"O-Ethyl methylphosphinothionate",1]
[null,null,null,null,null,null,null,null,null,null,null,null,null,null,null,null,null,18005373,"O-Propyl methylphosphonothionochloridate",1]
[null,null,null,null,null,null,null,null,null,null,null,null,null,null,null,null,null,18005408,"O-Ethyl methylphosphonothiolate",1]
[null,null,null,null,null,null,null,null,null,null,null,null,null,null,null,null,null,1831261,"2,4-dimethyl-1,3,2-dioxaphospholane-2-oxide",1]
[null,null,null,null,null,null,null,null,null,null,null,null,null,null,null,null,null,1832537,"Ethyl methylphosphonate",1]
[null,null,null,null,null,null,null,null,null,null,null,null,null,null,null,null,null,1832548,"Isopropyl methylphosphonate",1]
[null,null,null,null,null,null,null,null,null,null,null,null,null,null,null,null,null,1832559,"Butyl methylphosphonate",1]
[null,null,null,null,null,null,null,null,null,null,null,null,null,null,null,null,null,1832582,"Octyl methylphosphonate",1]
[null,null,null,null,null,null,null,null,null,null,null,null,null,null,null,null,null,1832606,"Nonyl methylphosphonate",1]
[null,null,null,null,null,null,null,null,null,null,null,null,null,null,null,null,null,1832684,"Dioctyl methylphosphonate",1]
[null,null,null,null,null,null,null,null,null,null,null,null,null,null,null,null,null,18358344,"Butyl ethylphosphonofluoridate",1]
[null,null,null,null,null,null,null,null,null,null,null,null,null,null,null,null,null,18358366,"Propyl propylphosphonofluoridate",1]
[null,null,null,null,null,null,null,null,null,null,null,null,null,null,null,null,null,18358377,"Isopropyl propylphosphonofluoridate",1]
[null,null,null,null,null,null,null,null,null,null,null,null,null,null,null,null,null,18359052,"Isobutyl methylphosphonochloridate",1]
[null,null,null,null,null,null,null,null,null,null,null,null,null,null,null,null,null,18628734,"O,O-Dibutyl methylphosphonothionate",1]
[null,null,null,null,null,null,null,null,null,null,null,null,null,null,null,null,null,1866984,"Isopropyl S-2-trimethylammoniumethyl methylphosphonothiolate iodide",1]
[null,null,null,null,null,null,null,null,null,null,null,null,null,null,null,null,null,18755367,"Ethyl methyl methylphosphonate",1]
[null,null,null,null,null,null,null,null,null,null,null,null,null,null,null,null,null,18755436,"Dimethyl propylphosphonate",1]
[null,null,null,null,null,null,null,null,null,null,null,null,null,null,null,null,null,18755447,"Methyl propyl propylphosphonate",1]
[null,null,null,null,null,null,null,null,null,null,null,null,null,null,null,null,null,18812516,"Diethyl propylphosphonate",1]
[null,null,null,null,null,null,null,null,null,null,null,null,null,null,null,null,null,18812550,"O,O-Diethyl propylphosphonate Diethyl propanephosphonate Diethoxypropylphosphine oxide Diisopropyl propylphosphonate",1]
[null,null,null,null,null,null,null,null,null,null,null,null,null,null,null,null,null,19236589,"Dibenzyl methylphosphonate",1]
[null,null,null,null,null,null,null,null,null,null,null,null,null,null,null,null,null,192438316,"Dipinacolyl propylphosphonate",1]
[null,null,null,null,null,null,null,null,null,null,null,null,null,null,null,null,null,192698901,"Dipropyl isopropylphosphonate",1]
[null,null,null,null,null,null,null,null,null,null,null,null,null,null,null,null,null,193090163,"1-Isobutyl-3-methylbutyl methylphosphonofluoridate",1]
[null,null,null,null,null,null,null,null,null,null,null,null,null,null,null,null,null,193090254,"Decyl methylphosphonofluoridate",1]
[null,null,null,null,null,null,null,null,null,null,null,null,null,null,null,null,null,1932601,"Cyclohexyl methylphosphonate",1]
[null,null,null,null,null,null,null,null,null,null,null,null,null,null,null,null,null,1942525,"2-(N,N-Diethylamino)ethanethiol hydrochloride",1]
[null,null,null,null,null,null,null,null,null,null,null,null,null,null,null,null,null,198830329,"Methyl S-2-diisopropylaminoethyl methylphosphonothiolate",1]
[null,null,null,null,null,null,null,null,null,null,null,null,null,null,null,null,null,198830363,"Pentyl S-2-diisopropylaminoethyl methylphosphonothiolate",1]
[null,null,null,null,null,null,null,null,null,null,null,null,null,null,null,null,null,198830385,"Pinacolyl S-2-diisopropylaminoethyl methylphosphonothiolate",1]
[null,null,null,null,null,null,null,null,null,null,null,null,null,null,null,null,null,198885540,"1-Methylbutyl methylphosphonate",1]
[null,null,null,null,null,null,null,null,null,null,null,null,null,null,null,null,null,199850607,"3-Methylpentyl methylphosphonofluoridate",1]
[null,null,null,null,null,null,null,null,null,null,null,null,null,null,null,null,null,199850629,"1,4-Dimethylpentyl methylphosphonofluoridate",1]
[null,null,null,null,null,null,null,null,null,null,null,null,null,null,null,null,null,203385788,"Methyl S-2-diethylaminoethyl methylphosphonothiolate",1]
[null,null,null,null,null,null,null,null,null,null,null,null,null,null,null,null,null,203385799,"Isobutyl S-2-N-ethyl-N-methylaminoethyl methylphosphonothiolate",1]
[null,null,null,null,null,null,null,null,null,null,null,null,null,null,null,null,null,2053818,"Isobutyl methylphosphonofluoridate",1]
[null,null,null,null,null,null,null,null,null,null,null,null,null,null,null,null,null,20626997,"O-Isobutyl methylphosphonothiolate",1]
[null,null,null,null,null,null,null,null,null,null,null,null,null,null,null,null,null,20627036,"O-Isobutyl methylphosphonothionochloridate",1]
[null,null,null,null,null,null,null,null,null,null,null,null,null,null,null,null,null,20820808,"Ethyl S-2-dimethylaminoethyl methylphosphonothiolate",1]
[null,null,null,null,null,null,null,null,null,null,null,null,null,null,null,null,null,21068519,"S-2-Diethylaminoethyl methylphosphonothiolate",1]
[null,null,null,null,null,null,null,null,null,null,null,null,null,null,null,null,null,21068520,"Isopropyl S-2-dimethylaminoethyl methylphosphonothiolate",1]
[null,null,null,null,null,null,null,null,null,null,null,null,null,null,null,null,null,211192711,"1-Methylnonyl methylphosphonofluoridate",1]
[null,null,null,null,null,null,null,null,null,null,null,null,null,null,null,null,null,211192722,"1-Methyloctyl methylphosphonofluoridate",1]
[null,null,null,null,null,null,null,null,null,null,null,null,null,null,null,null,null,211192733,"3-Cyclohexylpropyl methylphosphonofluoridate",1]
[null,null,null,null,null,null,null,null,null,null,null,null,null,null,null,null,null,211192744,"Nonyl methylphosphonofluoridate",1]
[null,null,null,null,null,null,null,null,null,null,null,null,null,null,null,null,null,211923896,"Isopropyl methyl propylphosphonate",1]
[null,null,null,null,null,null,null,null,null,null,null,null,null,null,null,null,null,21738250,"Ethyl S-2-diethylaminoethyl ethylphosphonothiolate",1]
[null,null,null,null,null,null,null,null,null,null,null,null,null,null,null,null,null,21770865,"Ethyl S-2-diethylaminoethyl methylphosphonothiolate",1]
[null,null,null,null,null,null,null,null,null,null,null,null,null,null,null,null,null,218964591,"Ethyl S-2-dimethylaminoethyl propylphosphonothiolate",1]
[null,null,null,null,null,null,null,null,null,null,null,null,null,null,null,null,null,218964604,"Ethyl S-2-diisopropylaminoethyl propylphosphonothiolate",1]
[null,null,null,null,null,null,null,null,null,null,null,null,null,null,null,null,null,21921971,"Propyl propylphosphonate",1]
[null,null,null,null,null,null,null,null,null,null,null,null,null,null,null,null,null,220718025,"Ethyl S-2-diethylmethylammoniumethyl methylphosphonothiolate iodide",1]
[null,null,null,null,null,null,null,null,null,null,null,null,null,null,null,null,null,220718036,"Ethyl S-2-diisopropylmethylammoniumethyl methylphosphonothiolate iodide",1]
[null,null,null,null,null,null,null,null,null,null,null,null,null,null,null,null,null,220718058,"Ethyl S-2-trimethylammoniumethyl ethylphosphonothiolate iodide",1]
[null,null,null,null,null,null,null,null,null,null,null,null,null,null,null,null,null,220718069,"Isopropyl S-2 trimethylammoniumethyl ethylphosphonothiolate iodide",1]
[null,null,null,null,null,null,null,null,null,null,null,null,null,null,null,null,null,22107466,"3-Methylbutyl methylphosphonofluoridate",1]
[null,null,null,null,null,null,null,null,null,null,null,null,null,null,null,null,null,22250426,"Dipropyl N,N-diethylphosphoramidate",1]
[null,null,null,null,null,null,null,null,null,null,null,null,null,null,null,null,null,22307819,"Ethyl S-sodium methylphosphonothiolate",1]
[null,null,null,null,null,null,null,null,null,null,null,null,null,null,null,null,null,223129688,"1-14C-2,2-thiobisethanol",1]
[null,null,null,null,null,null,null,null,null,null,null,null,null,null,null,null,null,223129699,"(2-Chloroethyl)(2-chloroethyl-[2-14C])sulfide",1]
[null,null,null,null,null,null,null,null,null,null,null,null,null,null,null,null,null,22583273,"Sodium O-ethyl methylthiophosphonate Sodium O-ethyl methylphosphonothiolate Sodium ethyl methylphosphonothiolate Dicyclopentyl methylphosphonate",1]
[null,null,null,null,null,null,null,null,null,null,null,null,null,null,null,null,null,2261838,"Isobutyl ethylphosphonofluoridate",1]
[null,null,null,null,null,null,null,null,null,null,null,null,null,null,null,null,null,22925968,"(1S)-1-Methylheptyl methylphosphonofluoridate",1]
[null,null,null,null,null,null,null,null,null,null,null,null,null,null,null,null,null,22925979,"1-Methylheptyl methylphosphonofluoridate",1]
[null,null,null,null,null,null,null,null,null,null,null,null,null,null,null,null,null,22925980,"Cyclopentyl S-2-dimethylaminoethyl methylphosphonothiolate",1]
[null,null,null,null,null,null,null,null,null,null,null,null,null,null,null,null,null,23023474,"S-Ethyl methylphosphonothiolate",1]
[null,null,null,null,null,null,null,null,null,null,null,null,null,null,null,null,null,23164478,"Butyl methylphosphonochloridate",1]
[null,null,null,null,null,null,null,null,null,null,null,null,null,null,null,null,null,23306801,"N,N-Diisopropylphosphoramidic dichloride",1]
[null,null,null,null,null,null,null,null,null,null,null,null,null,null,null,null,null,2404731,"Dibutyl methylphosphonate",1]
[null,null,null,null,null,null,null,null,null,null,null,null,null,null,null,null,null,2404811,"Ethyl N,N-diethyl-P-methylphosphonamidate",1]
[null,null,null,null,null,null,null,null,null,null,null,null,null,null,null,null,null,24578823,"Ethyl S-2-triethylammoniumethyl ethylphosphonothiolate iodide",1]
[null,null,null,null,null,null,null,null,null,null,null,null,null,null,null,null,null,24753126,"(1R)-1-Methylheptyl methylphosphonofluoridate",1]
[null,null,null,null,null,null,null,null,null,null,null,null,null,null,null,null,null,2478924,"Ethyl S-2-trimethylammoniumethyl methylphosphonothiolate iodide",1]
[null,null,null,null,null,null,null,null,null,null,null,null,null,null,null,null,null,249934121,"Pinacolyl propylphosphonate",1]
[null,null,null,null,null,null,null,null,null,null,null,null,null,null,null,null,null,249934132,"Methyl isopropylphosphonate",1]
[null,null,null,null,null,null,null,null,null,null,null,null,null,null,null,null,null,249934154,"Isopropyl isopropylphosphonate",1]
[null,null,null,null,null,null,null,null,null,null,null,null,null,null,null,null,null,249934165,"Pinacolyl isopropylphosphonate",1]
[null,null,null,null,null,null,null,null,null,null,null,null,null,null,null,null,null,2511173,"Methylphosphonic bis(dimethylamide)",1]
[null,null,null,null,null,null,null,null,null,null,null,null,null,null,null,null,null,25235158,"Isopropylphosphonous dichloride",1]
[null,null,null,null,null,null,null,null,null,null,null,null,null,null,null,null,null,2524154,"O-Methyl methylphosphonothionochloridate",1]
[null,null,null,null,null,null,null,null,null,null,null,null,null,null,null,null,null,2524165,"O-Ethyl methylphosphonothionochloridate",1]
[null,null,null,null,null,null,null,null,null,null,null,null,null,null,null,null,null,25333420,"R-(-)-3-Quinuclidinol",1]
[null,null,null,null,null,null,null,null,null,null,null,null,null,null,null,null,null,2625765,"2-Chloroethylchloromethylsulfide",1]
[null,null,null,null,null,null,null,null,null,null,null,null,null,null,null,null,null,26348710,"(R)-Isopropyl S-2-trimethylammoniumethyl methylphosphonothiolate iodide",1]
[null,null,null,null,null,null,null,null,null,null,null,null,null,null,null,null,null,2651856,"Diethyl ethylphosphonite",1]
[null,null,null,null,null,null,null,null,null,null,null,null,null,null,null,null,null,27797359,"Propylphosphonothioic acid",1]
[null,null,null,null,null,null,null,null,null,null,null,null,null,null,null,null,null,2799588,"Bis(2-chloroethyl) methylphosphonate",1]
[null,null,null,null,null,null,null,null,null,null,null,null,null,null,null,null,null,28364218,"Cyclohexyl propylphosphonofluoridate",1]
[null,null,null,null,null,null,null,null,null,null,null,null,null,null,null,null,null,28616515,"Diisopropyl dimethylpyrophosphonate",1]
[null,null,null,null,null,null,null,null,null,null,null,null,null,null,null,null,null,28829950,"Isopropyl ethylphosphonochloridate",1]
[null,null,null,null,null,null,null,null,null,null,null,null,null,null,null,null,null,28830004,"Ethyl propylphosphonochloridate",1]
[null,null,null,null,null,null,null,null,null,null,null,null,null,null,null,null,null,28841409,"S-2-Dipropylaminoethyl methylphosphonothionofluoridate",1]
[null,null,null,null,null,null,null,null,null,null,null,null,null,null,null,null,null,288578132,"Methyl S-2-N-isopropyl-N-methylethylamino methylphosphonothiolate",1]
[null,null,null,null,null,null,null,null,null,null,null,null,null,null,null,null,null,288578154,"Methyl S-2-N-ethyl-N-isopropylaminoethyl methylphosphonothiolate",1]
[null,null,null,null,null,null,null,null,null,null,null,null,null,null,null,null,null,288578187,"tert-Butyl S-2-diethylaminoethyl methylphosphonothiolate",1]
[null,null,null,null,null,null,null,null,null,null,null,null,null,null,null,null,null,2893438,"2-(N-Ethyl-N-methylamino)ethanol",1]
[null,null,null,null,null,null,null,null,null,null,null,null,null,null,null,null,null,2893450,"2-(N-Methyl-N-propylamino)ethanol",1]
[null,null,null,null,null,null,null,null,null,null,null,null,null,null,null,null,null,2893563,"2-(N-Ethyl-N-propylamino)ethanol",1]
[null,null,null,null,null,null,null,null,null,null,null,null,null,null,null,null,null,2893610,"2-(N-Ethyl-N-isopropylamino)ethanol",1]
[null,null,null,null,null,null,null,null,null,null,null,null,null,null,null,null,null,294675517,"Phosphonic acid, methyl-, polyglycol ester (Exolit OP 560 TP)",1]
[null,null,null,null,null,null,null,null,null,null,null,null,null,null,null,null,null,2992952,"Propyl ethylphosphonofluoridate",1]
[null,null,null,null,null,null,null,null,null,null,null,null,null,null,null,null,null,3001987,"3,9-Dimethyl-2,4,8,10-tetraoxa-3,9- diphosphaspiro[5.5]undecane 3,9-dioxide",1]
[null,null,null,null,null,null,null,null,null,null,null,null,null,null,null,null,null,30102977,"S-2-Dipropylaminoethyl methylphosphonothiolate",1]
[null,null,null,null,null,null,null,null,null,null,null,null,null,null,null,null,null,30593658,"1,3,3-Trimethylbutyl methylphosphonofluoridate",1]
[null,null,null,null,null,null,null,null,null,null,null,null,null,null,null,null,null,30593716,"1-Methyl-2-propynyl methylphosphonofluoridate",1]
[null,null,null,null,null,null,null,null,null,null,null,null,null,null,null,null,null,3167699,"Diethyl N,N-diethylphosphoramidate",1]
[null,null,null,null,null,null,null,null,null,null,null,null,null,null,null,null,null,3238753,"2-(N,N-Dipropylamino)ethanol",1]
[null,null,null,null,null,null,null,null,null,null,null,null,null,null,null,null,null,327980,"O-Ethyl O-(2,4,5-trichlorophenyl) ethylphosphonothionate",1]
[null,null,null,null,null,null,null,null,null,null,null,null,null,null,null,null,null,329997,"Cyclohexyl methylphosphonofluoridate",1]
[null,null,null,null,null,null,null,null,null,null,null,null,null,null,null,null,null,331954042,"Isopropyl methyl isopropylphosphonate",1]
[null,null,null,null,null,null,null,null,null,null,null,null,null,null,null,null,null,333416050,"2-Methylpentyl methylphosphonofluoridate",1]
[null,null,null,null,null,null,null,null,null,null,null,null,null,null,null,null,null,333416061,"2,4,4-Trimethylpentyl methylphosphonofluoridate",1]
[null,null,null,null,null,null,null,null,null,null,null,null,null,null,null,null,null,333416072,"Octyl ethylphosphonofluoridate",1]
[null,null,null,null,null,null,null,null,null,null,null,null,null,null,null,null,null,333416083,"Decyl ethylphosphonofluoridate",1]
[null,null,null,null,null,null,null,null,null,null,null,null,null,null,null,null,null,333416094,"1-Methylbutyl ethylphosphonofluoridate",1]
[null,null,null,null,null,null,null,null,null,null,null,null,null,null,null,null,null,333416107,"1-Methylhexyl ethylphosphonofluoridate",1]
[null,null,null,null,null,null,null,null,null,null,null,null,null,null,null,null,null,333416118,"1-Methyloctyl ethylphosphonofluoridate",1]
[null,null,null,null,null,null,null,null,null,null,null,null,null,null,null,null,null,333416129,"2-Methylpentyl ethylphosphonofluoridate",1]
[null,null,null,null,null,null,null,null,null,null,null,null,null,null,null,null,null,333416130,"2,4,4-Trimethylpentyl ethylphosphonofluoridate",1]
[null,null,null,null,null,null,null,null,null,null,null,null,null,null,null,null,null,333416141,"Methyl propylphosphonofluoridate",1]
[null,null,null,null,null,null,null,null,null,null,null,null,null,null,null,null,null,333416152,"Ethyl propylphosphonofluoridate",1]
[null,null,null,null,null,null,null,null,null,null,null,null,null,null,null,null,null,333416163,"Butyl propylphosphonofluoridate",1]
[null,null,null,null,null,null,null,null,null,null,null,null,null,null,null,null,null,333416174,"Pentyl propylphosphonofluoridate",1]
[null,null,null,null,null,null,null,null,null,null,null,null,null,null,null,null,null,333416185,"Hexyl propylphosphonofluoridate",1]
[null,null,null,null,null,null,null,null,null,null,null,null,null,null,null,null,null,333416196,"Heptyl propylphosphonofluoridate",1]
[null,null,null,null,null,null,null,null,null,null,null,null,null,null,null,null,null,333416209,"Octyl propylphosphonofluoridate",1]
[null,null,null,null,null,null,null,null,null,null,null,null,null,null,null,null,null,333416210,"Nonyl propylphosphonofluoridate",1]
[null,null,null,null,null,null,null,null,null,null,null,null,null,null,null,null,null,333416221,"Decyl propylphosphonofluoridate",1]
[null,null,null,null,null,null,null,null,null,null,null,null,null,null,null,null,null,333416232,"1-Methylbutyl propylphosphonofluoridate",1]
[null,null,null,null,null,null,null,null,null,null,null,null,null,null,null,null,null,333416243,"1-Methylhexyl propylphosphonofluoridate",1]
[null,null,null,null,null,null,null,null,null,null,null,null,null,null,null,null,null,333416254,"1-Methyloctyl propylphosphonofluoridate",1]
[null,null,null,null,null,null,null,null,null,null,null,null,null,null,null,null,null,333416265,"Isobutyl propylphosphonofluoridate",1]
[null,null,null,null,null,null,null,null,null,null,null,null,null,null,null,null,null,333416276,"2-Methylpentyl propylphosphonofluoridate",1]
[null,null,null,null,null,null,null,null,null,null,null,null,null,null,null,null,null,333416287,"2,4,4-Trimethylpentyl propylphosphonofluoridate",1]
[null,null,null,null,null,null,null,null,null,null,null,null,null,null,null,null,null,333416298,"Propyl isopropylphosphonofluoridate",1]
[null,null,null,null,null,null,null,null,null,null,null,null,null,null,null,null,null,333416301,"Butyl isopropylphosphonofluoridate",1]
[null,null,null,null,null,null,null,null,null,null,null,null,null,null,null,null,null,333416312,"Pentyl isopropylphosphonofluoridate",1]
[null,null,null,null,null,null,null,null,null,null,null,null,null,null,null,null,null,333416323,"Hexyl isopropylphosphonofluoridate",1]
[null,null,null,null,null,null,null,null,null,null,null,null,null,null,null,null,null,333416334,"Heptyl isopropylphosphonofluoridate",1]
[null,null,null,null,null,null,null,null,null,null,null,null,null,null,null,null,null,333416345,"Octyl isopropylphosphonofluoridate",1]
[null,null,null,null,null,null,null,null,null,null,null,null,null,null,null,null,null,333416356,"Nonyl isopropylphosphonofluoridate",1]
[null,null,null,null,null,null,null,null,null,null,null,null,null,null,null,null,null,333416367,"Decyl isopropylphosphonofluoridate",1]
[null,null,null,null,null,null,null,null,null,null,null,null,null,null,null,null,null,333416378,"1-Methylbutyl isopropylphosphonofluoridate",1]
[null,null,null,null,null,null,null,null,null,null,null,null,null,null,null,null,null,333416389,"1-Methylhexyl isopropylphosphonofluoridate",1]
[null,null,null,null,null,null,null,null,null,null,null,null,null,null,null,null,null,333416390,"1-Methyloctyl isopropylphosphonofluoridate",1]
[null,null,null,null,null,null,null,null,null,null,null,null,null,null,null,null,null,333416403,"Isobutyl isopropylphosphonofluoridate",1]
[null,null,null,null,null,null,null,null,null,null,null,null,null,null,null,null,null,333416414,"2-Methylpentyl isopropylphosphonofluoridate",1]
[null,null,null,null,null,null,null,null,null,null,null,null,null,null,null,null,null,333416436,"2,4,4-Trimethylpentyl isopropylphosphonofluoridate",1]
[null,null,null,null,null,null,null,null,null,null,null,null,null,null,null,null,null,333416550,"Cyclohexyl isopropylphosphonofluoridate",1]
[null,null,null,null,null,null,null,null,null,null,null,null,null,null,null,null,null,333416607,"4-Ethylcyclohexyl methylphosphonofluoridate",1]
[null,null,null,null,null,null,null,null,null,null,null,null,null,null,null,null,null,333416630,"3,3,5,5-Tetramethylcyclohexyl methylphosphonofluoridate",1]
[null,null,null,null,null,null,null,null,null,null,null,null,null,null,null,null,null,333416641,"3-Methylcyclohexyl ethylphosphonofluoridate",1]
[null,null,null,null,null,null,null,null,null,null,null,null,null,null,null,null,null,333416652,"4-Ethylcyclohexyl ethylphosphonofluoridate",1]
[null,null,null,null,null,null,null,null,null,null,null,null,null,null,null,null,null,333416685,"3,3,5,5-Tetramethylcyclohexyl ethylphosphonofluoridate",1]
[null,null,null,null,null,null,null,null,null,null,null,null,null,null,null,null,null,333416696,"3-Methylcyclohexyl propylphosphonofluoridate",1]
[null,null,null,null,null,null,null,null,null,null,null,null,null,null,null,null,null,333416709,"4-Ethylcyclohexyl propylphosphonofluoridate",1]
[null,null,null,null,null,null,null,null,null,null,null,null,null,null,null,null,null,333416721,"3,3,5,5-Tetramethylcyclohexyl propylphosphonofluoridate",1]
[null,null,null,null,null,null,null,null,null,null,null,null,null,null,null,null,null,333416732,"3-Methylcyclohexyl isopropylphosphonofluoridate",1]
[null,null,null,null,null,null,null,null,null,null,null,null,null,null,null,null,null,333416743,"4-Ethylcyclohexyl isopropylphosphonofluoridate",1]
[null,null,null,null,null,null,null,null,null,null,null,null,null,null,null,null,null,333416765,"3,3,5,5-Tetramethylcyclohexyl isopropylphosphonofluoridate",1]
[null,null,null,null,null,null,null,null,null,null,null,null,null,null,null,null,null,34255873,"Ammonium hydrogen methylphosphonate",1]
[null,null,null,null,null,null,null,null,null,null,null,null,null,null,null,null,null,34256718,"S-2-Dimethylaminoethyl methylphosphonothiolate",1]
[null,null,null,null,null,null,null,null,null,null,null,null,null,null,null,null,null,34461568,"(Z)-2-Chlorovinyldichloroarsine",1]
[null,null,null,null,null,null,null,null,null,null,null,null,null,null,null,null,null,345239034,"Cyclobutyl ethylphosphonofluoridate",1]
[null,null,null,null,null,null,null,null,null,null,null,null,null,null,null,null,null,345239045,"Cyclobutyl isopropylphosphonofluoridate",1]
[null,null,null,null,null,null,null,null,null,null,null,null,null,null,null,null,null,345239056,"Cyclobutyl propylphosphonofluoridate",1]
[null,null,null,null,null,null,null,null,null,null,null,null,null,null,null,null,null,345239067,"Cyclopentyl ethylphosphonofluoridate",1]
[null,null,null,null,null,null,null,null,null,null,null,null,null,null,null,null,null,345239078,"Cyclopentyl isopropylphosphonofluoridate",1]
[null,null,null,null,null,null,null,null,null,null,null,null,null,null,null,null,null,345239089,"Cyclopentyl propylphosphonofluoridate",1]
[null,null,null,null,null,null,null,null,null,null,null,null,null,null,null,null,null,345239090,"Cycloheptyl ethylphosphonofluoridate",1]
[null,null,null,null,null,null,null,null,null,null,null,null,null,null,null,null,null,345239103,"Cycloheptyl isopropylphosphonofluoridate",1]
[null,null,null,null,null,null,null,null,null,null,null,null,null,null,null,null,null,345239114,"Cycloheptyl propylphosphonofluoridate",1]
[null,null,null,null,null,null,null,null,null,null,null,null,null,null,null,null,null,345239125,"Cyclooctyl ethylphosphonofluoridate",1]
[null,null,null,null,null,null,null,null,null,null,null,null,null,null,null,null,null,345239136,"Cyclooctyl isopropylphosphonofluoridate",1]
[null,null,null,null,null,null,null,null,null,null,null,null,null,null,null,null,null,345239147,"Cyclooctyl propylphosphonofluoridate",1]
[null,null,null,null,null,null,null,null,null,null,null,null,null,null,null,null,null,345260664,"1-Ethyl-2-methylpropyl methylphosphonofluoridate",1]
[null,null,null,null,null,null,null,null,null,null,null,null,null,null,null,null,null,345260675,"1-Ethyl-2-methylpropyl ethylphosphonofluoridate",1]
[null,null,null,null,null,null,null,null,null,null,null,null,null,null,null,null,null,345260686,"1-Ethyl-2-methylpropyl isopropylphosphonofluoridate",1]
[null,null,null,null,null,null,null,null,null,null,null,null,null,null,null,null,null,345260697,"1-Ethyl-2-methylpropyl propylphosphonofluoridate",1]
[null,null,null,null,null,null,null,null,null,null,null,null,null,null,null,null,null,345260700,"1-Isopropylbutyl methylphosphonofluoridate",1]
[null,null,null,null,null,null,null,null,null,null,null,null,null,null,null,null,null,345260711,"1-Isopropylbutyl ethylphosphonofluoridate",1]
[null,null,null,null,null,null,null,null,null,null,null,null,null,null,null,null,null,345260722,"1-Isopropylbutyl isopropylphosphonofluoridate",1]
[null,null,null,null,null,null,null,null,null,null,null,null,null,null,null,null,null,345260733,"1-Isopropylbutyl propylphosphonofluoridate",1]
[null,null,null,null,null,null,null,null,null,null,null,null,null,null,null,null,null,345260755,"1-Ethyl-2,2-dimethylpropyl methylphosphonofluoridate",1]
[null,null,null,null,null,null,null,null,null,null,null,null,null,null,null,null,null,345260766,"1-Ethyl-2,2-dimethylpropyl ethylphosphonofluoridate",1]
[null,null,null,null,null,null,null,null,null,null,null,null,null,null,null,null,null,345260777,"1-Ethyl-2,2-dimethylpropyl isopropylphosphonofluoridate",1]
[null,null,null,null,null,null,null,null,null,null,null,null,null,null,null,null,null,345260788,"1-Ethyl-2,2-dimethylpropyl propylphosphonofluoridate",1]
[null,null,null,null,null,null,null,null,null,null,null,null,null,null,null,null,null,345260799,"1-Isopropyl-2-methylpropyl ethylphosphonofluoridate",1]
[null,null,null,null,null,null,null,null,null,null,null,null,null,null,null,null,null,345260802,"1-Isopropyl-2-methylpropyl isopropylphosphonofluoridate",1]
[null,null,null,null,null,null,null,null,null,null,null,null,null,null,null,null,null,345260813,"1-Isopropyl-2-methylpropyl propylphosphonofluoridate",1]
[null,null,null,null,null,null,null,null,null,null,null,null,null,null,null,null,null,345260824,"3,7-Dimethyloctyl methylphosphonofluoridate",1]
[null,null,null,null,null,null,null,null,null,null,null,null,null,null,null,null,null,345260835,"3,7-Dimethyloctyl ethylphosphonofluoridate",1]
[null,null,null,null,null,null,null,null,null,null,null,null,null,null,null,null,null,345260846,"3,7-Dimethyloctyl isopropylphosphonofluoridate",1]
[null,null,null,null,null,null,null,null,null,null,null,null,null,null,null,null,null,345260857,"3,7-Dimethyloctyl propylphosphonofluoridate",1]
[null,null,null,null,null,null,null,null,null,null,null,null,null,null,null,null,null,345260868,"1,3-Dimethylbutyl ethylphosphonofluoridate",1]
[null,null,null,null,null,null,null,null,null,null,null,null,null,null,null,null,null,345260879,"1,3-Dimethylbutyl isopropylphosphonofluoridate",1]
[null,null,null,null,null,null,null,null,null,null,null,null,null,null,null,null,null,345260880,"1,3-Dimethylbutyl propylphosphonofluoridate",1]
[null,null,null,null,null,null,null,null,null,null,null,null,null,null,null,null,null,34583341,"S-(+)-3-Quinuclidinol",1]
[null,null,null,null,null,null,null,null,null,null,null,null,null,null,null,null,null,352523,"sec-Butyl methylphosphonofluoridate",1]
[null,null,null,null,null,null,null,null,null,null,null,null,null,null,null,null,null,352534,"1,3-Dimethylbutyl methylphosphonofluoridate",1]
[null,null,null,null,null,null,null,null,null,null,null,null,null,null,null,null,null,352636,"Butyl methylphosphonofluoridate",1]
[null,null,null,null,null,null,null,null,null,null,null,null,null,null,null,null,null,353888,"Methyl methylphosphonofluoridate",1]
[null,null,null,null,null,null,null,null,null,null,null,null,null,null,null,null,null,35523898,"Saxitoxin",1]
[null,null,null,null,null,null,null,null,null,null,null,null,null,null,null,null,null,3563368,"1,2-Bis(2-chloroethylthio)ethane",1]
[null,null,null,null,null,null,null,null,null,null,null,null,null,null,null,null,null,35851628,"Aluminium methyl methylphosphonate",1]
[null,null,null,null,null,null,null,null,null,null,null,null,null,null,null,null,null,363626500,"Bis(polyoxyethylene) methylphosphonate",1]
[null,null,null,null,null,null,null,null,null,null,null,null,null,null,null,null,null,36716606,"2-(N,N-Dipropylamino)ethylchloride",1]
[null,null,null,null,null,null,null,null,null,null,null,null,null,null,null,null,null,36759667,"2-(N-Isopropyl-N-methylamino)ethanethiol",1]
[null,null,null,null,null,null,null,null,null,null,null,null,null,null,null,null,null,36759678,"2-(N-Ethyl-N-isopropylamino)ethanethiol",1]
[null,null,null,null,null,null,null,null,null,null,null,null,null,null,null,null,null,372623,"2,2-Dimethylpropyl methylphosphonofluoridate",1]
[null,null,null,null,null,null,null,null,null,null,null,null,null,null,null,null,null,3759395,"Polyethylene glycol methylphosphonate (2:1)",1]
[null,null,null,null,null,null,null,null,null,null,null,null,null,null,null,null,null,378791323,"Mixture of Bis(2-chloroethyl)sulfide (CAS RN 505-60-2) and 2-Chlorovinyldichloroarsine (CAS RN 541-25-3)",1]
[null,null,null,null,null,null,null,null,null,null,null,null,null,null,null,null,null,382218,"1,1,3,3,3-Pentafluoro-2-(trifluoromethyl)-1-propene",1]
[null,null,null,null,null,null,null,null,null,null,null,null,null,null,null,null,null,40334698,"Bis(2-chlorovinyl)chloroarsine",1]
[null,null,null,null,null,null,null,null,null,null,null,null,null,null,null,null,null,40334701,"Tris(2-chlorovinyl)arsine",1]
[null,null,null,null,null,null,null,null,null,null,null,null,null,null,null,null,null,408326307,"2-(N-Isopropyl-N-methylamino)ethylchloride",1]
[null,null,null,null,null,null,null,null,null,null,null,null,null,null,null,null,null,40881989,"N,N-Dipropylphosphoramidic dichloride",1]
[null,null,null,null,null,null,null,null,null,null,null,null,null,null,null,null,null,41203810,"(5-Ethyl-2-methyl-2-oxido-1,3,2-dioxaphosphinan-5- yl)methyl methyl methylphosphonate",1]
[null,null,null,null,null,null,null,null,null,null,null,null,null,null,null,null,null,41480755,"2-(N,N-Diisopropylamino)ethanethiol hydrochloride",1]
[null,null,null,null,null,null,null,null,null,null,null,null,null,null,null,null,null,4206944,"Methylphosphinic acid",1]
[null,null,null,null,null,null,null,null,null,null,null,null,null,null,null,null,null,4241343,"O-Cyclohexyl methylphosphonothionofluoridate",1]
[null,null,null,null,null,null,null,null,null,null,null,null,null,null,null,null,null,42595459,"Bis[(5-Ethyl-2-methyl-2-oxido-1,3,2-dioxaphosphinan-5- yl)methyl] methylphosphonate",1]
[null,null,null,null,null,null,null,null,null,null,null,null,null,null,null,null,null,4261681,"2-(N,N-Diisopropylamino)ethylchloride hydrochloride",1]
[null,null,null,null,null,null,null,null,null,null,null,null,null,null,null,null,null,453574975,"2,2-Dimethylcyclopentyl methylphosphonofluoridate",1]
[null,null,null,null,null,null,null,null,null,null,null,null,null,null,null,null,null,4535777,"2-(N-Isopropyl-N-propylamino)ethanol",1]
[null,null,null,null,null,null,null,null,null,null,null,null,null,null,null,null,null,4535868,"2-(N,N-dipropylamino)ethylchloride hydrochloride (1:1)",1]
[null,null,null,null,null,null,null,null,null,null,null,null,null,null,null,null,null,4584467,"2-(N,N-Dimethylamino)ethylchloride hydrochloride",1]
[null,null,null,null,null,null,null,null,null,null,null,null,null,null,null,null,null,458719,"2-Ethylhexyl methylphosphonofluoridate",1]
[null,null,null,null,null,null,null,null,null,null,null,null,null,null,null,null,null,460091252,"Bis(1-methylbutyl) methylphosphonate",1]
[null,null,null,null,null,null,null,null,null,null,null,null,null,null,null,null,null,460091274,"2-Ethylhexyl isopropylphosphonofluoridate",1]
[null,null,null,null,null,null,null,null,null,null,null,null,null,null,null,null,null,4628120,"Dibutyl propylphosphonate",1]
[null,null,null,null,null,null,null,null,null,null,null,null,null,null,null,null,null,464073,"3,3-Dimethyl-2-butanol",1]
[null,null,null,null,null,null,null,null,null,null,null,null,null,null,null,null,null,4672382,"Propylphosphonic acid",1]
[null,null,null,null,null,null,null,null,null,null,null,null,null,null,null,null,null,468711902,"2-Methylbutyl methylphosphonofluoridate",1]
[null,null,null,null,null,null,null,null,null,null,null,null,null,null,null,null,null,468711924,"2-Methoxyethyl methylphosphonofluoridate",1]
[null,null,null,null,null,null,null,null,null,null,null,null,null,null,null,null,null,468711935,"2-Ethoxyethyl methylphosphonofluoridate",1]
[null,null,null,null,null,null,null,null,null,null,null,null,null,null,null,null,null,468711946,"2-Methylbutyl ethylphosphonofluoridate",1]
[null,null,null,null,null,null,null,null,null,null,null,null,null,null,null,null,null,468711957,"3-Methylbutyl ethylphosphonofluoridate",1]
[null,null,null,null,null,null,null,null,null,null,null,null,null,null,null,null,null,468711968,"4-Methylcyclohexyl ethylphosphonofluoridate",1]
[null,null,null,null,null,null,null,null,null,null,null,null,null,null,null,null,null,468711979,"2-Ethylhexyl ethylphosphonofluoridate",1]
[null,null,null,null,null,null,null,null,null,null,null,null,null,null,null,null,null,468711980,"1-Methylheptyl ethylphosphonofluoridate",1]
[null,null,null,null,null,null,null,null,null,null,null,null,null,null,null,null,null,468712018,"sec-Butyl propylphosphonofluoridate",1]
[null,null,null,null,null,null,null,null,null,null,null,null,null,null,null,null,null,468712029,"2-Methylbutyl propylphosphonofluoridate",1]
[null,null,null,null,null,null,null,null,null,null,null,null,null,null,null,null,null,468712030,"3-Methylbutyl propylphosphonofluoridate",1]
[null,null,null,null,null,null,null,null,null,null,null,null,null,null,null,null,null,468712041,"4-Methylcyclohexyl propylphosphonofluoridate",1]
[null,null,null,null,null,null,null,null,null,null,null,null,null,null,null,null,null,468712063,"1-Methylheptyl propylphosphonofluoridate",1]
[null,null,null,null,null,null,null,null,null,null,null,null,null,null,null,null,null,468712074,"sec-Butyl isopropylphosphonofluoridate",1]
[null,null,null,null,null,null,null,null,null,null,null,null,null,null,null,null,null,468712085,"4-Methylcyclohexyl isopropylphosphonofluoridate",1]
[null,null,null,null,null,null,null,null,null,null,null,null,null,null,null,null,null,468712096,"1-Methylheptyl isopropylphosphonofluoridate",1]
[null,null,null,null,null,null,null,null,null,null,null,null,null,null,null,null,null,468712109,"Butyl S-2-diethylaminoethyl methylphosphonothiolate",1]
[null,null,null,null,null,null,null,null,null,null,null,null,null,null,null,null,null,468712110,"sec-Butyl S-2-diethylaminoethyl methylphosphonothiolate",1]
[null,null,null,null,null,null,null,null,null,null,null,null,null,null,null,null,null,468712121,"3-Methylbutyl S-2-diethylaminoethyl methylphosphonothiolate",1]
[null,null,null,null,null,null,null,null,null,null,null,null,null,null,null,null,null,468712132,"Pinacolyl S-2-diethylaminoethyl methylphosphonothiolate",1]
[null,null,null,null,null,null,null,null,null,null,null,null,null,null,null,null,null,468712143,"2-Methylpentyl S-2-diethylaminoethyl methylphosphonothiolate",1]
[null,null,null,null,null,null,null,null,null,null,null,null,null,null,null,null,null,468712154,"Hexyl S-2-diethylaminoethyl methylphosphonothiolate",1]
[null,null,null,null,null,null,null,null,null,null,null,null,null,null,null,null,null,468712176,"Heptyl S-2-diethylaminoethyl methylphosphonothiolate",1]
[null,null,null,null,null,null,null,null,null,null,null,null,null,null,null,null,null,468712187,"Methyl S-2-dimethylaminoethyl ethylphosphonothiolate",1]
[null,null,null,null,null,null,null,null,null,null,null,null,null,null,null,null,null,468712198,"Propyl S-2-diethylaminoethyl ethylphosphonothiolate",1]
[null,null,null,null,null,null,null,null,null,null,null,null,null,null,null,null,null,468712201,"Butyl S-2-diethylaminoethyl ethylphosphonothiolate",1]
[null,null,null,null,null,null,null,null,null,null,null,null,null,null,null,null,null,468712212,"Isobutyl S-2-diethylaminoethyl ethylphosphonothiolate",1]
[null,null,null,null,null,null,null,null,null,null,null,null,null,null,null,null,null,468712223,"sec-Butyl S-2-diethylaminoethyl ethylphosphonothiolate",1]
[null,null,null,null,null,null,null,null,null,null,null,null,null,null,null,null,null,468712234,"3-Methylbutyl S-2-diethylaminoethyl ethylphosphonothiolate",1]
[null,null,null,null,null,null,null,null,null,null,null,null,null,null,null,null,null,468712245,"Cyclopentyl S-2-diethylaminoethyl ethylphosphonothiolate",1]
[null,null,null,null,null,null,null,null,null,null,null,null,null,null,null,null,null,468712256,"Hexyl S-2-diethylaminoethyl ethylphosphonothiolate",1]
[null,null,null,null,null,null,null,null,null,null,null,null,null,null,null,null,null,468712290,"Heptyl S-2-diethylaminoethyl ethylphosphonothiolate",1]
[null,null,null,null,null,null,null,null,null,null,null,null,null,null,null,null,null,468712303,"Octyl S-2-diethylaminoethyl ethylphosphonothiolate",1]
[null,null,null,null,null,null,null,null,null,null,null,null,null,null,null,null,null,468712325,"Nonyl S-2-diethylaminoethyl ethylphosphonothiolate",1]
[null,null,null,null,null,null,null,null,null,null,null,null,null,null,null,null,null,468712336,"Decyl S-2-diethylaminoethyl ethylphosphonothiolate",1]
[null,null,null,null,null,null,null,null,null,null,null,null,null,null,null,null,null,468712347,"Isopropyl S-2-diethylaminoethyl propylphosphonothiolate",1]
[null,null,null,null,null,null,null,null,null,null,null,null,null,null,null,null,null,468712358,"Butyl S-2-diethylaminoethyl propylphosphonothiolate",1]
[null,null,null,null,null,null,null,null,null,null,null,null,null,null,null,null,null,468712369,"Isobutyl S-2-diethylaminoethyl propylphosphonothiolate",1]
[null,null,null,null,null,null,null,null,null,null,null,null,null,null,null,null,null,468712370,"sec-Butyl S-2-diethylaminoethyl propylphosphonothiolate",1]
[null,null,null,null,null,null,null,null,null,null,null,null,null,null,null,null,null,468712381,"Pentyl S-2-diethylaminoethyl propylphosphonothiolate",1]
[null,null,null,null,null,null,null,null,null,null,null,null,null,null,null,null,null,468712392,"Cyclopentyl S-2-diethylaminoethyl propylphosphonothiolate",1]
[null,null,null,null,null,null,null,null,null,null,null,null,null,null,null,null,null,468712405,"Pinacolyl S-2-diethylaminoethyl propylphosphonothiolate",1]
[null,null,null,null,null,null,null,null,null,null,null,null,null,null,null,null,null,468712416,"Cyclohexyl S-2-diethylaminoethyl propylphosphonothiolate",1]
[null,null,null,null,null,null,null,null,null,null,null,null,null,null,null,null,null,468712449,"4-Methylcyclohexyl S-2-diethylaminoethyl propylphosphonothiolate",1]
[null,null,null,null,null,null,null,null,null,null,null,null,null,null,null,null,null,468712450,"Nonyl S-2-diethylaminoethyl propylphosphonothiolate",1]
[null,null,null,null,null,null,null,null,null,null,null,null,null,null,null,null,null,468712461,"Butyl S-2-diethylaminoethyl isopropylphosphonothiolate",1]
[null,null,null,null,null,null,null,null,null,null,null,null,null,null,null,null,null,468712472,"Isobutyl S-2-diethylaminoethyl isopropylphosphonothiolate",1]
[null,null,null,null,null,null,null,null,null,null,null,null,null,null,null,null,null,468712483,"sec-Butyl S-2-diethylaminoethyl isopropylphosphonothiolate",1]
[null,null,null,null,null,null,null,null,null,null,null,null,null,null,null,null,null,468712494,"Pentyl S-2-diethylaminoethyl isopropylphosphonothiolate",1]
[null,null,null,null,null,null,null,null,null,null,null,null,null,null,null,null,null,468712518,"Cyclopentyl S-2-diethylaminoethyl isopropylphosphonothiolate",1]
[null,null,null,null,null,null,null,null,null,null,null,null,null,null,null,null,null,468712530,"Hexyl S-2-diethylaminoethyl isopropylphosphonothiolate",1]
[null,null,null,null,null,null,null,null,null,null,null,null,null,null,null,null,null,468712541,"Cyclohexyl S-2-diethylaminoethyl isopropylphosphonothiolate",1]
[null,null,null,null,null,null,null,null,null,null,null,null,null,null,null,null,null,468712574,"4-Methylcyclohexyl S-2-diethylaminoethyl isopropylphosphonothiolate",1]
[null,null,null,null,null,null,null,null,null,null,null,null,null,null,null,null,null,468712585,"Heptyl S-2-diethylaminoethyl isopropylphosphonothiolate",1]
[null,null,null,null,null,null,null,null,null,null,null,null,null,null,null,null,null,468712609,"Octyl S-2-diethylaminoethyl isopropylphosphonothiolate",1]
[null,null,null,null,null,null,null,null,null,null,null,null,null,null,null,null,null,468712610,"Nonyl S-2-diethylaminoethyl isopropylphosphonothiolate",1]
[null,null,null,null,null,null,null,null,null,null,null,null,null,null,null,null,null,4721373,"Isopropylphosphonic Acid",1]
[null,null,null,null,null,null,null,null,null,null,null,null,null,null,null,null,null,4759302,"P-methylphosphonic diamide",1]
[null,null,null,null,null,null,null,null,null,null,null,null,null,null,null,null,null,50375901,"Potassium ethyl methylphosphonothionate",1]
[null,null,null,null,null,null,null,null,null,null,null,null,null,null,null,null,null,505602,"Bis(2-chloroethyl)sulfide",1]
[null,null,null,null,null,null,null,null,null,null,null,null,null,null,null,null,null,506774,"Cyanogen chloride",1]
[null,null,null,null,null,null,null,null,null,null,null,null,null,null,null,null,null,50782699,"Ethyl S-2-diisopropylaminoethyl methylphosphonothiolate",1]
[null,null,null,null,null,null,null,null,null,null,null,null,null,null,null,null,null,50886867,"Oxypropylated ether of methylphosphonyl pentaerythritol",1]
[null,null,null,null,null,null,null,null,null,null,null,null,null,null,null,null,null,50929969,"sec-Butyl S-2-dimethylaminoethyl ethylphosphonothiolate",1]
[null,null,null,null,null,null,null,null,null,null,null,null,null,null,null,null,null,51446232,"Isopropyl S-2-diisopropylaminoethyl methylphosphonothiolate",1]
[null,null,null,null,null,null,null,null,null,null,null,null,null,null,null,null,null,51752,"Bis(2-chloroethyl)methylamine",1]
[null,null,null,null,null,null,null,null,null,null,null,null,null,null,null,null,null,51825844,"Propyl S-sodium methylphosphonothiolate",1]
[null,null,null,null,null,null,null,null,null,null,null,null,null,null,null,null,null,51825855,"Butyl S-sodium methylphosphonothiolate",1]
[null,null,null,null,null,null,null,null,null,null,null,null,null,null,null,null,null,52364451,"Propyl S-2-diisopropylaminoethyl methylphosphonothiolate",1]
[null,null,null,null,null,null,null,null,null,null,null,null,null,null,null,null,null,52364462,"Butyl S-2-diisopropylaminoethyl methylphosphonothiolate",1]
[null,null,null,null,null,null,null,null,null,null,null,null,null,null,null,null,null,53279984,"Diethyl ethyl(methyl)phosphoramidate",1]
[null,null,null,null,null,null,null,null,null,null,null,null,null,null,null,null,null,53621991,"Isopropyl propylphosphonate",1]
[null,null,null,null,null,null,null,null,null,null,null,null,null,null,null,null,null,538078,"Bis(2-chloroethyl)ethylamine",1]
[null,null,null,null,null,null,null,null,null,null,null,null,null,null,null,null,null,541253,"2-Chlorovinyldichloroarsine",1]
[null,null,null,null,null,null,null,null,null,null,null,null,null,null,null,null,null,54153161,"2-(N-Ethyl-N-methylamino)ethylchloride",1]
[null,null,null,null,null,null,null,null,null,null,null,null,null,null,null,null,null,54552771,"Dimethyl isopropylphosphonate",1]
[null,null,null,null,null,null,null,null,null,null,null,null,null,null,null,null,null,55523552,"Ethyl 2-diethylaminoethyl methylphosphonite",1]
[null,null,null,null,null,null,null,null,null,null,null,null,null,null,null,null,null,555771,"Tris(2-chloroethyl)amine",1]
[null,null,null,null,null,null,null,null,null,null,null,null,null,null,null,null,null,56217620,"Propyl S-2-dimethylaminoethyl methylphosphonothiolate",1]
[null,null,null,null,null,null,null,null,null,null,null,null,null,null,null,null,null,56217631,"Butyl S-2-dimethylaminoethyl methylphosphonothiolate",1]
[null,null,null,null,null,null,null,null,null,null,null,null,null,null,null,null,null,56217642,"Pentyl S-2-dimethylaminoethyl methylphosphonothiolate",1]
[null,null,null,null,null,null,null,null,null,null,null,null,null,null,null,null,null,56217653,"Isobutyl S-2-dimethylaminoethyl methylphosphonothiolate",1]
[null,null,null,null,null,null,null,null,null,null,null,null,null,null,null,null,null,56217664,"2,2-Dimethylpropyl S-2-dimethylaminoethyl methylphosphonothiolate",1]
[null,null,null,null,null,null,null,null,null,null,null,null,null,null,null,null,null,56217675,"Ethyl S-2-trimethylammoniumethyl methylphosphonothiolate",1]
[null,null,null,null,null,null,null,null,null,null,null,null,null,null,null,null,null,56217686,"Propyl S-2-trimethylammoniumethyl methylphosphonothiolate",1]
[null,null,null,null,null,null,null,null,null,null,null,null,null,null,null,null,null,56217697,"Isopropyl S-2-trimethylammoniumethyl methylphosphonothiolate",1]
[null,null,null,null,null,null,null,null,null,null,null,null,null,null,null,null,null,57523338,"Cyclohexyl ethylphosphonochloridate",1]
[null,null,null,null,null,null,null,null,null,null,null,null,null,null,null,null,null,57856118,"Ethyl 2-diisopropylaminoethyl methylphosphonite",1]
[null,null,null,null,null,null,null,null,null,null,null,null,null,null,null,null,null,5828671,"Bis(1-ethylpropyl) methylphosphonate",1]
[null,null,null,null,null,null,null,null,null,null,null,null,null,null,null,null,null,58607684,"2-(N,N-diethylamino)ethanethiolate sodium",1]
[null,null,null,null,null,null,null,null,null,null,null,null,null,null,null,null,null,59360020,"Dibutyl methylphosphonite",1]
[null,null,null,null,null,null,null,null,null,null,null,null,null,null,null,null,null,597079,"Dimethyl N,N-dimethylphosphoramidate",1]
[null,null,null,null,null,null,null,null,null,null,null,null,null,null,null,null,null,5994730,"Methylphosphonothioic acid",1]
[null,null,null,null,null,null,null,null,null,null,null,null,null,null,null,null,null,60556685,"Bis(2-ethylhexyl) methylphosphonate",1]
[null,null,null,null,null,null,null,null,null,null,null,null,null,null,null,null,null,6154514,"1,2-Dimethylpropyl methylphosphonofluoridate",1]
[null,null,null,null,null,null,null,null,null,null,null,null,null,null,null,null,null,6156134,"Dioctyl ethylphosphonate",1]
[null,null,null,null,null,null,null,null,null,null,null,null,null,null,null,null,null,6163753,"Dimethyl ethylphosphonate",1]
[null,null,null,null,null,null,null,null,null,null,null,null,null,null,null,null,null,616524,"Pinacolyl methylphosphonate",1]
[null,null,null,null,null,null,null,null,null,null,null,null,null,null,null,null,null,6172801,"Butyl methylphosphinate",1]
[null,null,null,null,null,null,null,null,null,null,null,null,null,null,null,null,null,61820313,"Diethyl isopropylphosphonite",1]
[null,null,null,null,null,null,null,null,null,null,null,null,null,null,null,null,null,62512689,"Ethyl S-2-dipropylaminoethyl methylphosphonothiolate",1]
[null,null,null,null,null,null,null,null,null,null,null,null,null,null,null,null,null,62869685,"(S)-3-Quinuclidinyl benzilate",1]
[null,null,null,null,null,null,null,null,null,null,null,null,null,null,null,null,null,62869696,"(R)-3-Quinuclidinyl benzilate",1]
[null,null,null,null,null,null,null,null,null,null,null,null,null,null,null,null,null,63210559,"2-(N-Ethyl-N-methylamino)ethanethiol",1]
[null,null,null,null,null,null,null,null,null,null,null,null,null,null,null,null,null,63299525,"2-Methyl-1,3,2-dioxaphosphepane-2-oxide",1]
[null,null,null,null,null,null,null,null,null,null,null,null,null,null,null,null,null,63747580,"Poly(1,3-phenylene methyl phosphonate)",1]
[null,null,null,null,null,null,null,null,null,null,null,null,null,null,null,null,null,63815554,"Isopropyl N,N-dimethylphosphoramidocyanidate",1]
[null,null,null,null,null,null,null,null,null,null,null,null,null,null,null,null,null,63815565,"Methyl N,N-dimethylphosphoramidocyanidate",1]
[null,null,null,null,null,null,null,null,null,null,null,null,null,null,null,null,null,63815601,"Ethyl N,N-diethylphosphoramidocyanidate",1]
[null,null,null,null,null,null,null,null,null,null,null,null,null,null,null,null,null,63869136,"Bis(2-chloroethylthio)methane",1]
[null,null,null,null,null,null,null,null,null,null,null,null,null,null,null,null,null,63905102,"1,3-Bis(2-chloroethylthio)propane",1]
[null,null,null,null,null,null,null,null,null,null,null,null,null,null,null,null,null,63918898,"Bis(2-chloroethylthioethyl)ether",1]
[null,null,null,null,null,null,null,null,null,null,null,null,null,null,null,null,null,63918901,"Bis(2-chloroethylthiomethyl)ether",1]
[null,null,null,null,null,null,null,null,null,null,null,null,null,null,null,null,null,648599,"Methyl isopropylphosphonofluoridate",1]
[null,null,null,null,null,null,null,null,null,null,null,null,null,null,null,null,null,650204,"Ethyl ethylphosphonofluoridate",1]
[null,null,null,null,null,null,null,null,null,null,null,null,null,null,null,null,null,65167637,"(R)-Ethyl S-2-diisopropylaminoethyl methylphosphonothiolate",1]
[null,null,null,null,null,null,null,null,null,null,null,null,null,null,null,null,null,65167648,"(S)-Ethyl S-2-diisopropylaminoethyl methylphosphonothiolate",1]
[null,null,null,null,null,null,null,null,null,null,null,null,null,null,null,null,null,65659190,"Dimethyl N,N-diethylphosphoramidate",1]
[null,null,null,null,null,null,null,null,null,null,null,null,null,null,null,null,null,660219,"3,3-Dimethylbutyl methylphosphonofluoridate",1]
[null,null,null,null,null,null,null,null,null,null,null,null,null,null,null,null,null,66295441,"Diisopropyl methylphosphonite",1]
[null,null,null,null,null,null,null,null,null,null,null,null,null,null,null,null,null,663176009,"Phosphonic acid, methyl-, polyglycol ester (Exolit OP 560)",1]
[null,null,null,null,null,null,null,null,null,null,null,null,null,null,null,null,null,66348718,"1-Ethylpropyl methylphosphonofluoridate",1]
[null,null,null,null,null,null,null,null,null,null,null,null,null,null,null,null,null,665032,"Methyl ethylphosphonofluoridate",1]
[null,null,null,null,null,null,null,null,null,null,null,null,null,null,null,null,null,665338,"Isopropyl isopropylphosphonofluoridate",1]
[null,null,null,null,null,null,null,null,null,null,null,null,null,null,null,null,null,673972,"Ethyl methylphosphonofluoridate",1]
[null,null,null,null,null,null,null,null,null,null,null,null,null,null,null,null,null,67397573,"O-Propyl ethylphosphinothionate",1]
[null,null,null,null,null,null,null,null,null,null,null,null,null,null,null,null,null,674953,"1-Methylhexyl methylphosphonofluoridate",1]
[null,null,null,null,null,null,null,null,null,null,null,null,null,null,null,null,null,6755766,"Bis(2-chloroethyl)sulfide-35S",1]
[null,null,null,null,null,null,null,null,null,null,null,null,null,null,null,null,null,676835,"Methylphosphonous dichloride",1]
[null,null,null,null,null,null,null,null,null,null,null,null,null,null,null,null,null,676971,"Methylphosphonic dichloride",1]
[null,null,null,null,null,null,null,null,null,null,null,null,null,null,null,null,null,676982,"Methylphosphonyl dichloride Methylphosphonyl chloride Methylphosphonodichloridic acid Methylphosphonic acid dichloride Methanephosphonyl dichloride Methanephosphonyl chloride Methanephosphonodichloridic acid Dichloromethylphosphine oxide DC",1]
[null,null,null,null,null,null,null,null,null,null,null,null,null,null,null,null,null,676993,"Methylphosphonic difluoride",1]
[null,null,null,null,null,null,null,null,null,null,null,null,null,null,null,null,null,677429,"Methylphosphonyldifluoride Methyl difluorophosphite Difluoromethylphosphine oxide DF",1]
[null,null,null,null,null,null,null,null,null,null,null,null,null,null,null,null,null,677430,"N,N-Dimethylphosphoramidic dichloride",1]
[null,null,null,null,null,null,null,null,null,null,null,null,null,null,null,null,null,67812173,"Methyl 3-(trimethoxysilyl)propyl methylphosphonate",1]
[null,null,null,null,null,null,null,null,null,null,null,null,null,null,null,null,null,681061,"O,O-Dimethyl methylphosphonothionate",1]
[null,null,null,null,null,null,null,null,null,null,null,null,null,null,null,null,null,683089,"Diethyl methylphosphonate",1]
[null,null,null,null,null,null,null,null,null,null,null,null,null,null,null,null,null,683250,"Methyl propyl methylphosphonate",1]
[null,null,null,null,null,null,null,null,null,null,null,null,null,null,null,null,null,683329,"Butyl methyl methylphosphonate",1]
[null,null,null,null,null,null,null,null,null,null,null,null,null,null,null,null,null,688299038,"2-(N-Isopropyl-N-propylamino)ethylchloride",1]
[null,null,null,null,null,null,null,null,null,null,null,null,null,null,null,null,null,68957948,"2,4,6-Tripropyl-1,3,5,2,4,6-trioxatriphosphinane 2,4,6- trioxide",1]
[null,null,null,null,null,null,null,null,null,null,null,null,null,null,null,null,null,690142,"Propylphosphonic difluoride",1]
[null,null,null,null,null,null,null,null,null,null,null,null,null,null,null,null,null,690642,"Isopropyl methyl methylphosphonate",1]
[null,null,null,null,null,null,null,null,null,null,null,null,null,null,null,null,null,69777000,"Hexyl S-2-dimethylaminoethyl methylphosphonothiolate",1]
[null,null,null,null,null,null,null,null,null,null,null,null,null,null,null,null,null,69795068,"Cyclohexyl S-2-dimethylaminoethyl methylphosphonothiolate",1]
[null,null,null,null,null,null,null,null,null,null,null,null,null,null,null,null,null,6996812,"O,O-Diethyl methylphosphonothionate",1]
[null,null,null,null,null,null,null,null,null,null,null,null,null,null,null,null,null,70055719,"N,N,N-trimethyl-3-[(1-oxo-9-octadecenyl)amino]methyl methylphosphonate propan-1-aminium",1]
[null,null,null,null,null,null,null,null,null,null,null,null,null,null,null,null,null,7040520,"Cyclohexyl methyl methylphosphonate",1]
[null,null,null,null,null,null,null,null,null,null,null,null,null,null,null,null,null,7040531,"Dicyclohexyl methylphosphonate",1]
[null,null,null,null,null,null,null,null,null,null,null,null,null,null,null,null,null,7040575,"Pinacolyl methylphosphonochloridate",1]
[null,null,null,null,null,null,null,null,null,null,null,null,null,null,null,null,null,7040586,"Dipinacolyl methylphosphonate",1]
[null,null,null,null,null,null,null,null,null,null,null,null,null,null,null,null,null,7040597,"Methyl pinacolyl methylphosphonate",1]
[null,null,null,null,null,null,null,null,null,null,null,null,null,null,null,null,null,7040928,"Cyclohexyl methylphosphonochloridate",1]
[null,null,null,null,null,null,null,null,null,null,null,null,null,null,null,null,null,70715069,"Dimethylmethylphosphonate, polymer with oxirane and phosphorus oxide",1]
[null,null,null,null,null,null,null,null,null,null,null,null,null,null,null,null,null,71097477,"Bis(1-methacryloxy-2-chloro-propyl) methylphosphonate",1]
[null,null,null,null,null,null,null,null,null,null,null,null,null,null,null,null,null,71293895,"Cyclohexyl S-2-diethylaminoethyl methylphosphonothiolate",1]
[null,null,null,null,null,null,null,null,null,null,null,null,null,null,null,null,null,71760048,"Dipropyldiphosphonic acid",1]
[null,null,null,null,null,null,null,null,null,null,null,null,null,null,null,null,null,7242560,"O,O-Diisobutyl methylphosphonate",1]
[null,null,null,null,null,null,null,null,null,null,null,null,null,null,null,null,null,7284824,"Cyclopentyl methylphosphonofluoridate",1]
[null,null,null,null,null,null,null,null,null,null,null,null,null,null,null,null,null,7284835,"Cycloheptyl methylphosphonofluoridate",1]
[null,null,null,null,null,null,null,null,null,null,null,null,null,null,null,null,null,7284846,"Cyclohexyl ethylphosphonofluoridate",1]
[null,null,null,null,null,null,null,null,null,null,null,null,null,null,null,null,null,7305615,"Ethyl ethylphosphonate",1]
[null,null,null,null,null,null,null,null,null,null,null,null,null,null,null,null,null,73207984,"S-2-Diisopropylaminoethyl methylphosphonothiolate",1]
[null,null,null,null,null,null,null,null,null,null,null,null,null,null,null,null,null,73675566,"S-Methyl methylphosphonothiolate",1]
[null,null,null,null,null,null,null,null,null,null,null,null,null,null,null,null,null,73750693,"Sodium methyl methylphosphonate",1]
[null,null,null,null,null,null,null,null,null,null,null,null,null,null,null,null,null,73790519,"Ethyl S-dicyclohexylammonium methylphosphonothiolate",1]
[null,null,null,null,null,null,null,null,null,null,null,null,null,null,null,null,null,73835173,"Ethyl S-2-diisopropylaminoethyl ethylphosphonothiolate",1]
[null,null,null,null,null,null,null,null,null,null,null,null,null,null,null,null,null,741700630,"Methyl propyl isopropylphosphonate",1]
[null,null,null,null,null,null,null,null,null,null,null,null,null,null,null,null,null,741700674,"Propyl isopropylphosphonate",1]
[null,null,null,null,null,null,null,null,null,null,null,null,null,null,null,null,null,745809818,"Methyl 2-methylcyclohexyl methylphosphonate",1]
[null,null,null,null,null,null,null,null,null,null,null,null,null,null,null,null,null,74789314,"Methyl S-sodium methylphosphonothiolate",1]
[null,null,null,null,null,null,null,null,null,null,null,null,null,null,null,null,null,74789325,"Isobutyl S-sodium methylphosphonothiolate",1]
[null,null,null,null,null,null,null,null,null,null,null,null,null,null,null,null,null,74908,"Hydrogen cyanide",1]
[null,null,null,null,null,null,null,null,null,null,null,null,null,null,null,null,null,7526263,"Diphenyl methylphosphonate",1]
[null,null,null,null,null,null,null,null,null,null,null,null,null,null,null,null,null,753720,"Diphenyl methanephosphonate",1]
[null,null,null,null,null,null,null,null,null,null,null,null,null,null,null,null,null,753980,"Ethylphosphonic difluoride",1]
[null,null,null,null,null,null,null,null,null,null,null,null,null,null,null,null,null,75445,"Carbonyl dichloride",1]
[null,null,null,null,null,null,null,null,null,null,null,null,null,null,null,null,null,756796,"Methylphosphonothioic difluoride",1]
[null,null,null,null,null,null,null,null,null,null,null,null,null,null,null,null,null,757959,"Bis(2,2,2-trifluoroethyl) methylphosphonate",1]
[null,null,null,null,null,null,null,null,null,null,null,null,null,null,null,null,null,76062,"Trichloronitromethane",1]
[null,null,null,null,null,null,null,null,null,null,null,null,null,null,null,null,null,761933,"1-Methylbutyl methylphosphonofluoridate",1]
[null,null,null,null,null,null,null,null,null,null,null,null,null,null,null,null,null,762049,"Diethyl phosphite",1]
[null,null,null,null,null,null,null,null,null,null,null,null,null,null,null,null,null,763144,"Propyl methylphosphonofluoridate",1]
[null,null,null,null,null,null,null,null,null,null,null,null,null,null,null,null,null,76341634,"Bis(1-methylheptyl) methylphosphonate",1]
[null,null,null,null,null,null,null,null,null,null,null,null,null,null,null,null,null,763884486,"2-(N-Methyl-N-propylamino)ethylchloride",1]
[null,null,null,null,null,null,null,null,null,null,null,null,null,null,null,null,null,76937,"2,2-Diphenyl-2-hydroxyacetic acid",1]
[null,null,null,null,null,null,null,null,null,null,null,null,null,null,null,null,null,77304633,"Dihexyl methylphosphonate",1]
[null,null,null,null,null,null,null,null,null,null,null,null,null,null,null,null,null,77304644,"Diheptyl methylphosphonate",1]
[null,null,null,null,null,null,null,null,null,null,null,null,null,null,null,null,null,777943347,"N-Ethyl-N-methylphosphoramidic dichloride",1]
[null,null,null,null,null,null,null,null,null,null,null,null,null,null,null,null,null,777943358,"N-Methyl-N-propylphosphoramidic dichloride",1]
[null,null,null,null,null,null,null,null,null,null,null,null,null,null,null,null,null,777943369,"N-Isopropyl-N-methylphosphoramidic dichloride",1]
[null,null,null,null,null,null,null,null,null,null,null,null,null,null,null,null,null,777943370,"N-Ethyl-N-isopropylphosphoramidic dichloride",1]
[null,null,null,null,null,null,null,null,null,null,null,null,null,null,null,null,null,777943381,"N-Ethyl-N-propylphosphoramidic dichloride",1]
[null,null,null,null,null,null,null,null,null,null,null,null,null,null,null,null,null,77816,"Ethyl N,N-dimethylphosphoramidocyanidate",1]
[null,null,null,null,null,null,null,null,null,null,null,null,null,null,null,null,null,7784341,"Arsenic trichloride",1]
[null,null,null,null,null,null,null,null,null,null,null,null,null,null,null,null,null,781566652,"Octyl propylphosphonate",1]
[null,null,null,null,null,null,null,null,null,null,null,null,null,null,null,null,null,78386,"Diethyl ethylphosphonate",1]
[null,null,null,null,null,null,null,null,null,null,null,null,null,null,null,null,null,78535,"O,O-Diethyl S-2-diethylaminoethyl phosphorothiolate",1]
[null,null,null,null,null,null,null,null,null,null,null,null,null,null,null,null,null,79351192,"1-Methylpentyl S-2-dimethylaminoethyl methylphosphonothiolate",1]
[null,null,null,null,null,null,null,null,null,null,null,null,null,null,null,null,null,80014331,"O,O-Dimethyl methylphosphonothioate-d3",1]
[null,null,null,null,null,null,null,null,null,null,null,null,null,null,null,null,null,81397560,"Dipinacolyl dimethylpyrophosphonate",1]
[null,null,null,null,null,null,null,null,null,null,null,null,null,null,null,null,null,82721311,"Hexyl S-2-diisopropylaminoethyl methylphosphonothiolate",1]
[null,null,null,null,null,null,null,null,null,null,null,null,null,null,null,null,null,83218228,"Dioctyl isopropylphosphonate",1]
[null,null,null,null,null,null,null,null,null,null,null,null,null,null,null,null,null,83563660,"2,3-Dimethylbutyl methylphosphonofluoridate",1]
[null,null,null,null,null,null,null,null,null,null,null,null,null,null,null,null,null,84402584,"Methylphosphonic acid with (aminoiminomethyl)urea (1:1)",1]
[null,null,null,null,null,null,null,null,null,null,null,null,null,null,null,null,null,848216159,"Ethyl methyl N,N-diisopropylphosphoramidate",1]
[null,null,null,null,null,null,null,null,null,null,null,null,null,null,null,null,null,849296,"O-(3-chloropropyl) O-[4-nitro-3-(trifluoromethyl)phenyl] methylphosphonothionate",1]
[null,null,null,null,null,null,null,null,null,null,null,null,null,null,null,null,null,84962981,"Sodium 3-(trihydroxysilyl)propyl methylphosphonate",1]
[null,null,null,null,null,null,null,null,null,null,null,null,null,null,null,null,null,852960646,"Mixture of 2-Chlorovinyldichloroarsine (CAS RN 541- 25-3), Bis(2-chlorovinyl)chloroarsine (CAS RN 40334-69-8) and Tris(2-chlorovinyl)arsine (CAS RN 40334-70-1)",1]
[null,null,null,null,null,null,null,null,null,null,null,null,null,null,null,null,null,85473321,"2-Methylcyclohexyl methylphosphonofluoridate",1]
[null,null,null,null,null,null,null,null,null,null,null,null,null,null,null,null,null,85473332,"Cyclopentyl S-2-diisopropylaminoethyl methylphosphonothiolate",1]
[null,null,null,null,null,null,null,null,null,null,null,null,null,null,null,null,null,855307834,"Isobutyl S-2-diisopropylaminoethyl methylphosphonothiolate",1]
[null,null,null,null,null,null,null,null,null,null,null,null,null,null,null,null,null,864463263,"2,2-Dimethylpropyl isopropylphosphonofluoridate",1]
[null,null,null,null,null,null,null,null,null,null,null,null,null,null,null,null,null,868859,"**Name Missing",1]
[null,null,null,null,null,null,null,null,null,null,null,null,null,null,null,null,null,869249,"2-(N,N-Diethylamino)ethylchloride hydrochloride",1]
[null,null,null,null,null,null,null,null,null,null,null,null,null,null,null,null,null,870124008,"Ethyl N-ethyl-N-methylphosphoramidocyanidate",1]
[null,null,null,null,null,null,null,null,null,null,null,null,null,null,null,null,null,870124019,"Propyl N-ethyl-N-methylphosphoramidocyanidate",1]
[null,null,null,null,null,null,null,null,null,null,null,null,null,null,null,null,null,870124020,"Isopropyl N-ethyl-N-methylphosphoramidocyanidate",1]
[null,null,null,null,null,null,null,null,null,null,null,null,null,null,null,null,null,870124031,"Butyl N-ethyl-N-methylphosphoramidocyanidate",1]
[null,null,null,null,null,null,null,null,null,null,null,null,null,null,null,null,null,870124042,"Isobutyl N-ethyl-N-methylphosphoramidocyanidate",1]
[null,null,null,null,null,null,null,null,null,null,null,null,null,null,null,null,null,870124053,"Pentyl N-ethyl-N-methylphosphoramidocyanidate",1]
[null,null,null,null,null,null,null,null,null,null,null,null,null,null,null,null,null,870124064,"Hexyl N-ethyl-N-methylphosphoramidocyanidate",1]
[null,null,null,null,null,null,null,null,null,null,null,null,null,null,null,null,null,870124075,"Ethyl N-methyl-N-propylphosphoramidocyanidate",1]
[null,null,null,null,null,null,null,null,null,null,null,null,null,null,null,null,null,870124086,"Isopropyl N-methyl-N-propylphosphoramidocyanidate",1]
[null,null,null,null,null,null,null,null,null,null,null,null,null,null,null,null,null,870124097,"sec-Butyl N-methyl-N-propylphosphoramidocyanidate",1]
[null,null,null,null,null,null,null,null,null,null,null,null,null,null,null,null,null,870124100,"Hexyl N-methyl-N-propylphosphoramidocyanidate",1]
[null,null,null,null,null,null,null,null,null,null,null,null,null,null,null,null,null,870124111,"Ethyl N-isopropyl-N-methylphosphoramidocyanidate",1]
[null,null,null,null,null,null,null,null,null,null,null,null,null,null,null,null,null,870124122,"Isopropyl N-isopropyl-N-methylphosphoramidocyanidate",1]
[null,null,null,null,null,null,null,null,null,null,null,null,null,null,null,null,null,870124133,"Propyl N-isopropyl-N-methylphosphoramidocyanidate",1]
[null,null,null,null,null,null,null,null,null,null,null,null,null,null,null,null,null,870124144,"Butyl N-isopropyl-N-methylphosphoramidocyanidate",1]
[null,null,null,null,null,null,null,null,null,null,null,null,null,null,null,null,null,870124155,"Pentyl N-isopropyl-N-methylphosphoramidocyanidate",1]
[null,null,null,null,null,null,null,null,null,null,null,null,null,null,null,null,null,870124166,"Hexyl N-isopropyl-N-methylphosphoramidocyanidate",1]
[null,null,null,null,null,null,null,null,null,null,null,null,null,null,null,null,null,870124177,"Ethyl N-ethyl-N-propylphosphoramidocyanidate",1]
[null,null,null,null,null,null,null,null,null,null,null,null,null,null,null,null,null,870124188,"Isopropyl N-ethyl-N-propylphosphoramidocyanidate",1]
[null,null,null,null,null,null,null,null,null,null,null,null,null,null,null,null,null,870124199,"Isobutyl N-ethyl-N-propylphosphoramidocyanidate",1]
[null,null,null,null,null,null,null,null,null,null,null,null,null,null,null,null,null,870124202,"Pentyl N-ethyl-N-propylphosphoramidocyanidate",1]
[null,null,null,null,null,null,null,null,null,null,null,null,null,null,null,null,null,870124213,"Hexyl N-ethyl-N-propylphosphoramidocyanidate",1]
[null,null,null,null,null,null,null,null,null,null,null,null,null,null,null,null,null,870124224,"Ethyl N-ethyl-N-isopropylphosphoramidocyanidate",1]
[null,null,null,null,null,null,null,null,null,null,null,null,null,null,null,null,null,870124235,"Isobutyl N-ethyl-N-isopropylphosphoramidocyanidate",1]
[null,null,null,null,null,null,null,null,null,null,null,null,null,null,null,null,null,870124246,"Pentyl N-ethyl-N-isopropylphosphoramidocyanidate",1]
[null,null,null,null,null,null,null,null,null,null,null,null,null,null,null,null,null,870124257,"Hexyl N-ethyl-N-isopropylphosphoramidocyanidate",1]
[null,null,null,null,null,null,null,null,null,null,null,null,null,null,null,null,null,870124268,"Ethyl N-isopropyl-N-propylphosphoramidocyanidate",1]
[null,null,null,null,null,null,null,null,null,null,null,null,null,null,null,null,null,870124279,"Propyl N-isopropyl-N-propylphosphoramidocyanidate",1]
[null,null,null,null,null,null,null,null,null,null,null,null,null,null,null,null,null,870124280,"Butyl N-isopropyl-N-propylphosphoramidocyanidate",1]
[null,null,null,null,null,null,null,null,null,null,null,null,null,null,null,null,null,870124304,"Isopropyl N,N-diethylphosphoramidocyanidate",1]
[null,null,null,null,null,null,null,null,null,null,null,null,null,null,null,null,null,870124315,"Butyl N,N-diethylphosphoramidocyanidate",1]
[null,null,null,null,null,null,null,null,null,null,null,null,null,null,null,null,null,870124326,"Heptyl N,N-diethylphosphoramidocyanidate",1]
[null,null,null,null,null,null,null,null,null,null,null,null,null,null,null,null,null,870124337,"Ethyl N,N-dipropylphosphoramidocyanidate",1]
[null,null,null,null,null,null,null,null,null,null,null,null,null,null,null,null,null,870124348,"Propyl N,N-dipropylphosphoramidocyanidate",1]
[null,null,null,null,null,null,null,null,null,null,null,null,null,null,null,null,null,870124359,"Butyl N,N-dipropylphosphoramidocyanidate",1]
[null,null,null,null,null,null,null,null,null,null,null,null,null,null,null,null,null,870124360,"Hexyl N,N-dipropylphosphoramidocyanidate",1]
[null,null,null,null,null,null,null,null,null,null,null,null,null,null,null,null,null,870124371,"Ethyl N,N-diisopropylphosphoramidocyanidate",1]
[null,null,null,null,null,null,null,null,null,null,null,null,null,null,null,null,null,870124382,"Isobutyl N,N-diisopropylphosphoramidocyanidate",1]
[null,null,null,null,null,null,null,null,null,null,null,null,null,null,null,null,null,870124393,"Hexyl N,N-diisopropylphosphoramidocyanidate",1]
[null,null,null,null,null,null,null,null,null,null,null,null,null,null,null,null,null,870124406,"Methyl N-ethyl-N-methylphosphoramidocyanidate",1]
[null,null,null,null,null,null,null,null,null,null,null,null,null,null,null,null,null,870124417,"Methyl N-methyl-N-propylphosphoramidocyanidate",1]
[null,null,null,null,null,null,null,null,null,null,null,null,null,null,null,null,null,870124428,"Methyl N-isopropyl-N-methylphosphoramidocyanidate",1]
[null,null,null,null,null,null,null,null,null,null,null,null,null,null,null,null,null,870124439,"Methyl N,N-diethylphosphoramidocyanidate",1]
[null,null,null,null,null,null,null,null,null,null,null,null,null,null,null,null,null,870124440,"Methyl N-ethyl-N-isopropylphosphoramidocyanidate",1]
[null,null,null,null,null,null,null,null,null,null,null,null,null,null,null,null,null,870124451,"Methyl N-ethyl-N-propylphosphoramidocyanidate",1]
[null,null,null,null,null,null,null,null,null,null,null,null,null,null,null,null,null,870124462,"Methyl N,N-dipropylphosphoramidocyanidate",1]
[null,null,null,null,null,null,null,null,null,null,null,null,null,null,null,null,null,870124473,"Methyl N,N-diisopropylphosphoramidocyanidate",1]
[null,null,null,null,null,null,null,null,null,null,null,null,null,null,null,null,null,870124484,"Methyl N-isopropyl-N-propylphosphoramidocyanidate",1]
[null,null,null,null,null,null,null,null,null,null,null,null,null,null,null,null,null,88053172,"Cyclopentyl methyl methylphosphonate",1]
[null,null,null,null,null,null,null,null,null,null,null,null,null,null,null,null,null,89034242,"Ethyl methylphosphonite",1]
[null,null,null,null,null,null,null,null,null,null,null,null,null,null,null,null,null,89254455,"(1S)-Pinacolyl methylphosphonofluoridate",1]
[null,null,null,null,null,null,null,null,null,null,null,null,null,null,null,null,null,89254466,"(1R)-Pinacolyl methylphosphonofluoridate",1]
[null,null,null,null,null,null,null,null,null,null,null,null,null,null,null,null,null,9009863,"Ricin",1]
[null,null,null,null,null,null,null,null,null,null,null,null,null,null,null,null,null,90550495,"Pinacolyl propyl methylphosphonate",1]
[null,null,null,null,null,null,null,null,null,null,null,null,null,null,null,null,null,906801341,"Ethyl methyl ethylisopropylphosphoramidate",1]
[null,null,null,null,null,null,null,null,null,null,null,null,null,null,null,null,null,91043344,"Diethyl N,N-dipropylphosphoramidate",1]
[null,null,null,null,null,null,null,null,null,null,null,null,null,null,null,null,null,91134951,"Isopropyl S-2-diethylaminoethyl methylphosphonothiolate",1]
[null,null,null,null,null,null,null,null,null,null,null,null,null,null,null,null,null,919486003,"Bis(trimethylsilyl) d3-methylphosphonate",1]
[null,null,null,null,null,null,null,null,null,null,null,null,null,null,null,null,null,91964759,"O,O-Dipentyl methylphosphonothionate",1]
[null,null,null,null,null,null,null,null,null,null,null,null,null,null,null,null,null,92204405,"2-(N-Ethyl-N-isopropylamino)ethylchloride",1]
[null,null,null,null,null,null,null,null,null,null,null,null,null,null,null,null,null,92411671,"Isopropyl pinacolyl methylphosphonate",1]
[null,null,null,null,null,null,null,null,null,null,null,null,null,null,null,null,null,92475337,"Isopropyl S-sodium methylphosphonothiolate",1]
[null,null,null,null,null,null,null,null,null,null,null,null,null,null,null,null,null,93240665,"Cyclopentyl S-2-diethylaminoethyl methylphosphonothiolate",1]
[null,null,null,null,null,null,null,null,null,null,null,null,null,null,null,null,null,944146503,"1-Methylpentyl methylphosphonate",1]
[null,null,null,null,null,null,null,null,null,null,null,null,null,null,null,null,null,944146514,"4-Methylpentyl methylphosphonate",1]
[null,null,null,null,null,null,null,null,null,null,null,null,null,null,null,null,null,952104357,"Pinacolyl propylphosphonofluoridate",1]
[null,null,null,null,null,null,null,null,null,null,null,null,null,null,null,null,null,952104368,"2-Ethylhexyl propylphosphonofluoridate",1]
[null,null,null,null,null,null,null,null,null,null,null,null,null,null,null,null,null,952104391,"2-Methylbutyl isopropylphosphonofluoridate",1]
[null,null,null,null,null,null,null,null,null,null,null,null,null,null,null,null,null,952104404,"3-Methylbutyl isopropylphosphonofluoridate",1]
[null,null,null,null,null,null,null,null,null,null,null,null,null,null,null,null,null,952104415,"Pinacolyl isopropylphosphonofluoridate",1]
[null,null,null,null,null,null,null,null,null,null,null,null,null,null,null,null,null,95428889,"Dinonyl methylphosphonate",1]
[null,null,null,null,null,null,null,null,null,null,null,null,null,null,null,null,null,958995465,"Butyl S-2-diisopropylaminoethyl isopropylphosphonothiolate",1]
[null,null,null,null,null,null,null,null,null,null,null,null,null,null,null,null,null,958997621,"Propyl S-2-diisopropylaminoethyl propylphosphonothiolate",1]
[null,null,null,null,null,null,null,null,null,null,null,null,null,null,null,null,null,958997654,"1-Ethylpropyl S-2-diisopropylaminoethyl propylphosphonothiolate",1]
[null,null,null,null,null,null,null,null,null,null,null,null,null,null,null,null,null,959004036,"4-tert-Butylcyclohexyl propylphosphonofluoridate",1]
[null,null,null,null,null,null,null,null,null,null,null,null,null,null,null,null,null,959004321,"3,3-Dimethylbutyl propylphosphonofluoridate",1]
[null,null,null,null,null,null,null,null,null,null,null,null,null,null,null,null,null,959004343,"Cyclohexylmethyl isopropylphosphonofluoridate",1]
[null,null,null,null,null,null,null,null,null,null,null,null,null,null,null,null,null,959004376,"2-Cyclohexylethyl propylphosphonofluoridate",1]
[null,null,null,null,null,null,null,null,null,null,null,null,null,null,null,null,null,959010209,"4-Methylpentyl methylphosphonofluoridate",1]
[null,null,null,null,null,null,null,null,null,null,null,null,null,null,null,null,null,959010492,"Octyl S-2-dimethylaminoethyl propylphosphonothiolate",1]
[null,null,null,null,null,null,null,null,null,null,null,null,null,null,null,null,null,959010505,"Cyclooctyl S-2-dimethylaminoethyl propylphosphonothiolate",1]
[null,null,null,null,null,null,null,null,null,null,null,null,null,null,null,null,null,959014756,"Pentyl N,N-dipropylphosphoramidocyanidate",1]
[null,null,null,null,null,null,null,null,null,null,null,null,null,null,null,null,null,959014892,"1,1-Dimethylpentyl methylphosphonofluoridate",1]
[null,null,null,null,null,null,null,null,null,null,null,null,null,null,null,null,null,959019477,"Cyclohexylmethyl methylphosphonofluoridate",1]
[null,null,null,null,null,null,null,null,null,null,null,null,null,null,null,null,null,959020043,"Cyclohexyl S-2-diethylaminoethyl ethylphosphonothiolate",1]
[null,null,null,null,null,null,null,null,null,null,null,null,null,null,null,null,null,959025935,"Cyclohexylmethyl propylphosphonofluoridate",1]
[null,null,null,null,null,null,null,null,null,null,null,null,null,null,null,null,null,959027884,"3,5,5-Trimethylhexyl ethylphosphonofluoridate",1]
[null,null,null,null,null,null,null,null,null,null,null,null,null,null,null,null,null,959028092,"Bis(1,3-dimethylbutyl) methylphosphonate",1]
[null,null,null,null,null,null,null,null,null,null,null,null,null,null,null,null,null,959040290,"sec-Butyl S-2-diisopropylaminoethyl isopropylphosphonothiolate",1]
[null,null,null,null,null,null,null,null,null,null,null,null,null,null,null,null,null,959040723,"2-Cyclohexylethyl methylphosphonofluoridate",1]
[null,null,null,null,null,null,null,null,null,null,null,null,null,null,null,null,null,959044156,"Dioctyl propylphosphonate",1]
[null,null,null,null,null,null,null,null,null,null,null,null,null,null,null,null,null,959054901,"4-Methylpentyl S-2-diisopropylaminoethyl propylphosphonothiolate",1]
[null,null,null,null,null,null,null,null,null,null,null,null,null,null,null,null,null,959083580,"1-Ethyl-1-methylpropyl methylphosphonofluoridate",1]
[null,null,null,null,null,null,null,null,null,null,null,null,null,null,null,null,null,959086487,"1-Ethylpropyl ethylphosphonofluoridate",1]
[null,null,null,null,null,null,null,null,null,null,null,null,null,null,null,null,null,959088132,"1-Ethylhexyl isopropylphosphonofluoridate",1]
[null,null,null,null,null,null,null,null,null,null,null,null,null,null,null,null,null,959088143,"1-Ethylhexyl propylphosphonofluoridate",1]
[null,null,null,null,null,null,null,null,null,null,null,null,null,null,null,null,null,959088154,"1-Ethylpropyl propylphosphonofluoridate",1]
[null,null,null,null,null,null,null,null,null,null,null,null,null,null,null,null,null,959089000,"2-Propylpentyl methylphosphonofluoridate",1]
[null,null,null,null,null,null,null,null,null,null,null,null,null,null,null,null,null,959092423,"2,2-Dimethylpropyl propylphosphonofluoridate",1]
[null,null,null,null,null,null,null,null,null,null,null,null,null,null,null,null,null,959093039,"2-Cyclohexylethyl ethylphosphonofluoridate",1]
[null,null,null,null,null,null,null,null,null,null,null,null,null,null,null,null,null,959093051,"Cyclohexylmethyl ethylphosphonofluoridate",1]
[null,null,null,null,null,null,null,null,null,null,null,null,null,null,null,null,null,959098863,"1-Propylheptyl methylphosphonofluoridate",1]
[null,null,null,null,null,null,null,null,null,null,null,null,null,null,null,null,null,959098885,"1-Ethyl-1-methylpentyl methylphosphonofluoridate",1]
[null,null,null,null,null,null,null,null,null,null,null,null,null,null,null,null,null,959098896,"1-Ethylpentyl methylphosphonofluoridate",1]
[null,null,null,null,null,null,null,null,null,null,null,null,null,null,null,null,null,959104177,"Cyclohexylmethyl S-2-dimethylaminoethyl propylphosphonothiolate",1]
[null,null,null,null,null,null,null,null,null,null,null,null,null,null,null,null,null,959111241,"Butyl S-2-diisopropylaminoethyl propylphosphonothiolate",1]
[null,null,null,null,null,null,null,null,null,null,null,null,null,null,null,null,null,959217153,"1-Propylheptyl ethylphosphonofluoridate",1]
[null,null,null,null,null,null,null,null,null,null,null,null,null,null,null,null,null,959217222,"4-tert-Butylcyclohexyl ethylphosphonofluoridate",1]
[null,null,null,null,null,null,null,null,null,null,null,null,null,null,null,null,null,959218689,"1-Ethylbutyl methylphosphonofluoridate",1]
[null,null,null,null,null,null,null,null,null,null,null,null,null,null,null,null,null,959220918,"Cyclooctyl N,N-dipropylphosphoramidocyanidate",1]
[null,null,null,null,null,null,null,null,null,null,null,null,null,null,null,null,null,959220929,"Cycloheptyl N,N-dipropylphosphoramidocyanidate",1]
[null,null,null,null,null,null,null,null,null,null,null,null,null,null,null,null,null,959231142,"2- Cyclohexylethyl N,N- diisopropylphosphoramidocyanidate",1]
[null,null,null,null,null,null,null,null,null,null,null,null,null,null,null,null,null,959231164,"Propyl N,N-diisopropylphosphoramidocyanidate",1]
[null,null,null,null,null,null,null,null,null,null,null,null,null,null,null,null,null,959231391,"Pentyl N,N-diisopropylphosphoramidocyanidate",1]
[null,null,null,null,null,null,null,null,null,null,null,null,null,null,null,null,null,959231415,"Heptyl N,N-diisopropylphosphoramidocyanidate",1]
[null,null,null,null,null,null,null,null,null,null,null,null,null,null,null,null,null,959233580,"Heptyl S-2-diisopropylaminoethyl isopropylphosphonothiolate",1]
[null,null,null,null,null,null,null,null,null,null,null,null,null,null,null,null,null,959233604,"Cyclohexylmethyl S-2-diisopropylaminoethyl isopropylphosphonothiolate",1]
[null,null,null,null,null,null,null,null,null,null,null,null,null,null,null,null,null,959233795,"Propyl S-2-dipropylaminoethyl propylphosphonothiolate",1]
[null,null,null,null,null,null,null,null,null,null,null,null,null,null,null,null,null,959234061,"2,2-Dimethylpropyl ethylphosphonofluoridate",1]
[null,null,null,null,null,null,null,null,null,null,null,null,null,null,null,null,null,959245068,"4-tert-Butylcyclohexyl methylphosphonofluoridate",1]
[null,null,null,null,null,null,null,null,null,null,null,null,null,null,null,null,null,959250227,"3,5,5-Trimethylhexyl S-2-dimethylaminoethyl propylphosphonothiolate",1]
[null,null,null,null,null,null,null,null,null,null,null,null,null,null,null,null,null,959257171,"sec-Butyl S-2-diisopropylaminoethyl propylphosphonothiolate",1]
[null,null,null,null,null,null,null,null,null,null,null,null,null,null,null,null,null,959257182,"3,5,5-Trimethylhexyl S-2-diisopropylaminoethyl propylphosphonothiolate",1]
[null,null,null,null,null,null,null,null,null,null,null,null,null,null,null,null,null,959257626,"1,1-Diethylpropyl methylphosphonofluoridate",1]
[null,null,null,null,null,null,null,null,null,null,null,null,null,null,null,null,null,959259053,"Propyl S-2-dimethylaminoethyl propylphosphonothiolate",1]
[null,null,null,null,null,null,null,null,null,null,null,null,null,null,null,null,null,959259064,"4-Methylpentyl S-2-dimethylaminoethyl propylphosphonothiolate",1]
[null,null,null,null,null,null,null,null,null,null,null,null,null,null,null,null,null,959259837,"Phenyl ethylphosphonofluoridate",1]
[null,null,null,null,null,null,null,null,null,null,null,null,null,null,null,null,null,959262998,"1-Isobutyl-3-methylbutyl ethylphosphonofluoridate",1]
[null,null,null,null,null,null,null,null,null,null,null,null,null,null,null,null,null,959263015,"3-Methylpentyl ethylphosphonofluoridate",1]
[null,null,null,null,null,null,null,null,null,null,null,null,null,null,null,null,null,959268474,"Cyclohexylmethyl S-2-diisopropylaminoethyl propylphosphonothiolate",1]
[null,null,null,null,null,null,null,null,null,null,null,null,null,null,null,null,null,959276461,"4-Methylpentyl ethylphosphonofluoridate",1]
[null,null,null,null,null,null,null,null,null,null,null,null,null,null,null,null,null,959285519,"Cyclohexylmethyl N,N-dipropylphosphoramidocyanidate",1]
[null,null,null,null,null,null,null,null,null,null,null,null,null,null,null,null,null,959288698,"Decyl S-2-diethylaminoethyl methylphosphonothiolate",1]
[null,null,null,null,null,null,null,null,null,null,null,null,null,null,null,null,null,959288701,"Propyl S-2-diethylaminoethyl propylphosphonothiolate",1]
[null,null,null,null,null,null,null,null,null,null,null,null,null,null,null,null,null,959288712,"2-Methylpentyl S-2-diethylaminoethyl ethylphosphonothiolate",1]
[null,null,null,null,null,null,null,null,null,null,null,null,null,null,null,null,null,959289500,"Isopropyl S-2-diisopropylaminoethyl isopropylphosphonothiolate",1]
[null,null,null,null,null,null,null,null,null,null,null,null,null,null,null,null,null,959299708,"Cyclooctyl N,N-diisopropylphosphoramidocyanidate",1]
[null,null,null,null,null,null,null,null,null,null,null,null,null,null,null,null,null,959299720,"Cycloheptyl N,N-diisopropylphosphoramidocyanidate",1]
[null,null,null,null,null,null,null,null,null,null,null,null,null,null,null,null,null,959304144,"3,5,5-Trimethylhexyl methylphosphonofluoridate",1]
[null,null,null,null,null,null,null,null,null,null,null,null,null,null,null,null,null,959304973,"Heptyl N,N-dipropylphosphoramidocyanidate",1]
[null,null,null,null,null,null,null,null,null,null,null,null,null,null,null,null,null,959304984,"2-Cyclohexylethyl N,N-dipropylphosphoramidocyanidate",1]
[null,null,null,null,null,null,null,null,null,null,null,null,null,null,null,null,null,959305001,"Cyclopentyl N,N-dipropylphosphoramidocyanidate",1]
[null,null,null,null,null,null,null,null,null,null,null,null,null,null,null,null,null,96640,"Pinacolyl methylphosphonofluoridate",1]
[null,null,null,null,null,null,null,null,null,null,null,null,null,null,null,null,null,96797,"2-(N,N-Diisopropylamino)ethylchloride",1]
[null,null,null,null,null,null,null,null,null,null,null,null,null,null,null,null,null,96800,"2-(N,N-Diisopropylamino)ethanol",1]
[null,null,null,null,null,null,null,null,null,null,null,null,null,null,null,null,null,97505356,"Mixture of Methylphosphonic difluoride and Methylphosphonic dichloride",1]
[null,null,null,null,null,null,null,null,null,null,null,null,null,null,null,null,null,97931209,"Pinacolyl ethylphosphonofluoridate",1]
[null,null,null,null,null,null,null,null,null,null,null,null,null,null,null,null,null,98283342,"Butyl S-dicyclohexylammonium methylphosphonothiolate",1]
[null,null,null,null,null,null,null,null,null,null,null,null,null,null,null,null,null,98283353,"Isobutyl S-dicyclohexylammonium methylphosphonothiolate",1]
[null,null,null,null,null,null,null,null,null,null,null,null,null,null,null,null,null,98543250,"Ethyl S-2-dimethylaminoethyl ethylphosphonothiolate",1]
[null,null,null,null,null,null,null,null,null,null,null,null,null,null,null,null,null,98543283,"Dipropyl N,N-dimethylphosphoramidate",1]
[null,null,null,null,null,null,null,null,null,null,null,null,null,null,null,null,null,993135,"Methylphosphonic acid",1]
[null,null,null,null,null,null,null,null,null,null,null,null,null,null,null,null,null,993431,"Ethylphosphonothioic dichloride",1]
[null,null,null,null,null,null,null,null,null,null,null,null,null,null,null,null,null,99580935,"Product from the reaction of methylphosphonic acid and 1,2-ethanediamine",1]
[null,null,null,null,null,null,null,null,null,null,null,null,null,null,null,null,null,995880,"S,S-Diethyl methylphosphonodithiolate",1]
[null,null,null,null,null,null,null,null,null,null,null,null,null,null,null,null,null,99991067,"Ethyl S-2-diethylaminoethyl isopropylphosphonothiolate",1]
[null,null,null,null,null,null,null,null,null,null,null,null,null,null,null,null,null,99991078,"Ethyl S-2-diethylaminoethyl propylphosphonothiolate",1]
[null,null,null,null,null,null,null,null,null,null,null,null,null,null,null,null,null,111488,"Thiodiglycol",1]
[null,null,null,null,null,null,null,null,null,null,null,null,null,null,null,null,null,10025873,"Phosphorus oxychloride",1]
[null,null,null,null,null,null,null,null,null,null,null,null,null,null,null,null,null,756796,"Dimethyl methylphosphonate",1]
[null,null,null,null,null,null,null,null,null,null,null,null,null,null,null,null,null,676993,"Methylphosphonyl difluoride (DF)",1]
[null,null,null,null,null,null,null,null,null,null,null,null,null,null,null,null,null,676971,"Methylphosphonyl dichloride (DC)",1]
[null,null,null,null,null,null,null,null,null,null,null,null,null,null,null,null,null,868859,"Dimethyl phosphite (DMP)",1]
[null,null,null,null,null,null,null,null,null,null,null,null,null,null,null,null,null,7719122,"Phosphorus trichloride",1]
[null,null,null,null,null,null,null,null,null,null,null,null,null,null,null,null,null,121459,"Trimethyl phosphite (TMP)",1]
[null,null,null,null,null,null,null,null,null,null,null,null,null,null,null,null,null,7719097,"Thionyl chloride",1]
[null,null,null,null,null,null,null,null,null,null,null,null,null,null,null,null,null,3554743,"3-Hydroxy-1-methylpiperidine",1]
[null,null,null,null,null,null,null,null,null,null,null,null,null,null,null,null,null,96797,"N,N-Diisopropyl-(beta)-aminoethyl chloride",1]
[null,null,null,null,null,null,null,null,null,null,null,null,null,null,null,null,null,5842079,"N,N-Diisopropyl-(beta)-aminoethane thiol",1]
[null,null,null,null,null,null,null,null,null,null,null,null,null,null,null,null,null,1619347,"3-Quinuclidinol",1]
[null,null,null,null,null,null,null,null,null,null,null,null,null,null,null,null,null,7789233,"Potassium fluoride",1]
[null,null,null,null,null,null,null,null,null,null,null,null,null,null,null,null,null,107073,"2-Chloroethanol",1]
[null,null,null,null,null,null,null,null,null,null,null,null,null,null,null,null,null,124403,"Dimethylamine",1]
[null,null,null,null,null,null,null,null,null,null,null,null,null,null,null,null,null,78386,"Diethyl ethylphosphonate",1]
[null,null,null,null,null,null,null,null,null,null,null,null,null,null,null,null,null,2404037,"Diethyl N,N-dimethylphosphoramidate",1]
[null,null,null,null,null,null,null,null,null,null,null,null,null,null,null,null,null,762049,"Diethyl phosphite",1]
[null,null,null,null,null,null,null,null,null,null,null,null,null,null,null,null,null,506592,"Dimethylamine hydrochloride",1]
[null,null,null,null,null,null,null,null,null,null,null,null,null,null,null,null,null,1498404,"Ethylphosphinyl dichloride",1]
[null,null,null,null,null,null,null,null,null,null,null,null,null,null,null,null,null,1066508,"Ethylphosphonyl dichloride",1]
[null,null,null,null,null,null,null,null,null,null,null,null,null,null,null,null,null,753980,"Ethylphosphonyl difluoride",1]
[null,null,null,null,null,null,null,null,null,null,null,null,null,null,null,null,null,7664393,"Hydrogen fluoride",1]
[null,null,null,null,null,null,null,null,null,null,null,null,null,null,null,null,null,76891,"Methyl benzilate",1]
[null,null,null,null,null,null,null,null,null,null,null,null,null,null,null,null,null,676835,"Methylphosphinyl dichloride",1]
[null,null,null,null,null,null,null,null,null,null,null,null,null,null,null,null,null,96800,"N,N-Diisopropyl-(beta)-amino-ethanol",1]
[null,null,null,null,null,null,null,null,null,null,null,null,null,null,null,null,null,464073,"Pinacolyl alcohol",1]
[null,null,null,null,null,null,null,null,null,null,null,null,null,null,null,null,null,57856118,"O-Ethyl O-2-diisopropylaminoethyl methylphosphonite (QL)",1]
[null,null,null,null,null,null,null,null,null,null,null,null,null,null,null,null,null,122521,"Triethyl phosphite",1]
[null,null,null,null,null,null,null,null,null,null,null,null,null,null,null,null,null,7784341,"Arsenic trichloride",1]
[null,null,null,null,null,null,null,null,null,null,null,null,null,null,null,null,null,76937,"Benzilic acid",1]
[null,null,null,null,null,null,null,null,null,null,null,null,null,null,null,null,null,15715410,"Diethyl methylphosphonite",1]
[null,null,null,null,null,null,null,null,null,null,null,null,null,null,null,null,null,6163753,"Dimethyl ethylphosphonate",1]
[null,null,null,null,null,null,null,null,null,null,null,null,null,null,null,null,null,430784,"Ethylphosphinyl difluoride",1]
[null,null,null,null,null,null,null,null,null,null,null,null,null,null,null,null,null,753593,"Methylphosphinyl difluoride",1]
[null,null,null,null,null,null,null,null,null,null,null,null,null,null,null,null,null,3731382,"3-Quinuclidone",1]
[null,null,null,null,null,null,null,null,null,null,null,null,null,null,null,null,null,10026138,"Phosphorus pentachloride",1]
[null,null,null,null,null,null,null,null,null,null,null,null,null,null,null,null,null,75978,"Pinacolone",1]
[null,null,null,null,null,null,null,null,null,null,null,null,null,null,null,null,null,151508,"Potassium cyanide",1]
[null,null,null,null,null,null,null,null,null,null,null,null,null,null,null,null,null,7789299,"Potassium bifluoride",1]
[null,null,null,null,null,null,null,null,null,null,null,null,null,null,null,null,null,1341497,"Ammonium bifluoride",1]
[null,null,null,null,null,null,null,null,null,null,null,null,null,null,null,null,null,1333831,"Sodium bifluoride",1]
[null,null,null,null,null,null,null,null,null,null,null,null,null,null,null,null,null,7681494,"Sodium fluoride",1]
[null,null,null,null,null,null,null,null,null,null,null,null,null,null,null,null,null,143339,"Sodium cyanide",1]
[null,null,null,null,null,null,null,null,null,null,null,null,null,null,null,null,null,102716,"Triethanolamine",1]
[null,null,null,null,null,null,null,null,null,null,null,null,null,null,null,null,null,1314803,"Phosphorus pentasulphide",1]
[null,null,null,null,null,null,null,null,null,null,null,null,null,null,null,null,null,108189,"Diisopropylamine",1]
[null,null,null,null,null,null,null,null,null,null,null,null,null,null,null,null,null,100378,"Diethylaminoethanol",1]
[null,null,null,null,null,null,null,null,null,null,null,null,null,null,null,null,null,1313822,"Sodium sulphide",1]
[null,null,null,null,null,null,null,null,null,null,null,null,null,null,null,null,null,10025679,"Sulphur monochloride",1]
[null,null,null,null,null,null,null,null,null,null,null,null,null,null,null,null,null,10545990,"Sulphur dichloride",1]
[null,null,null,null,null,null,null,null,null,null,null,null,null,null,null,null,null,637398,"Triethanolamine hydrochloride",1]
[null,null,null,null,null,null,null,null,null,null,null,null,null,null,null,null,null,4261681,"N,N-Diisopropyl-2-aminoethyl chloride hydrochloride",1]
[null,null,null,null,null,null,null,null,null,null,null,null,null,null,null,null,null,993135,"Methylphosphonic acid",1]
[null,null,null,null,null,null,null,null,null,null,null,null,null,null,null,null,null,683089,"Diethyl methylphosphonate",1]
[null,null,null,null,null,null,null,null,null,null,null,null,null,null,null,null,null,677430,"N,N-Dimethylaminophosphoryl dichloride",1]
[null,null,null,null,null,null,null,null,null,null,null,null,null,null,null,null,null,116176,"Triisopropyl phosphite",1]
[null,null,null,null,null,null,null,null,null,null,null,null,null,null,null,null,null,139877,"Ethyldiethanolamine",1]
[null,null,null,null,null,null,null,null,null,null,null,null,null,null,null,null,null,2465658,"O,O-Diethyl phosphorothioate",1]
[null,null,null,null,null,null,null,null,null,null,null,null,null,null,null,null,null,298066,"O,O-Diethyl phosphorodithioate",1]
[null,null,null,null,null,null,null,null,null,null,null,null,null,null,null,null,null,16893859,"Sodium hexafluorosilicate",1]
[null,null,null,null,null,null,null,null,null,null,null,null,null,null,null,null,null,676982,"Methylphosphonothioic dichloride",1]
[null,null,null,null,null,null,null,null,null,null,null,null,null,null,null,null,null,109897,"Diethylamine",1]
[null,null,null,null,null,null,null,null,null,null,null,null,null,null,null,null,null,41480755,"N,N-Diisopropylaminoethanethiol hydrochloride",1]
[null,null,null,null,null,null,null,null,null,null,null,null,null,null,null,null,null,677247,"Methyl dichlorophosphate",1]
[null,null,null,null,null,null,null,null,null,null,null,null,null,null,null,null,null,1498517,"Ethyl dichlorophosphate",1]
[null,null,null,null,null,null,null,null,null,null,null,null,null,null,null,null,null,22382134,"Methyl difluorophosphate",1]
[null,null,null,null,null,null,null,null,null,null,null,null,null,null,null,null,null,460526,"Ethyl difluorophosphate",1]
[null,null,null,null,null,null,null,null,null,null,null,null,null,null,null,null,null,589571,"Diethyl chlorophosphite",1]
[null,null,null,null,null,null,null,null,null,null,null,null,null,null,null,null,null,754018,"Methyl chlorofluorophosphate",1]
[null,null,null,null,null,null,null,null,null,null,null,null,null,null,null,null,null,762776,"Ethyl chlorofluorophosphate",1]
[null,null,null,null,null,null,null,null,null,null,null,null,null,null,null,null,null,44205427,"N,N-Dimethylformamidine",1]
[null,null,null,null,null,null,null,null,null,null,null,null,null,null,null,null,null,90324677,"N,N-Diethylformamidine",1]
[null,null,null,null,null,null,null,null,null,null,null,null,null,null,null,null,null,48044208,"N,N-Dipropylformamidine",1]
[null,null,null,null,null,null,null,null,null,null,null,null,null,null,null,null,null,857522088,"N,N-Diisopropylformamidine",1]
[null,null,null,null,null,null,null,null,null,null,null,null,null,null,null,null,null,2909140,"N,N-Dimethylacetamidine",1]
[null,null,null,null,null,null,null,null,null,null,null,null,null,null,null,null,null,14277066,"N,N-Diethylacetamidine",1]
[null,null,null,null,null,null,null,null,null,null,null,null,null,null,null,null,null,1339586990,"N,N-Dipropylacetamidine",1]
[null,null,null,null,null,null,null,null,null,null,null,null,null,null,null,null,null,56776148,"N,N-Dimethylpropanamidine",1]
[null,null,null,null,null,null,null,null,null,null,null,null,null,null,null,null,null,84764738,"N,N-Diethylpropanamidine",1]
[null,null,null,null,null,null,null,null,null,null,null,null,null,null,null,null,null,1341496896,"N,N-Dipropylpropanamidine",1]
[null,null,null,null,null,null,null,null,null,null,null,null,null,null,null,null,null,1340437355,"N,N-Dimethylbutanamidine",1]
[null,null,null,null,null,null,null,null,null,null,null,null,null,null,null,null,null,53510308,"N,N-Diethylbutanamidine",1]
[null,null,null,null,null,null,null,null,null,null,null,null,null,null,null,null,null,1342422358,"N,N-Dipropylbutanamidine",1]
[null,null,null,null,null,null,null,null,null,null,null,null,null,null,null,null,null,1315467174,"N,N-Diisopropylbutanamidine",1]
[null,null,null,null,null,null,null,null,null,null,null,null,null,null,null,null,null,321881258,"N,N-Dimethylisobutanamidine",1]
[null,null,null,null,null,null,null,null,null,null,null,null,null,null,null,null,null,1342789472,"N,N-Diethylisobutanamidine",1]
[null,null,null,null,null,null,null,null,null,null,null,null,null,null,null,null,null,1342700451,"N,N-Dipropylisobutanamidine",1]
[null,null,null,null,null,null,null,null,null,null,null,null,null,null,null,null,null,null,"(1) O-Alkyl (<=C10, incl. cycloalkyl) alkyl (Me, Et, n-Pr or i-Pr)-phosphonofluoridates"]
[null,null,null,null,null,null,null,null,null,null,null,null,null,null,null,null,null,107448,"       (e.g.) Sarin: O-Isopropyl methylphosphonofluoridate"]
[null,null,null,null,null,null,null,null,null,null,null,null,null,null,null,null,null,96640,"       (e.g.) Soman: O-Pinacolyl methylphosphonofluoridate"]
[null,null,null,null,null,null,null,null,null,null,null,null,null,null,null,null,null,null,"(2) O-Alkyl (<=C10, incl. cycloalkyl) N,N-dialkyl (Me, Et, n-Pr or i-Pr) phosphoramidocyanidates"]
[null,null,null,null,null,null,null,null,null,null,null,null,null,null,null,null,null,77816,"       (e.g.) Tabun:O-Ethyl N,N-dimethyl phosphoramidocyanidate"]
[null,null,null,null,null,null,null,null,null,null,null,null,null,null,null,null,null,null,"(3) O-Alkyl (H or <=C10, incl. cycloalkyl) S-2-dialkyl (Me, Et, n-Pr or i-Pr)-aminoethyl alkyl (Me, Et, n-Pr or i-Pr) phosphonothiolates and corresponding alkylated or protonated salts"]
[null,null,null,null,null,null,null,null,null,null,null,null,null,null,null,null,null,50782699,"       (e.g.) VX: O-Ethyl S-2-diisopropylaminoethyl methyl phosphonothiolate"]
[null,null,null,null,null,null,null,null,null,null,null,null,null,null,null,null,null,null,"(4) Sulfur mustards:"]
[null,null,null,null,null,null,null,null,null,null,null,null,null,null,null,null,null,2625765,"       (e.g.) 2-Chloroethylchloromethylsulfide"]
[null,null,null,null,null,null,null,null,null,null,null,null,null,null,null,null,null,505602,"       (e.g.) Mustard gas: Bis(2-chloroethyl)sulfide"]
[null,null,null,null,null,null,null,null,null,null,null,null,null,null,null,null,null,63869136,"       (e.g.) Bis(2-chloroethylthio)methane"]
[null,null,null,null,null,null,null,null,null,null,null,null,null,null,null,null,null,3563368,"       (e.g.) Sesquimustard: 1,2-Bis(2-chloroethylthio)ethane"]
[null,null,null,null,null,null,null,null,null,null,null,null,null,null,null,null,null,63905102,"       (e.g.) 1,3-Bis(2-chloroethylthio)-n-propane"]
[null,null,null,null,null,null,null,null,null,null,null,null,null,null,null,null,null,142868937,"       (e.g.) 1,4-Bis(2-chloroethylthio)-n-butane"]
[null,null,null,null,null,null,null,null,null,null,null,null,null,null,null,null,null,142868948,"       (e.g.) 1,5-Bis(2-chloroethylthio)-n-pentane"]
[null,null,null,null,null,null,null,null,null,null,null,null,null,null,null,null,null,63918901,"       (e.g.) Bis(2-chloroethylthiomethyl)ether"]
[null,null,null,null,null,null,null,null,null,null,null,null,null,null,null,null,null,63918898,"       (e.g.) O-Mustard: Bis(2-chloroethylthioethyl)ether"]
[null,null,null,null,null,null,null,null,null,null,null,null,null,null,null,null,null,null,"(5) Lewisites:"]
[null,null,null,null,null,null,null,null,null,null,null,null,null,null,null,null,null,541253,"       (e.g.) Lewisite 1: 2-Chlorovinyldichloroarsine"]
[null,null,null,null,null,null,null,null,null,null,null,null,null,null,null,null,null,40334698,"       (e.g.) Lewisite 2: Bis(2-chlorovinyl)chloroarsine"]
[null,null,null,null,null,null,null,null,null,null,null,null,null,null,null,null,null,40334701,"       (e.g.) Lewisite 3: Tris(2-chlorovinyl)arsine"]
[null,null,null,null,null,null,null,null,null,null,null,null,null,null,null,null,null,null,"(6) Nitrogen mustards:"]
[null,null,null,null,null,null,null,null,null,null,null,null,null,null,null,null,null,538078,"       (e.g.) HN1: Bis(2-chloroethyl)ethylamine"]
[null,null,null,null,null,null,null,null,null,null,null,null,null,null,null,null,null,51752,"       (e.g.) HN2: Bis(2-chloroethyl)methylamine"]
[null,null,null,null,null,null,null,null,null,null,null,null,null,null,null,null,null,555771,"       (e.g.) HN3: Tris(2-chloroethyl)amine"]
[null,null,null,null,null,null,null,null,null,null,null,null,null,null,null,null,null,35523898,"(7) Saxitoxin"]
[null,null,null,null,null,null,null,null,null,null,null,null,null,null,null,null,null,9009863,"(8) Ricin"]
[null,null,null,null,null,null,null,null,null,null,null,null,null,null,null,null,null,null,"(9) Alkyl (Me, Et, n-Pr or i-Pr) phosphonyldifluorides"]
[null,null,null,null,null,null,null,null,null,null,null,null,null,null,null,null,null,676993,"       (e.g.) DF: Methylphosphonyldifluoride"]
[null,null,null,null,null,null,null,null,null,null,null,null,null,null,null,null,null,null,"(10) O-Alkyl (H or <=C10, incl. cycloalkyl) O-2-dalkyl (Me, Et, n-Pr or i-Pr)-aminoethyl alkyl (Me, Et, n-Pr or i-Pr) phosphonites and corresponding alkylated or protonated salts"]
[null,null,null,null,null,null,null,null,null,null,null,null,null,null,null,null,null,57856118,"       (e.g.) QL: O-Ethyl O-2-diisopropylaminoethyl methylphosphonite"]
[null,null,null,null,null,null,null,null,null,null,null,null,null,null,null,null,null,1445767,"(11) Chlorosarin: O-Isopropyl methylphosphonochloridate"]
[null,null,null,null,null,null,null,null,null,null,null,null,null,null,null,null,null,7040575,"(12) Chlorosoman: O-Pinacolyl methylphosphonochloridate"]
[null,null,null,null,null,null,null,null,null,null,null,null,null,null,null,null,null,78535,"(1) Amiton: O,O-Diethyl S-[2-(diethylamino)ethyl] phosphorothiolate and corresponding alkylated or protonated salts"]
[null,null,null,null,null,null,null,null,null,null,null,null,null,null,null,null,null,382218,"(2) PFIB: 1,1,3,3,3-Pentafluoro-2-(trifluoromethyl)-1-propene"]
[null,null,null,null,null,null,null,null,null,null,null,null,null,null,null,null,null,6581062,"(3) BZ: 3-Quinuclidinyl benzilate (*)"]
[null,null,null,null,null,null,null,null,null,null,null,null,null,null,null,null,null,null,"(4) Chemicals, except for those listed in Schedule 1, containing a phosphorus atom to which is bonded one methyl, ethyl or propyl (normal or iso) group but not further carbon atoms,"]
[null,null,null,null,null,null,null,null,null,null,null,null,null,null,null,null,null,676971,"       (e.g.) Methylphosphonyl dichloride"]
[null,null,null,null,null,null,null,null,null,null,null,null,null,null,null,null,null,756796,"       (e.g.) Dimethyl methylphosphonate"]
[null,null,null,null,null,null,null,null,null,null,null,null,null,null,null,null,null,null,"Exemption: Fonofos: O-Ethyl S-phenyl ethylphosphonothiolothionate (944-22-9) "]
[null,null,null,null,null,null,null,null,null,null,null,null,null,null,null,null,null,null,"(5) N,N-Dialkyl (Me, Et, n-Pr or i-Pr) phosphoramidic dihalides"]
[null,null,null,null,null,null,null,null,null,null,null,null,null,null,null,null,null,null,"(6) Dialkyl (Me, Et, n-Pr or i-Pr) N,N-dialkyl (Me, Et, n-Pr or i-Pr)-phosphoramidates"]
[null,null,null,null,null,null,null,null,null,null,null,null,null,null,null,null,null,7784341,"(7) Arsenic trichloride"]
[null,null,null,null,null,null,null,null,null,null,null,null,null,null,null,null,null,76937,"(8) 2,2-Diphenyl-2-hydroxyacetic acid"]
[null,null,null,null,null,null,null,null,null,null,null,null,null,null,null,null,null,1619347,"(9) Quinuclidin-3-ol"]
[null,null,null,null,null,null,null,null,null,null,null,null,null,null,null,null,null,null,"(10) N,N-Dialkyl (Me, Et, n-Pr or i-Pr) aminoethyl-2-chlorides and corresponding protonated salts"]
[null,null,null,null,null,null,null,null,null,null,null,null,null,null,null,null,null,null,"(11) N,N-Dialkyl (Me, Et, n-Pr or i-Pr) aminoethane-2-ols and corresponding protonated salts"]
[null,null,null,null,null,null,null,null,null,null,null,null,null,null,null,null,null,null,"Exemption: N,N-Dimethylaminoethanol and corresponding protonated salts (108-01-0) "]
[null,null,null,null,null,null,null,null,null,null,null,null,null,null,null,null,null,null,"Exemption: N,N-Diethylaminoethanol and corresponding protonated salts (100-37-8)"]
[null,null,null,null,null,null,null,null,null,null,null,null,null,null,null,null,null,null,"(12) N,N-Dialkyl (Me, Et, n-Pr or i-Pr) aminoethane-2-thiols and corresponding protonated salts"]
[null,null,null,null,null,null,null,null,null,null,null,null,null,null,null,null,null,111488,"(13) Thiodiglycol: Bis(2-hydroxyethyl)sulfide"]
[null,null,null,null,null,null,null,null,null,null,null,null,null,null,null,null,null,464073,"(14) Pinacolyl alcohol: 3,3-Dimethylbutan-2-ol"]
[null,null,null,null,null,null,null,null,null,null,null,null,null,null,null,null,null,75445,"(1) Phosgene: Carbonyl dichloride"]
[null,null,null,null,null,null,null,null,null,null,null,null,null,null,null,null,null,506774,"(2) Cyanogen chloride"]
[null,null,null,null,null,null,null,null,null,null,null,null,null,null,null,null,null,74908,"(3) Hydrogen cyanide"]
[null,null,null,null,null,null,null,null,null,null,null,null,null,null,null,null,null,76062,"(4) Chloropicrin: Trichloronitromethane"]
[null,null,null,null,null,null,null,null,null,null,null,null,null,null,null,null,null,10025873,"(5) Phosphorus oxychloride"]
[null,null,null,null,null,null,null,null,null,null,null,null,null,null,null,null,null,7719122,"(6) Phosphorus trichloride"]
[null,null,null,null,null,null,null,null,null,null,null,null,null,null,null,null,null,10026138,"(7) Phosphorus pentachloride"]
[null,null,null,null,null,null,null,null,null,null,null,null,null,null,null,null,null,121459,"(8) Trimethyl phosphite"]
[null,null,null,null,null,null,null,null,null,null,null,null,null,null,null,null,null,122521,"(9) Triethyl phosphite"]
[null,null,null,null,null,null,null,null,null,null,null,null,null,null,null,null,null,868859,"(10) Dimethyl phosphite"]
[null,null,null,null,null,null,null,null,null,null,null,null,null,null,null,null,null,762049,"(11) Diethyl phosphite"]
[null,null,null,null,null,null,null,null,null,null,null,null,null,null,null,null,null,10025679,"(12) Sulfur monochloride"]
[null,null,null,null,null,null,null,null,null,null,null,null,null,null,null,null,null,10545990,"(13) Sulfur dichloride"]
[null,null,null,null,null,null,null,null,null,null,null,null,null,null,null,null,null,7719097,"(14) Thionyl chloride"]
[null,null,null,null,null,null,null,null,null,null,null,null,null,null,null,null,null,139877,"(15) Ethyldiethanolamine"]
[null,null,null,null,null,null,null,null,null,null,null,null,null,null,null,null,null,105599,"(16) Methyldiethanolamine"]
[null,null,null,null,null,null,null,null,null,null,null,null,null,null,null,null,null,102716,"(17) Triethanolamine"]

{"sheet":"Facility Overview","index":6,"n_rows":38,"n_cols":23,"rows_kept":38,"cut":false,"hidden":false,"merged":[[0,0,0,2],[33,0,37,0],[21,1,21,2],[23,1,23,2],[32,1,32,2],[5,0,9,0],[5,1,5,2],[10,1,10,2],[25,1,25,2],[24,1,24,2],[10,0,17,0],[25,0,31,0],[18,0,20,0]]}
["Facility Overview - To be completed about the company that is using this tool"]
["Facility Name"]
["Country of Facility",null,null,null,null,null,null,null,null,null,null,null,null,null,null,null,null,null,null,null,null,null,"Yes"]
["Type of Company (select all that apply)",null,null,null,null,null,null,null,null,null,null,null,null,null,null,null,null,null,null,null,null,null,"No"]
["Past Practices"]
["What type of customer do you serve? (Select Yes for all applicable)",null,null,null,null,null,null,null,null,null,null,null,null,null,null,null,null,null,null,null,null,null,"You"]
[null,null,"End-User",null,null,null,null,null,null,null,null,null,null,null,null,null,null,null,null,null,null,null,"Customer"]
[null,null,"Chemical Company",null,null,null,null,null,null,null,null,null,null,null,null,null,null,null,null,null,null,null,"Third Party"]
[null,null,"Resaler"]
[null,null,"Chemical Distribution",null,null,null,null,null,null,null,null,null,null,null,null,null,null,null,null,null,null,null,"Online"]
["How are chemicals transported from your facility (Select Yes for all applicable)",null,null,null,null,null,null,null,null,null,null,null,null,null,null,null,null,null,null,null,null,null,"Phone"]
[null,null,"Customer personal vehicle",null,null,null,null,null,null,null,null,null,null,null,null,null,null,null,null,null,null,null,"In-Person"]
[null,null,"Commercial Truck "]
[null,null,"Tanker truck"]
[null,null,"Rail"]
[null,null,"Ship"]
[null,null,"Air"]
[null,null,"Other"]
["Who coordinates shipping logistics for chemicals leaving your facility?"]
[]
[]
["Do you have any processes where you track your sales after they have left your facility?"]
["Do you verify shipments are received after they have left your facility?"]
["Is there a requirement for special licenses or permits prior to shipping materials at your facility?"]
["Does your facility have any operating procedures or regulations you follow related to preparing products for shipments?"]
["What payment types do you generally accept? (Select Yes for all applicable)"]
[null,null,"Cash"]
[null,null,"Credit Card"]
[null,null,"Wire Transfer"]
[null,null,"Purchase Order"]
[null,null,"Banking App"]
[null,null,"Letter of Credit"]
["How are orders generally placed?","Online"]
["How is payment generally received? ",null,"Payment upon receipt"]
[null,null,"Payment upon delivery"]
[null,null,"Deposit placed when ordered"]
[null,null,"Invoiced"]
[null,null,"Payment upon ordering"]

{"sheet":"Customer Database","index":7,"n_rows":2,"n_cols":13,"rows_kept":2,"cut":false,"hidden":false,"merged":[[0,0,0,12]]}
["Customer Database - all customers listeed here will be avaialbe to be selected in the \"Customer Order\" tab"]
[{"$f":"'Customer Verification'!A3","v":"Name of Customer/Business"},{"$f":"'Customer Verification'!A4","v":"Telephone Number"},{"$f":"'Customer Verification'!A5","v":"POC Name"},{"$f":"'Customer Verification'!A6","v":"POC Email"},{"$f":"'Customer Verification'!A7","v":"Country (Business Headquarters)"},{"$f":"'Customer Verification'!A8","v":"Address"},{"$f":"'Customer Verification'!A12","v":"POC Nationality"},{"$f":"'Customer Verification'!A14","v":"Business Number"},{"$f":"'Customer Verification'!A19","v":"Bank name"},{"$f":"'Customer Verification'!A20","v":"Bank address"},{"$f":"'Customer Verification'!A21","v":"Payment method"},"Trusted Customer (Y/N)","Date of Verification"]

{"sheet":"Product Database","index":8,"n_rows":2,"n_cols":6,"rows_kept":2,"cut":false,"hidden":false,"merged":[[0,0,0,5]]}
["Product Database"]
["Product ID","Product Name","CAS (If Applicable)","Material Packaging","Material Quantity","Hazardous"]

{"sheet":"Transportation Verification","index":9,"n_rows":25,"n_cols":4,"rows_kept":25,"cut":false,"hidden":true,"merged":[]}
["Customer",{"$f":"'Customer Verification'!B3","v":0}]
["Question","Response","Escalation?","Notes"]
["Where is the item being shipped:","Customer",null,"Specific?"]
["Country","Germany"]
["State/Province","N/A"]
["City","Munich"]
["Street","111 Germanic Lane"]
["Have you shipped to this location before?","Yes"]
["Have you verified the location is a suitable location for the chemical?"]
["Shipper Logistics"]
["How is the item being shipped? ","Customer personal vehicle",null,"Air"]
["Is the customer taking immediate custody of the chemical?","Unsure"]
["If another person/company is transporting the chemical, what company is it?","N/A"]
["Transportation Company Address"]
["Transportation Company Phone Number"]
["Have you ever worked with this Transportation Company before?","Unsure"]
["Will the shipment be verified upon receipt?","No"]
["Is the shipment insured?","Yes"]
["General Questions"]
["Are there any unusual routing requests about this order? (For example: specifying a specific route that is not the most efficient, stopping at other facilities before the final destination)","No"]
["Are there any unusual labelling requests from the customer?","No"]
["Are there any unusual packaging requests that deviate from your company standards or regulations?","No"]
["Do the packaging and handling of the product match the stated end use of the product?","Yes"]
["Does the customer/shipper have appropriate materials and personal protective equipment to receive, transport, and store the chemical?","Yes"]
["Is the route safe? (Will it travel through hostile/high crime areas?)","Unsure"]